Workbook

Sheet BD_0 (hidden)
A1: Tabla 2. Estado de situación Financiera
J2: Análisis horizontal interanual | Q2: Análisis horizontal acumulado | X2: Análisis horizontal interanual
A3: Descripción | B3: 2014 | C3: 2015 | D3: 2016 | E3: 2017 | F3: 2018 | G3: 2019 | H3: 2020 | J3: 15/14 | K3: 16/15 | L3: 17/16 | M3: 18/17 | N3: 19/18 | O3: 20/19 | Q3: 15/14 | R3: 16/14 | S3: 17/14 | T3: 18/14 | U3: 19/14 | V3: 20/14 | X3: =+B3 -> 2014 | Y3: =+C3 -> 2015 | Z3: 2016 | AA3: 2017 | AB3: 2018 | AC3: 2019 | AD3: 2020
A4: ACTIVO | J4: =IFERROR(((C4-B4)/B4)*100," ") ->  | K4: =IFERROR(((D4-C4)/C4)*100," ") ->  | Q4: =IFERROR(((C4-$B4)/$B4)*100," ") ->  | R4: =IFERROR(((D4-$B4)/$B4)*100," ") ->  | S4: =IFERROR(((E4-$B4)/$B4)*100," ") ->  | T4: =IFERROR(((F4-$B4)/$B4)*100," ") ->  | U4: =IFERROR(((G4-$B4)/$B4)*100," ") ->  | V4: =IFERROR(((H4-$B4)/$B4)*100," ") ->  | X4: =IFERROR(((Q4-P4)/P4)*100," ") ->  | Y4: =IFERROR(((R4-Q4)/Q4)*100," ") ->  | Z4: =IFERROR(((S4-R4)/R4)*100," ") ->  | AA4: =IFERROR(((T4-S4)/S4)*100," ") ->  | AB4: =IFERROR(((U4-T4)/T4)*100," ") ->  | AC4: =IFERROR(((V4-U4)/U4)*100," ") -> 
A5: Activo corriente | J5: =IFERROR(((C5-B5)/B5)*100," ") ->  | Q5: =IFERROR(((C5-$B5)/$B5)*100," ") ->  | X5: =IFERROR(((Q5-P5)/P5)*100," ") -> 
A6: Caja | B6: 2000000 | C6: 734074 | D6: 0 | E6: 1282100 | F6: 2622419 | G6: 6183817 | H6: 2010809 | J6: -63.2963 | K6: -100 | M6: 104.5409094 | N6: 135.8058342 | O6: -67.48272143 | Q6: -63.2963 | R6: -100 | S6: -35.895 | T6: 31.12095 | U6: 209.19085 | V6: 0.54045
A7: Caja dólares | B7: 0 | C7: 0 | D7: 0 | E7: 0 | F7: 0 | G7: 0 | H7: 0
A8: Bancos nacionales | B8: 1224412104 | C8: 900183901.8 | D8: 206347570.6 | E8: 362982970.8 | F8: 118278874.3 | G8: 298745173.8 | H8: 79092905.06 | J8: -26.48031667 | K8: -77.07717609 | L8: 75.90852642 | M8: -67.41475943 | N8: 152.5769505 | O8: -73.52495973 | Q8: -26.48031667 | R8: -83.14721245 | S8: -70.35450977 | T8: -90.33994569 | U8: -75.6009294 | V8: -93.54033623
A9: Bancos moneda extranjera | B9: 0 | C9: 0 | D9: 0 | E9: 0 | F9: 21314882.77 | G9: 823676.37 | H9: 1858012.25 | N9: -96.13567488 | O9: 125.5755194
A10: Total efectivo | B10: =+SUM(B4:B9) -> 1226412104 | C10: =+SUM(C4:C9) -> 900917975.8 | D10: 206347570.6 | E10: 364265070.8 | F10: 142216176.1 | G10: 305752667.1 | H10: 82961726.31 | J10: -26.54035519 | K10: -77.09585376 | L10: 76.52985673 | M10: -60.95805295 | N10: 114.9914838 | O10: -72.86639326 | Q10: -26.54035519 | R10: -83.17469553 | S10: -70.29831412 | T10: -88.40388353 | U10: -75.06933713 | V10: -93.23541198
A11: Bonos publicos en moneda extranjera | B11: 0 | C11: 0 | D11: 0
A12: Certificados de Deposito a término | B12: 23135998 | C12: 23966489 | D12: 25066661 | E12: 26222817 | F12: 27252026 | G12: 13140000 | H12: 13140000 | I12: Depósito Canon arrendamiento | J12: 3.589605255 | K12: 4.590459621 | L12: 4.612325511 | M12: 3.924860552 | N12: -51.78340135 | O12: 0 | Q12: 3.589605255 | R12: 8.344844255 | S12: 13.34206115 | T12: 17.79057899 | U12: -43.20538928 | V12: -43.20538928
A13: F I C Credifondo | B13: 0 | C13: 0 | D13: 0 | E13: 3096088.6 | F13: 1263555.62 | G13: 5532906.3 | H13: 8017722.63 | M13: -59.1886479 | N13: 337.8838741 | O13: 44.90978512
A14: Total Inversiones a corto plazo | B14: =+SUM(B11:B13) -> 23135998 | C14: =+SUM(C11:C13) -> 23966489 | D14: 25066661 | E14: 29318905.6 | F14: 28515581.62 | G14: 18672906.3 | H14: =+SUM(H11:H13) -> 21157722.63 | J14: 3.589605255 | K14: 4.590459621 | L14: 16.96374559 | M14: -2.739952135 | N14: -34.51683171 | O14: 13.30706795 | Q14: 3.589605255 | R14: 8.344844255 | S14: 26.72418799 | T14: 23.2520059 | U14: -19.29068156 | V14: -8.550637712
A15: Clientes nacionales | B15: 906980508 | C15: 1562449941 | D15: 696082324 | E15: 605530219 | F15: 902410309 | G15: 1306399520 | H15: 774495396 | J15: 72.26940681 | K15: -55.44930396 | L15: -13.00882121 | M15: 49.02812125 | N15: 44.76779653 | O15: -40.71527246 | Q15: 72.26940681 | R15: -23.2527802 | S15: -33.23668881 | T15: -0.5038916448 | U15: 44.0383237 | V15: -14.60727224
A16: Clientes del exterior | B16: 12734204 | C16: 70138696.9 | D16: 50371543 | E16: 0 | F16: 14084192 | G16: 0 | H16: 1142119 | J16: 450.7898012 | K16: -28.18295003 | L16: -100 | N16: -100 | Q16: 450.7898012 | R16: 295.5609868 | S16: -100 | T16: 10.60127512 | U16: -100 | V16: -91.03109232
A17: Cuentas por cobrar a accionistas | B17: 0 | C17: 0 | D17: 0 | E17: 0 | F17: 0 | G17: 0 | H17: 0
A18: Anticipos y avances | B18: 43182861 | C18: 6183644 | D18: 0 | E18: 22454045 | F18: 0 | G18: 0 | H18: 1011200 | J18: -85.68032813 | K18: -100 | M18: -100 | Q18: -85.68032813 | R18: -100 | S18: -48.00241466 | T18: -100 | U18: -100 | V18: -97.65833023
A19: Anticipo de impuestos y contribuciones a favor | B19: 152499983 | C19: 195825803 | D19: 150062878 | E19: 159695695 | F19: 74502485 | G19: 106652197 | H19: 62866077 | I19: Ant Renta | J19: 28.41037694 | K19: -23.36920074 | L19: 6.419187162 | M19: -53.34721766 | N19: 43.15253646 | O19: -41.05505675 | Q19: 28.41037694 | R19: -1.598101817 | S19: 4.718500198 | T19: -51.14590603 | U19: -30.06412532 | V19: -58.77633836
A20: Reclamaciones | B20: 0 | C20: 0 | D20: 0 | E20: 0 | F20: 222235 | G20: 0 | H20: 0 | K20: =IFERROR(((D20-C20)/C20)*100," ") ->  | L20: =IFERROR(((E20-D20)/D20)*100," ") ->  | M20: =IFERROR(((F20-E20)/E20)*100," ") ->  | N20: =IFERROR(((G20-F20)/F20)*100," ") -> -100 | O20: =IFERROR(((H20-G20)/G20)*100," ") -> 
A21: Cuentas por cobrar a trabajadores | B21: 5031611 | C21: 1699997 | D21: 620000 | E21: 37000 | F21: 0 | G21: 0 | H21: 1028896 | J21: -66.21366397 | K21: -63.5293474 | L21: -94.03225806 | M21: -100 | Q21: -66.21366397 | R21: -87.67790276 | S21: -99.26464904 | T21: -100 | U21: -100 | V21: -79.55136039
A22: Provisiones | B22: -12225355 | C22: 0 | D22: -5644816 | E22: -1862914 | F22: 0 | G22: 0 | H22: 0 | J22: -100 | L22: -66.99779054 | M22: -100 | Q22: -100 | R22: -53.8269768 | S22: -84.76188217 | T22: -100 | U22: -100 | V22: -100
A23: Total Inversiones a corto plazo | B23: =+SUM(B15:B22) -> 1108203812 | C23: =+SUM(C15:C22) -> 1836298082 | D23: 891491929 | E23: 785854045 | F23: 991219221 | G23: 1413051717 | H23: =+SUM(H15:H22) -> 840543688 | J23: 65.70039392 | K23: -51.45167673 | L23: -11.84956146 | M23: 26.13273766 | N23: 42.55693262 | O23: -40.51571659 | Q23: 65.70039392 | R23: -19.5552371 | S23: -29.08758872 | T23: -10.55623431 | U23: 27.50828879 | V23: -24.15260813
A24: Materias Primas | B24: 0 | C24: 0 | D24: 0 | E24: 0
A25: Productos en proceso | B25: 0 | C25: 0 | D25: 0
A26: Mercancia no fabricada por la empresa | B26: 775457560 | C26: 841372799.1 | D26: 1660776692 | E26: 1036257618 | F26: 837462161.4 | G26: 1059394825 | H26: 984769926 | J26: 8.500173639 | K26: 97.38892128 | L26: -37.60403653 | M26: -19.18398024 | N26: 26.50061988 | O26: -7.044106469 | Q26: 8.500173639 | R26: 114.1673223 | S26: 33.63176421 | T26: 7.99587297 | U26: 36.61544875 | V26: 26.99211108
A27: Inventario de materiales, repuestos y accesorios | B27: 0 | C27: 0 | D27: 0 | E27: 0 | F27: 0 | G27: 0 | H27: 0
A28: Inventarios en transito | B28: 88194032 | C28: 0 | D28: 0 | E28: 68711361 | F28: 242185397 | G28: 162283420 | H28: 24916170 | J28: -100 | M28: 252.4677629 | N28: -32.99207053 | O28: -84.64650918 | Q28: -100 | R28: -100 | S28: -22.0906909 | T28: 174.6051989 | U28: 84.007258 | V28: -71.74846253
A29: Provisión para protección de Inventarios | B29: -245333429 | C29: 0 | D29: -94578519 | E29: -165636316 | F29: 0 | G29: 0 | H29: 0 | J29: -100 | L29: 75.13101046 | M29: -100 | Q29: -100 | R29: -61.44898827 | S29: -32.48522361 | T29: -100 | U29: -100 | V29: -100
A30: Total Inventarios | B30: =+SUM(B24:B29) -> 618318163 | C30: =+SUM(C24:C29) -> 841372799.1 | D30: 1566198173 | E30: 939332663.1 | F30: 1079647558 | G30: 1221678245 | H30: 1009686096 | J30: 36.07441111 | K30: 86.14794474 | L30: -40.02466104 | M30: 14.9377213 | N30: 13.15528256 | O30: -17.35253535 | Q30: 36.07441111 | R30: 153.2997196 | S30: 51.91736541 | T30: 74.61035807 | U30: 97.58084406 | V30: 63.29555824
A31: TOTAL ACTIVO CORRIENTE | B31: =+B10+B14+B23+B30 -> 2976070077 | C31: =+C10+C14+C23+C30 -> 3602555346 | D31: 2689104334 | E31: 2118770685 | F31: 2241598537 | G31: 2959155536 | H31: 1954349233 | J31: 21.05075661 | K31: -25.35564133 | L31: -21.20905619 | M31: 5.797128188 | N31: 32.01095053 | O31: -33.95584621 | Q31: 21.05075661 | R31: -9.642439061 | S31: -28.80642494 | T31: -24.67924213 | U31: -0.5683515865 | V31: -34.33120921
A32: Activo fijo
A33: Equipo de oficina | B33: 20459105 | C33: 19704285 | D33: 19704285 | E33: 19533602 | F33: 20749138 | G33: 26701360 | H33: 27669589 | J33: -3.689408701 | K33: 0 | L33: -0.8662227531 | M33: 6.222794956 | N33: 28.68659893 | O33: 3.62614114 | Q33: -3.689408701 | R33: -3.689408701 | S33: -4.523672956 | T33: 1.417623107 | U33: 30.51088989 | V33: 35.24339897
A34: Equipos de computación y comunicación | B34: 19475186 | C34: 22279806 | D34: 27029806 | E34: 30236220 | F34: 33472442 | G34: 39419342 | H34: 42668342 | J34: 14.40099211 | K34: 21.31975476 | L34: 11.86251207 | M34: 10.70313022 | N34: 17.76655554 | O34: 8.242146711 | Q34: 14.40099211 | R34: 38.79100307 | S34: 55.25510257 | T34: 71.87225837 | U34: 102.4080386 | V34: 119.0908061
A35: Flota y equipo de transporte | B35: 0 | C35: 0 | D35: 0 | E35: 0 | F35: 0 | G35: 0 | H35: 0
A36: Depreciación acumulada | B36: -25276061 | C36: -28781492 | D36: -33355186 | E36: -36854497 | F36: -42636786 | G36: -48632989 | H36: -56780555 | J36: 13.86858103 | K36: 15.89109418 | L36: 10.49105527 | M36: 15.68950731 | N36: 14.06344981 | O36: 16.75316728 | Q36: 13.86858103 | R36: 31.96354448 | S36: 45.80791287 | T36: 68.68445602 | U36: 92.40730983 | V36: 124.6416283
A37: Total activo fijo | B37: =+SUM(B32:B36) -> 14658230 | C37: =+SUM(C32:C36) -> 13202599 | D37: 13378905 | E37: 12915325 | F37: 11584794 | G37: 17487713 | H37: 13557376 | J37: -9.930469095 | K37: 1.335388585 | L37: -3.465007039 | M37: -10.30195524 | N37: 50.95402646 | O37: -22.47484848 | Q37: -9.930469095 | R37: -8.72769086 | S37: -11.8902828 | T37: -20.96730642 | U37: 19.30303318 | V37: -7.510142766
A38: Inversiones permanentes | E38: 0 | F38: 0 | G38: 0 | H38: 0
A39: Acciones y aportes en sociedades | B39: 0 | C39: 0 | D39: 0 | E39: 0 | F39: 0 | G39: 0 | H39: 0
A40: Otras inversiones largo plazo | B40: 0 | C40: 0 | D40: 0 | E40: 0 | F40: 0 | G40: 0 | H40: 0
A41: Provisión para protección de inversiones | B41: 0 | C41: 0 | D41: 0 | E41: 0 | F41: 0 | G41: 0 | H41: 0
A42: Total Inversiones permanentes | B42: =+SUM(B39:B41) -> 0 | C42: =+SUM(C39:C41) -> 0 | D42: 0 | E42: 0 | F42: 0 | G42: 0 | H42: =+SUM(H39:H41) -> 0
A43: Otros activos | E43: 0 | F43: 0 | G43: 0 | H43: 0
A44: Crédito mercantil | B44: 0 | C44: 0 | D44: 0 | E44: 0 | F44: 0 | G44: 0 | H44: 0
A45: Derechos fiduciarios | B45: 0 | C45: 0 | D45: 0 | E45: 0 | F45: 0 | G45: 0 | H45: 0
A46: Cargos diferidos | B46: 0 | C46: 5006462 | D46: 0 | E46: 0 | F46: 0 | G46: 0 | H46: 0 | K46: -100
A47: Bienes recibidos en pago | B47: 0 | C47: 0 | D47: 0 | E47: 0 | F47: 0 | G47: 0 | H47: 0
A48: Corrección monetaria diferida | B48: 0 | C48: 0 | D48: 0 | E48: 0 | F48: 0 | G48: 0 | H48: 0
A49: Total otros activos | B49: =+SUM(B43:B48) -> 0 | C49: =+SUM(C43:C48) -> 5006462 | D49: 0 | E49: 0 | F49: 0 | G49: 0 | H49: 0 | K49: -100
A50: Valorizaciones | G50: 0 | H50: 0
A51: De inversiones | B51: 0 | C51: 0 | D51: 0 | E51: 0 | F51: 0 | G51: 0 | H51: 0
A52: Propiedades, planta y equipo | B52: 0 | C52: 0 | D52: 0 | E52: 0 | F52: 0 | G52: 0 | H52: 0
A53: Total valorizaciones | B53: =+SUM(B51:B52) -> 0 | C53: =+SUM(C51:C52) -> 0 | D53: 0 | E53: 0 | F53: 0 | G53: 0 | H53: =+SUM(H51:H52) -> 0
A54: TOTAL ACTIVO | B54: =+B31+B37+B42+B49+B53 -> 2990728307 | C54: =+C31+C37+C42+C49+C53 -> 3620764407 | D54: 2702483239 | E54: 2131686010 | F54: 2253183331 | G54: 2976643249 | H54: =+H31+H37+H42+H49+H53 -> 1967906609 | J54: 21.0663101 | K54: -25.3615277 | L54: -21.12121256 | M54: 5.699588075 | N54: 32.10834679 | O54: -33.8883956 | Q54: 21.0663101 | R54: -9.637955675 | S54: -28.72351513 | T54: -24.6610491 | U54: -0.4709574743 | V54: -34.19975315
A55: PASIVO Y PATRIMONIO
A56: Pasivo
A57: Bancos nacionales | B57: 1152875.09 | C57: 812448.55 | D57: 1900417.05 | E57: 137200 | F57: 150000 | G57: 156000 | H57: 162050.87 | J57: -29.5284843 | K57: 133.9122951 | L57: -92.78053204 | M57: 9.329446064 | N57: 4 | O57: 3.878762821 | Q57: -29.5284843 | R57: 64.84153977 | S57: -88.09931785 | T57: -86.98905013 | U57: -86.46861214 | V57: -85.9437617
A58: Bancos del exterior | B58: 0 | C58: 0 | D58: 0 | E58: 0 | F58: 0 | G58: 0 | H58: 0
A59: Total obligaciones | B59: =+SUM(B57:B58) -> 1152875.09 | C59: =+SUM(C57:C58) -> 812448.55 | D59: 1900417.05 | E59: 137200 | F59: 150000 | G59: 156000 | H59: 162050.87 | J59: -29.5284843 | K59: 133.9122951 | L59: -92.78053204 | M59: 9.329446064 | N59: 4 | O59: 3.878762821 | Q59: -29.5284843 | R59: 64.84153977 | S59: -88.09931785 | T59: -86.98905013 | U59: -86.46861214 | V59: -85.9437617
A60: Proveedores nacionales | B60: 53586476 | C60: 36630662 | D60: 3521177 | E60: 13016669 | F60: 0 | G60: 0 | H60: 8712924 | J60: -31.64196504 | K60: -90.3873509 | L60: 269.6681252 | M60: -100 | Q60: -31.64196504 | R60: -93.42898197 | S60: -75.70904084 | T60: -100 | U60: -100 | V60: -83.74044227
A61: Proveedores del exterior | B61: 107704027 | C61: 1054608692 | D61: 239114698 | E61: 167595857 | F61: 537696681 | G61: 1444787655 | H61: 263930927 | I61: Importaciones "Permoda" | J61: 879.1729445 | K61: -77.32669001 | L61: -29.90984728 | M61: 220.8293395 | N61: 168.6993813 | O61: -81.73219946 | Q61: 879.1729445 | R61: 122.010917 | S61: 55.60779078 | T61: 399.2354473 | U61: 1241.442558 | V61: 145.0520508
A62: Total Proveedores | B62: =+SUM(B60:B61) -> 161290503 | C62: =+SUM(C60:C61) -> 1091239354 | D62: =+SUM(D60:D61) -> 242635875 | E62: =+SUM(E60:E61) -> 180612526 | F62: =+SUM(F60:F61) -> 537696681 | G62: =+SUM(G60:G61) -> 1444787655 | H62: 272643851 | J62: 576.567643 | K62: -77.76510955 | L62: -25.56231596 | M62: 197.7073035 | N62: 168.6993813 | O62: -81.12914032 | Q62: 576.567643 | R62: 50.43407422 | S62: 11.97964086 | T62: 233.3715693 | U62: 795.7673441 | V62: 69.03899853
A63: Costos y gastos por pagar | B63: 26536186 | C63: 45182948.74 | D63: 21488111 | E63: 65570869.45 | F63: 11695222 | G63: 22527968 | H63: 101619875 | J63: 70.26918917 | K63: -52.44199062 | L63: 205.1495287 | M63: -82.16399737 | N63: 92.62539865 | O63: 351.0831825 | Q63: 70.26918917 | R63: -19.02336304 | S63: 147.0998261 | T63: -55.92726852 | U63: -15.1047253 | V63: 282.9483069
A64: Dividendos por pagar | B64: 516061748 | C64: 0 | D64: 0 | E64: 0 | F64: 99064575.45 | G64: 86943879.45 | H64: 77865291.68 | J64: -100 | N64: -12.23514656 | O64: -10.44189404 | Q64: -100 | R64: -100 | S64: -100 | T64: -80.80373602 | U64: -83.15242705 | V64: -84.91163277
A65: Retención en la fuente | B65: 10658000 | C65: 12438000 | D65: 3137000 | E65: 3570000 | F65: 4599000 | G65: 10116000 | H65: 6192000 | J65: 16.70106962 | K65: -74.77890336 | L65: 13.80299649 | M65: 28.82352941 | N65: 119.9608611 | O65: -38.79003559 | Q65: 16.70106962 | R65: -70.56671045 | S65: -66.50403453 | T65: -56.84931507 | U65: -5.085381873 | V65: -41.90279602
A66: Impuesto a las ventas retenido | B66: 0 | C66: 0 | D66: 0 | E66: 0 | F66: 0 | G66: 0 | H66: 0
A67: Impuesto de ind. y comercio retenido | B67: 263000 | C67: 294000 | D67: 132000 | E67: 559000 | F67: 250000 | G67: 358000 | H67: 493000 | J67: 11.78707224 | K67: -55.10204082 | L67: 323.4848485 | M67: -55.27728086 | N67: 43.2 | O67: 37.70949721 | Q67: 11.78707224 | R67: -49.80988593 | S67: 112.5475285 | T67: -4.942965779 | U67: 36.121673 | V67: 87.45247148
A68: Retención y aportes de nómina | B68: 0 | C68: 194332 | D68: 0 | E68: 0 | F68: 0 | G68: 0 | H68: 0 | K68: -100 | R68: =IFERROR(((D68-$B68)/$B68)*100," ") ->  | S68: =IFERROR(((E68-$B68)/$B68)*100," ") ->  | T68: =IFERROR(((F68-$B68)/$B68)*100," ") ->  | U68: =IFERROR(((G68-$B68)/$B68)*100," ") ->  | V68: =IFERROR(((H68-$B68)/$B68)*100," ") -> 
A69: Acreedores varios | B69: 0 | C69: 0 | D69: 0 | E69: 0 | F69: 0 | G69: 0 | H69: 0 | J69: =IFERROR(((C69-B69)/B69)*100," ") ->  | Q69: =IFERROR(((C69-$B69)/$B69)*100," ") -> 
A70: Total cuentas por pagar | B70: =+SUM(B63:B69) -> 553518934 | C70: =+SUM(C63:C69) -> 58109280.74 | D70: 24757111 | E70: 69699869.45 | F70: 115608797.5 | G70: 119945847.5 | H70: 186170166.7 | J70: -89.50184408 | K70: -57.39559897 | L70: 181.5347455 | M70: 65.86659109 | N70: 3.751487859 | O70: 55.21184821 | Q70: -89.50184408 | R70: -95.52732355 | S70: -87.40786174 | T70: -79.11384953 | U70: -78.33030813 | V70: -66.36607074
A71: Renta y complementarios | B71: 356886000 | C71: 298757000 | D71: 88691000 | E71: 112291000 | F71: 97160000 | G71: 0 | H71: 0 | J71: -16.28783421 | K71: -70.31333157 | L71: 26.60923882 | M71: -13.47481098 | N71: -100 | Q71: -16.28783421 | R71: -75.14864691 | S71: -68.53589101 | T71: -72.77562023 | U71: -100 | V71: -100
A72: Impuesto sobre las ventas por pagar | B72: 93360000 | C72: 100051000 | D72: 0 | E72: 51011000 | F72: 44582000 | G72: 34779000 | H72: 112986000 | J72: 7.166880891 | K72: -100 | M72: -12.60316402 | N72: -21.98869499 | O72: 224.8684551 | Q72: 7.166880891 | R72: -100 | S72: -45.36096829 | T72: -52.24721508 | U72: -62.74742931 | V72: 21.0218509
A73: De industria y comercio | B73: 2537000 | C73: 10061000 | D73: 1663000 | E73: 1066000 | F73: 1733000 | G73: 0 | H73: 364000 | J73: 296.5707529 | K73: -83.47082795 | L73: -35.89897775 | M73: 62.57035647 | N73: -100 | Q73: 296.5707529 | R73: -34.45013796 | S73: -57.98186835 | T73: -31.69097359 | U73: -100 | V73: -85.65234529
A74: Otros impuestos | B74: 0 | C74: 0 | D74: 0 | E74: 0 | F74: 0 | G74: 0 | H74: 0
A75: Total Impuestos, gravamenes y tasas | B75: =+SUM(B71:B74) -> 452783000 | C75: =+SUM(C71:C74) -> 408869000 | D75: 90354000 | E75: 164368000 | F75: 143475000 | G75: 34779000 | H75: 113350000 | J75: -9.698685684 | K75: -77.90147945 | L75: 81.91557651 | M75: -12.71111165 | N75: -75.75953999 | O75: 225.9150637 | Q75: -9.698685684 | R75: -80.0447455 | S75: -63.69828373 | T75: -68.31263541 | U75: -92.31883706 | V75: -74.96593291
A76: Salarios por pagar | B76: 0 | C76: 6615949 | D76: 0 | E76: 8298479 | F76: 0 | G76: 19662840 | K76: -100 | M76: -100 | O76: -100
A77: Cesantias consolidadas | B77: 16051680 | C77: 12492519 | D77: 11169997 | E77: 13922924 | F77: 6824598 | G77: 16398686 | H77: 13044427 | I77: Planta 6 | J77: -22.17313702 | K77: -10.58651182 | L77: 24.6457273 | M77: -50.9830119 | N77: 140.2879408 | O77: -20.45443763 | Q77: -22.17313702 | R77: -30.41228706 | S77: -13.2618891 | T77: -57.4835905 | U77: 2.16180487 | V77: -18.73481779
A78: Intereses de cesantias | B78: 1808141 | C78: 1341355 | D78: 1441480 | E78: 2299144 | F78: 1258660 | G78: 1964626 | H78: 1358159 | J78: -25.81579645 | K78: 7.464466901 | L78: 59.49884841 | M78: -45.25527762 | N78: 56.0886975 | O78: -30.86933594 | Q78: -25.81579645 | R78: -20.27834112 | S78: 27.15512784 | T78: -30.38927827 | U78: 8.654468872 | V78: -24.88644414
A79: Vacaciones consolidadas | B79: 8007971 | C79: 7699296 | D79: 5479305 | E79: 10439808 | F79: 5735289 | G79: 9566364 | H79: 10817949 | J79: -3.854596876 | K79: -28.83368817 | L79: 90.53160939 | M79: -45.06327128 | N79: 66.79829037 | O79: 13.08318396 | Q79: -3.854596876 | R79: -31.5768626 | S79: 30.36770488 | T79: -28.38024763 | U79: 19.46052252 | V79: 35.08976244
A80: Aportes voluntarios AFC | B80: 0 | C80: 2144375 | D80: 0 | E80: 0 | F80: 0 | G80: 0 | H80: 0 | K80: -100
A81: Total obligaciones laborales | B81: =+SUM(B76:B80) -> 25867792 | C81: =+SUM(C76:C80) -> 30293494 | D81: 18090782 | E81: 34960355 | F81: 13818547 | G81: 47592516 | H81: 25220535 | J81: 17.10892835 | K81: -40.28162615 | L81: 93.24955107 | M81: -60.4736651 | N81: 244.4104217 | O81: -47.0073509 | Q81: 17.10892835 | R81: -30.06445235 | S81: 35.15013187 | T81: -46.58010626 | U81: 83.98368133 | V81: -2.502173359
A82: Para costos y gastos | B82: 0 | C82: 0 | D82: 0 | E82: 0 | F82: 0 | G82: 0
A83: Para obligaciones laborales | B83: 0 | C83: 0 | D83: 0 | E83: 0 | F83: 0 | G83: 0
A84: Para obligaciones fiscales | B84: 0 | C84: 0 | D84: 0 | E84: 0 | F84: 0 | K84: =IFERROR(((D84-C84)/C84)*100," ") ->  | L84: =IFERROR(((E84-D84)/D84)*100," ") ->  | M84: =IFERROR(((F84-E84)/E84)*100," ") ->  | N84: =IFERROR(((G84-F84)/F84)*100," ") ->  | O84: =IFERROR(((H84-G84)/G84)*100," ") -> 
A85: Total pasivos, estim. y provisiones | B85: =+SUM(B82:B84) -> 0 | C85: =+SUM(C82:C84) -> 0 | D85: 0 | E85: 0 | F85: 0 | G85: 0 | H85: 0
A86: Ingresos recibidos por anticipado | B86: 0 | C86: 0 | D86: 0 | E86: 0 | F86: 0 | G86: 0
A87: Anticipos y avances recibidos | B87: 24627283 | C87: 0 | D87: 135558578 | E87: 0 | F87: 0 | G87: 5377974 | H87: 309615000 | J87: -100 | L87: -100 | O87: 5657.093656 | Q87: -100 | R87: 450.4406556 | S87: -100 | T87: -100 | U87: -78.16253624 | V87: 1157.203241
A88: Ingreso recibidos para terceros | B88: 0 | C88: 0 | D88: 0 | E88: 0 | F88: 0 | G88: 0
A89: Retención a terceros sobre contratos | B89: 0 | C89: 0 | D89: 0 | E89: 0 | F89: 0 | G89: 0
A90: Total diferidos y otros pasivos | B90: =+SUM(B86:B89) -> 24627283 | C90: =+SUM(C86:C89) -> 0 | D90: 135558578 | E90: 0 | F90: 0 | G90: 5377974 | H90: =+SUM(H86:H89) -> 309615000 | J90: -100 | L90: -100 | O90: 5657.093656 | Q90: -100 | R90: 450.4406556 | S90: -100 | T90: -100 | U90: -78.16253624 | V90: 1157.203241
A91: TOTAL PASIVO CORRIENTE | B91: =+B59+B62+B70+B75+B81+B85+B90 -> 1219240387 | C91: =+C59+C62+C70+C75+C81+C85+C90 -> 1589323578 | D91: 513296763.1 | E91: 449777950.4 | F91: 810749025.5 | G91: 1652638992 | H91: =+H59+H62+H70+H75+H81+H85+H90 -> 907161603.5 | J91: 30.35358692 | K91: -67.70344502 | L91: -12.37467624 | M91: 80.25539594 | N91: 103.8410088 | O91: -45.10830207 | Q91: 30.35358692 | R91: -57.90028214 | S91: -63.10998592 | T91: -33.50375906 | U91: 35.54660836 | V91: -25.59616519
A92: TOTAL PASIVO | B92: =+B91 -> 1219240387 | C92: =+C91 -> 1589323578 | D92: 513296763.1 | E92: 449777950.4 | F92: 810749025.5 | G92: 1652638992 | H92: =+H91 -> 907161603.5 | J92: 30.35358692 | K92: -67.70344502 | L92: -12.37467624 | M92: 80.25539594 | N92: 103.8410088 | O92: -45.10830207 | Q92: 30.35358692 | R92: -57.90028214 | S92: -63.10998592 | T92: -33.50375906 | U92: 35.54660836 | V92: -25.59616519
A93: PATRIMONIO Y SUPERAVIT
A94: Capital suscrito y pagado | B94: 180000000 | C94: 180000000 | D94: 180000000 | E94: 180000000 | F94: 180000000 | G94: 180000000 | H94: 180000000 | J94: 0 | K94: 0 | L94: 0 | M94: 0 | N94: 0 | O94: 0 | Q94: 0 | R94: 0 | S94: 0 | T94: 0 | U94: 0 | V94: 0
A95: Reserva legal | B95: 78840194 | C95: 90000000 | D95: 90000000 | E95: 90000000 | F95: 90000000 | G95: 90000000 | H95: 90000000 | J95: 14.15497024 | K95: 0 | L95: 0 | M95: 0 | N95: 0 | O95: 0 | Q95: 14.15497024 | R95: 14.15497024 | S95: 14.15497024 | T95: 14.15497024 | U95: 14.15497024 | V95: 14.15497024
A96: Utilidades acumuladas | B96: 838779414 | C96: 1213949920 | D96: 1761440829 | E96: 1196644076 | F96: 1002182259 | G96: 1172434306 | H96: 1046864256 | J96: 44.72814902 | K96: 45.09995837 | L96: -32.06447495 | M96: -16.25059787 | N96: 16.98813215 | O96: -10.71019917 | Q96: 44.72814902 | R96: 110.000484 | S96: 42.66493141 | T96: 19.48102711 | U96: 39.7786219 | V96: 24.8080531
A97: Utilidad o pérdida del ejercicio | B97: 673868312.3 | C97: 547490908.7 | D97: 157745646.7 | E97: 215263983.4 | F97: 170252046.6 | G97: -118430049.2 | H97: -256119251 | J97: -18.75402081 | K97: -71.18753131 | L97: 36.46270937 | M97: -20.91011049 | N97: -169.5616009 | O97: 116.2620489 | Q97: -18.75402081 | R97: -76.59102768 | S97: -68.05548214 | T97: -74.73511612 | U97: -117.5746577 | V97: -138.0073148
A98: Total patrimonio | B98: =+SUM(B94:B97) -> 1771487920 | C98: =+SUM(C94:C97) -> 2031440829 | D98: 2189186476 | E98: 1681908059 | F98: 1442434306 | G98: 1324004256 | H98: =+SUM(H94:H97) -> 1060745005 | J98: 14.67426934 | K98: 7.765210014 | L98: -23.17200578 | M98: -14.23821903 | N98: -8.210429326 | O98: -19.88356531 | Q98: 14.67426934 | R98: 23.57896719 | S98: -5.05675823 | T98: -18.57498495 | U98: -25.26032827 | V98: -40.12123971
A99: TOTAL PASIVO Y PATRIMONIO | B99: =+B92+B98 -> 2990728307 | C99: =+C92+C98 -> 3620764407 | D99: 2702483239 | E99: 2131686010 | F99: 2253183331 | G99: 2976643249 | H99: =+H92+H98 -> 1967906609 | J99: 21.0663101 | K99: -25.3615277 | L99: -21.12121256 | M99: 5.699588075 | N99: 32.10834679 | O99: -33.8883956 | Q99: 21.0663101 | R99: -9.637955675 | S99: -28.72351513 | T99: -24.6610491 | U99: -0.4709574743 | V99: -34.19975315
B100: =+B99-B54 -> 0 | C100: =+C99-C54 -> 0 | D100: 0 | E100: 0 | F100: 0 | G100: 0 | H100: =+H99-H54 -> 0
A101: Descripción | B101: 2014 | C101: 2015 | D101: 2016 | E101: 2017 | F101: 2018 | G101: 2019 | H101: 2020 | J101: 0.04965243297 | K101: 0.04962779156 | L101: 0.0496031746 | M101: 0.04957858205 | N101: 0.04955401388 | O101: 0.04952947003 | Q101: 0.04965243297 | R101: 0.09930486594 | S101: 0.1489572989 | T101: 0.1986097319 | U101: 0.2482621648 | V101: 0.2979145978
A102: Ventas brutas nacionales | B102: 5804357818 | C102: 5133783033 | D102: 3303906223 | E102: 2616778661 | F102: 2207165749 | G102: 3175383761 | H102: 2321156037 | J102: -11.55295394 | K102: -35.64382831 | L102: -20.79742933 | M102: -15.65332667 | N102: 43.86702777 | O102: -26.90155862 | Q102: -11.55295394 | R102: -43.07886718 | S102: -54.91699955 | T102: -61.97398889 | U102: -45.29310803 | V102: =IFERROR(((H102-$B102)/$B102)*100," ") -> -60.01011465
A103: ventas brutas exterior | B103: 58980866 | C103: 39859399 | D103: 14879344 | E103: 128118428 | F103: 16169719 | G103: 4449882 | H103: 204775171 | J103: -32.41978 | K103: -62.67042561 | L103: 761.0489011 | M103: -87.37908414 | N103: -72.48015256 | O103: 4501.811262 | Q103: -32.41978 | R103: -74.7725915 | S103: 117.2203236 | T103: -72.58480572 | U103: -92.45538036 | V103: 247.1891562
A104: Total ventas brutas | B104: =+SUM(B102:B103) -> 5863338684 | C104: =+SUM(C102:C103) -> 5173642432 | D104: 3318785567 | E104: 2744897089 | F104: 2223335468 | G104: 3179833643 | H104: 2525931208 | I104: 50 posiciones ( Estibas) | J104: -11.76285883 | K104: -35.85204987 | L104: -17.29212287 | M104: -19.00113571 | N104: 43.02086612 | O104: -20.56404543 | Q104: -11.76285883 | R104: -43.39768269 | S104: -53.18542494 | T104: -62.08072588 | U104: -45.76752573 | V104: -56.91991638
A105: Descuentos comerciales | B105: 265088065 | C105: 83780060 | D105: 6197948 | E105: 2622913 | F105: 0 | G105: 0 | H105: 0 | J105: -68.39538589 | K105: -92.60212036 | L105: -57.68094537 | M105: -100 | Q105: -68.39538589 | R105: -97.66192869 | S105: -99.01055032 | T105: -100 | U105: -100 | V105: -100
A106: Devoluciones y descuentos en ventas | B106: 274946597 | C106: 340979393 | D106: 190316225 | E106: 53076743 | F106: 51046509 | G106: 74192240 | H106: 156630542 | J106: 24.01658967 | K106: -44.18541739 | L106: -72.11128846 | M106: -3.825091528 | N106: 45.34243664 | O106: 111.1144535 | Q106: 24.01658967 | R106: -30.78065811 | S106: -80.69561741 | T106: -81.43402771 | U106: -73.01576349 | V106: -43.03237657
A107: Ventas Netas | B107: =+B104-B105-B106 -> 5323304022 | C107: =+C104-C105-C106 -> 4748882979 | D107: 3122271394 | E107: 2689197433 | F107: 2172288959 | G107: 3105641403 | H107: 2369300666 | J107: -10.7906864 | K107: -34.25250932 | L107: -13.87047781 | M107: -19.22166322 | N107: 42.96631165 | O107: -23.70977977 | Q107: -10.7906864 | R107: -41.34711485 | S107: -49.48255028 | T107: -59.19284433 | U107: -41.65951465 | V107: -55.49191524
A108: Costo deventas | B108: 2840650741 | C108: 2800340034 | D108: 1866430298 | E108: 1497273400 | F108: 1191769145 | G108: 2313965225 | H108: 1371898785 | J108: -1.419065921 | K108: -33.34986912 | L108: -19.7787669 | M108: -20.40403944 | N108: 94.16220289 | O108: -40.71221253 | Q108: -1.419065921 | R108: -34.29567841 | S108: -47.29118302 | T108: -58.04591083 | U108: -18.54101626 | V108: -51.70477084
A109: Utilidad Bruta | B109: =+B107-B108 -> 2482653281 | C109: =+C107-C108 -> 1948542945 | D109: 1255841096 | E109: 1191924033 | F109: 980519814 | G109: 791676177.7 | H109: 997401881 | J109: -21.51369023 | K109: -35.54973477 | L109: -5.08958205 | M109: -17.73638362 | N109: -19.25954311 | O109: 25.98609243 | Q109: -21.51369023 | R109: -49.41536518 | S109: -51.98991168 | T109: -60.50516512 | U109: -68.11168987 | V109: -59.82516412
A110: Gastos de Administración | X110: =+X$3 -> 2014 | Y110: =+Y3 -> 2015 | Z110: 2016 | AA110: 2017 | AB110: 2018 | AC110: 2019 | AD110: 2020
A111: Gastos de personal | B111: 119673712 | C111: 256099193 | D111: 92275068 | E111: 85532117 | F111: 64406207 | G111: 65143691 | H111: 73110972 | J111: 113.9978686 | K111: -63.96901258 | L111: -7.307446254 | M111: -24.69938865 | N111: 1.145051128 | O111: 12.23031867 | Q111: 113.9978686 | R111: -22.89445488 | S111: -28.52890115 | T111: -46.18182563 | U111: -45.56558002 | V111: -38.90807699 | X111: =+IFERROR(B111/B$125*100," ") -> 27.66822072 | Y111: =+IFERROR(C111/C$125*100," ") -> 42.66371953 | Z111: =+IFERROR(D111/D$125*100," ") -> 30.88671474 | AA111: =+IFERROR(E111/E$125*100," ") -> 26.42320709 | AB111: =+IFERROR(F111/F$125*100," ") -> 17.75528979 | AC111: =+IFERROR(G111/G$125*100," ") -> 22.57692831 | AD111: =+IFERROR(H111/H$125*100," ") -> 31.7021329
A112: Honorarios | B112: 35616252 | C112: 47877638 | D112: 36098330 | E112: 38657787 | F112: 34465474 | G112: 34874158 | H112: 35940614 | J112: 34.42637928 | K112: -24.60294303 | L112: 7.090236584 | M112: -10.84467924 | N112: 1.185777976 | O112: 3.058012182 | Q112: 34.42637928 | R112: 1.353533774 | S112: 8.539739106 | T112: -3.231047444 | U112: -2.083582517 | V112: 0.9107134574 | X112: =+IFERROR(B112/B$125*100," ") -> 8.23437583 | Y112: 7.975964685 | Z112: 12.08299106 | AA112: 11.94244627 | AB112: 9.5013277 | AC112: 12.0863794 | AD112: 15.58444773
A113: Impuestos | B113: 83793139.99 | C113: 29955664.2 | D113: 3892000 | E113: 1363000 | F113: 0 | G113: 0 | H113: 0 | J113: -64.25045749 | K113: -87.00746552 | L113: -64.97944502 | M113: -100 | Q113: -64.25045749 | R113: -95.35522836 | S113: -98.37337519 | T113: -100 | U113: -100 | V113: -100 | X113: 19.37273486 | Y113: 4.990332225 | Z113: 1.302747279 | AA113: 0.4210679278 | AB113: 0 | AC113: 0 | AD113: 0
A114: Arrendamientos | B114: 43641000 | C114: 45176788 | D114: 47790223 | E114: 50725506 | F114: 52427622 | G114: 41542300 | H114: 35079947 | J114: 3.519140258 | K114: 5.784906621 | L114: 6.142015701 | M114: 3.355542673 | N114: -20.76257054 | O114: -15.55607898 | Q114: 3.519140258 | R114: 9.507625856 | S114: 16.23360143 | T114: 20.13386953 | U114: -4.809009876 | V114: -19.61699549 | X114: 10.08967467 | Y114: 7.526028449 | Z114: 15.99655267 | AA114: 15.67049428 | AB114: 14.45307316 | AC114: 14.39736549 | AD114: 15.21124821
A115: Contribuciones y afiliaciones | B115: 0 | C115: 0 | D115: 162000 | E115: 31284693.42 | F115: 35349179.99 | G115: 20955855.34 | H115: 31797100 | L115: 19211.53915 | M115: 12.99193352 | N115: -40.71756305 | O115: 51.73372542 | X115: 0 | Y115: 0 | Z115: 0.05422534923 | AA115: 9.664696281 | AB115: 9.744944839 | AC115: 7.262696302 | AD115: 13.78775117
A116: Seguros | B116: 4763060 | C116: 8337584 | D116: 8287924 | E116: 9051756 | F116: 3380000 | G116: 12190494 | H116: 4278641 | J116: 75.04679765 | K116: -0.5956161881 | L116: 9.216204203 | M116: -62.65917906 | N116: 260.665503 | O116: -64.90182432 | Q116: 75.04679765 | R116: 74.00419058 | S116: 90.04077211 | T116: -29.03721557 | U116: 155.9382834 | V116: -10.17033168 | X116: 1.10120588 | Y116: 1.388963164 | Z116: 2.774170206 | AA116: 2.79633466 | AB116: 0.9317872032 | AC116: 4.224874349 | AD116: 1.855289868
A117: Servicios | B117: 42550551 | C117: 31448979 | D117: 20252291.61 | E117: 13622487 | F117: 10674965 | G117: 17824810.18 | H117: 14027969 | J117: -26.09031314 | K117: -35.60270554 | L117: -32.73607124 | M117: -21.63717976 | N117: 66.97769201 | O117: -21.30087862 | Q117: -26.09031314 | R117: -52.40416132 | S117: -67.98516898 | T117: -74.91227552 | U117: -58.10909668 | V117: -67.03222715 | X117: 9.837565971 | Y117: 5.239104441 | Z117: 6.778935712 | AA117: 4.208358307 | AB117: 2.942838989 | AC117: 6.177566168 | AD117: 6.082760568
A118: Gastos legales | B118: 3007980 | C118: 3224340 | D118: 2632813 | E118: 2666712 | F118: 8164399 | G118: 3916590 | H118: 4703915 | J118: 7.192866974 | K118: -18.34567694 | L118: 1.287558212 | M118: 206.1597578 | N118: -52.02843467 | O118: 20.10230839 | Q118: 7.192866974 | R118: -12.47239011 | S118: -11.34542118 | T118: 171.4246438 | U118: 30.20665031 | V118: 56.38119269 | X118: 0.6954363926 | Y118: 0.5371447516 | Z118: 0.8812666938 | AA118: 0.8238201731 | AB118: 2.25073447 | AC118: 1.357377365 | AD118: 2.039695745
A119: Mantenimiento y reparaciones | B119: 7303985 | C119: 3940124 | D119: 6227586 | E119: 5487636 | F119: 5390059 | G119: 6430400 | H119: 2161067 | J119: -46.05514661 | K119: 58.05558404 | L119: -11.88181103 | M119: -1.778124497 | N119: 19.30110598 | O119: -66.39296156 | Q119: -46.05514661 | R119: -14.73714691 | S119: -24.86791799 | T119: -26.20385995 | U119: -11.96038875 | V119: -70.412494 | X119: 1.68866049 | Y119: 0.6563876413 | Z119: 2.08452485 | AA119: 1.695280645 | AB119: 1.48591361 | AC119: 2.228591558 | AD119: 0.9370745781
A120: Adecuaciones e instalaciones | B120: 361000 | C120: 2195648 | D120: 1255000 | E120: 1065795 | F120: 787956 | G120: 354729 | H120: 96100 | J120: 508.2127424 | K120: -42.8414755 | L120: -15.07609562 | M120: -26.06870927 | N120: -54.9811157 | O120: -72.90889665 | Q120: 508.2127424 | R120: 247.6454294 | S120: 195.234072 | T120: 118.2703601 | U120: -1.737119114 | V120: -73.37950139 | X120: 0.08346216987 | Y120: 0.3657743289 | Z120: 0.4200790944 | AA120: 0.3292531857 | AB120: 0.2172210998 | AC120: 0.1229388615 | AD120: 0.04167055763
A121: Gastos de viaje | B121: 62516754 | C121: 61611979.11 | D121: 53410031 | E121: 70588264 | F121: 134218250.7 | G121: 69470882 | H121: 13239620.15 | J121: -1.447251868 | K121: -13.31226204 | L121: 32.16293396 | M121: 90.14244454 | N121: -48.24036104 | O121: -80.9422023 | Q121: -1.447251868 | R121: -14.56685195 | S121: 12.91095504 | T121: 114.6916501 | U121: 11.12362296 | V121: -78.82228474 | X121: 14.45369513 | Y121: 10.26397688 | Z121: 17.8776394 | AA121: 21.80664274 | AB121: 37.00084274 | AC121: 24.07660817 | AD121: 5.740919401
A122: Depreciaciones | B122: 4883249 | C122: 3505431 | D122: 4573694 | E122: 4097773 | F122: 5782289 | G122: 5996203 | H122: 8147566 | J122: -28.21519034 | K122: 30.47451226 | L122: -10.40561524 | M122: 41.10808481 | N122: 3.699469189 | O122: 35.87875527 | Q122: -28.21519034 | R122: -6.339119713 | S122: -16.08511055 | T122: 18.41069337 | U122: 22.79126049 | V122: 66.84723634 | X122: 1.128993234 | Y122: 0.5839718714 | Z122: 1.530926879 | AA122: 1.265914003 | AB122: 1.594042277 | AC122: 2.078111375 | AD122: 3.532920068
A123: Diversos | B123: 15776203 | C123: 103337110 | D123: 16251486 | E123: 7804131 | F123: 7697365.15 | G123: 9840871 | H123: 8034953 | J123: 555.0188914 | K123: -84.27333027 | L123: -51.9789698 | M123: -1.368068399 | N123: 27.84726732 | O123: -18.35120082 | Q123: 555.0188914 | R123: 3.012657735 | S123: -50.53226052 | T123: -51.20901303 | U123: -37.62205646 | V123: -49.06915815 | X123: 3.647413116 | Y123: 17.21499168 | Z123: 5.439768543 | AA123: 2.410909221 | AB123: 2.121984126 | AC123: 3.410562645 | AD123: 3.484089199
A124: Provisiones | B124: 8644404 | C124: 3563468.38 | D124: 5644816 | E124: 1753083 | F124: 0 | G124: 0 | H124: 0 | J124: -58.7771652 | K124: 58.40791605 | L124: -68.94348726 | M124: -100 | Q124: -58.7771652 | R124: -34.69976646 | S124: -79.72002465 | T124: -100 | U124: -100 | V124: -100 | X124: 1.998561538 | Y124: 0.5936403537 | Z124: 1.889457524 | AA124: 0.5415752209 | AB124: 0 | AC124: 0 | AD124: 0
A125: Subtotal administrativos | B125: =SUM(B111:B124) -> 432531290 | C125: =SUM(C111:C124) -> 600273946.7 | D125: 298753262.6 | E125: 323700740.4 | F125: 362743766.9 | G125: 288540983.5 | H125: 230618464.2 | J125: 38.78162357 | K125: -50.23051321 | L125: 8.350528992 | M125: 12.06145726 | N125: -20.4559775 | O125: -20.07427807 | Q125: 38.78162357 | R125: -30.92909819 | S125: -25.16131251 | T125: -16.1346762 | U125: -33.29014797 | V125: -46.68166917 | X125: 100 | Y125: 100 | Z125: 100 | AA125: 100 | AB125: 100 | AC125: 100 | AD125: 100
A126: Gastos de ventas | X126: =+X$3 -> 2014 | Y126: =+Y$3 -> 2015 | Z126: 2016 | AA126: 2017 | AB126: 2018 | AC126: 2019 | AD126: 2020
A127: Gastos de personal | B127: 369866712 | C127: 367288707 | D127: 378114998 | E127: 350578712 | F127: 207476617 | G127: 412844049 | H127: 340835422 | I127: (+) Gerente de cuenta | J127: -0.6970091972 | K127: 2.947624251 | L127: -7.282516204 | M127: -40.81882045 | N127: 98.98341074 | O127: -17.44208913 | Q127: -0.6970091972 | R127: 2.230069842 | S127: -5.21485156 | T127: -43.90503112 | U127: 11.61968234 | V127: -7.849122145 | X127: =+IFERROR(B127/B$140*100," ") -> 37.54926138 | Y127: =+IFERROR(C127/C$140*100," ") -> 70.82982062 | Z127: =+IFERROR(D127/D$140*100," ") -> 64.33501424 | AA127: =+IFERROR(E127/E$140*100," ") -> 64.98594402 | AB127: =+IFERROR(F127/F$140*100," ") -> 68.19538049 | AC127: =+IFERROR(G127/G$140*100," ") -> 70.96076235 | AD127: =+IFERROR(H127/H$140*100," ") -> 66.44303313
A128: Honorarios | B128: 196135217 | C128: 150000 | D128: 400000 | E128: 400000 | F128: 0 | G128: 0 | H128: 0 | J128: -99.92352215 | K128: 166.6666667 | L128: 0 | M128: -100 | Q128: -99.92352215 | R128: -99.79605906 | S128: -99.79605906 | T128: -100 | U128: -100 | V128: -100 | X128: =+IFERROR(B128/B$140*100," ") -> 19.91185552 | Y128: 0.02892676222 | Z128: 0.06805867483 | AA128: 0.07414705091 | AB128: 0 | AC128: 0 | AD128: 0
A129: Impuestos | B129: 1427000 | C129: 52167500 | D129: 42545000 | E129: 32547000 | F129: 23890000 | G129: 34284000 | H129: 23981000 | J129: 3555.746321 | K129: -18.44539225 | L129: -23.49982372 | M129: -26.59845762 | N129: 43.50774383 | O129: -30.05191926 | Q129: 3555.746321 | R129: 2881.429573 | S129: 2180.798879 | T129: 1574.141556 | U129: 2302.522775 | V129: 1580.51857 | X129: 0.1448705554 | Y129: 10.06024579 | Z129: 7.238890801 | AA129: 6.033160165 | AB129: 7.852391578 | AC129: 5.892827527 | AD129: 4.674896665
A130: Afiliaciones y sostenimiento | B130: 1531530 | C130: 0 | D130: 1175333 | E130: 0 | F130: 0 | G130: 0 | H130: 0 | J130: -100 | L130: -100 | Q130: -100 | R130: -23.25759208 | S130: -100 | T130: -100 | U130: -100 | V130: -100 | X130: 0.155482552 | Y130: 0 | Z130: 0.1999790161 | AA130: 0 | AB130: 0 | AC130: 0 | AD130: 0
A131: Seguros | B131: 12233805 | C131: 1430638 | D131: 0 | E131: 497458.48 | F131: 0 | G131: 0 | H131: 84034 | J131: -88.30586232 | K131: -100 | M131: -100 | Q131: -88.30586232 | R131: -100 | S131: -95.93373869 | T131: -100 | U131: -100 | V131: -99.31310005 | X131: 1.241988875 | Y131: 0.2758915017 | Z131: 0 | AA131: 0.0922126981 | AB131: 0 | AC131: 0 | AD131: 0.01638172997
A132: Servicios | B132: 123429257 | C132: 49724807 | D132: 274253 | E132: 59392583 | F132: 44113532 | G132: 60546816 | H132: 87553610 | J132: -59.7139218 | K132: -99.44845839 | L132: 21556.12883 | M132: -25.72552031 | N132: 37.25225176 | O132: 44.60481291 | Q132: -59.7139218 | R132: =IFERROR(((D132-$B132)/$B132)*100," ") -> -99.77780552 | S132: =IFERROR(((E132-$B132)/$B132)*100," ") -> -51.88127641 | T132: =IFERROR(((F132-$B132)/$B132)*100," ") -> -64.26006842 | U132: =IFERROR(((G132-$B132)/$B132)*100," ") -> -50.94613913 | V132: =IFERROR(((H132-$B132)/$B132)*100," ") -> -29.06575627 | X132: 12.53066925 | Y132: 9.589184457 | Z132: 0.04666323937 | AA132: 11.00946219 | AB132: 14.49965371 | AC132: 10.40695205 | AD132: 17.06784869
A133: Gastos legales | B133: 256900 | C133: 0 | D133: 50184902 | E133: 0 | F133: 0 | G133: 154500 | H133: 0 | J133: =IFERROR(((C133-B133)/B133)*100," ") -> -100 | L133: -100 | O133: -100 | Q133: =IFERROR(((C133-$B133)/$B133)*100," ") -> -100 | R133: 19434.80031 | S133: -100 | T133: -100 | U133: -39.85986765 | V133: -100 | X133: 0.02608076081 | Y133: 0 | Z133: 8.538794816 | AA133: 0 | AB133: 0 | AC133: 0.02655588184 | AD133: 0
A134: Mantenimiento y reparaciones | B134: 356653 | C134: 11207 | D134: 210000 | E134: 0 | F134: 0 | G134: 0 | H134: 0 | J134: -96.85773006 | K134: 1773.828857 | L134: -100 | Q134: -96.85773006 | R134: -41.11923915 | S134: -100 | T134: -100 | U134: -100 | V134: -100 | X134: 0.03620779131 | Y134: 0.002161214828 | Z134: 0.03573080428 | AA134: 0 | AB134: 0 | AC134: 0 | AD134: 0
A135: Adecuaciones e Instalaciones | B135: 0 | C135: 299000 | D135: 0 | E135: 0 | F135: 0 | G135: 0 | H135: 0 | K135: -100 | X135: 0 | Y135: 0.05766067936 | Z135: 0 | AA135: 0 | AB135: 0 | AC135: 0 | AD135: 0
A136: Gastos de viaje | B136: 91417914 | C136: 27178877.98 | D136: 0 | E136: 10405938 | F136: 18707590 | G136: 57821133.95 | H136: 12359603.52 | J136: -70.26963667 | K136: -100 | M136: 79.77802674 | N136: 209.0784754 | O136: -78.62441866 | Q136: -70.26963667 | R136: -100 | S136: -88.61717847 | T136: -79.53618806 | U136: -36.75076206 | V136: -86.4801077 | X136: 9.280843711 | Y136: 5.241312938 | Z136: 0 | AA136: 1.928924037 | AB136: 6.148987951 | AC136: 9.938454374 | AD136: 2.409401996
A137: Depreciaciones | B137: 7850283 | C137: 0 | D137: 8890974 | E137: 0 | F137: 0 | G137: 0 | H137: 0 | J137: -100 | L137: -100 | Q137: -100 | R137: 13.25673227 | S137: -100 | T137: -100 | U137: -100 | V137: -100 | X137: 0.7969690668 | Y137: 0 | Z137: 1.512769771 | AA137: 0 | AB137: 0 | AC137: 0 | AD137: 0
A138: Diversos | B138: 96914855 | C138: 20300212 | D138: 11354185 | E138: 14589034 | F138: 10050782 | G138: 16141515.9 | H138: 6522121 | J138: -79.05355995 | K138: -44.0686383 | L138: 28.49036721 | M138: -31.10728236 | N138: 60.5996021 | O138: -59.59412337 | Q138: -79.05355995 | R138: -88.28437085 | S138: -84.94654509 | T138: -89.62926581 | U138: -83.34464216 | V138: -93.27025666 | X138: 9.838898998 | Y138: 3.914796037 | Z138: 1.931876962 | AA138: 2.704334617 | AB138: 3.303586267 | AC138: 2.774447825 | AD138: 1.271433289
A139: Provisiones | B139: 83597151 | C139: 0 | D139: 94578519 | E139: 71057797 | F139: 0 | G139: 0 | H139: 41638115 | I139: Cartera dif cobro | J139: -100 | L139: -24.86898954 | M139: -100 | Q139: -100 | R139: 13.13605532 | S139: -14.99973845 | T139: -100 | U139: -100 | V139: -50.19194494 | X139: 8.486871546 | Y139: 0 | Z139: 16.09222168 | AA139: 13.17181523 | AB139: 0 | AC139: 0 | AD139: 8.117004501
A140: Subtotal de distri. y ventas | B140: =+SUM(B127:B139) -> 985017277 | C140: =+SUM(C127:C139) -> 518550949 | D140: 587728164 | E140: 539468522.5 | F140: 304238521 | G140: 581792014.9 | H140: =+SUM(H127:H139) -> 512973905.5 | J140: -47.35615698 | K140: 13.34048567 | L140: -8.211218124 | M140: -43.60402724 | N140: 91.22891241 | O140: -11.82864453 | Q140: -47.35615698 | R140: -40.33321265 | S140: -45.23258271 | T140: -69.11338226 | U140: -40.93585682 | V140: -47.92234436 | X140: =+SUM(X127:X139) -> 100 | Y140: =+SUM(Y127:Y139) -> 100 | Z140: 100 | AA140: 100 | AB140: 100 | AC140: 100 | AD140: 100
A141: TOTAL GASTOS OPERACIONALES | B141: =+B125+B140 -> 1417548567 | C141: 1118824896 | D141: 886481426.6 | E141: 863169262.9 | F141: 666982287.9 | G141: 870332998.4 | H141: 743592369.7 | J141: -21.07325832 | K141: -20.76674107 | L141: -2.629740794 | M141: -22.72867947 | N141: 30.4881725 | O141: -14.56231453 | Q141: -21.07325832 | R141: -37.4637704 | S141: -39.10831114 | T141: -52.94818792 | U141: -38.60295029 | V141: -47.54378178
A142: UTILIDAD O PERDIDA OPERACIONAL | B142: =+B109-B141 -> 1065104714 | C142: 829718048.9 | D142: 369359669.4 | E142: 328754770.1 | F142: 313537526.1 | G142: -78656820.67 | H142: 253809511.3 | J142: -22.09986135 | K142: -55.48371283 | L142: -10.9933224 | M142: -4.628752296 | N142: -125.086892 | O142: -422.6795962 | Q142: -22.09986135 | R142: -65.32175057 | S142: -69.13404234 | T142: -70.56275106 | U142: -107.3848909 | V142: -76.17046399
A143: Gastos no operacionales | X143: =+X$3 -> 2014 | Y143: =+Y$3 -> 2015 | Z143: 2016 | AA143: 2017 | AB143: 2018 | AC143: 2019 | AD143: 2020
A144: Financieros por intereses | B144: 831585.83 | C144: 831585.83 | D144: 77999.35 | E144: 2927610.73 | F144: 10140052.7 | G144: 16621 | H144: =577543.87 -> 577543.87 | J144: 0 | K144: -90.62040896 | L144: 3653.378368 | M144: 246.3593228 | N144: -99.83608566 | O144: 3374.784129 | Q144: 0 | R144: -90.62040896 | S144: 252.0515411 | T144: 1119.363334 | U144: -98.00128869 | V144: -30.54909678 | X144: =+IFERROR(B144/B$149*100," ") -> 0.517419904 | Y144: =+IFERROR(C144/C$149*100," ") -> 0.6090023328 | Z144: =+IFERROR(D144/D$149*100," ") -> 0.02701346014 | AA144: =+IFERROR(E144/E$149*100," ") -> 5.077073596 | AB144: =+IFERROR(F144/F$149*100," ") -> 13.15734051 | AC144: =+IFERROR(G144/G$149*100," ") -> 0.02525026478 | AD144: =+IFERROR(H144/H$149*100," ") -> 0.09718803442
A145: Otros Gastos Financieros (diferencia en cambio) | B145: 155209633.3 | C145: 131397858.7 | D145: 251778400.3 | E145: =16587444.22 -> 16587444.22 | F145: 44632558.18 | G145: 47617973.52 | H145: =108051898.52 -> 108051898.5 | J145: -15.34168598 | K145: 91.61529933 | L145: -93.41188752 | M145: 169.0743528 | N145: 6.688873463 | O145: 126.9141052 | Q145: -15.34168598 | R145: 62.21828181 | S145: -89.31287713 | T145: -71.24369329 | U145: -69.32022032 | V145: -30.38325248 | X145: =+IFERROR(B145/B$149*100," ") -> 96.57277775 | Y145: 96.22771287 | Z145: 87.19823666 | AA145: 28.76600848 | AB145: 57.91348262 | AC145: 72.34019854 | AD145: 18.18277741
A146: Pérdida en venta de activos | B146: 0 | C146: 0 | D146: 0 | E146: 972221 | F146: 0 | G146: 0 | H146: 0 | M146: -100 | X146: 0 | Y146: 0 | Z146: 0 | AA146: 1.686029334 | AB146: 0 | AC146: 0 | AD146: 0
A147: Gastos extraordinarios | B147: 4563269 | C147: 1220578 | D147: 1988690 | E147: 23928775 | F147: 3546361 | G147: 7520485 | H147: 37466760.43 | J147: -73.25211378 | K147: 62.93018554 | L147: 1103.24309 | M147: -85.17951295 | N147: 112.0620264 | O147: 398.1960662 | Q147: -73.25211378 | R147: -56.41961936 | S147: 424.3779185 | T147: -22.28463849 | U147: 64.80477044 | V147: 721.0508833 | X147: 2.839305484 | Y147: 0.8938762814 | Z147: 0.688741612 | AA147: 41.49737207 | AB147: 4.60162098 | AC147: 11.42495864 | AD147: 6.304838457
A148: Gastos diversos | B148: 113301 | C148: 3098851.78 | D148: 34897446.83 | E148: 13247299.3 | F148: 18748674.83 | G148: 10669972.78 | H148: 448157887.7 | J148: 2635.061279 | K148: =IFERROR(((D148-C148)/C148)*100," ") -> 1026.141207 | L148: =IFERROR(((E148-D148)/D148)*100," ") -> -62.03934527 | M148: =IFERROR(((F148-E148)/E148)*100," ") -> 41.52827988 | N148: =IFERROR(((G148-F148)/F148)*100," ") -> -43.08945631 | O148: =IFERROR(((H148-G148)/G148)*100," ") -> 4100.178359 | Q148: 2635.061279 | R148: 30700.65209 | S148: 11592.1292 | T148: 16447.66933 | U148: 9317.368585 | V148: 395446.2773 | X148: 0.07049686325 | Y148: 2.269408514 | Z148: 12.08600827 | AA148: 22.97351653 | AB148: 24.32755589 | AC148: 16.20959256 | AD148: 75.4151961
A149: Subtotal gastos no operacionales | B149: =+SUM(B144:B148) -> 160717789.1 | C149: =+SUM(C144:C148) -> 136548874.3 | D149: =+SUM(D144:D148) -> 288742536.5 | E149: 57663350.25 | F149: 77067646.71 | G149: =+SUM(G144:G148) -> 65825052.3 | H149: =+SUM(H144:H148) -> 594254090.5 | J149: -15.03810804 | K149: 111.4572807 | L149: -80.02949238 | M149: 33.65100428 | N149: -14.58795602 | O149: 802.7779997 | Q149: -15.03810804 | R149: 79.65810636 | S149: -64.12136418 | T149: -52.0478429 | U149: -59.04308249 | V149: 269.7500406 | X149: =+SUM(X144:X148) -> 100 | Y149: =+SUM(Y144:Y148) -> 100 | Z149: 100 | AA149: 100 | AB149: 100 | AC149: 100 | AD149: 100
A150: Ingresos no operacionales
A151: Otras ventas | B151: 0 | C151: 0 | D151: 0 | E151: 0 | F151: 0 | G151: 0 | H151: 0
A152: Financieros | B152: 94306600 | C152: 140914964.1 | D152: 161262038.9 | E152: 19310528.11 | F152: 25939243.74 | G152: 23586102.7 | H152: 78001110.78 | J152: 49.4221657 | K152: 14.43925771 | L152: -88.02537272 | M152: 34.32695156 | N152: -9.071741118 | O152: 230.7079248 | Q152: 49.4221657 | R152: 70.99761728 | S152: -79.52367267 | T152: -72.49477371 | U152: -74.98997663 | V152: -17.28987072
A153: Servicios | B153: 0 | C153: 3873105 | D153: 0 | E153: 0 | F153: 988200 | G153: 0 | H153: 0 | K153: -100 | N153: -100
A154: Recuperaciones | B154: 31266716 | C154: 7645856 | D154: 3969966.47 | E154: 35054083 | F154: 2381334.06 | G154: 1252439 | H154: 769407 | J154: -75.54634136 | K154: -48.07688675 | L154: 782.9818404 | M154: -93.20668562 | N154: -47.40599309 | O154: -38.56730747 | Q154: -75.54634136 | R154: -87.30289913 | S154: 12.11309496 | T154: -92.383805 | U154: -95.99433788 | V154: -97.5392139
A155: Utilidad en venta de propiedad, planta y equipo | B155: 0 | C155: 86207 | D155: 0 | E155: 200000 | F155: 0 | G155: 0 | H155: 0 | K155: -100 | M155: -100
A156: Indemnizaciones | B156: 515959 | C156: 0 | D156: 0 | E156: 860488 | F156: 1476624 | G156: 111098 | H156: 0 | J156: -100 | M156: 71.60309034 | N156: -92.47621602 | O156: -100 | Q156: -100 | R156: -100 | S156: 66.77449177 | T156: 186.1901818 | U156: -78.46766894 | V156: -100
A157: Devoluciones otras ventas | B157: 0 | C157: 0 | D157: 0 | E157: 0 | F157: 0 | G157: 0 | H157: 0
A158: Diversos | B158: 278112.35 | C158: 558602 | D158: 587508.34 | E158: 1038464.41 | F158: 156765.38 | G158: 1102184.03 | H158: 5554810.35 | J158: 100.8547984 | K158: 5.174764859 | L158: 76.75739037 | M158: -84.90411626 | N158: 603.0787218 | O158: 403.9821118 | Q158: 100.8547984 | R158: 111.248562 | S158: 273.3974453 | T158: -43.63235577 | U158: 296.3089126 | V158: 1897.326027
B159: =+SUM(B151:B158) -> 126367387.3 | C159: =+SUM(C151:C158) -> 153078734.1 | D159: 165819513.8 | E159: 56463563.52 | F159: 30942167.18 | G159: 26051823.73 | H159: =+SUM(H151:H158) -> 84325328.13 | J159: 21.1378484 | K159: 8.323023902 | L159: -65.94878236 | M159: -45.19976202 | N159: -15.80478646 | O159: 223.6830135 | Q159: 21.1378484 | R159: 31.22018048 | S159: -55.31793075 | T159: -75.51411972 | U159: -79.38406081 | V159: -33.26970677
A160: UTILIDAD O (PERDIDA) ANTES DE IMPUESTOS | B160: =+B142-B149+B159 -> 1030754312 | C160: =+C142-C149+C159 -> 846247908.7 | D160: 246436646.7 | E160: 327554983.4 | F160: 267412046.6 | G160: -118430049.2 | H160: =+H142-H149+H159 -> -256119251 | J160: -17.90013404 | K160: -70.87890627 | L160: 32.91650726 | M160: -18.36117288 | N160: -144.2874772 | O160: 116.2620489 | Q160: -17.90013404 | R160: -76.09162108 | S160: -68.2218178 | T160: -74.05666477 | U160: -111.4896487 | V160: -124.8477497
A161: Corrección monetaria
A162: Provisión Impuesto de renta | B162: 356886000 | C162: 298757000 | D162: 88691000 | E162: 112291000 | F162: 97160000 | G162: 0 | H162: 0 | J162: -16.28783421 | K162: -70.31333157 | L162: 26.60923882 | M162: -13.47481098 | N162: -100 | Q162: -16.28783421 | R162: -75.14864691 | S162: -68.53589101 | T162: -72.77562023 | U162: -100 | V162: -100
A163: UTILIDAD O (PERDIDA) NETA | B163: =+B160-B162 -> 673868312.3 | C163: =+C160-C162 -> 547490908.7 | D163: 157745646.7 | E163: 215263983.4 | F163: 170252046.6 | G163: -118430049.2 | H163: =+H160-H162 -> -256119251 | J163: -18.75402081 | K163: -71.18753131 | L163: 36.46270937 | M163: -20.91011049 | N163: -169.5616009 | O163: 116.2620489 | Q163: -18.75402081 | R163: -76.59102768 | S163: -68.05548214 | T163: -74.73511612 | U163: -117.5746577 | V163: -138.0073148
B164: =+B163-B97 -> 0 | C164: 0 | D164: 0 | E164: 0 | F164: 0 | G164: -2.086162567e-07 | H164: 0 | O164: -100
A165: Datos desagregados
A166: Gastos por intereses | B166: 831586 | C166: 831586 | D166: 77999 | E166: 2927610.73 | F166: 10140052.7 | G166: 16621 | H166: 577543.87 | J166: 0 | K166: -90.62045297 | L166: 3653.39521 | M166: 246.3593228 | N166: -99.83608566 | O166: 3374.784129 | Q166: 0 | R166: -90.62045297 | S166: 252.0514691 | T166: 1119.363085 | U166: -98.0012891 | V166: -30.54911098
A167: Tasa de Impuestos | B167: =9%+25% -> 0.34 | C167: =9%+25% -> 0.34 | D167: =9%+25% -> 0.34 | E167: 0.33 | F167: 0.33 | G167: 0.33 | H167: 0.32 | I167: 0.31 | J167: 0 | K167: 0 | L167: -2.941176471 | M167: 0 | N167: 0 | O167: -3.03030303 | Q167: 0 | R167: 0 | S167: -2.941176471 | T167: -2.941176471 | U167: -2.941176471 | V167: -5.882352941

Sheet Indice

Sheet Integrantes
B3: Haiver Bello Garzón
B4: Jhon Edison Castaño Rodriguez
B5: Luisa Fernanda Lozano Ramirez

Sheet Cifras Historicas
A9: ESTADOS FINANCIEROS CIFRAS HISTORICAS
A11: GL Retail comunicaciones S.A.S.
A12: ESTADO DE SITUACIÓN FINANCIERA
A13: Pesos Colombianos
A14: a 31 de Diciembre
A15: ACTIVO | F15: 2014 | G15: 2015 | H15: 2016 | I15: 2017 | J15: 2018 | K15: 2019 | L15: 2020 | M15: =F15 -> 2014 | N15: =M15+1 -> 2015 | O15: =N15+1 -> 2016 | P15: =O15+1 -> 2017 | Q15: =P15+1 -> 2018 | R15: =Q15+1 -> 2019 | S15: 2020
A16: Activo Corriente | M16: ANÁLISIS VERTICAL
A17: Efectivo y equivalentes de efectivo | F17: =+BD_0!B10 -> 1226412104 | G17: =+BD_0!C10 -> 900917975.8 | H17: =+BD_0!D10 -> 206347570.6 | I17: =+BD_0!E10 -> 364265070.8 | J17: =+BD_0!F10 -> 142216176.1 | K17: =+BD_0!G10 -> 305752667.1 | L17: =+BD_0!H10 -> 82961726.31 | M17: =+F17/F$31 -> 0.4100713867 | N17: =+G17/G$31 -> 0.2488198277 | O17: 0.07635480127 | P17: 0.1708812035 | Q17: 0.06311788929 | R17: 0.1027172696 | S17: 0.0421573493
A18: Activos financieros | F18: =+BD_0!B14 -> 23135998 | G18: =+BD_0!C14 -> 23966489 | H18: =+BD_0!D14 -> 25066661 | I18: =+BD_0!E14 -> 29318905.6 | J18: =+BD_0!F14 -> 28515581.62 | K18: =+BD_0!G14 -> 18672906.3 | L18: =+BD_0!H14 -> 21157722.63 | M18: 0.007735907653 | N18: 0.006619179352 | O18: 0.009275417749 | P18: 0.0137538575 | Q18: 0.01265568639 | R18: 0.006273142174 | S18: 0.01075138553
A19: Deudores comerciales y otros | F19: =+BD_0!B23-F21 -> 1065020951 | G19: =+BD_0!C23-G21 -> 1830114438 | H19: =+BD_0!D23-H21 -> 891491929 | I19: =+BD_0!E23-I21 -> 763400000 | J19: =+BD_0!F23-J21 -> 991219221 | K19: =+BD_0!G23-K21 -> 1413051717 | L19: =+BD_0!H23-L21 -> 839532488 | M19: 0.3561075569 | N19: 0.5054497427 | O19: 0.3298788004 | P19: 0.3581202844 | Q19: 0.4399194719 | R19: 0.474713158 | S19: 0.4266119562
A20: Inventarios | F20: =+BD_0!B30 -> 618318163 | G20: =+BD_0!C30 -> 841372799.1 | H20: =+BD_0!D30 -> 1566198173 | I20: =+BD_0!E30 -> 939332663.1 | J20: =+BD_0!F30 -> 1079647558 | K20: =+BD_0!G30 -> 1221678245 | L20: =+BD_0!H30 -> 1009686096 | M20: 0.2067450131 | N20: 0.2323743565 | O20: 0.5795403837 | P20: 0.4406524502 | Q20: 0.4791654294 | R20: 0.4104214524 | S20: 0.513076226
A21: Pagos anticipados | F21: =+BD_0!B18 -> 43182861 | G21: =+BD_0!C18 -> 6183644 | H21: =+BD_0!D18 -> 0 | I21: =+BD_0!E18 -> 22454045 | J21: =+BD_0!F18 -> 0 | K21: =+BD_0!G18 -> 0 | L21: =+BD_0!H18 -> 1011200 | M21: 0.01443891138 | N21: 0.001707828322 | O21: 0 | P21: 0.01053346736 | Q21: 0 | R21: 0 | S21: 0.0005138455227
A22: TOTAL ACTIVO CORRIENTE | F22: =SUM(F17:F21) -> 2976070077 | G22: 3602555346 | H22: 2689104334 | I22: 2118770685 | J22: 2241598537 | K22: =SUM(K17:K21) -> 2959155536 | L22: 1954349233 | M22: 0.9950987758 | N22: 0.9949709346 | O22: 0.9950494032 | P22: 0.993941263 | Q22: 0.994858477 | R22: 0.9941250222 | S22: 0.9931107625
A23: Activo No Corriente
A24: Activos financieros | F24: =+BD_0!B38 -> 0 | G24: =+BD_0!C38 -> 0 | H24: =+BD_0!D38 -> 0 | I24: =+BD_0!E38 -> 0 | J24: =+BD_0!F38 -> 0 | K24: =+BD_0!G38 -> 0 | L24: =+BD_0!H38 -> 0 | M24: =+F24/F$31 -> 0 | N24: 0 | O24: 0 | P24: 0 | Q24: 0 | R24: 0 | S24: 0
A25: Deudores | F25: 0 | G25: 0 | H25: 0 | I25: 0 | J25: 0 | K25: 0 | L25: 0 | M25: 0 | N25: 0 | O25: 0 | P25: 0 | Q25: 0 | R25: 0 | S25: 0
A26: Propiedades, planta y equipo | F26: =+BD_0!B37 -> 14658230 | G26: =+BD_0!C37 -> 13202599 | H26: =+BD_0!D37 -> 13378905 | I26: =+BD_0!E37 -> 12915325 | J26: =+BD_0!F37 -> 11584794 | K26: =+BD_0!G37 -> 17487713 | L26: =+BD_0!H37 -> 13557376 | M26: 0.004901224215 | N26: 0.003646356823 | O26: 0.004950596847 | P26: 0.006058737048 | Q26: 0.005141523035 | R26: 0.005874977798 | S26: 0.006889237497
A27: Activos intangibles | F27: =+BD_0!B49 -> 0 | G27: =+BD_0!C49 -> 5006462 | H27: =+BD_0!D49 -> 0 | I27: =+BD_0!E49 -> 0 | J27: =+BD_0!F49 -> 0 | K27: =+BD_0!G49 -> 0 | L27: =+BD_0!H49 -> 0 | M27: 0 | N27: 0.001382708577 | O27: 0 | P27: 0 | Q27: 0 | R27: 0 | S27: 0
A28: Activos por impuestos diferidos | F28: 0 | G28: 0 | H28: 0 | I28: 0 | J28: 0 | K28: 0 | L28: 0 | M28: 0 | N28: 0 | O28: 0 | P28: 0 | Q28: 0 | R28: 0 | S28: 0
A29: TOTAL ACTIVO NO CORRIENTE | F29: =SUM(F24:F28) -> 14658230 | G29: 18209061 | H29: 13378905 | I29: 12915325 | J29: 11584794 | K29: =SUM(K24:K28) -> 17487713 | L29: 13557376 | M29: 0.004901224215 | N29: 0.0050290654 | O29: 0.004950596847 | P29: 0.006058737048 | Q29: 0.005141523035 | R29: 0.005874977798 | S29: 0.006889237497
A31: 0 TOTAL ACTIVO | F31: =F22+F29 -> 2990728307 | G31: 3620764407 | H31: 2702483239 | I31: 2131686010 | J31: 2253183331 | K31: =K22+K29 -> 2976643249 | L31: 1967906609
A33: Pasivo Corriente
A34: Obligaciones financieras | F34: =+BD_0!B59 -> 1152875.09 | G34: =+BD_0!C59 -> 812448.55 | H34: =+BD_0!D59 -> 1900417.05 | I34: =+BD_0!E59 -> 137200 | J34: =+BD_0!F59 -> 150000 | K34: =+BD_0!G59 -> 156000 | L34: =+BD_0!H59 -> 162050.87 | M34: =+F34/F$46 -> 0.0009455683245 | N34: 0.0005111914033 | O34: 0.003702374897 | P34: 0.0003050394086 | Q34: 0.0001850140984 | R34: 9.439448102e-05 | S34: 0.0001786350628
A35: Proveedores | F35: =+BD_0!B62 -> 161290503 | G35: =+BD_0!C62 -> 1091239354 | H35: =+BD_0!D62 -> 242635875 | I35: =+BD_0!E62 -> 180612526 | J35: =+BD_0!F62 -> 537696681 | K35: =+BD_0!G62 -> 1444787655 | L35: =+BD_0!H62 -> 272643851 | M35: 0.1322876971 | N35: 0.6866061573 | O35: 0.4727009646 | P35: 0.4015593157 | Q35: 0.6632097778 | R35: 0.8742306466 | S35: 0.3005460658
A36: Cuentas por pagar Varios | F36: =+BD_0!B63+BD_0!B64++BD_0!B65+BD_0!B66+BD_0!B67+BD_0!B68 -> 553518934 | G36: =+BD_0!C63+BD_0!C64++BD_0!C65+BD_0!C66+BD_0!C67+BD_0!C68 -> 58109280.74 | H36: =+BD_0!D63+BD_0!D64++BD_0!D65+BD_0!D66+BD_0!D67+BD_0!D68 -> 24757111 | I36: =+BD_0!E63+BD_0!E64++BD_0!E65+BD_0!E66+BD_0!E67+BD_0!E68 -> 69699869.45 | J36: =+BD_0!F63+BD_0!F64++BD_0!F65+BD_0!F66+BD_0!F67+BD_0!F68 -> 115608797.5 | K36: =+BD_0!G63+BD_0!G64++BD_0!G65+BD_0!G66+BD_0!G67+BD_0!G68 -> 119945847.5 | L36: =+BD_0!H63+BD_0!H64++BD_0!H65+BD_0!H66+BD_0!H67+BD_0!H68 -> 186170166.7 | M36: 0.4539867116 | N36: 0.03656227187 | O36: 0.04823157437 | P36: 0.1549650653 | Q36: 0.1425950495 | R36: 0.07257837192 | S36: 0.2052227144
A37: Impuestos corrientes por pagar | F37: =+BD_0!B75 -> 452783000 | G37: =+BD_0!C75 -> 408869000 | H37: =+BD_0!D75 -> 90354000 | I37: =+BD_0!E75 -> 164368000 | J37: =+BD_0!F75 -> 143475000 | K37: =+BD_0!G75 -> 34779000 | L37: =+BD_0!H75 -> 113350000 | M37: 0.3713648308 | N37: 0.2572597586 | O37: 0.176026826 | P37: 0.3654425475 | Q37: 0.1769659852 | R37: 0.02104452343 | S37: 0.1249501738
A38: Otros pasivos | F38: =+BD_0!B69 -> 0 | G38: =+BD_0!C69 -> 0 | H38: =+BD_0!D69 -> 0 | I38: =+BD_0!E69 -> 0 | J38: =+BD_0!F69 -> 0 | K38: =+BD_0!G69 -> 0 | L38: =+BD_0!H69 -> 0 | M38: 0 | N38: 0 | O38: 0 | P38: 0 | Q38: 0 | R38: 0 | S38: 0
A39: 0 TOTAL PASIVO CORRIENTE | F39: =SUM(F34:F38) -> 1168745312 | G39: 1559030084 | H39: 359647403.1 | I39: 414817595.4 | J39: 796930478.5 | K39: =SUM(K34:K38) -> 1599668502 | L39: 572326068.5 | M39: 0.9585848078 | N39: 0.9809393792 | O39: 0.7006617398 | P39: 0.9222719678 | Q39: 0.9829558266 | R39: 0.9679479365 | S39: 0.630897589
A40: Pasivo No Corriente
A41: Obligaciones financieras | F41: 0 | G41: 0 | H41: 0 | I41: 0 | J41: 0 | K41: 0 | L41: 0 | M41: =+F41/F$46 -> 0 | N41: 0 | O41: 0 | P41: 0 | Q41: 0 | R41: 0 | S41: 0
A42: Provisiones | F42: =+BD_0!B81+BD_0!B85 -> 25867792 | G42: =+BD_0!C81+BD_0!C85 -> 30293494 | H42: =+BD_0!D81+BD_0!D85 -> 18090782 | I42: =+BD_0!E81+BD_0!E85 -> 34960355 | J42: =+BD_0!F81+BD_0!F85 -> 13818547 | K42: =+BD_0!G81+BD_0!G85 -> 47592516 | L42: =+BD_0!H81+BD_0!H85 -> 25220535 | M42: 0.02121631819 | N42: 0.01906062077 | O42: 0.03524429395 | P42: 0.07772803217 | Q42: 0.01704417343 | R42: 0.02879789005 | S42: 0.02780159004
A43: Otros pasivos | F43: =+BD_0!B90 -> 24627283 | G43: =+BD_0!C90 -> 0 | H43: =+BD_0!D90 -> 135558578 | I43: =+BD_0!E90 -> 0 | J43: =+BD_0!F90 -> 0 | K43: =+BD_0!G90 -> 5377974 | L43: =+BD_0!H90 -> 309615000 | M43: 0.02019887404 | N43: 0 | O43: 0.2640939662 | P43: 0 | Q43: 0 | R43: 0.003254173491 | S43: 0.3413008209
A44: 0 TOTAL PASIVO NO CORRIENTE | F44: =SUM(F41:F43) -> 50495075 | G44: 30293494 | H44: 153649360 | I44: 34960355 | J44: 13818547 | K44: =SUM(K41:K43) -> 52970490 | L44: 334835535 | M44: 0.04141519223 | N44: 0.01906062077 | O44: 0.2993382602 | P44: 0.07772803217 | Q44: 0.01704417343 | R44: 0.03205206354 | S44: 0.369102411
A46: 0 TOTAL PASIVO | F46: =F39+F44 -> 1219240387 | G46: 1589323578 | H46: 513296763.1 | I46: 449777950.4 | J46: 810749025.5 | K46: =K39+K44 -> 1652638992 | L46: 907161603.5
A48: Patrimonio
A49: Capital suscrito y pagado | F49: =+BD_0!B94 -> 180000000 | G49: =+BD_0!C94 -> 180000000 | H49: =+BD_0!D94 -> 180000000 | I49: =+BD_0!E94 -> 180000000 | J49: =+BD_0!F94 -> 180000000 | K49: =+BD_0!G94 -> 180000000 | L49: =+BD_0!H94 -> 180000000 | M49: =+F49/F$53 -> 0.101609499 | N49: 0.08860706028 | O49: 0.08222232414 | P49: 0.1070213078 | Q49: 0.1247890454 | R49: 0.1359512246 | S49: 0.1696920552
A50: Superavit de capital | F50: =+BD_0!B96 -> 838779414 | G50: =+BD_0!C96 -> 1213949920 | H50: =+BD_0!D96 -> 1761440829 | I50: =+BD_0!E96 -> 1196644076 | J50: =+BD_0!F96 -> 1002182259 | K50: =+BD_0!G96 -> 1172434306 | L50: =+BD_0!H96 -> 1046864256 | M50: 0.4734886444 | N50: 0.5975807432 | O50: 0.8046097711 | P50: 0.7114800772 | Q50: 0.6947853744 | R50: 0.8855215533 | S50: 0.986914151
A51: Reservas | F51: =+BD_0!B95 -> 78840194 | G51: =+BD_0!C95 -> 90000000 | H51: =+BD_0!D95 -> 90000000 | I51: =+BD_0!E95 -> 90000000 | J51: =+BD_0!F95 -> 90000000 | K51: =+BD_0!G95 -> 90000000 | L51: =+BD_0!H95 -> 90000000 | M51: 0.04450507006 | N51: 0.04430353014 | O51: 0.04111116207 | P51: 0.05351065388 | Q51: 0.06239452268 | R51: 0.06797561229 | S51: 0.0848460276
A52: Resultados del Ejercicio | F52: =+BD_0!B97 -> 673868312.3 | G52: =+BD_0!C97 -> 547490908.7 | H52: =+BD_0!D97 -> 157745646.7 | I52: =+BD_0!E97 -> 215263983.4 | J52: =+BD_0!F97 -> 170252046.6 | K52: =+BD_0!G97 -> -118430049.2 | L52: =+BD_0!H97 -> -256119251 | M52: 0.3803967865 | N52: 0.2695086664 | O52: 0.07205674274 | P52: 0.1279879612 | Q52: 0.1180310576 | R52: -0.08944839011 | S52: -0.2414522338
A53: 0 TOTAL PATRIMONIO | F53: =SUM(F49:F52) -> 1771487920 | G53: 2031440829 | H53: 2189186476 | I53: 1681908059 | J53: 1442434306 | K53: =SUM(K49:K52) -> 1324004256 | L53: 1060745005 | M53: 1 | N53: 1 | O53: 1 | P53: 1 | Q53: 1 | R53: 1 | S53: 1
A55: 0 TOTAL PASIVO Y PATRIMONIO | F55: =F46+F53 -> 2990728307 | G55: 3620764407 | H55: 2702483239 | I55: 2131686010 | J55: 2253183331 | K55: =K46+K53 -> 2976643249 | L55: 1967906609
A57: CONTROL (Pasivo y Patrimonio - Activo) | F57: =F55-F31 -> 0 | G57: 0 | H57: 0 | I57: 0 | J57: 0 | K57: 0 | L57: =L55-L31 -> 0
A59: =A11 -> GL Retail comunicaciones S.A.S.
A60: ESTADO DE RESULTADO
A61: Pesos Colombianos
A62: a 31 de Diciembre
A63: CUENTAS DE RESULTADO | F63: =F15 -> 2014 | G63: 2015 | H63: 2016 | I63: 2017 | J63: 2018 | K63: 2019 | L63: 2020 | M63: 2014 | N63: 2015 | O63: 2016 | P63: 2017 | Q63: 2018 | R63: 2019 | S63: 2020 | T63: Promedio Estructural | V63: Cuentas | W63: Estructuras
A64: Operacional | M64: ANÁLISIS VERTICAL - BASE EN VENTAS
A65: Ventas, Ingresos de actividades ordinarias | F65: =+BD_0!B107 -> 5323304022 | G65: =+BD_0!C107 -> 4748882979 | H65: =+BD_0!D107 -> 3122271394 | I65: =+BD_0!E107 -> 2689197433 | J65: =+BD_0!F107 -> 2172288959 | K65: =+BD_0!G107 -> 3105641403 | L65: =+BD_0!H107 -> 2369300666 | M65: =+F65/F$65 -> 1 | N65: =+G65/G$65 -> 1 | O65: =+H65/H$65 -> 1 | P65: =+I65/I$65 -> 1 | Q65: =+J65/J$65 -> 1 | R65: 1 | S65: 1 | T65: =AVERAGE(M65:S65) -> 1 | V65: Ventas | W65: =+T65 -> 1
A66: Costo de Ventas | F66: =+BD_0!B108 -> 2840650741 | G66: =+BD_0!C108 -> 2800340034 | H66: =+BD_0!D108 -> 1866430298 | I66: =+BD_0!E108 -> 1497273400 | J66: =+BD_0!F108 -> 1191769145 | K66: =+BD_0!G108 -> 2313965225 | L66: =+BD_0!H108 -> 1371898785 | M66: =+F66/F$65 -> 0.5336254945 | N66: 0.5896839418 | O66: 0.597779649 | P66: 0.5567733264 | Q66: 0.5486236718 | R66: 0.745084485 | S66: 0.579031106 | T66: =AVERAGE(N66:S66) -> 0.6028293633 | V66: Costos | W66: =+T66 -> 0.6028293633 | X66: =+W66-50% -> 0.1028293633
A67: UTILIDAD BRUTA | F67: =F65-F66 -> 2482653281 | G67: 1948542945 | H67: 1255841096 | I67: 1191924033 | J67: 980519814 | K67: 791676177.7 | L67: =L65-L66 -> 997401881 | M67: 0.4663745055 | N67: 0.4103160582 | O67: 0.402220351 | P67: 0.4432266736 | Q67: 0.4513763282 | R67: 0.254915515 | S67: 0.420968894 | T67: =AVERAGE(N67:S67) -> 0.3971706367 | V67: Gastos | W67: =+T68+T69 -> 0.2902707457 | X67: =+W67-30% -> -0.009729254303
A68: Gastos de administración | F68: =+BD_0!B125 -> 432531290 | G68: =+BD_0!C125 -> 600273946.7 | H68: =+BD_0!D125 -> 298753262.6 | I68: =+BD_0!E125 -> 323700740.4 | J68: =+BD_0!F125 -> 362743766.9 | K68: =+BD_0!G125 -> 288540983.5 | L68: =+BD_0!H125 -> 230618464.2 | M68: 0.0812524117 | N68: 0.1264031877 | O68: 0.09568459141 | P68: 0.1203707606 | Q68: 0.1669868851 | R68: 0.09290866075 | S68: 0.09733609054 | T68: =AVERAGE(N68:S68) -> 0.1166150294 | V68: Total Erogación | W68: =+W66+W67 -> 0.893100109 | X68: =+J78*100%/W74 -> 1158177188
A69: Gastos de ventas y distribución | F69: =+BD_0!B140 -> 985017277 | G69: =+BD_0!C140 -> 518550949 | H69: =+BD_0!D140 -> 587728164 | I69: =+BD_0!E140 -> 539468522.5 | J69: =+BD_0!F140 -> 304238521 | K69: =+BD_0!G140 -> 581792014.9 | L69: =+BD_0!H140 -> 512973905.5 | M69: 0.185038704 | N69: 0.1091942992 | O69: 0.1882373727 | P69: 0.2006057703 | Q69: 0.1400543513 | R69: 0.1873339318 | S69: 0.2165085727 | T69: =AVERAGE(N69:S69) -> 0.1736557163 | V69: Total operación | W69: =+W65-W68 -> 0.106899891
A70: UTILIDAD OPERACIONAL | F70: =F67-F68-F69 -> 1065104714 | G70: 829718048.9 | H70: 369359669.4 | I70: 328754770.1 | J70: 313537526.1 | K70: -78656820.67 | L70: =L67-L68-L69 -> 253809511.3 | M70: 0.2000833899 | N70: 0.1747185712 | O70: 0.1182983869 | P70: 0.1222501428 | Q70: 0.1443350917 | R70: -0.02532707755 | S70: 0.1071242308 | T70: =AVERAGE(N70:S70) -> 0.106899891 | V70: Ingresos no ope | W70: =+T72 -> 0.02742718858
A71: No Operacional | V71: Gastos no ope | W71: =+T73+T74 -> 0.0750269851
A72: Otros ingresos | F72: =+BD_0!B159 -> 126367387.3 | G72: =+BD_0!C159 -> 153078734.1 | H72: =+BD_0!D159 -> 165819513.8 | I72: =+BD_0!E159 -> 56463563.52 | J72: =+BD_0!F159 -> 30942167.18 | K72: =+BD_0!G159 -> 26051823.73 | L72: =+BD_0!H159 -> 84325328.13 | M72: =+F72/F$65 -> 0.02373852533 | N72: =+G72/G$65 -> 0.0322346823 | O72: =+H72/H$65 -> 0.0531086164 | P72: =+I72/I$65 -> 0.02099643664 | Q72: =+J72/J$65 -> 0.01424403832 | R72: 0.008388548564 | S72: 0.03559080928 | T72: =AVERAGE(N72:S72) -> 0.02742718858 | V72: Tx | W72: =+T77 -> 0.02963337774
A73: Gasto no operacional | F73: =+BD_0!B149-BD_0!B144 -> 159886203.3 | G73: =+BD_0!C149-BD_0!C144 -> 135717288.5 | H73: =+BD_0!D149-BD_0!D144 -> 288664537.1 | I73: =+BD_0!E149-BD_0!E144 -> 54735739.52 | J73: =+BD_0!F149-BD_0!F144 -> 66927594.01 | K73: =+BD_0!G149-BD_0!G144 -> 65808431.3 | L73: =+BD_0!H149-BD_0!H144 -> 593676546.6 | M73: 0.03003514408 | N73: 0.02857878139 | O73: 0.0924533779 | P73: 0.02035393119 | Q73: 0.03080971053 | R73: 0.02118996457 | S73: 0.2505703709 | T73: =AVERAGE(N73:S73) -> 0.07399268941 | V73: Margen Neto | W73: =+W69+W70-W71-W72 -> 0.02966671671
A74: Gasto Financiero | F74: =+BD_0!B144 -> 831585.83 | G74: =+BD_0!C144 -> 831585.83 | H74: =+BD_0!D144 -> 77999.35 | I74: =+BD_0!E144 -> 2927610.73 | J74: =+BD_0!F144 -> 10140052.7 | K74: =+BD_0!G144 -> 16621 | L74: =+BD_0!H144 -> 577543.87 | M74: 0.0001562161069 | N74: 0.0001751118808 | O74: 2.498160479e-05 | P74: 0.001088655929 | Q74: 0.00466791154 | R74: 5.351873524e-06 | S74: 0.0002437613251 | T74: =AVERAGE(N74:S74) -> 0.001034295692 | W74: 0.147 | X74: =+J78/Q78*W74 -> 319326477
A75: Resultados Netos
A76: UTILIDAD ANTES DE IMPUESTOS | F76: =F70+F72-F73-F74 -> 1030754312 | G76: 846247908.7 | H76: 246436646.7 | I76: 327554983.4 | J76: 267412046.6 | K76: -118430049.2 | L76: =L70+L72-L73-L74 -> -256119251 | M76: =+F76/F$65 -> 0.193630555 | N76: =+G76/G$65 -> 0.1781993602 | O76: =+H76/H$65 -> 0.07892864379 | P76: =+I76/I$65 -> 0.1218039923 | Q76: =+J76/J$65 -> 0.123101508 | R76: -0.03813384544 | S76: -0.1080990921 | T76: =AVERAGE(N76:S76) -> 0.05930009445
A77: Gasto por impuesto | F77: =+BD_0!B162 -> 356886000 | G77: =+BD_0!C162 -> 298757000 | H77: =+BD_0!D162 -> 88691000 | I77: =+BD_0!E162 -> 112291000 | J77: =+BD_0!F162 -> 97160000 | K77: =+BD_0!G162 -> 0 | L77: =+BD_0!H162 -> 0 | M77: 0.06704219758 | N77: 0.06291100482 | O77: 0.02840592274 | P77: 0.04175632426 | Q77: 0.04472701461 | R77: 0 | S77: 0 | T77: =AVERAGE(N77:S77) -> 0.02963337774
A78: UTILIDAD NETA | F78: =F76-F77 -> 673868312.3 | G78: 547490908.7 | H78: 157745646.7 | I78: 215263983.4 | J78: 170252046.6 | K78: -118430049.2 | L78: =L76-L77 -> -256119251 | M78: 0.1265883574 | N78: 0.1152883554 | O78: 0.05052272105 | P78: 0.08004766802 | Q78: 0.07837449336 | R78: -0.03813384544 | S78: -0.1080990921 | T78: =AVERAGE(N78:S78) -> 0.02966671671
A82: Detalles de Depreciación y Amortización | F82: =F63 -> 2014 | G82: 2015 | H82: 2016 | I82: 2017 | J82: 2018 | K82: =K63 -> 2019 | L82: 2020
A83: Depreciaciones | F83: =+BD_0!B137+BD_0!B122 -> 12733532 | G83: =+BD_0!C137+BD_0!C122 -> 3505431 | H83: =+BD_0!D137+BD_0!D122 -> 13464668 | I83: =+BD_0!E137+BD_0!E122 -> 4097773 | J83: =+BD_0!F137+BD_0!F122 -> 5782289 | K83: =+BD_0!G137+BD_0!G122 -> 5996203 | L83: =+BD_0!H137+BD_0!H122 -> 8147566
A84: Amortizaciones | F84: =+'Analisis Financiero'!F99 -> 0 | G84: =+'Analisis Financiero'!G99 -> 0 | H84: =+'Analisis Financiero'!H99 -> 0 | I84: =+'Analisis Financiero'!I99 -> 0 | J84: =+'Analisis Financiero'!J99 -> 0 | K84: =+'Analisis Financiero'!K99 -> 0 | L84: =+'Analisis Financiero'!L99 -> 0

Sheet Info_Sector
G3: Sector y tamaño | H3: Empresas con Activos entre 2,500 y 3,000 millones CIIU G,4690
A4: Descripción | B4: 2016 | C4: 2017 | D4: 2018 | E4: 2019 | F4: 2020
A5: ACTIVO
A6: TOTAL ACTIVO CORRIENTE | B6: 2156773359 | C6: 2379677242 | D6: 2703893629 | E6: 3068853593 | F6: 3179166130
A7: INVENTARIOS | B7: 836754783 | C7: 929422261 | D7: 1002998357 | E7: 1097740396 | F7: 1164246424
A8: CXC CLIENTES | B8: 1012450087 | C8: 1116089229 | D8: 1186556211 | E8: 1424209880 | F8: 1286157817
A9: PPYE | B9: 75724858 | C9: 71010676 | D9: 87231536 | E9: 56979786 | F9: 603060577
A10: TOTAL ACTIVO NO CORRIENTE | B10: 607776751 | C10: 640437103 | D10: 836905804 | E10: 936151799 | F10: 1018490892
A11: TOTAL ACTIVO | B11: =B6+B10 -> 2764550110 | C11: =C6+C10 -> 3020114345 | D11: =D6+D10 -> 3540799433 | E11: =E6+E10 -> 4005005392 | F11: =F6+F10 -> 4197657022
A12: PASIVO Y PATRIMONIO
A13: TOTAL PASIVO CORRIENTE | B13: 1414597232 | C13: 1477660072 | D13: 1675689525 | E13: 1930994474 | F13: 1863202342
A14: CXP PROVEEDORES | B14: 852404670 | C14: 887593799 | D14: 1098825000 | E14: 1194697134 | F14: 1129114072
A15: TOTAL PASIVO NO CORRIENTE | B15: 348681493 | C15: 444578111 | D15: 563403013 | E15: 626652507 | F15: 637258581
A16: TOTAL PASIVO | B16: =B13+B15 -> 1763278725 | C16: =C13+C15 -> 1922238183 | D16: =D13+D15 -> 2239092538 | E16: =E13+E15 -> 2557646981 | F16: =F13+F15 -> 2500460923
A17: PATRIMONIO Y SUPERAVIT
A18: Total patrimonio | B18: =B11-B16 -> 1001271385 | C18: =C11-C16 -> 1097876162 | D18: =D11-D16 -> 1301706895 | E18: =E11-E16 -> 1447358411 | F18: =F11-F16 -> 1697196099
A19: TOTAL PASIVO Y PATRIMONIO | B19: =+B16+B18 -> 2764550110 | C19: =+C16+C18 -> 3020114345 | D19: 3540799433 | E19: =+E16+E18 -> 4005005392 | F19: =+F16+F18 -> 4197657022
B20: =+B19-B11 -> 0 | C20: 0 | D20: 0 | E20: 0 | F20: 0
A21: Descripción | B21: 2016 | C21: 2017 | D21: 2018 | E21: 2019 | F21: 2020
A22: Ventas brutas nacionales | B22: 5240816733 | C22: 5117966741 | D22: 5520109788 | E22: 6468865993 | F22: 5653625856
A23: ventas brutas exterior
A24: Total ventas brutas | B24: =+SUM(B22:B23) -> 5240816733 | C24: =+SUM(C22:C23) -> 5117966741 | D24: 5520109788 | E24: 6468865993 | F24: 5653625856
A25: Descuentos comerciales
A26: Devoluciones y descuentos en ventas
A27: Ventas Netas | B27: =+B24-B25-B26 -> 5240816733 | C27: 5117966741 | D27: 5520109788 | E27: 6468865993 | F27: 5653625856
A28: Costo deventas | B28: 4160890344 | C28: 4086653577 | D28: 4366655694 | E28: 5159484030 | F28: 4347868340
A29: Utilidad Bruta | B29: =+B27-B28 -> 1079926389 | C29: 1031313164 | D29: 1153454094 | E29: 1309381963 | F29: 1305757516
A30: Gastos de Administración
A31: Gastos de personal
A32: Honorarios
A33: Impuestos
A34: Arrendamientos
A35: Contribuciones y afiliaciones
A36: Seguros
A37: Servicios
A38: Gastos legales
A39: Mantenimiento y reparaciones
A40: Adecuaciones e instalaciones
A41: Gastos de viaje
A42: Depreciaciones
A43: Diversos
A44: Provisiones
A45: Subtotal administrativos | B45: =SUM(B31:B44) -> 0 | C45: 0 | D45: 0 | E45: 0 | F45: 0
A46: Gastos de ventas
A47: Gastos de personal
A48: Honorarios
A49: Impuestos
A50: Afiliaciones y sostenimiento
A51: Seguros
A52: Servicios
A53: Gastos legales
A54: Mantenimiento y reparaciones
A55: Adecuaciones e Instalaciones
A56: Gastos de viaje
A57: Depreciaciones
A58: Diversos
A59: Provisiones
A60: Subtotal de distri. y ventas | B60: =+SUM(B47:B59) -> 0 | C60: 0 | D60: 0 | E60: 0 | F60: =+SUM(F47:F59) -> 0
A61: TOTAL GASTOS OPERACIONALES | B61: =+B45+B60 -> 0 | C61: 0 | D61: 0 | E61: 0 | F61: 0
A62: UTILIDAD O PERDIDA OPERACIONAL | B62: 258067695 | C62: 215941683 | D62: 186786664 | E62: 286697392 | F62: 331036040
A63: Gastos no operacionales
A64: Financieros por intereses
A65: Otros Gastos Financieros (diferencia en cambio)
A66: Pérdida en venta de activos
A67: Gastos extraordinarios
A68: Gastos diversos
A69: Subtotal gastos no operacionales | B69: =+SUM(B64:B68) -> 0 | C69: 0 | D69: 0 | E69: =+SUM(E64:E68) -> 0 | F69: =+SUM(F64:F68) -> 0
A70: Ingresos no operacionales
A71: Otras ventas
A72: Financieros
A73: Servicios
A74: Recuperaciones
A75: Utilidad en venta de propiedad, planta y equipo
A76: Indemnizaciones
A77: Devoluciones otras ventas
A78: Diversos
B79: =+SUM(B71:B78) -> 0 | C79: 0 | D79: 0 | E79: 0 | F79: 0
A80: UTILIDAD O (PERDIDA) ANTES DE IMPUESTOS | B80: 198007117 | C80: 147411393 | D80: 86612376 | E80: 200027675 | F80: 255497742
A81: Gastos financieros | B81: 126060116 | C81: 94260114 | D81: 135188203 | E81: 154254939 | F81: 161409414
A82: impuesto o gasto por impuesto | B82: 76488763 | C82: 79667720 | D82: 74941209 | E82: 86140857 | F82: 83035558
A83: UTILIDAD O (PERDIDA) NETA | B83: 121752674 | C83: 66135328 | D83: 27729754 | E83: 113859235 | F83: 171191615
A85: Datos desagregados
A86: Gastos por intereses | B86: 77999 | C86: 2927610.73 | D86: 10140052.7 | E86: 16621 | F86: 577543.87
A87: Tasa de Impuestos | B87: =9%+25% -> 0.34 | C87: 0.33 | D87: 0.33 | E87: 0.33 | F87: 0.32 | G87: 0.31 | H87: 0.35 | I87: 0.35 | J87: 0.35 | K87: 0.35 | L87: 0.35

Sheet Analisis Financiero
A1: ESTADOS FINANCIEROS PROYECTADOS
A3: =+'Cifras Historicas'!A11:Q11 -> GL Retail comunicaciones S.A.S.
A4: ANÁLISIS FINANCIERO
A5: Pesos Colombianos
A6: a 31 de Diciembre
A7: Periodos | F7: ='Cifras Historicas'!F15 -> 2014 | G7: ='Cifras Historicas'!G15 -> 2015 | H7: ='Cifras Historicas'!H15 -> 2016 | I7: ='Cifras Historicas'!I15 -> 2017 | J7: ='Cifras Historicas'!J15 -> 2018 | K7: ='Cifras Historicas'!K15 -> 2019 | L7: ='Cifras Historicas'!L15 -> 2020 | M7: =L7+1 -> 2021 | N7: =M7+1 -> 2022 | O7: 2023 | P7: 2024 | Q7: 2025
A9: CIFRAS FUNDAMENTALES DE PROYECCIÓN
A11: EMPRESA PROTOTIPO S.A.S
A12: CIFRAS DE PROYECCIÓN
A14: PLANES, POLITICAS Y EXPECTATIVAS
F15: CIFRAS HISTÓRICAS | M15: CIFRAS PROYECTADAS
A16: VARIABLE MACROECONÓMICA | F16: =F7 -> 2014 | G16: =G7 -> 2015 | H16: 2016 | I16: 2017 | J16: 2018 | K16: 2019 | L16: 2020 | M16: 2021 | N16: 2022 | O16: 2023 | P16: 2024 | Q16: 2025
A17: DTF EA | F17: 0.0406 | G17: 0.0434 | H17: 0.0692 | I17: 0.0528 | J17: 0.0454 | K17: 0.0452 | L17: 0.0193 | M17: 0.0233 | N17: 0.0367 | O17: 0.0459 | P17: 0.0514 | Q17: 0.0548
A18: Spread de Tasa (Colocación) | F18: 0.1019 | G18: 0.125 | H18: 0.1381 | I18: 0.115 | J18: 0.109 | K18: 0.1155 | L18: 0.0813 | M18: =AVERAGE(F18:L18) -> 0.1122571429 | N18: =AVERAGE(G18:M18) -> 0.1137367347 | O18: =AVERAGE(H18:N18) -> 0.1121276968 | P18: =AVERAGE(I18:O18) -> 0.1084173678 | Q18: =AVERAGE(J18:P18) -> 0.1074769917
A19: Costo del Dinero, Tasa de Colocación | F19: =((1+F17)*(1+F18))-1 -> 0.14663714 | G19: =((1+G17)*(1+G18))-1 -> 0.173825 | H19: 0.21685652 | I19: 0.173872 | J19: 0.1593486 | K19: 0.1659206 | L19: =((1+L17)*(1+L18))-1 -> 0.10216909 | M19: =((1+M17)*(1+M18))-1 -> 0.1381727343 | N19: 0.1546108729 | O19: 0.1631743581 | P19: 0.1653900205 | Q19: 0.1681667309 | S19: https://www.grupobancolombia.com/wps/portal/empresas/capital-inteligente/investigaciones-economicas/publicaciones/tablas-macroeconomicos-proyectados
A20: Inflación en Colombia | F20: 0.0194 | G20: 0.0366 | H20: 0.0575 | I20: 0.0409 | J20: 0.0318 | K20: 0.038 | L20: 0.0162 | M20: 0.024 | N20: 0.03 | O20: 0.035 | P20: 0.037 | Q20: 0.031
A21: Inflación en Estados Unidos | F21: 0.0162 | G21: 0.012 | H21: 0.0126 | I21: 0.0213 | J21: 0.0244 | K21: 0.0181 | L21: 0.0124 | M21: 0.0237 | N21: 0.0254 | O21: 0.0233 | P21: 0.0231 | Q21: 0.022
A22: Variación PIB real | F22: 0.045 | G22: 0.03 | H22: 0.021 | I22: 0.0114 | J22: 0.026 | K22: 0.033 | L22: -0.068 | M22: 0.08 | N22: 0.027 | O22: 0.027 | P22: 0.03 | Q22: 0.028
A23: Crecimiento nominal de la economía | F23: =((1+F20)*(1+F22))-1 -> 0.065273 | G23: =((1+G20)*(1+G22))-1 -> 0.067698 | H23: 0.0797075 | I23: 0.05276626 | J23: 0.0586268 | K23: 0.072254 | L23: -0.0529016 | M23: =((1+M20)*(1+M22))-1 -> 0.10592 | N23: 0.05781 | O23: 0.062945 | P23: 0.06811 | Q23: 0.059868
A24: Crecimiento en ventas Real (1+ tasa)/(1+IPC)-1 | G24: =((1+('Cifras Historicas'!G65/'Cifras Historicas'!F65)-1)/(1+G20))-1 -> -0.1394046537 | H24: =((1+('Cifras Historicas'!H65/'Cifras Historicas'!G65)-1)/(1+H20))-1 -> -0.3782743198 | I24: =((1+('Cifras Historicas'!I65/'Cifras Historicas'!H65)-1)/(1+I20))-1 -> -0.172547582 | J24: =((1+('Cifras Historicas'!J65/'Cifras Historicas'!I65)-1)/(1+J20))-1 -> -0.2171124561 | K24: =((1+('Cifras Historicas'!K65/'Cifras Historicas'!J65)-1)/(1+K20))-1 -> 0.377324775 | L24: =((1+('Cifras Historicas'!L65/'Cifras Historicas'!K65)-1)/(1+L20))-1 -> -0.2492597891 | M24: =(1+M23)/(1+M20)-1 -> 0.08 | N24: =(1+N23)/(1+N20)-1 -> 0.027 | O24: =(1+O23)/(1+O20)-1 -> 0.027 | P24: =(1+P23)/(1+P20)-1 -> 0.03 | Q24: =(1+Q23)/(1+Q20)-1 -> 0.028
G25: Crecimiento Real Historico | M25: Crecimiento Real Proyectado
A28: ESTADOS FINANCIEROS PROYECTADOS
A30: EMPRESA PROTOTIPO S.A.S
A31: PROYECCIÓN DE ESTADOS FINANCIERO
A33: ACTIVO | F33: 2014 | G33: 2015 | H33: 2016 | I33: 2017 | J33: 2018 | K33: 2019 | L33: 2020 | M33: =M7 -> 2021 | N33: =N7 -> 2022 | O33: =O7 -> 2023 | P33: =P7 -> 2024 | Q33: =Q7 -> 2025
A34: Activo Corriente
A35: Efectivo y equivalentes de efectivo | F35: ='Cifras Historicas'!F17 -> 1226412104 | G35: ='Cifras Historicas'!G17 -> 900917975.8 | H35: ='Cifras Historicas'!H17 -> 206347570.6 | I35: ='Cifras Historicas'!I17 -> 364265070.8 | J35: ='Cifras Historicas'!J17 -> 142216176.1 | K35: ='Cifras Historicas'!K17 -> 305752667.1 | L35: ='Cifras Historicas'!L17 -> 82961726.31 | M35: =+L35*(1+M$24) -> 89598664.41 | N35: =+M35*(1+N$24) -> 92017828.35 | O35: 94502309.72 | P35: 97337379.01 | Q35: 100062825.6
A36: Activos financieros | F36: ='Cifras Historicas'!F18 -> 23135998 | G36: ='Cifras Historicas'!G18 -> 23966489 | H36: ='Cifras Historicas'!H18 -> 25066661 | I36: ='Cifras Historicas'!I18 -> 29318905.6 | J36: ='Cifras Historicas'!J18 -> 28515581.62 | K36: ='Cifras Historicas'!K18 -> 18672906.3 | L36: ='Cifras Historicas'!L18 -> 21157722.63 | M36: =+L36*(1+M$24) -> 22850340.44 | N36: =+M36*(1+N$24) -> 23467299.63 | O36: 24100916.72 | P36: 24823944.22 | Q36: 25519014.66
A37: Deudores comerciales y otros | F37: ='Cifras Historicas'!F19 -> 1065020951 | G37: ='Cifras Historicas'!G19 -> 1830114438 | H37: ='Cifras Historicas'!H19 -> 891491929 | I37: ='Cifras Historicas'!I19 -> 763400000 | J37: ='Cifras Historicas'!J19 -> 991219221 | K37: ='Cifras Historicas'!K19 -> 1413051717 | L37: ='Cifras Historicas'!L19 -> 839532488 | M37: =+L37*(1+M$24) -> 906695087 | N37: =+M37*(1+N$24) -> 931175854.4 | O37: 956317602.5 | P37: 985007130.5 | Q37: 1012587330
A38: Inventarios | F38: ='Cifras Historicas'!F20 -> 618318163 | G38: ='Cifras Historicas'!G20 -> 841372799.1 | H38: ='Cifras Historicas'!H20 -> 1566198173 | I38: ='Cifras Historicas'!I20 -> 939332663.1 | J38: ='Cifras Historicas'!J20 -> 1079647558 | K38: ='Cifras Historicas'!K20 -> 1221678245 | L38: ='Cifras Historicas'!L20 -> 1009686096 | M38: =+L38*(1+M$24) -> 1090460984 | N38: =+M38*(1+N$24) -> 1119903430 | O38: 1150140823 | P38: 1184645048 | Q38: 1217815109
A39: Pagos anticipados | F39: ='Cifras Historicas'!F21 -> 43182861 | G39: ='Cifras Historicas'!G21 -> 6183644 | H39: ='Cifras Historicas'!H21 -> 0 | I39: ='Cifras Historicas'!I21 -> 22454045 | J39: ='Cifras Historicas'!J21 -> 0 | K39: ='Cifras Historicas'!K21 -> 0 | L39: ='Cifras Historicas'!L21 -> 1011200 | M39: =+L39*(1+M$24) -> 1092096 | N39: =+M39*(1+N$24) -> 1121582.592 | O39: 1151865.322 | P39: 1186421.282 | Q39: 1219641.078
A40: TOTAL ACTIVO CORRIENTE | F40: ='Cifras Historicas'!F22 -> 2976070077 | G40: ='Cifras Historicas'!G22 -> 3602555346 | H40: ='Cifras Historicas'!H22 -> 2689104334 | I40: ='Cifras Historicas'!I22 -> 2118770685 | J40: ='Cifras Historicas'!J22 -> 2241598537 | K40: ='Cifras Historicas'!K22 -> 2959155536 | L40: ='Cifras Historicas'!L22 -> 1954349233 | M40: =+SUM(M35:M39) -> 2110697172 | N40: =+SUM(N35:N39) -> 2167685995 | O40: 2226213517 | P40: 2292999923 | Q40: 2357203920
A41: Activo No Corriente
A42: Activos financieros | F42: ='Cifras Historicas'!F24 -> 0 | G42: ='Cifras Historicas'!G24 -> 0 | H42: ='Cifras Historicas'!H24 -> 0 | I42: ='Cifras Historicas'!I24 -> 0 | J42: ='Cifras Historicas'!J24 -> 0 | K42: ='Cifras Historicas'!K24 -> 0 | L42: ='Cifras Historicas'!L24 -> 0 | M42: =+L42*(1+M$24) -> 0 | N42: =+M42*(1+N$24) -> 0 | O42: 0 | P42: 0 | Q42: 0
A43: Deudores | F43: ='Cifras Historicas'!F25 -> 0 | G43: ='Cifras Historicas'!G25 -> 0 | H43: ='Cifras Historicas'!H25 -> 0 | I43: ='Cifras Historicas'!I25 -> 0 | J43: ='Cifras Historicas'!J25 -> 0 | K43: ='Cifras Historicas'!K25 -> 0 | L43: ='Cifras Historicas'!L25 -> 0 | M43: =+L43*(1+M$24) -> 0 | N43: =+M43*(1+N$24) -> 0 | O43: 0 | P43: 0 | Q43: 0
A44: Propiedades, planta y equipo | F44: ='Cifras Historicas'!F26 -> 14658230 | G44: ='Cifras Historicas'!G26 -> 13202599 | H44: ='Cifras Historicas'!H26 -> 13378905 | I44: ='Cifras Historicas'!I26 -> 12915325 | J44: ='Cifras Historicas'!J26 -> 11584794 | K44: ='Cifras Historicas'!K26 -> 17487713 | L44: ='Cifras Historicas'!L26 -> 13557376 | M44: =+L44*(1+M$24) -> 14641966.08 | N44: =+M44*(1+N$24) -> 15037299.16 | O44: 15443306.24 | P44: 15906605.43 | Q44: 16351990.38
A45: Activos intangibles | F45: ='Cifras Historicas'!F27 -> 0 | G45: ='Cifras Historicas'!G27 -> 5006462 | H45: ='Cifras Historicas'!H27 -> 0 | I45: ='Cifras Historicas'!I27 -> 0 | J45: ='Cifras Historicas'!J27 -> 0 | K45: ='Cifras Historicas'!K27 -> 0 | L45: ='Cifras Historicas'!L27 -> 0 | M45: =+L45*(1+M$24) -> 0 | N45: =+M45*(1+N$24) -> 0 | O45: 0 | P45: 0 | Q45: 0
A46: Activos por impuestos diferidos | F46: ='Cifras Historicas'!F28 -> 0 | G46: ='Cifras Historicas'!G28 -> 0 | H46: ='Cifras Historicas'!H28 -> 0 | I46: ='Cifras Historicas'!I28 -> 0 | J46: ='Cifras Historicas'!J28 -> 0 | K46: ='Cifras Historicas'!K28 -> 0 | L46: ='Cifras Historicas'!L28 -> 0 | M46: =+L46*(1+M$24) -> 0 | N46: =+M46*(1+N$24) -> 0 | O46: 0 | P46: 0 | Q46: 0
A47: TOTAL ACTIVO NO CORRIENTE | F47: ='Cifras Historicas'!F29 -> 14658230 | G47: ='Cifras Historicas'!G29 -> 18209061 | H47: ='Cifras Historicas'!H29 -> 13378905 | I47: ='Cifras Historicas'!I29 -> 12915325 | J47: ='Cifras Historicas'!J29 -> 11584794 | K47: ='Cifras Historicas'!K29 -> 17487713 | L47: ='Cifras Historicas'!L29 -> 13557376 | M47: =+SUM(M42:M46) -> 14641966.08 | N47: 15037299.16 | O47: 15443306.24 | P47: 15906605.43 | Q47: 16351990.38
A49: 0 TOTAL ACTIVO | F49: =F40+F47 -> 2990728307 | G49: 3620764407 | H49: 2702483239 | I49: 2131686010 | J49: 2253183331 | K49: =K40+K47 -> 2976643249 | L49: 1967906609 | M49: =+M40+M47 -> 2125339138 | N49: =+N40+N47 -> 2182723294 | O49: 2241656823 | P49: 2308906528 | Q49: 2373555911
A51: Pasivo Corriente
A52: Obligaciones financieras | F52: ='Cifras Historicas'!F34 -> 1152875.09 | G52: ='Cifras Historicas'!G34 -> 812448.55 | H52: ='Cifras Historicas'!H34 -> 1900417.05 | I52: ='Cifras Historicas'!I34 -> 137200 | J52: ='Cifras Historicas'!J34 -> 150000 | K52: ='Cifras Historicas'!K34 -> 156000 | L52: ='Cifras Historicas'!L34 -> 162050.87 | M52: =+L52*(1+M$24) -> 175014.9396 | N52: =+M52*(1+N$24) -> 179740.343 | O52: 184593.3322 | P52: 190131.1322 | Q52: 195454.8039
A53: Proveedores | F53: ='Cifras Historicas'!F35 -> 161290503 | G53: ='Cifras Historicas'!G35 -> 1091239354 | H53: ='Cifras Historicas'!H35 -> 242635875 | I53: ='Cifras Historicas'!I35 -> 180612526 | J53: ='Cifras Historicas'!J35 -> 537696681 | K53: ='Cifras Historicas'!K35 -> 1444787655 | L53: ='Cifras Historicas'!L35 -> 272643851 | M53: =+L53*(1+M$24) -> 294455359.1 | N53: =+M53*(1+N$24) -> 302405653.8 | O53: 310570606.4 | P53: 319887724.6 | Q53: 328844580.9
A54: Cuentas por pagar Varios | F54: ='Cifras Historicas'!F36 -> 553518934 | G54: ='Cifras Historicas'!G36 -> 58109280.74 | H54: ='Cifras Historicas'!H36 -> 24757111 | I54: ='Cifras Historicas'!I36 -> 69699869.45 | J54: ='Cifras Historicas'!J36 -> 115608797.5 | K54: ='Cifras Historicas'!K36 -> 119945847.5 | L54: ='Cifras Historicas'!L36 -> 186170166.7 | M54: =+L54*(1+M$24) -> 201063780 | N54: =+M54*(1+N$24) -> 206492502.1 | O54: 212067799.6 | P54: 218429833.6 | Q54: 224545869
A55: Impuestos corrientes por pagar | F55: ='Cifras Historicas'!F37 -> 452783000 | G55: ='Cifras Historicas'!G37 -> 408869000 | H55: ='Cifras Historicas'!H37 -> 90354000 | I55: ='Cifras Historicas'!I37 -> 164368000 | J55: ='Cifras Historicas'!J37 -> 143475000 | K55: ='Cifras Historicas'!K37 -> 34779000 | L55: ='Cifras Historicas'!L37 -> 113350000 | M55: =+L55*(1+M$24) -> 122418000 | N55: =+M55*(1+N$24) -> 125723286 | O55: 129117814.7 | P55: 132991349.2 | Q55: 136715106.9
A56: Otros pasivos | F56: ='Cifras Historicas'!F38 -> 0 | G56: ='Cifras Historicas'!G38 -> 0 | H56: ='Cifras Historicas'!H38 -> 0 | I56: ='Cifras Historicas'!I38 -> 0 | J56: ='Cifras Historicas'!J38 -> 0 | K56: ='Cifras Historicas'!K38 -> 0 | L56: ='Cifras Historicas'!L38 -> 0 | M56: =+L56*(1+M$24) -> 0 | N56: =+M56*(1+N$24) -> 0 | O56: 0 | P56: 0 | Q56: 0
A57: 0 TOTAL PASIVO CORRIENTE | F57: ='Cifras Historicas'!F39 -> 1168745312 | G57: ='Cifras Historicas'!G39 -> 1559030084 | H57: ='Cifras Historicas'!H39 -> 359647403.1 | I57: ='Cifras Historicas'!I39 -> 414817595.4 | J57: ='Cifras Historicas'!J39 -> 796930478.5 | K57: ='Cifras Historicas'!K39 -> 1599668502 | L57: ='Cifras Historicas'!L39 -> 572326068.5 | M57: =+SUM(M52:M56) -> 618112154 | N57: 634801182.2 | O57: 651940814.1 | P57: 671499038.5 | Q57: 690301011.6
A58: Pasivo No Corriente
A59: Obligaciones financieras | F59: ='Cifras Historicas'!F41 -> 0 | G59: ='Cifras Historicas'!G41 -> 0 | H59: ='Cifras Historicas'!H41 -> 0 | I59: ='Cifras Historicas'!I41 -> 0 | J59: ='Cifras Historicas'!J41 -> 0 | K59: ='Cifras Historicas'!K41 -> 0 | M59: =+L59*(1+M$24) -> 0 | N59: =+M59*(1+N$24) -> 0 | O59: 0 | P59: 0 | Q59: 0
A60: Provisiones | F60: ='Cifras Historicas'!F42 -> 25867792 | G60: ='Cifras Historicas'!G42 -> 30293494 | H60: ='Cifras Historicas'!H42 -> 18090782 | I60: ='Cifras Historicas'!I42 -> 34960355 | J60: ='Cifras Historicas'!J42 -> 13818547 | K60: ='Cifras Historicas'!K42 -> 47592516 | L60: ='Cifras Historicas'!L42 -> 25220535 | M60: =+L60*(1+M$24) -> 27238177.8 | N60: =+M60*(1+N$24) -> 27973608.6 | O60: 28728896.03 | P60: 29590762.91 | Q60: 30419304.28
A61: Otros pasivos | F61: ='Cifras Historicas'!F43 -> 24627283 | G61: ='Cifras Historicas'!G43 -> 0 | H61: ='Cifras Historicas'!H43 -> 135558578 | I61: ='Cifras Historicas'!I43 -> 0 | J61: ='Cifras Historicas'!J43 -> 0 | K61: ='Cifras Historicas'!K43 -> 5377974 | L61: ='Cifras Historicas'!L43 -> 309615000 | M61: =+L61*(1+M$24) -> 334384200 | N61: =+M61*(1+N$24) -> 343412573.4 | O61: 352684712.9 | P61: 363265254.3 | Q61: 373436681.4
A62: 0 TOTAL PASIVO NO CORRIENTE | F62: ='Cifras Historicas'!F44 -> 50495075 | G62: ='Cifras Historicas'!G44 -> 30293494 | H62: ='Cifras Historicas'!H44 -> 153649360 | I62: ='Cifras Historicas'!I44 -> 34960355 | J62: ='Cifras Historicas'!J44 -> 13818547 | K62: ='Cifras Historicas'!K44 -> 52970490 | L62: ='Cifras Historicas'!L44 -> 334835535 | M62: =+SUM(M59:M61) -> 361622377.8 | N62: =+SUM(N59:N61) -> 371386182 | O62: 381413608.9 | P62: 392856017.2 | Q62: 403855985.7
A64: 0 TOTAL PASIVO | F64: =F57+F62 -> 1219240387 | G64: 1589323578 | H64: 513296763.1 | I64: 449777950.4 | J64: 810749025.5 | K64: 1652638992 | L64: 907161603.5 | M64: 979734531.8 | N64: 1006187364 | O64: 1033354423 | P64: 1064355056 | Q64: 1094156997
A66: Patrimonio
A67: Capital suscrito y pagado | F67: ='Cifras Historicas'!F49 -> 180000000 | G67: ='Cifras Historicas'!G49 -> 180000000 | H67: ='Cifras Historicas'!H49 -> 180000000 | I67: ='Cifras Historicas'!I49 -> 180000000 | J67: ='Cifras Historicas'!J49 -> 180000000 | K67: ='Cifras Historicas'!K49 -> 180000000 | L67: ='Cifras Historicas'!L49 -> 180000000 | M67: =+L67 -> 180000000 | N67: =+M67 -> 180000000 | O67: =+N67 -> 180000000 | P67: =+O67 -> 180000000 | Q67: =+P67 -> 180000000
A68: Superavit de capital | F68: ='Cifras Historicas'!F50 -> 838779414 | G68: ='Cifras Historicas'!G50 -> 1213949920 | H68: ='Cifras Historicas'!H50 -> 1761440829 | I68: ='Cifras Historicas'!I50 -> 1196644076 | J68: ='Cifras Historicas'!J50 -> 1002182259 | K68: ='Cifras Historicas'!K50 -> 1172434306 | L68: ='Cifras Historicas'!L50 -> 1046864256 | M68: =+L68*(1+M24) -> 1130613397 | N68: =+M68*(1+N24) -> 1161139959 | O68: 1192490738 | P68: 1228265460 | Q68: 1262656893
A69: Reservas | F69: ='Cifras Historicas'!F51 -> 78840194 | G69: ='Cifras Historicas'!G51 -> 90000000 | H69: ='Cifras Historicas'!H51 -> 90000000 | I69: ='Cifras Historicas'!I51 -> 90000000 | J69: ='Cifras Historicas'!J51 -> 90000000 | K69: ='Cifras Historicas'!K51 -> 90000000 | L69: ='Cifras Historicas'!L51 -> 90000000 | M69: -240921312.5 | N69: -242566187.9 | O69: -244255475 | P69: -246183139.3 | Q69: -248036267.2
A70: Resultados del Ejercicio | F70: ='Cifras Historicas'!F52 -> 673868312.3 | G70: ='Cifras Historicas'!G52 -> 547490908.7 | H70: ='Cifras Historicas'!H52 -> 157745646.7 | I70: ='Cifras Historicas'!I52 -> 215263983.4 | J70: ='Cifras Historicas'!J52 -> 170252046.6 | K70: ='Cifras Historicas'!K52 -> -118430049.2 | L70: ='Cifras Historicas'!L52 -> -256119251 | M70: =+M93 -> 75912521.4 | N70: =+N93 -> 77962159.48 | O70: 80067137.78 | P70: 82469151.91 | Q70: 84778288.17
A71: 0 TOTAL PATRIMONIO | F71: ='Cifras Historicas'!F53 -> 1771487920 | G71: ='Cifras Historicas'!G53 -> 2031440829 | H71: ='Cifras Historicas'!H53 -> 2189186476 | I71: ='Cifras Historicas'!I53 -> 1681908059 | J71: ='Cifras Historicas'!J53 -> 1442434306 | K71: ='Cifras Historicas'!K53 -> 1324004256 | L71: ='Cifras Historicas'!L53 -> 1060745005 | M71: =+SUM(M67:M70) -> 1145604606 | N71: =+SUM(N67:N70) -> 1176535930 | O71: 1208302400 | P71: 1244551472 | Q71: 1279398914
A73: 0 TOTAL PASIVO Y PATRIMONIO | F73: =F64+F71 -> 2990728307 | G73: 3620764407 | H73: 2702483239 | I73: 2131686010 | J73: 2253183331 | K73: 2976643249 | L73: =L64+L71 -> 1967906609 | M73: 2125339138 | N73: 2182723294 | O73: 2241656823 | P73: 2308906528 | Q73: 2373555911
A75: CONTROL (Pasivo y Patrimonio - Activo) | F75: =F49-F73 -> 0 | G75: 0 | H75: 0 | I75: 0 | J75: 0 | K75: 0 | L75: 0 | M75: 0 | N75: 0 | O75: 0 | P75: 0 | Q75: 0
A78: CUENTAS DE RESULTADO | F78: ='Cifras Historicas'!F63 -> 2014 | G78: ='Cifras Historicas'!G63 -> 2015 | H78: ='Cifras Historicas'!H63 -> 2016 | I78: ='Cifras Historicas'!I63 -> 2017 | J78: ='Cifras Historicas'!J63 -> 2018 | K78: 2019 | L78: 2020 | M78: =M33 -> 2021 | N78: =N33 -> 2022 | O78: =O33 -> 2023 | P78: =P33 -> 2024 | Q78: =Q33 -> 2025
A79: Operacional
A80: Ventas, Ingresos de actividades ordinarias | F80: =+'Cifras Historicas'!F65 -> 5323304022 | G80: =+'Cifras Historicas'!G65 -> 4748882979 | H80: =+'Cifras Historicas'!H65 -> 3122271394 | I80: =+'Cifras Historicas'!I65 -> 2689197433 | J80: =+'Cifras Historicas'!J65 -> 2172288959 | K80: =+'Cifras Historicas'!K65 -> 3105641403 | L80: =+'Cifras Historicas'!L65 -> 2369300666 | M80: =+L80*(1+M$24) -> 2558844719 | N80: =+M80*(1+N$24) -> 2627933527 | O80: 2698887732 | P80: 2779854364 | Q80: 2857690286
A81: Costo de Ventas | F81: =+'Cifras Historicas'!F66 -> 2840650741 | G81: =+'Cifras Historicas'!G66 -> 2800340034 | H81: =+'Cifras Historicas'!H66 -> 1866430298 | I81: =+'Cifras Historicas'!I66 -> 1497273400 | J81: =+'Cifras Historicas'!J66 -> 1191769145 | K81: =+'Cifras Historicas'!K66 -> 2313965225 | L81: =+'Cifras Historicas'!L66 -> 1371898785 | M81: =+M80*'Cifras Historicas'!$T$66 -> 1542546733 | N81: =+N80*'Cifras Historicas'!$T$66 -> 1584195495 | O81: =+O80*'Cifras Historicas'!$T$66 -> 1626968773 | P81: =+P80*'Cifras Historicas'!$T$66 -> 1675777836 | Q81: =+Q80*'Cifras Historicas'!$T$66 -> 1722699616
A82: UTILIDAD BRUTA | F82: =F80-F81 -> 2482653281 | G82: 1948542945 | H82: 1255841096 | I82: 1191924033 | J82: 980519814 | K82: 791676177.7 | L82: =L80-L81 -> 997401881 | M82: 1016297986 | N82: 1043738032 | O82: 1071918959 | P82: 1104076528 | Q82: 1134990670
A83: Gastos de administración | F83: =+'Cifras Historicas'!F68 -> 432531290 | G83: =+'Cifras Historicas'!G68 -> 600273946.7 | H83: =+'Cifras Historicas'!H68 -> 298753262.6 | I83: =+'Cifras Historicas'!I68 -> 323700740.4 | J83: =+'Cifras Historicas'!J68 -> 362743766.9 | K83: =+'Cifras Historicas'!K68 -> 288540983.5 | L83: =+'Cifras Historicas'!L68 -> 230618464.2 | M83: =+M80*'Cifras Historicas'!$T$68 -> 298399752.1 | N83: =+N80*'Cifras Historicas'!$T$68 -> 306456545.4 | O83: =+O80*'Cifras Historicas'!$T$68 -> 314730872.1 | P83: =+P80*'Cifras Historicas'!$T$68 -> 324172798.3 | Q83: =+Q80*'Cifras Historicas'!$T$68 -> 333249636.6
A84: Gastos de ventas y distribución | F84: =+'Cifras Historicas'!F69 -> 985017277 | G84: =+'Cifras Historicas'!G69 -> 518550949 | H84: =+'Cifras Historicas'!H69 -> 587728164 | I84: =+'Cifras Historicas'!I69 -> 539468522.5 | J84: =+'Cifras Historicas'!J69 -> 304238521 | K84: =+'Cifras Historicas'!K69 -> 581792014.9 | L84: =+'Cifras Historicas'!L69 -> 512973905.5 | M84: =+M80*'Cifras Historicas'!$T$69 -> 444358012.7 | N84: =+N80*'Cifras Historicas'!$T$69 -> 456355679.1 | O84: =+O80*'Cifras Historicas'!$T$69 -> 468677282.4 | P84: =+P80*'Cifras Historicas'!$T$69 -> 482737600.9 | Q84: =+Q80*'Cifras Historicas'!$T$69 -> 496254253.7
A85: UTILIDAD OPERACIONAL | F85: =F82-F83-F84 -> 1065104714 | G85: 829718048.9 | H85: 369359669.4 | I85: 328754770.1 | J85: 313537526.1 | K85: -78656820.67 | L85: =L82-L83-L84 -> 253809511.3 | M85: 273540221.5 | N85: 280925807.5 | O85: 288510804.3 | P85: 297166128.4 | Q85: 305486780
A86: No Operacional
A87: Otros ingresos | F87: =+'Cifras Historicas'!F72 -> 126367387.3 | G87: =+'Cifras Historicas'!G72 -> 153078734.1 | H87: =+'Cifras Historicas'!H72 -> 165819513.8 | I87: =+'Cifras Historicas'!I72 -> 56463563.52 | J87: =+'Cifras Historicas'!J72 -> 30942167.18 | K87: =+'Cifras Historicas'!K72 -> 26051823.73 | L87: =+'Cifras Historicas'!L72 -> 84325328.13 | M87: =+M80*'Cifras Historicas'!$T$72 -> 70181916.67 | N87: =+N80*'Cifras Historicas'!$T$72 -> 72076828.42 | O87: =+O80*'Cifras Historicas'!$T$72 -> 74022902.79 | P87: =+P80*'Cifras Historicas'!$T$72 -> 76243589.88 | Q87: =+Q80*'Cifras Historicas'!$T$72 -> 78378410.39
A88: Gasto no operacional | F88: =+'Cifras Historicas'!F73 -> 159886203.3 | G88: =+'Cifras Historicas'!G73 -> 135717288.5 | H88: =+'Cifras Historicas'!H73 -> 288664537.1 | I88: =+'Cifras Historicas'!I73 -> 54735739.52 | J88: =+'Cifras Historicas'!J73 -> 66927594.01 | K88: =+'Cifras Historicas'!K73 -> 65808431.3 | L88: =+'Cifras Historicas'!L73 -> 593676546.6 | M88: =+M80*'Cifras Historicas'!$T$73 -> 189335802.6 | N88: =+N80*'Cifras Historicas'!$T$73 -> 194447869.2 | O88: =+O80*'Cifras Historicas'!$T$73 -> 199697961.7 | P88: =+P80*'Cifras Historicas'!$T$73 -> 205688900.6 | Q88: =+Q80*'Cifras Historicas'!$T$73 -> 211448189.8
A89: Gasto Financiero | F89: =+'Cifras Historicas'!F74 -> 831585.83 | G89: =+'Cifras Historicas'!G74 -> 831585.83 | H89: =+'Cifras Historicas'!H74 -> 77999.35 | I89: =+'Cifras Historicas'!I74 -> 2927610.73 | J89: =+'Cifras Historicas'!J74 -> 10140052.7 | K89: =+'Cifras Historicas'!K74 -> 16621 | L89: =+'Cifras Historicas'!L74 -> 577543.87 | M89: =+M80*'Cifras Historicas'!$T$74 -> 2646602.07 | N89: =+N80*'Cifras Historicas'!$T$74 -> 2718060.326 | O89: =+O80*'Cifras Historicas'!$T$74 -> 2791447.955 | P89: =+P80*'Cifras Historicas'!$T$74 -> 2875191.394 | Q89: =+Q80*'Cifras Historicas'!$T$74 -> 2955696.753
A90: Resultados Netos
A91: UTILIDAD ANTES DE IMPUESTOS | F91: =F85+F87-F88-F89 -> 1030754312 | G91: 846247908.7 | H91: 246436646.7 | I91: 327554983.4 | J91: 267412046.6 | K91: -118430049.2 | L91: =L85+L87-L88-L89 -> -256119251 | M91: =M85+M87-M88-M89 -> 151739733.5 | N91: 155836706.3 | O91: 160044297.4 | P91: 164845626.3 | Q91: 169461303.9
A92: Gasto por impuesto | F92: =+'Cifras Historicas'!F77 -> 356886000 | G92: =+'Cifras Historicas'!G77 -> 298757000 | H92: =+'Cifras Historicas'!H77 -> 88691000 | I92: =+'Cifras Historicas'!I77 -> 112291000 | J92: =+'Cifras Historicas'!J77 -> 97160000 | K92: =+'Cifras Historicas'!K77 -> 0 | L92: =+'Cifras Historicas'!L77 -> 0 | M92: =+M80*'Cifras Historicas'!$T$77 -> 75827212.14 | N92: =+N80*'Cifras Historicas'!$T$77 -> 77874546.87 | O92: =+O80*'Cifras Historicas'!$T$77 -> 79977159.63 | P92: =+P80*'Cifras Historicas'!$T$77 -> 82376474.42 | Q92: =+Q80*'Cifras Historicas'!$T$77 -> 84683015.71
A93: UTILIDAD NETA | F93: =F91-F92 -> 673868312.3 | G93: 547490908.7 | H93: 157745646.7 | I93: 215263983.4 | J93: 170252046.6 | K93: -118430049.2 | L93: =L91-L92 -> -256119251 | M93: 75912521.4 | N93: 77962159.48 | O93: 80067137.78 | P93: 82469151.91 | Q93: 84778288.17
M95: =+M85+M98 -> 279320903.8 | N95: =+N85+N98 -> 286765160.2 | O95: 294417208.9 | P95: 303101881.3 | Q95: 311685101.5
A96: Datos Informativos
A97: Detalles de Depreciación y Amortización | F97: =F78 -> 2014 | G97: 2015 | H97: 2016 | I97: 2017 | J97: 2018 | K97: 2019 | L97: 2020 | M97: =M78 -> 2021 | N97: 2022 | O97: 2023 | P97: 2024 | Q97: 2025
A98: Depreciaciones | F98: 5369989.291 | G98: 5369989.291 | H98: 5700966.32 | I98: 4097773 | J98: 5782289 | K98: 5996203 | L98: 8147566 | M98: =+AVERAGE(F98:L98) -> 5780682.272 | N98: 5839352.698 | O98: 5906404.613 | P98: 5935752.94 | Q98: 6198321.503
A99: Amortizaciones | G99: 0 | H99: 0 | I99: 0 | J99: 0 | K99: 0 | L99: 0 | M99: 0 | N99: 0 | O99: 0 | P99: 0 | Q99: 0

Sheet Estrategias Operativas
A1: PROYECCIONES MEJORAS, TRATAMIENTOS Y ESTRATEGIAS
A4: ESTRATEGIA 3 AJUSTE ESTRUCTURA DE COSTOS Y GASTOS
A5: COSTOS | E5: ='Analisis Financiero'!M78 -> 2021 | F5: ='Valoración Sin Estrategia'!G54 -> 2022 | G5: ='Valoración Sin Estrategia'!H54 -> 2023 | H5: ='Valoración Sin Estrategia'!I54 -> 2024 | I5: ='Valoración Sin Estrategia'!J54 -> 2025 | J5: Objetivo
A6: REDUCCIÓN DE COSTOS | E6: 0.004 | F6: 0.008 | G6: 0.0131 | H6: 0.007 | I6: 0.005 | J6: =+SUM(E6:I6) -> 0.0371
A7: REDUCCIÓN DE COSTOS $ Proyección | E7: =+E6*'Analisis Financiero'!M81 -> 6170186.932 | F7: =+F6*'Analisis Financiero'!N81 -> 12673563.96 | G7: =+G6*'Analisis Financiero'!O81 -> 21313290.93 | H7: =+H6*'Analisis Financiero'!P81 -> 11730444.85 | I7: =+I6*'Analisis Financiero'!Q81 -> 8613498.079 | J7: =+SUM(E7:I7) -> 60500984.75
A10: GASTOS ADMINISTRATIVOS | E10: =E5 -> 2021 | F10: =F5 -> 2022 | G10: =G5 -> 2023 | H10: =H5 -> 2024 | I10: =I5 -> 2025 | J10: Objetivo
A11: REDUCCIÓN DE GASTOS ADMINISTRATIVOS | E11: 0.0012 | F11: 0.003 | G11: 0.004 | H11: 0.003 | I11: 0.002 | J11: =+SUM(E11:I11) -> 0.0132
A12: REDUCCIÓN DE GASTOS ADMON $ Proyección | E12: =+E11*'Analisis Financiero'!M83 -> 358079.7025 | F12: =+F11*'Analisis Financiero'!N83 -> 919369.6361 | G12: =+G11*'Analisis Financiero'!O83 -> 1258923.488 | H12: =+H11*'Analisis Financiero'!P83 -> 972518.3948 | I12: =+I11*'Analisis Financiero'!Q83 -> 666499.2732 | J12: =+SUM(E12:I12) -> 4175390.495
A15: GASTOS DE VENTAS | E15: =E10 -> 2021 | F15: =F10 -> 2022 | G15: =G10 -> 2023 | H15: =H10 -> 2024 | I15: =I10 -> 2025 | J15: Objetivo
A16: REDUCCIÓN DE GASTOS DE VENTAS | E16: 0.005 | F16: 0.011 | G16: 0.02 | H16: 0.01 | I16: 0.009 | J16: =+SUM(E16:I16) -> 0.055
A17: REDUCCIÓN GASTOS DE VENTAS $ Proyección | E17: =+E16*'Analisis Financiero'!M84 -> 2221790.064 | F17: =+F16*'Analisis Financiero'!N84 -> 5019912.47 | G17: =+G16*'Analisis Financiero'!O84 -> 9373545.648 | H17: =+H16*'Analisis Financiero'!P84 -> 4827376.009 | I17: =+I16*'Analisis Financiero'!Q84 -> 4466288.283 | J17: =+SUM(E17:I17) -> 25908912.47
A20: PLAN DE REDUCCIÓN EN PESOS | E20: =E15 -> 2021 | F20: =F15 -> 2022 | G20: =G15 -> 2023 | H20: =H15 -> 2024 | I20: =I15 -> 2025
A21: COSTO DE VENTAS Y DE PRESTACIÓN DE SERVICIOS | E21: =+'Analisis Financiero'!M81-'Estrategias Operativas'!E7 -> 1536376546 | F21: =+'Analisis Financiero'!N81-'Estrategias Operativas'!F7 -> 1571521931 | G21: =+'Analisis Financiero'!O81-'Estrategias Operativas'!G7 -> 1605655482 | H21: =+'Analisis Financiero'!P81-'Estrategias Operativas'!H7 -> 1664047391 | I21: =+'Analisis Financiero'!Q81-'Estrategias Operativas'!I7 -> 1714086118 | J21: =+(I21-'Estados financieros + Estrategi'!L90)/'Estados financieros + Estrategi'!L90 -> 0.2494260775
A22: GASTOS OPERACIONALES DE ADMINISTRACIÓN | E22: =+'Analisis Financiero'!M83-'Estrategias Operativas'!E12 -> 298041672.4 | F22: =+'Analisis Financiero'!N83-'Estrategias Operativas'!F12 -> 305537175.7 | G22: =+'Analisis Financiero'!O83-'Estrategias Operativas'!G12 -> 313471948.6 | H22: =+'Analisis Financiero'!P83-'Estrategias Operativas'!H12 -> 323200279.9 | I22: =+'Analisis Financiero'!Q83-'Estrategias Operativas'!I12 -> 332583137.3
A23: GASTOS OPERACIONALES DE VENTAS | E23: =+'Analisis Financiero'!M84-'Estrategias Operativas'!E17 -> 442136222.7 | F23: =+'Analisis Financiero'!N84-'Estrategias Operativas'!F17 -> 451335766.6 | G23: =+'Analisis Financiero'!O84-'Estrategias Operativas'!G17 -> 459303736.8 | H23: =+'Analisis Financiero'!P84-'Estrategias Operativas'!H17 -> 477910224.9 | I23: =+'Analisis Financiero'!Q84-'Estrategias Operativas'!I17 -> 491787965.4
A26: ESTRATEGIA 1 INCREMENTO el total de ingresos operativos | E26: =E$20 -> 2021 | F26: =F$20 -> 2022 | G26: 2023 | H26: 2024 | I26: 2025
A27: Gradiente Crecimiento Valoración Natural | E27: =+'Analisis Financiero'!M24 -> 0.08 | F27: =+'Analisis Financiero'!N24 -> 0.027 | G27: =+'Analisis Financiero'!O24 -> 0.027 | H27: =+'Analisis Financiero'!P24 -> 0.03 | I27: =+'Analisis Financiero'!Q24 -> 0.028
A28: INCREMENTO EN VENTAS | E28: =E20 -> 2021 | J28: Objetivo
A29: CRECIMIENTO ADICIONAL DE VENTAS | E29: 0.03 | F29: 0.04 | G29: 0.04 | H29: 0.02 | I29: 0.03 | J29: =+SUM(E29:I29) -> 0.16
A30: INCREMENTO GRADIENTE DE CRECIMIENTO | E30: =+(1+E27)*(1+E29)-1 -> 0.1124 | F30: =+(1+F27)*(1+F29)-1 -> 0.06808 | G30: 0.06808 | H30: 0.0506 | I30: 0.05884 | J30: =+SUM(E30:I30) -> 0.358
A31: VENTAS CON TRATAMIENTO | E31: =+'Analisis Financiero'!L80*(1+'Estrategias Operativas'!E30) -> 2635610061 | F31: =+E31*(1+F30) -> 2815042394 | G31: =+F31*(1+G30) -> 3006690480 | H31: 3158829018 | I31: 3344694518
A33: ESTRATEGIA 3 DISMINUCIÓN DE ACTIVOS OCIOSOS | E33: =E$20 -> 2021 | F33: =F$20 -> 2022 | G33: 2023 | H33: 2024 | I33: 2025 | J33: Objetivo
A34: REDUCCIÓN DE INVENTARIOS | E34: -0.1 | F34: -0.08 | G34: -0.16 | H34: -0.03 | I34: -0.03 | J34: -0.4
A35: REDUCCIÓN DE INVENTARIOS $ Proyección | E35: =+'Analisis Financiero'!L38*1+'Estrategias Operativas'!E34 -> 1009686096 | F35: =+E35*(1+F34) -> 928911208.2 | G35: =+F35*(1+G34) -> 780285414.9 | H35: =+G35*(1+H34) -> 756876852.5 | I35: =+H35*(1+I34) -> 734170546.9 | J35: Objetivo
A36: % MAXIMO DE INVENTARIO DE BAJA | E36: 81171741 | F36: =+F35*3% -> 27867336.25 | G36: =+G35*3% -> 23408562.45 | H36: 22706305.57 | I36: 22025116.41
A37: REDUCCIÓN DE CUENTAS POR COBRAR COMERCIALES | E37: -0.08 | F37: -0.06 | G37: -0.02 | H37: -0.03 | I37: -0.01 | J37: -0.2
A38: REDUCCIÓN DE CUENTAS POR COBRAR COMERCIALES PROYECCIÓN $ Proyección | E38: =+'Analisis Financiero'!L37*(1+'Estrategias Operativas'!E37) -> 772369889 | F38: =+E38*(1+F37) -> 726027695.6 | G38: =+F38*(1+G37) -> 711507141.7 | H38: =+G38*(1+H37) -> 690161927.5 | I38: =+H38*(1+I37) -> 683260308.2
A40: * Limite fiscal max pérdida activos | E40: =+('Estados financieros + Estrategi'!L47+'Estados financieros + Estrategi'!M90)*3% -> 76381879.26 | F40: =+('Estados financieros + Estrategi'!M47+'Estados financieros + Estrategi'!N90)*3% -> 77436240.8 | G40: =+('Estados financieros + Estrategi'!N47+'Estados financieros + Estrategi'!O90)*3% -> 76037000.71 | H40: =+('Estados financieros + Estrategi'!O47+'Estados financieros + Estrategi'!P90)*3% -> 73329984.19 | I40: =+('Estados financieros + Estrategi'!P47+'Estados financieros + Estrategi'!Q90)*3% -> 74128889.1
A43: EFECTO DISMINUCIÓN EN OTROS RUBROS | E43: =E$20 -> 2021 | F43: =F$20 -> 2022 | G43: 2023 | H43: 2024 | I43: 2025
A44: REDUCCIÓN EN CXP A PROVEEDORES | E44: -0.1 | F44: -0.08 | G44: -0.16 | H44: -0.03 | I44: -0.03
A45: REDUCCIÓN DE INVENTARIOS $ Proyección | E45: =+'Analisis Financiero'!L44*1+'Estrategias Operativas'!E44 -> 13557375.9 | F45: =+E45*(1+F44) -> 12472785.83 | G45: =+F45*(1+G44) -> 10477140.1 | H45: =+G45*(1+H44) -> 10162825.89 | I45: =+H45*(1+I44) -> 9857941.116
A46: REDUCCIÓN DE CUENTAS POR COBRAR COMERCIALES | E46: -0.08 | F46: -0.06 | G46: -0.02 | H46: -0.03 | I46: -0.01
A47: REDUCCIÓN DE CUENTAS POR COBRAR COMERCIALES PROYECCIÓN $ Proyección | E47: =+'Analisis Financiero'!L43*(1+'Estrategias Operativas'!E46) -> 0 | F47: =+E47*(1+F46) -> 0 | G47: =+F47*(1+G46) -> 0 | H47: =+G47*(1+H46) -> 0 | I47: =+H47*(1+I46) -> 0
A49: ESTRATEGIA 1 INCREMENTO EN EL PASIVO POR IMPUESTOSs | E49: =E$20 -> 2021 | F49: =F$20 -> 2022 | G49: 2023 | H49: 2024 | I49: 2025
A50: Gradiente Crecimiento Valoración Natural | E50: =+E27 -> 0.08 | F50: =+F27 -> 0.027 | G50: 0.027 | H50: 0.03 | I50: 0.028
A51: INCREMENTO EN VENTAS | E51: =E43 -> 2021 | F51: =F43 -> 2022 | G51: =G43 -> 2023 | H51: =H43 -> 2024 | I51: =I43 -> 2025 | J51: Objetivo
A52: CRECIMIENTO ADICIONAL DE TASA IMPOSITIVA | E52: =+(31%-32%)/32% -> -0.03125 | F52: =+(38%-31%)/31% -> 0.2258064516 | G52: =+(38%-38%)/38% -> 0 | H52: =+(38%-38%)/38% -> 0 | I52: 0 | J52: =+SUM(E52:I52) -> 0.1945564516
A53: INCREMENTO GRADIENTE DE CRECIMIENTO | E53: =+(1+E50)*(1+E52)-1 -> 0.04625 | F53: =+(1+F50)*(1+F52)-1 -> 0.2589032258 | G53: 0.027 | H53: 0.03 | I53: 0.028 | J53: =+SUM(E53:I53) -> 0.3901532258
A54: PASIVOS POR IMPUESTOS CON CRECIMIENTO | E54: =+'Estados financieros + Estrategi'!L64*(1+'Estrategias Operativas'!E53) -> 118592437.5 | F54: =+E54*(1+F53) -> 149296402.1 | G54: =+F54*(1+G53) -> 153327405 | H54: =+G54*(1+H53) -> 157927227.1 | I54: =+H54*(1+I53) -> 162349189.5
A56: Cálculo Impuesto a la renta | E56: Porcentaje promedio de Gastos no deducibles | H56: =+AVERAGE('Estados financieros + Estrategi'!F104:K104) -> 0.01171710712
E57: =E$20 -> 2021 | F57: =F$20 -> 2022 | G57: 2023 | H57: 2024 | I57: 2025
A58: Total Utilidad Antes de Impuestos | E58: =+'Estados financieros + Estrategi'!M100 -> 152429376.2 | F58: =+'Estados financieros + Estrategi'!N100 -> 352652075.5 | G58: =+'Estados financieros + Estrategi'!O100 -> 485141457.4 | H58: =+'Estados financieros + Estrategi'!P100 -> 543311503.5 | I58: =+'Estados financieros + Estrategi'!Q100 -> 647030518.8
A59: (+) Valor de destrucción de activos no deducible | E59: =+IF(E36>E40,(E36-E40),0) -> 4789861.738 | F59: =+IF(F36>F40,(F36-F40),0) -> 0 | G59: 0 | H59: 0 | I59: 0
A60: (+) Valor indicador Gastos no deducibles ( Eb base a ingresos) | E60: =+'Estados financieros + Estrategi'!M89*'Estrategias Operativas'!$H$56 -> 30881725.42 | F60: =+'Estados financieros + Estrategi'!N89*'Estrategias Operativas'!$H$56 -> 32984153.28 | G60: =+'Estados financieros + Estrategi'!O89*'Estrategias Operativas'!$H$56 -> 35229714.44 | H60: =+'Estados financieros + Estrategi'!P89*'Estrategias Operativas'!$H$56 -> 37012337.99 | I60: =+'Estados financieros + Estrategi'!Q89*'Estrategias Operativas'!$H$56 -> 39190143.96
A61: Total Utilidad Base impositiva | E61: =+SUM(E58:E60) -> 188100963.3 | F61: =+SUM(F58:F60) -> 385636228.8 | G61: 520371171.8 | H61: 580323841.5 | I61: 686220662.8
A62: Tarifa de Impuesto a la Renta | E62: =+Indicadores!J106 -> 0.31 | F62: =+Indicadores!K106 -> 0.38 | G62: =+Indicadores!L106 -> 0.38 | H62: =+Indicadores!M106 -> 0.38 | I62: =+Indicadores!N106 -> 0.38
A63: Valor Impuesto a la renta | E63: =+E61*E62 -> 58311298.63 | F63: =+F61*F62 -> 146541766.9 | G63: 197741045.3 | H63: 220523059.8 | I63: 260763851.8

Sheet Estados financieros + Estrategi
A1: MODELO DE VALORACIÓN DE EMPRESAS
A6: ='Cifras Historicas'!A6 -> 0
A9: ESTADOS FINANCIEROS PROYECTADOS
A11: EMPRESA PROTOTIPO S.A.S
A12: ANÁLISIS FINANCIERO
A13: Pesos Colombianos
A14: a 31 de Diciembre
A15: Periodos | F15: ='Cifras Historicas'!F15 -> 2014 | G15: ='Cifras Historicas'!G15 -> 2015 | H15: ='Cifras Historicas'!H15 -> 2016 | I15: ='Cifras Historicas'!I15 -> 2017 | J15: ='Cifras Historicas'!J15 -> 2018 | K15: ='Cifras Historicas'!K15 -> 2019 | L15: ='Cifras Historicas'!L15 -> 2020 | M15: =L15+1 -> 2021 | N15: =M15+1 -> 2022 | O15: 2023 | P15: 2024 | Q15: 2025
A18: CIFRAS FUNDAMENTALES DE PROYECCIÓN
A20: EMPRESA PROTOTIPO S.A.S
A21: CIFRAS DE PROYECCIÓN
A23: PLANES, POLITICAS Y EXPECTATIVAS
F24: CIFRAS HISTÓRICAS | M24: CIFRAS PROYECTADAS
A25: VARIABLE MACROECONÓMICA | F25: =F15 -> 2014 | G25: 2015 | H25: 2016 | I25: 2017 | J25: 2018 | K25: 2019 | L25: 2020 | M25: =L25+1 -> 2021 | N25: =M25+1 -> 2022 | O25: =N25+1 -> 2023 | P25: =O25+1 -> 2024 | Q25: =P25+1 -> 2025
A26: DTF EA | F26: =+'Analisis Financiero'!F17 -> 0.0406 | G26: =+'Analisis Financiero'!G17 -> 0.0434 | H26: =+'Analisis Financiero'!H17 -> 0.0692 | I26: =+'Analisis Financiero'!I17 -> 0.0528 | J26: =+'Analisis Financiero'!J17 -> 0.0454 | K26: =+'Analisis Financiero'!K17 -> 0.0452 | L26: =+'Analisis Financiero'!L17 -> 0.0193 | M26: =+'Analisis Financiero'!M17 -> 0.0233 | N26: =+'Analisis Financiero'!N17 -> 0.0367 | O26: =+'Analisis Financiero'!O17 -> 0.0459 | P26: =+'Analisis Financiero'!P17 -> 0.0514 | Q26: =+'Analisis Financiero'!Q17 -> 0.0548
A27: Spread de Tasa (Colocación) | F27: =+'Analisis Financiero'!F18 -> 0.1019 | G27: =+'Analisis Financiero'!G18 -> 0.125 | H27: =+'Analisis Financiero'!H18 -> 0.1381 | I27: =+'Analisis Financiero'!I18 -> 0.115 | J27: =+'Analisis Financiero'!J18 -> 0.109 | K27: =+'Analisis Financiero'!K18 -> 0.1155 | L27: =+'Analisis Financiero'!L18 -> 0.0813 | M27: =+'Analisis Financiero'!M18 -> 0.1122571429 | N27: =+'Analisis Financiero'!N18 -> 0.1137367347 | O27: =+'Analisis Financiero'!O18 -> 0.1121276968 | P27: =+'Analisis Financiero'!P18 -> 0.1084173678 | Q27: =+'Analisis Financiero'!Q18 -> 0.1074769917
A28: Costo del Dinero, Tasa de Colocación | F28: =+'Analisis Financiero'!F19 -> 0.14663714 | G28: =+'Analisis Financiero'!G19 -> 0.173825 | H28: =+'Analisis Financiero'!H19 -> 0.21685652 | I28: =+'Analisis Financiero'!I19 -> 0.173872 | J28: =+'Analisis Financiero'!J19 -> 0.1593486 | K28: =+'Analisis Financiero'!K19 -> 0.1659206 | L28: =+'Analisis Financiero'!L19 -> 0.10216909 | M28: =+'Analisis Financiero'!M19 -> 0.1381727343 | N28: =+'Analisis Financiero'!N19 -> 0.1546108729 | O28: =+'Analisis Financiero'!O19 -> 0.1631743581 | P28: =+'Analisis Financiero'!P19 -> 0.1653900205 | Q28: =+'Analisis Financiero'!Q19 -> 0.1681667309
A29: Inflación en Colombia | F29: =+'Analisis Financiero'!F20 -> 0.0194 | G29: =+'Analisis Financiero'!G20 -> 0.0366 | H29: =+'Analisis Financiero'!H20 -> 0.0575 | I29: =+'Analisis Financiero'!I20 -> 0.0409 | J29: =+'Analisis Financiero'!J20 -> 0.0318 | K29: =+'Analisis Financiero'!K20 -> 0.038 | L29: =+'Analisis Financiero'!L20 -> 0.0162 | M29: =+'Analisis Financiero'!M20 -> 0.024 | N29: =+'Analisis Financiero'!N20 -> 0.03 | O29: =+'Analisis Financiero'!O20 -> 0.035 | P29: =+'Analisis Financiero'!P20 -> 0.037 | Q29: =+'Analisis Financiero'!Q20 -> 0.031
A30: Inflación en Estados Unidos | F30: =+'Analisis Financiero'!F21 -> 0.0162 | G30: =+'Analisis Financiero'!G21 -> 0.012 | H30: =+'Analisis Financiero'!H21 -> 0.0126 | I30: =+'Analisis Financiero'!I21 -> 0.0213 | J30: =+'Analisis Financiero'!J21 -> 0.0244 | K30: =+'Analisis Financiero'!K21 -> 0.0181 | L30: =+'Analisis Financiero'!L21 -> 0.0124 | M30: =+'Analisis Financiero'!M21 -> 0.0237 | N30: =+'Analisis Financiero'!N21 -> 0.0254 | O30: =+'Analisis Financiero'!O21 -> 0.0233 | P30: =+'Analisis Financiero'!P21 -> 0.0231 | Q30: =+'Analisis Financiero'!Q21 -> 0.022
A31: Variación PIB real | F31: =+'Analisis Financiero'!F22 -> 0.045 | G31: =+'Analisis Financiero'!G22 -> 0.03 | H31: =+'Analisis Financiero'!H22 -> 0.021 | I31: =+'Analisis Financiero'!I22 -> 0.0114 | J31: =+'Analisis Financiero'!J22 -> 0.026 | K31: =+'Analisis Financiero'!K22 -> 0.033 | L31: =+'Analisis Financiero'!L22 -> -0.068 | M31: =+'Analisis Financiero'!M22 -> 0.08 | N31: =+'Analisis Financiero'!N22 -> 0.027 | O31: =+'Analisis Financiero'!O22 -> 0.027 | P31: =+'Analisis Financiero'!P22 -> 0.03 | Q31: =+'Analisis Financiero'!Q22 -> 0.028
A32: Crecimiento nominal de la economía | F32: =((1+F29)*(1+F31))-1 -> 0.065273 | G32: =((1+G29)*(1+G31))-1 -> 0.067698 | H32: 0.0797075 | I32: 0.05276626 | J32: 0.0586268 | K32: 0.072254 | L32: -0.0529016 | M32: 0.10592 | N32: 0.05781 | O32: 0.062945 | P32: 0.06811 | Q32: 0.059868
A33: Crecimiento en ventas Real (1+ tasa)/(1+IPC)-1 | G33: =((1+('Cifras Historicas'!G65/'Cifras Historicas'!F65)-1)/(1+G29))-1 -> -0.1394046537 | H33: =((1+('Cifras Historicas'!H65/'Cifras Historicas'!G65)-1)/(1+H29))-1 -> -0.3782743198 | I33: =((1+('Cifras Historicas'!I65/'Cifras Historicas'!H65)-1)/(1+I29))-1 -> -0.172547582 | J33: =((1+('Cifras Historicas'!J65/'Cifras Historicas'!I65)-1)/(1+J29))-1 -> -0.2171124561 | K33: =((1+('Cifras Historicas'!K65/'Cifras Historicas'!J65)-1)/(1+K29))-1 -> 0.377324775 | L33: =((1+('Cifras Historicas'!L65/'Cifras Historicas'!K65)-1)/(1+L29))-1 -> -0.2492597891 | M33: =+'Estrategias Operativas'!E30 -> 0.1124 | N33: =+'Estrategias Operativas'!F30 -> 0.06808 | O33: =+'Estrategias Operativas'!G30 -> 0.06808 | P33: =+'Estrategias Operativas'!H30 -> 0.0506 | Q33: =+'Estrategias Operativas'!I30 -> 0.05884 | S33: Modificar la tasa a la tasa de crecimiento + tratamiento
G34: Crecimiento Real Historico | M34: Crecimiento Real Proyectado
A37: ESTADOS FINANCIEROS PROYECTADOS
A39: EMPRESA PROTOTIPO S.A.S
A40: PROYECCIÓN DE ESTADOS FINANCIERO
A42: ACTIVO | F42: =+'Cifras Historicas'!F15 -> 2014 | G42: =+'Cifras Historicas'!G15 -> 2015 | H42: =+'Cifras Historicas'!H15 -> 2016 | I42: =+'Cifras Historicas'!I15 -> 2017 | J42: =+'Cifras Historicas'!J15 -> 2018 | K42: =+'Cifras Historicas'!K15 -> 2019 | L42: =+'Cifras Historicas'!L15 -> 2020 | M42: =M15 -> 2021 | N42: =N15 -> 2022 | O42: =O15 -> 2023 | P42: =P15 -> 2024 | Q42: =Q15 -> 2025
A43: Activo Corriente
A44: Efectivo y equivalentes de efectivo | F44: ='Cifras Historicas'!F17 -> 1226412104 | G44: ='Cifras Historicas'!G17 -> 900917975.8 | H44: ='Cifras Historicas'!H17 -> 206347570.6 | I44: ='Cifras Historicas'!I17 -> 364265070.8 | J44: ='Cifras Historicas'!J17 -> 142216176.1 | K44: ='Cifras Historicas'!K17 -> 305752667.1 | L44: ='Cifras Historicas'!L17 -> 82961726.31 | M44: =+L44*(1+M$33) -> 92286624.35 | N44: =+M44*(1+N$33) -> 98569497.73 | O44: 105280109.1 | P44: 110607282.7 | Q44: 117115415.2
A45: Activos financieros | F45: ='Cifras Historicas'!F18 -> 23135998 | G45: ='Cifras Historicas'!G18 -> 23966489 | H45: ='Cifras Historicas'!H18 -> 25066661 | I45: ='Cifras Historicas'!I18 -> 29318905.6 | J45: ='Cifras Historicas'!J18 -> 28515581.62 | K45: ='Cifras Historicas'!K18 -> 18672906.3 | L45: ='Cifras Historicas'!L18 -> 21157722.63 | M45: =+L45*(1+M$33) -> 23535850.65 | N45: =+M45*(1+N$33) -> 25138171.37 | O45: 26849578.07 | P45: 28208166.72 | Q45: 29867935.25
A46: Deudores comerciales y otros | F46: ='Cifras Historicas'!F19 -> 1065020951 | G46: ='Cifras Historicas'!G19 -> 1830114438 | H46: ='Cifras Historicas'!H19 -> 891491929 | I46: ='Cifras Historicas'!I19 -> 763400000 | J46: ='Cifras Historicas'!J19 -> 991219221 | K46: ='Cifras Historicas'!K19 -> 1413051717 | L46: ='Cifras Historicas'!L19 -> 839532488 | M46: =+'Estrategias Operativas'!E38 -> 772369889 | N46: =+'Estrategias Operativas'!F38 -> 726027695.6 | O46: =+'Estrategias Operativas'!G38 -> 711507141.7 | P46: =+'Estrategias Operativas'!H38 -> 690161927.5 | Q46: =+'Estrategias Operativas'!I38 -> 683260308.2
A47: Inventarios | F47: ='Cifras Historicas'!F20 -> 618318163 | G47: ='Cifras Historicas'!G20 -> 841372799.1 | H47: ='Cifras Historicas'!H20 -> 1566198173 | I47: ='Cifras Historicas'!I20 -> 939332663.1 | J47: ='Cifras Historicas'!J20 -> 1079647558 | K47: ='Cifras Historicas'!K20 -> 1221678245 | L47: ='Cifras Historicas'!L20 -> 1009686096 | M47: =+'Estrategias Operativas'!E35 -> 1009686096 | N47: =+'Estrategias Operativas'!F35 -> 928911208.2 | O47: =+'Estrategias Operativas'!G35 -> 780285414.9 | P47: =+'Estrategias Operativas'!H35 -> 756876852.5 | Q47: =+'Estrategias Operativas'!I35 -> 734170546.9
A48: Pagos anticipados | F48: ='Cifras Historicas'!F21 -> 43182861 | G48: ='Cifras Historicas'!G21 -> 6183644 | H48: ='Cifras Historicas'!H21 -> 0 | I48: ='Cifras Historicas'!I21 -> 22454045 | J48: ='Cifras Historicas'!J21 -> 0 | K48: ='Cifras Historicas'!K21 -> 0 | L48: ='Cifras Historicas'!L21 -> 1011200 | M48: =+L48*(1+M$33) -> 1124858.88 | N48: =+M48*(1+N$33) -> 1201439.273 | O48: 1283233.258 | P48: 1348164.861 | Q48: 1427490.882
A49: TOTAL ACTIVO CORRIENTE | F49: ='Cifras Historicas'!F22 -> 2976070077 | G49: ='Cifras Historicas'!G22 -> 3602555346 | H49: ='Cifras Historicas'!H22 -> 2689104334 | I49: ='Cifras Historicas'!I22 -> 2118770685 | J49: ='Cifras Historicas'!J22 -> 2241598537 | K49: ='Cifras Historicas'!K22 -> 2959155536 | L49: ='Cifras Historicas'!L22 -> 1954349233 | M49: =+SUM(M44:M48) -> 1899003319 | N49: =+SUM(N44:N48) -> 1779848012 | O49: 1625205477 | P49: 1587202394 | Q49: 1565841696
A50: Activo No Corriente
A51: Activos financieros | F51: ='Cifras Historicas'!F24 -> 0 | G51: ='Cifras Historicas'!G24 -> 0 | H51: ='Cifras Historicas'!H24 -> 0 | I51: ='Cifras Historicas'!I24 -> 0 | J51: ='Cifras Historicas'!J24 -> 0 | K51: ='Cifras Historicas'!K24 -> 0 | L51: ='Cifras Historicas'!L24 -> 0 | M51: =+L51*(1+M$33) -> 0 | N51: =+M51*(1+N$33) -> 0 | O51: 0 | P51: 0 | Q51: 0
A52: Deudores | F52: ='Cifras Historicas'!F25 -> 0 | G52: ='Cifras Historicas'!G25 -> 0 | H52: ='Cifras Historicas'!H25 -> 0 | I52: ='Cifras Historicas'!I25 -> 0 | J52: ='Cifras Historicas'!J25 -> 0 | K52: ='Cifras Historicas'!K25 -> 0 | L52: ='Cifras Historicas'!L25 -> 0 | M52: =+L52*(1+M$33) -> 0 | N52: =+M52*(1+N$33) -> 0 | O52: 0 | P52: 0 | Q52: 0
A53: Propiedades, planta y equipo | F53: ='Cifras Historicas'!F26 -> 14658230 | G53: ='Cifras Historicas'!G26 -> 13202599 | H53: ='Cifras Historicas'!H26 -> 13378905 | I53: ='Cifras Historicas'!I26 -> 12915325 | J53: ='Cifras Historicas'!J26 -> 11584794 | K53: ='Cifras Historicas'!K26 -> 17487713 | L53: ='Cifras Historicas'!L26 -> 13557376 | M53: =+L53*(1+M$33) -> 15081225.06 | N53: =+M53*(1+N$33) -> 16107954.86 | O53: 17204584.43 | P53: 18075136.4 | Q53: 19138677.43
A54: Activos intangibles | F54: ='Cifras Historicas'!F27 -> 0 | G54: ='Cifras Historicas'!G27 -> 5006462 | H54: ='Cifras Historicas'!H27 -> 0 | I54: ='Cifras Historicas'!I27 -> 0 | J54: ='Cifras Historicas'!J27 -> 0 | K54: ='Cifras Historicas'!K27 -> 0 | L54: ='Cifras Historicas'!L27 -> 0 | M54: =+L54*(1+M$33) -> 0 | N54: =+M54*(1+N$33) -> 0 | O54: 0 | P54: 0 | Q54: 0
A55: Activos por impuestos diferidos | F55: ='Cifras Historicas'!F28 -> 0 | G55: ='Cifras Historicas'!G28 -> 0 | H55: ='Cifras Historicas'!H28 -> 0 | I55: ='Cifras Historicas'!I28 -> 0 | J55: ='Cifras Historicas'!J28 -> 0 | K55: ='Cifras Historicas'!K28 -> 0 | L55: ='Cifras Historicas'!L28 -> 0 | M55: =+L55*(1+M$33) -> 0 | N55: =+M55*(1+N$33) -> 0 | O55: 0 | P55: 0 | Q55: 0
A56: TOTAL ACTIVO NO CORRIENTE | F56: ='Cifras Historicas'!F29 -> 14658230 | G56: ='Cifras Historicas'!G29 -> 18209061 | H56: ='Cifras Historicas'!H29 -> 13378905 | I56: ='Cifras Historicas'!I29 -> 12915325 | J56: ='Cifras Historicas'!J29 -> 11584794 | K56: ='Cifras Historicas'!K29 -> 17487713 | L56: ='Cifras Historicas'!L29 -> 13557376 | M56: =+SUM(M51:M55) -> 15081225.06 | N56: =+SUM(N51:N55) -> 16107954.86 | O56: 17204584.43 | P56: 18075136.4 | Q56: 19138677.43
A58: 0 TOTAL ACTIVO | F58: =F49+F56 -> 2990728307 | G58: 3620764407 | H58: 2702483239 | I58: 2131686010 | J58: 2253183331 | K58: 2976643249 | L58: 1967906609 | M58: 1914084544 | N58: 1795955967 | O58: 1642410062 | P58: 1605277531 | Q58: 1584980374
A60: Pasivo Corriente
A61: Obligaciones financieras | F61: ='Cifras Historicas'!F34 -> 1152875.09 | G61: ='Cifras Historicas'!G34 -> 812448.55 | H61: ='Cifras Historicas'!H34 -> 1900417.05 | I61: ='Cifras Historicas'!I34 -> 137200 | J61: ='Cifras Historicas'!J34 -> 150000 | K61: ='Cifras Historicas'!K34 -> 156000 | L61: ='Cifras Historicas'!L34 -> 162050.87 | M61: =+L61*(1+M$33) -> 180265.3878 | N61: =+M61*(1+N$33) -> 192537.8554 | O61: 205645.8326 | P61: 216051.5117 | Q61: 228763.9827
A62: Proveedores | F62: ='Cifras Historicas'!F35 -> 161290503 | G62: ='Cifras Historicas'!G35 -> 1091239354 | H62: ='Cifras Historicas'!H35 -> 242635875 | I62: ='Cifras Historicas'!I35 -> 180612526 | J62: ='Cifras Historicas'!J35 -> 537696681 | K62: ='Cifras Historicas'!K35 -> 1444787655 | L62: ='Cifras Historicas'!L35 -> 272643851 | M62: =+L62*(1+M$33) -> 303289019.9 | N62: =+M62*(1+N$33) -> 323936936.3 | O62: 345990562.9 | P62: 363497685.4 | Q62: 384885889.2
A63: Cuentas por pagar Varios | F63: ='Cifras Historicas'!F36 -> 553518934 | G63: ='Cifras Historicas'!G36 -> 58109280.74 | H63: ='Cifras Historicas'!H36 -> 24757111 | I63: ='Cifras Historicas'!I36 -> 69699869.45 | J63: ='Cifras Historicas'!J36 -> 115608797.5 | K63: ='Cifras Historicas'!K36 -> 119945847.5 | L63: ='Cifras Historicas'!L36 -> 186170166.7 | M63: =+L63*(1+M$33) -> 207095693.4 | N63: =+M63*(1+N$33) -> 221194768.2 | O63: 236253708 | P63: 248208145.7 | Q63: 262812713
A64: Impuestos corrientes por pagar | F64: ='Cifras Historicas'!F37 -> 452783000 | G64: ='Cifras Historicas'!G37 -> 408869000 | H64: ='Cifras Historicas'!H37 -> 90354000 | I64: ='Cifras Historicas'!I37 -> 164368000 | J64: ='Cifras Historicas'!J37 -> 143475000 | K64: ='Cifras Historicas'!K37 -> 34779000 | L64: ='Cifras Historicas'!L37 -> 113350000 | M64: =+'Estrategias Operativas'!E54 -> 118592437.5 | N64: =+'Estrategias Operativas'!F54 -> 149296402.1 | O64: =+'Estrategias Operativas'!G54 -> 153327405 | P64: =+'Estrategias Operativas'!H54 -> 157927227.1 | Q64: =+'Estrategias Operativas'!I54 -> 162349189.5
A65: Otros pasivos | F65: ='Cifras Historicas'!F38 -> 0 | G65: ='Cifras Historicas'!G38 -> 0 | H65: ='Cifras Historicas'!H38 -> 0 | I65: ='Cifras Historicas'!I38 -> 0 | J65: ='Cifras Historicas'!J38 -> 0 | K65: ='Cifras Historicas'!K38 -> 0 | L65: ='Cifras Historicas'!L38 -> 0 | M65: =+L65*(1+M$33) -> 0 | N65: =+M65*(1+N$33) -> 0 | O65: 0 | P65: 0 | Q65: 0
A66: 0 TOTAL PASIVO CORRIENTE | F66: ='Cifras Historicas'!F39 -> 1168745312 | G66: ='Cifras Historicas'!G39 -> 1559030084 | H66: ='Cifras Historicas'!H39 -> 359647403.1 | I66: ='Cifras Historicas'!I39 -> 414817595.4 | J66: ='Cifras Historicas'!J39 -> 796930478.5 | K66: ='Cifras Historicas'!K39 -> 1599668502 | L66: ='Cifras Historicas'!L39 -> 572326068.5 | M66: =+SUM(M61:M65) -> 629157416.2 | N66: =+SUM(N61:N65) -> 694620644.5 | O66: 735777321.8 | P66: 769849109.7 | Q66: 810276555.7
A67: Pasivo No Corriente
A68: Obligaciones financieras | F68: ='Cifras Historicas'!F41 -> 0 | G68: ='Cifras Historicas'!G41 -> 0 | H68: ='Cifras Historicas'!H41 -> 0 | I68: ='Cifras Historicas'!I41 -> 0 | J68: ='Cifras Historicas'!J41 -> 0 | K68: ='Cifras Historicas'!K41 -> 0 | L68: ='Cifras Historicas'!L41 -> 0 | M68: =+J68*(1+M$33) -> 0 | N68: =+M68*(1+N$33) -> 0 | O68: 0 | P68: 0 | Q68: 0
A69: Provisiones | F69: ='Cifras Historicas'!F42 -> 25867792 | G69: ='Cifras Historicas'!G42 -> 30293494 | H69: ='Cifras Historicas'!H42 -> 18090782 | I69: ='Cifras Historicas'!I42 -> 34960355 | J69: ='Cifras Historicas'!J42 -> 13818547 | K69: ='Cifras Historicas'!K42 -> 47592516 | L69: ='Cifras Historicas'!L42 -> 25220535 | M69: =+J69*(1+M$33) -> 15371751.68 | N69: =+M69*(1+N$33) -> 16418260.54 | O69: 17536015.71 | P69: 18423338.11 | Q69: 19507367.32
A70: Otros pasivos | F70: ='Cifras Historicas'!F43 -> 24627283 | G70: ='Cifras Historicas'!G43 -> 0 | H70: ='Cifras Historicas'!H43 -> 135558578 | I70: ='Cifras Historicas'!I43 -> 0 | J70: ='Cifras Historicas'!J43 -> 0 | K70: ='Cifras Historicas'!K43 -> 5377974 | L70: ='Cifras Historicas'!L43 -> 309615000 | M70: =+J70*(1+M$33) -> 0 | N70: =+M70*(1+N$33) -> 0 | O70: 0 | P70: 0 | Q70: 0
A71: 0 TOTAL PASIVO NO CORRIENTE | F71: ='Cifras Historicas'!F44 -> 50495075 | G71: ='Cifras Historicas'!G44 -> 30293494 | H71: ='Cifras Historicas'!H44 -> 153649360 | I71: ='Cifras Historicas'!I44 -> 34960355 | J71: ='Cifras Historicas'!J44 -> 13818547 | K71: ='Cifras Historicas'!K44 -> 52970490 | L71: ='Cifras Historicas'!L44 -> 334835535 | M71: =+SUM(M68:M70) -> 15371751.68 | N71: =+SUM(N68:N70) -> 16418260.54 | O71: 17536015.71 | P71: 18423338.11 | Q71: 19507367.32
A73: 0 TOTAL PASIVO | F73: =F66+F71 -> 1219240387 | G73: 1589323578 | H73: 513296763.1 | I73: 449777950.4 | J73: 810749025.5 | K73: 1652638992 | L73: 907161603.5 | M73: 644529167.8 | N73: 711038905.1 | O73: 753313337.5 | P73: 788272447.9 | Q73: 829783923
A75: Patrimonio
A76: Capital suscrito y pagado | F76: ='Cifras Historicas'!F49 -> 180000000 | G76: ='Cifras Historicas'!G49 -> 180000000 | H76: ='Cifras Historicas'!H49 -> 180000000 | I76: ='Cifras Historicas'!I49 -> 180000000 | J76: ='Cifras Historicas'!J49 -> 180000000 | K76: ='Cifras Historicas'!K49 -> 180000000 | L76: ='Cifras Historicas'!L49 -> 180000000 | M76: =+L76 -> 180000000 | N76: =+M76 -> 180000000 | O76: =+N76 -> 180000000 | P76: =+O76 -> 180000000 | Q76: =+P76 -> 180000000
A77: Superavit de capital | F77: ='Cifras Historicas'!F50 -> 838779414 | G77: ='Cifras Historicas'!G50 -> 1213949920 | H77: ='Cifras Historicas'!H50 -> 1761440829 | I77: ='Cifras Historicas'!I50 -> 1196644076 | J77: ='Cifras Historicas'!J50 -> 1002182259 | K77: ='Cifras Historicas'!K50 -> 1172434306 | L77: ='Cifras Historicas'!L50 -> 1046864256 | M77: 905437298.4 | N77: 608806753.5 | O77: 331696311.9 | P77: 224216639 | Q77: 98929783.85
A78: Reservas | F78: ='Cifras Historicas'!F51 -> 78840194 | G78: ='Cifras Historicas'!G51 -> 90000000 | H78: ='Cifras Historicas'!H51 -> 90000000 | I78: ='Cifras Historicas'!I51 -> 90000000 | J78: ='Cifras Historicas'!J51 -> 90000000 | K78: ='Cifras Historicas'!K51 -> 90000000 | L78: ='Cifras Historicas'!L51 -> 90000000 | M78: =+L78 -> 90000000 | N78: =+M78 -> 90000000 | O78: 90000000 | P78: 90000000 | Q78: 90000000
A79: Resultados del Ejercicio | F79: ='Cifras Historicas'!F52 -> 673868312.3 | G79: ='Cifras Historicas'!G52 -> 547490908.7 | H79: ='Cifras Historicas'!H52 -> 157745646.7 | I79: ='Cifras Historicas'!I52 -> 215263983.4 | J79: ='Cifras Historicas'!J52 -> 170252046.6 | K79: ='Cifras Historicas'!K52 -> -118430049.2 | L79: ='Cifras Historicas'!L52 -> -256119251 | M79: =+M102 -> 94118077.54 | N79: =+N102 -> 206110308.6 | O79: 287400412.1 | P79: 322788443.8 | Q79: 386266667
A80: 0 TOTAL PATRIMONIO | F80: ='Cifras Historicas'!F53 -> 1771487920 | G80: ='Cifras Historicas'!G53 -> 2031440829 | H80: ='Cifras Historicas'!H53 -> 2189186476 | I80: ='Cifras Historicas'!I53 -> 1681908059 | J80: ='Cifras Historicas'!J53 -> 1442434306 | K80: ='Cifras Historicas'!K53 -> 1324004256 | L80: ='Cifras Historicas'!L53 -> 1060745005 | M80: =+SUM(M76:M79) -> 1269555376 | N80: =+SUM(N76:N79) -> 1084917062 | O80: 889096724 | P80: 817005082.7 | Q80: 755196450.8
Q81: =+Q80-SUM(M79:Q79) -> -541487458.1
A82: 0 TOTAL PASIVO Y PATRIMONIO | F82: =F73+F80 -> 2990728307 | G82: 3620764407 | H82: 2702483239 | I82: 2131686010 | J82: 2253183331 | K82: 2976643249 | L82: 1967906609 | M82: 1914084544 | N82: 1795955967 | O82: 1642410062 | P82: 1605277531 | Q82: 1584980374
A84: CONTROL (Pasivo y Patrimonio - Activo) | F84: =F58-F82 -> 0 | G84: 0 | H84: 0 | I84: 0 | J84: 0 | K84: 0 | L84: 0 | M84: 0 | N84: 0 | O84: 0 | P84: 0 | Q84: 0
A87: CUENTAS DE RESULTADO | F87: ='Cifras Historicas'!F63 -> 2014 | G87: ='Cifras Historicas'!G63 -> 2015 | H87: ='Cifras Historicas'!H63 -> 2016 | I87: ='Cifras Historicas'!I63 -> 2017 | J87: ='Cifras Historicas'!J63 -> 2018 | K87: ='Cifras Historicas'!K63 -> 2019 | L87: ='Cifras Historicas'!L63 -> 2020 | M87: =M42 -> 2021 | N87: =N42 -> 2022 | O87: =O42 -> 2023 | P87: =P42 -> 2024 | Q87: =Q42 -> 2025
A88: Operacional
A89: Ventas, Ingresos de actividades ordinarias | F89: =+'Analisis Financiero'!F80 -> 5323304022 | G89: =+'Analisis Financiero'!G80 -> 4748882979 | H89: =+'Analisis Financiero'!H80 -> 3122271394 | I89: =+'Analisis Financiero'!I80 -> 2689197433 | J89: =+'Analisis Financiero'!J80 -> 2172288959 | K89: =+'Analisis Financiero'!K80 -> 3105641403 | L89: =+'Analisis Financiero'!L80 -> 2369300666 | M89: =+L89*(1+M$33) -> 2635610061 | N89: =+M89*(1+N$33) -> 2815042394 | O89: 3006690480 | P89: 3158829018 | Q89: 3344694518
A90: Costo de Ventas | F90: =+'Analisis Financiero'!F81 -> 2840650741 | G90: =+'Analisis Financiero'!G81 -> 2800340034 | H90: =+'Analisis Financiero'!H81 -> 1866430298 | I90: =+'Analisis Financiero'!I81 -> 1497273400 | J90: =+'Analisis Financiero'!J81 -> 1191769145 | K90: =+'Analisis Financiero'!K81 -> 2313965225 | L90: =+'Analisis Financiero'!L81 -> 1371898785 | M90: =+'Estrategias Operativas'!E21 -> 1536376546 | N90: =+'Estrategias Operativas'!F21 -> 1571521931 | O90: =+'Estrategias Operativas'!G21 -> 1605655482 | P90: =+'Estrategias Operativas'!H21 -> 1664047391 | Q90: =+'Estrategias Operativas'!I21 -> 1714086118 | R90: =+Q91/Q89*100 -> 48.75208756
A91: UTILIDAD BRUTA | F91: =F89-F90 -> 2482653281 | G91: 1948542945 | H91: 1255841096 | I91: 1191924033 | J91: 980519814 | K91: 791676177.7 | L91: 997401881 | M91: 1099233515 | N91: 1243520463 | O91: 1401034998 | P91: 1494781627 | Q91: 1630608400
A92: Gastos de administración | F92: =+'Analisis Financiero'!F83 -> 432531290 | G92: =+'Analisis Financiero'!G83 -> 600273946.7 | H92: =+'Analisis Financiero'!H83 -> 298753262.6 | I92: =+'Analisis Financiero'!I83 -> 323700740.4 | J92: =+'Analisis Financiero'!J83 -> 362743766.9 | K92: =+'Analisis Financiero'!K83 -> 288540983.5 | L92: =+'Analisis Financiero'!L83 -> 230618464.2 | M92: =+'Estrategias Operativas'!E22 -> 298041672.4 | N92: =+'Estrategias Operativas'!F22 -> 305537175.7 | O92: =+'Estrategias Operativas'!G22 -> 313471948.6 | P92: =+'Estrategias Operativas'!H22 -> 323200279.9 | Q92: =+'Estrategias Operativas'!I22 -> 332583137.3
A93: Gastos de ventas y distribución | F93: =+'Analisis Financiero'!F84 -> 985017277 | G93: =+'Analisis Financiero'!G84 -> 518550949 | H93: =+'Analisis Financiero'!H84 -> 587728164 | I93: =+'Analisis Financiero'!I84 -> 539468522.5 | J93: =+'Analisis Financiero'!J84 -> 304238521 | K93: =+'Analisis Financiero'!K84 -> 581792014.9 | L93: =+'Analisis Financiero'!L84 -> 512973905.5 | M93: =+'Estrategias Operativas'!E23 -> 442136222.7 | N93: =+'Estrategias Operativas'!F23 -> 451335766.6 | O93: =+'Estrategias Operativas'!G23 -> 459303736.8 | P93: =+'Estrategias Operativas'!H23 -> 477910224.9 | Q93: =+'Estrategias Operativas'!I23 -> 491787965.4 | R93: =+Q94/Q89*100 -> 24.10496065
A94: UTILIDAD OPERACIONAL | F94: =F91-F92-F93 -> 1065104714 | G94: 829718048.9 | H94: 369359669.4 | I94: 328754770.1 | J94: 313537526.1 | K94: -78656820.67 | L94: 253809511.3 | M94: 359055619.8 | N94: 486647520.6 | O94: 628259312.4 | P94: 693671122 | Q94: 806237297.3
A95: No Operacional | R95: =+Q96/Q94*100 -> 0
A96: Otros ingresos | F96: =+'Analisis Financiero'!F87 -> 126367387.3 | G96: =+'Analisis Financiero'!G87 -> 153078734.1 | H96: =+'Analisis Financiero'!H87 -> 165819513.8 | I96: =+'Analisis Financiero'!I87 -> 56463563.52 | J96: =+'Analisis Financiero'!J87 -> 30942167.18 | K96: =+'Analisis Financiero'!K87 -> 26051823.73 | L96: =+'Analisis Financiero'!L87 -> 84325328.13 | M96: =+M89*'Cifras Historicas'!$T$72*0 -> 0 | N96: =+N89*'Cifras Historicas'!$T$72*0 -> 0 | O96: =+O89*'Cifras Historicas'!$T$72*0 -> 0 | P96: =+P89*'Cifras Historicas'!$T$72*0 -> 0 | Q96: =+Q89*'Cifras Historicas'!$T$72*0 -> 0
A97: Gasto no operacional | F97: =+'Analisis Financiero'!F88 -> 159886203.3 | G97: =+'Analisis Financiero'!G88 -> 135717288.5 | H97: =+'Analisis Financiero'!H88 -> 288664537.1 | I97: =+'Analisis Financiero'!I88 -> 54735739.52 | J97: =+'Analisis Financiero'!J88 -> 66927594.01 | K97: =+'Analisis Financiero'!K88 -> 65808431.3 | L97: =+'Analisis Financiero'!L88 -> 593676546.6 | M97: =+M89*'Cifras Historicas'!$T$73-(M89*'Cifras Historicas'!$T$72)+'Estrategias Operativas'!E36 -> 203900243.5 | N97: =+N89*'Cifras Historicas'!$T$73-(+N89*'Cifras Historicas'!$T$72) -> 131083858.9 | O97: =+O89*'Cifras Historicas'!$T$73-(+O89*'Cifras Historicas'!$T$72) -> 140008048 | P97: =+P89*'Cifras Historicas'!$T$73-(+P89*'Cifras Historicas'!$T$72) -> 147092455.3 | Q97: =+Q89*'Cifras Historicas'!$T$73-(+Q89*'Cifras Historicas'!$T$72) -> 155747375.3
A98: Gasto Financiero | F98: =+'Analisis Financiero'!F89 -> 831585.83 | G98: =+'Analisis Financiero'!G89 -> 831585.83 | H98: =+'Analisis Financiero'!H89 -> 77999.35 | I98: =+'Analisis Financiero'!I89 -> 2927610.73 | J98: =+'Analisis Financiero'!J89 -> 10140052.7 | K98: =+'Analisis Financiero'!K89 -> 16621 | L98: =+'Analisis Financiero'!L89 -> 577543.87 | M98: =+M89*'Cifras Historicas'!$T$74 -> 2726000.132 | N98: =+N89*'Cifras Historicas'!$T$74 -> 2911586.221 | O98: =+O89*'Cifras Historicas'!$T$74 -> 3109807.011 | P98: =+P89*'Cifras Historicas'!$T$74 -> 3267163.246 | Q98: =+Q89*'Cifras Historicas'!$T$74 -> 3459403.131
A99: Resultados Netos
A100: UTILIDAD ANTES DE IMPUESTOS | F100: =F94+F96-F97-F98 -> 1030754312 | G100: 846247908.7 | H100: 246436646.7 | I100: 327554983.4 | J100: 267412046.6 | K100: -118430049.2 | L100: -256119251 | M100: 152429376.2 | N100: 352652075.5 | O100: 485141457.4 | P100: 543311503.5 | Q100: 647030518.8
A101: Gasto por impuesto | F101: =+'Analisis Financiero'!F92 -> 356886000 | G101: =+'Analisis Financiero'!G92 -> 298757000 | H101: =+'Analisis Financiero'!H92 -> 88691000 | I101: =+'Analisis Financiero'!I92 -> 112291000 | J101: =+'Analisis Financiero'!J92 -> 97160000 | K101: =+'Analisis Financiero'!K92 -> 0 | L101: =+'Analisis Financiero'!L92 -> 0 | M101: =+'Estrategias Operativas'!E63 -> 58311298.63 | N101: =+'Estrategias Operativas'!F63 -> 146541766.9 | O101: =+'Estrategias Operativas'!G63 -> 197741045.3 | P101: =+'Estrategias Operativas'!H63 -> 220523059.8 | Q101: =+'Estrategias Operativas'!I63 -> 260763851.8
A102: UTILIDAD NETA | F102: =F100-F101 -> 673868312.3 | G102: 547490908.7 | H102: 157745646.7 | I102: 215263983.4 | J102: 170252046.6 | K102: -118430049.2 | L102: -256119251 | M102: 94118077.54 | N102: 206110308.6 | O102: 287400412.1 | P102: 322788443.8 | Q102: 386266667
A104: Tasa Efectiva de tributación | F104: =((F101/BD_0!B167)-F100)/F89 -> 0.003552379036 | G104: =((G101/BD_0!C167)-G100)/G89 -> 0.006833006885 | H104: =((H101/BD_0!D167)-H100)/H89 -> 0.004618187804 | I104: =((I101/BD_0!E167)-I100)/I89 -> 0.004730323646 | J104: =((J101/BD_0!F167)-J100)/J89 -> 0.01243489993 | K104: =((K101/BD_0!G167)-K100)/K89 -> 0.03813384544 | L104: =((L101/BD_0!H167)-L100)/L89 -> 0.1080990921 | M104: =+(M89-L89)/L89 -> 0.1124 | N104: =+(N89-M89)/M89 -> 0.06808 | O104: 0.06808 | P104: 0.0506 | Q104: =+(Q89-P89)/P89 -> 0.05884
Q105: =+(Q89-L89)/L89 -> 0.4116800648
A106: Detalles de Depreciación y Amortización | F106: =F87 -> 2014 | G106: 2015 | H106: 2016 | I106: 2017 | J106: 2018 | K106: 2019 | L106: 2020 | M106: 2021 | N106: 2022 | O106: 2023 | P106: 2024 | Q106: 2025
A107: Depreciaciones | F107: =+'Analisis Financiero'!F98 -> 5369989.291 | G107: =+'Analisis Financiero'!G98 -> 5369989.291 | H107: =+'Analisis Financiero'!H98 -> 5700966.32 | I107: =+'Analisis Financiero'!I98 -> 4097773 | J107: =+'Analisis Financiero'!J98 -> 5782289 | K107: =+'Analisis Financiero'!K98 -> 5996203 | L107: =+'Analisis Financiero'!L98 -> 8147566 | M107: =+AVERAGE(F107:L107) -> 5780682.272 | N107: =+AVERAGE(G107:M107) -> 5839352.698 | O107: =+AVERAGE(H107:N107) -> 5906404.613 | P107: =+AVERAGE(I107:O107) -> 5935752.94 | Q107: =+AVERAGE(J107:P107) -> 6198321.503
A108: Amortizaciones | F108: =+'Analisis Financiero'!F99 -> 0 | G108: =+'Analisis Financiero'!G99 -> 0 | H108: =+'Analisis Financiero'!H99 -> 0 | I108: =+'Analisis Financiero'!I99 -> 0 | J108: =+'Analisis Financiero'!J99 -> 0 | K108: =+'Analisis Financiero'!K99 -> 0 | L108: =+'Analisis Financiero'!L99 -> 0 | M108: =+AVERAGE(F108:J108) -> 0 | N108: =+AVERAGE(G108:M108) -> 0 | O108: =+AVERAGE(H108:N108) -> 0 | P108: =+AVERAGE(I108:O108) -> 0 | Q108: =+AVERAGE(J108:P108) -> 0

Sheet Detalle empresas Sector (hidden)
A1: NIT | B1: Razón social de la sociedad | C1: Fecha de Corte | D1: Clasificación Industrial Internacional Uniforme Versión 4 A.C (CIIU) | E1: Periodo | F1: Efectivo y equivalentes al efectivo | G1: Cuentas comerciales por cobrar y otras cuentas por cobrar corrientes | H1: Inventarios corrientes | I1: Activos por impuestos corrientes, corriente | J1: Activos biológicos corrientes, al costo menos depreciación acumulada y deterioro de valor | K1: Activos biológicos corrientes, al valor razonable | L1: Otros activos financieros corrientes | M1: Otros activos no financieros corrientes | N1: Activos corrientes distintos al efectivo pignorados como garantía colateral para las que el receptor de transferencias tiene derecho por contrato o costumbre a vender o pignorar de nuevo dicha garantía colateral | O1: Total activos corrientes distintos de los activos no corrientes o grupo de activos para su disposición clasificados como mantenidos para la venta o como mantenidos para distribuir a los propietarios | P1: Activos no corrientes o grupos de activos para su disposición clasificados como mantenidos para la venta o como mantenidos para distribuir a los propietarios | Q1: Activos corrientes totales | R1: Propiedades, planta y equipo | S1: Propiedades de inversión al costo menos depreciación acumulada y deterioro | T1: Propiedades de inversión a valor razonable con cambios en resultados | U1: Plusvalía | V1: Activos intangibles distintos de la plusvalía | W1: Activos biológicos no corrientes, al costo menos depreciación acumulada y deterioro del valor | X1: Activos biológicos no corrientes, al valor razonable | Y1: Cuentas comerciales por cobrar y otras cuentas por cobrar no corrientes | Z1: Inventarios no corrientes | AA1: Activos por impuestos diferidos | AB1: Activos por impuestos corrientes, no corriente | AC1: Otros activos financieros no corrientes | AD1: Otros activos no financieros no corrientes | AE1: Activos no corrientes distintos al efectivo pignorados como garantía colateral para las que el receptor de transferencias tiene derecho por contrato o costumbre a vender o pignorar de nuevo dicha garantía colateral | AF1: Total de activos no corrientes | AG1: Total de activos | AH1: Provisiones corrientes por beneficios a los empleados | AI1: Otras provisiones corrientes | AJ1: Total provisiones corrientes | AK1: Cuentas por pagar comerciales y otras cuentas por pagar | AL1: Pasivos por impuestos corrientes, corriente | AM1: Otros pasivos financieros corrientes | AN1: Préstamos corrientes | AO1: Parte corriente de préstamos no corrientes | AP1: Otros pasivos no financieros corrientes | AQ1: Total pasivos corrientes distintos de los pasivos incluidos en grupos de activos para su disposición clasificados como mantenidos para la venta | AR1: Pasivos incluidos en grupos de activos para su disposición clasificados como mantenidos para la venta | AS1: Pasivos corrientes totales | AT1: Provisiones no corrientes por beneficios a los empleados | AU1: Otras provisiones no corrientes | AV1: Total provisiones no corrientes | AW1: Cuentas comerciales por pagar y otras cuentas por pagar no corrientes | AX1: Pasivo por impuestos diferidos | AY1: Pasivos por impuestos corrientes, no corriente | AZ1: Otros pasivos financieros no corrientes | BA1: Parte no corriente de préstamos no corrientes | BB1: Otros pasivos no financieros no corrientes | BC1: Total de pasivos no corrientes | BD1: Total pasivos | BE1: Capital emitido | BF1: Prima de emisión | BG1: Acciones propias en cartera | BH1: Inversión suplementaria al capital asignado | BI1: Otras participaciones en el patrimonio | BJ1: Superavit por revaluación | BK1: Otras reservas | BL1: Ganancias acumuladas | BM1: Patrimonio total | BN1: Total de patrimonio y pasivos | BO1: Ingresos de actividades ordinarias | BP1: Costo de ventas | BQ1: Ganancia bruta | BR1: Otros ingresos | BS1: Gastos de ventas | BT1: Gastos de administración | BU1: Otros gastos | BV1: Otras ganancias (pérdidas) | BW1: Ganancia (pérdida) por actividades de operación | BX1: Ingresos financieros | BY1: Costos financieros | BZ1: Ganancia (pérdida), antes de impuestos | CA1: Ingreso (gasto) por impuestos | CB1: Ganancia (pérdida) procedente de operaciones continuadas | CC1: Ganancia (pérdida) procedente de operaciones discontinuadas | CD1: Ganancia (pérdida) | CE1: EBITDA | CF1: gasto por depreciaci´+on
A2: 860530570 | B2: COMERCIALIZADORA Y DISTRIBUIDORA INTERAMERICANA LTDA | C2: 2020-12-31 | D2: G4690 - Comercio al por mayor no especializado | E2: 2019 | F2: 32170 | G2: 3383292 | H2: 279321 | I2: 0 | J2: 0 | K2: 0 | L2: 0 | M2: 0 | N2: 0 | O2: 3694783 | P2: 0 | Q2: 3694783 | R2: 2329 | S2: 0 | T2: 0 | U2: 0 | V2: 0 | W2: 0 | X2: 0 | Y2: 0 | Z2: 0 | AA2: 0 | AB2: 0 | AC2: 0 | AD2: 0 | AE2: 0 | AF2: 2329 | AG2: 3697112 | AH2: 0 | AI2: 0 | AJ2: 0 | AK2: 1014458 | AL2: 30624 | AM2: 0 | AN2: 0 | AO2: 0 | AP2: 4201 | AQ2: 1049283 | AR2: 0 | AS2: 1049283 | AT2: 0 | AU2: 0 | AV2: 0 | AW2: 0 | AX2: 0 | AY2: 0 | AZ2: 0 | BA2: 0 | BB2: 0 | BC2: 0 | BD2: 1049283 | BE2: 400000 | BF2: 0 | BG2: 0 | BH2: 0 | BI2: 0 | BJ2: 0 | BK2: 200000 | BL2: 2047829 | BM2: 2647829 | BN2: 3697112 | BO2: 138519 | BP2: 0 | BQ2: 138519 | BR2: 146 | BS2: 0 | BT2: 66847 | BU2: 1639 | BV2: 0 | BW2: 70179 | BX2: 0 | BY2: 0 | BZ2: 70179 | CA2: 23200 | CB2: 46979 | CC2: 0 | CD2: 46979 | CE2: =+BW2+CF2 -> 70179 | CF2: 0
A3: 900223777 | B3: BRANDING ARTICULOS PUBLICITARIOS LTDA | C3: 2020-12-31 | D3: G4690 - Comercio al por mayor no especializado | E3: 2019 | F3: 305170 | G3: 1039374 | H3: 488489 | I3: 100378 | J3: 0 | K3: 0 | L3: 0 | M3: 102807 | N3: 0 | O3: 2036218 | P3: 0 | Q3: 2036218 | R3: 340390 | S3: 0 | T3: 0 | U3: 0 | V3: 0 | W3: 0 | X3: 0 | Y3: 0 | Z3: 0 | AA3: 0 | AB3: 0 | AC3: 0 | AD3: 0 | AE3: 0 | AF3: 340390 | AG3: 2376608 | AH3: 0 | AI3: 0 | AJ3: 0 | AK3: 643473 | AL3: 8409 | AM3: 0 | AN3: 0 | AO3: 0 | AP3: 14674 | AQ3: 666556 | AR3: 0 | AS3: 666556 | AT3: 0 | AU3: 0 | AV3: 0 | AW3: 0 | AX3: 0 | AY3: 0 | AZ3: 194912 | BA3: 194912 | BB3: 0 | BC3: 194912 | BD3: 861468 | BE3: 140000 | BF3: 0 | BG3: 0 | BH3: 0 | BI3: 0 | BJ3: 0 | BK3: 70000 | BL3: 1305140 | BM3: 1515140 | BN3: 2376608 | BO3: 5471299 | BP3: 4437479 | BQ3: 1033820 | BR3: 19481 | BS3: 339332 | BT3: 478733 | BU3: 731 | BV3: 0 | BW3: 234505 | BX3: 167669 | BY3: 23452 | BZ3: 378722 | CA3: 129630 | CB3: 249092 | CC3: 0 | CD3: 249092 | CE3: 268626 | CF3: 34121
A4: 900265799 | B4: AMAGRAN SAS | C4: 2020-12-31 | D4: G4690 - Comercio al por mayor no especializado | E4: 2019 | F4: 10307 | G4: 788733 | H4: 1472074 | I4: 0 | J4: 0 | K4: 0 | L4: 0 | M4: 0 | N4: 0 | O4: 2271114 | P4: 0 | Q4: 2271114 | R4: 77066 | S4: 0 | T4: 0 | U4: 0 | V4: 0 | W4: 0 | X4: 0 | Y4: 0 | Z4: 0 | AA4: 609 | AB4: 0 | AC4: 0 | AD4: 0 | AE4: 0 | AF4: 77675 | AG4: 2348789 | AH4: 48409 | AI4: 0 | AJ4: 48409 | AK4: 646760 | AL4: 84470 | AM4: 410053 | AN4: 410053 | AO4: 0 | AP4: 49191 | AQ4: 1238883 | AR4: 0 | AS4: 1238883 | AT4: 0 | AU4: 0 | AV4: 0 | AW4: 574047 | AX4: 4275 | AY4: 0 | AZ4: 0 | BA4: 0 | BB4: 0 | BC4: 578322 | BD4: 1817205 | BE4: 168000 | BF4: 0 | BG4: 0 | BH4: 0 | BI4: 0 | BJ4: 123287 | BK4: 19913 | BL4: 220384 | BM4: 531584 | BN4: 2348789 | BO4: 4007694 | BP4: 3065383 | BQ4: 942311 | BR4: 0 | BS4: 64792 | BT4: 509930 | BU4: 933 | BV4: 0 | BW4: 366656 | BX4: 0 | BY4: 176709 | BZ4: 189947 | CA4: 60163 | CB4: 129784 | CC4: 0 | CD4: 129784 | CE4: 366656 | CF4: 0
A5: 900269636 | B5: SURTIALIADOS S.A.S. | C5: 2020-12-31 | D5: G4690 - Comercio al por mayor no especializado | E5: 2019 | F5: 361420 | G5: 1065571 | H5: 1334144 | I5: 152401 | J5: 0 | K5: 0 | L5: 0 | M5: 3863 | N5: 0 | O5: 2917399 | P5: 0 | Q5: 2917399 | R5: 523365 | S5: 0 | T5: 0 | U5: 0 | V5: 0 | W5: 0 | X5: 0 | Y5: 0 | Z5: 0 | AA5: 0 | AB5: 0 | AC5: 0 | AD5: 0 | AE5: 0 | AF5: 523365 | AG5: 3440764 | AH5: 83835 | AI5: 0 | AJ5: 83835 | AK5: 733301 | AL5: 226822 | AM5: 0 | AN5: 0 | AO5: 0 | AP5: 250000 | AQ5: 1293958 | AR5: 0 | AS5: 1293958 | AT5: 0 | AU5: 0 | AV5: 0 | AW5: 0 | AX5: 0 | AY5: 0 | AZ5: 0 | BA5: 0 | BB5: 0 | BC5: 0 | BD5: 1293958 | BE5: 200000 | BF5: 0 | BG5: 0 | BH5: 0 | BI5: 0 | BJ5: 0 | BK5: 1756361 | BL5: 190445 | BM5: 2146806 | BN5: 3440764 | BO5: 11563773 | BP5: 9484804 | BQ5: 2078969 | BR5: 125591 | BS5: 49593 | BT5: 1902926 | BU5: 4035 | BV5: 0 | BW5: 248006 | BX5: 0 | BY5: 57561 | BZ5: 190445 | CA5: 0 | CB5: 190445 | CC5: 0 | CD5: 190445 | CE5: 371632 | CF5: 123626
A6: 900358394 | B6: SOLUCIONES EN MATERIALES COMPUESTOS SAS | C6: 2020-12-31 | D6: G4690 - Comercio al por mayor no especializado | E6: 2019 | F6: 1031566 | G6: 1043657 | H6: 1983699 | I6: 414751 | J6: 0 | K6: 0 | L6: 0 | M6: 0 | N6: 0 | O6: 4473673 | P6: 0 | Q6: 4473673 | R6: 3354 | S6: 0 | T6: 0 | U6: 0 | V6: 0 | W6: 0 | X6: 0 | Y6: 0 | Z6: 0 | AA6: 0 | AB6: 0 | AC6: 0 | AD6: 0 | AE6: 0 | AF6: 3354 | AG6: 4477027 | AH6: 0 | AI6: 0 | AJ6: 0 | AK6: 1996591 | AL6: 0 | AM6: 180124 | AN6: 0 | AO6: 0 | AP6: 0 | AQ6: 2176715 | AR6: 0 | AS6: 2176715 | AT6: 0 | AU6: 0 | AV6: 0 | AW6: 0 | AX6: 0 | AY6: 0 | AZ6: 0 | BA6: 0 | BB6: 0 | BC6: 0 | BD6: 2176715 | BE6: 1526715 | BF6: 0 | BG6: 0 | BH6: 0 | BI6: 0 | BJ6: 0 | BK6: 0 | BL6: 773597 | BM6: 2300312 | BN6: 4477027 | BO6: 8385285 | BP6: 6671316 | BQ6: 1713969 | BR6: 797824 | BS6: 684157 | BT6: 591358 | BU6: 488472 | BV6: -151544 | BW6: 596262 | BX6: 0 | BY6: 0 | BZ6: 596262 | CA6: 197934 | CB6: 398328 | CC6: 0 | CD6: 398328 | CE6: 608780 | CF6: 12518
A7: 900410345 | B7: P&A ASOCIADOS SAS | C7: 2020-12-31 | D7: G4690 - Comercio al por mayor no especializado | E7: 2019 | F7: 236825 | G7: 283209 | H7: 0 | I7: 126184 | J7: 0 | K7: 0 | L7: 643044 | M7: 0 | N7: 0 | O7: 1289262 | P7: 0 | Q7: 1289262 | R7: 1634322 | S7: 0 | T7: 0 | U7: 0 | V7: 0 | W7: 0 | X7: 0 | Y7: 0 | Z7: 0 | AA7: 0 | AB7: 0 | AC7: 0 | AD7: 0 | AE7: 0 | AF7: 1634322 | AG7: 2923584 | AH7: 72520 | AI7: 0 | AJ7: 72520 | AK7: 29985 | AL7: 180890 | AM7: 0 | AN7: 0 | AO7: 0 | AP7: 0 | AQ7: 283395 | AR7: 0 | AS7: 283395 | AT7: 0 | AU7: 0 | AV7: 0 | AW7: 0 | AX7: 0 | AY7: 0 | AZ7: 0 | BA7: 0 | BB7: 0 | BC7: 0 | BD7: 283395 | BE7: 10000 | BF7: 0 | BG7: 0 | BH7: 0 | BI7: 0 | BJ7: 0 | BK7: 5000 | BL7: 2625189 | BM7: 2640189 | BN7: 2923584 | BO7: 813490 | BP7: 0 | BQ7: 813490 | BR7: 387034 | BS7: 346 | BT7: 744078 | BU7: 818 | BV7: 0 | BW7: 455282 | BX7: 26192 | BY7: 2511 | BZ7: 478963 | CA7: 67558 | CB7: 411405 | CC7: 0 | CD7: 411405 | CE7: 621390 | CF7: 166108
A8: 900454029 | B8: CISNE NEGRO INVERSIONES SAS | C8: 2020-12-31 | D8: G4690 - Comercio al por mayor no especializado | E8: 2019 | F8: 99396 | G8: 886166 | H8: 918039 | I8: 254595 | J8: 0 | K8: 0 | L8: 185041 | M8: 0 | N8: 0 | O8: 2343237 | P8: 0 | Q8: 2343237 | R8: 56179 | S8: 0 | T8: 0 | U8: 0 | V8: 0 | W8: 0 | X8: 0 | Y8: 0 | Z8: 0 | AA8: 0 | AB8: 0 | AC8: 0 | AD8: 0 | AE8: 0 | AF8: 56179 | AG8: 2399416 | AH8: 3458 | AI8: 0 | AJ8: 3458 | AK8: 65440 | AL8: 47589 | AM8: 23839 | AN8: 23839 | AO8: 0 | AP8: 16837 | AQ8: 157163 | AR8: 0 | AS8: 157163 | AT8: 0 | AU8: 0 | AV8: 0 | AW8: 1588781 | AX8: 0 | AY8: 0 | AZ8: 18088 | BA8: 18088 | BB8: 0 | BC8: 1606869 | BD8: 1764032 | BE8: 130000 | BF8: 0 | BG8: 0 | BH8: 0 | BI8: 0 | BJ8: 0 | BK8: 50099 | BL8: 455285 | BM8: 635384 | BN8: 2399416 | BO8: 2707914 | BP8: 1764365 | BQ8: 943549 | BR8: 13811 | BS8: 191513 | BT8: 669313 | BU8: 7836 | BV8: 0 | BW8: 88698 | BX8: 0 | BY8: 25413 | BZ8: 63285 | CA8: 34911 | CB8: 28374 | CC8: 0 | CD8: 28374 | CE8: 132413 | CF8: 43715
A9: 900566998 | B9: LABORATORIOS LOUIS PASTEUR SAS | C9: 2020-12-31 | D9: G4690 - Comercio al por mayor no especializado | E9: 2019 | F9: 229521 | G9: 731645 | H9: 52034 | I9: 120462 | J9: 0 | K9: 0 | L9: 0 | M9: 0 | N9: 0 | O9: 1133662 | P9: 0 | Q9: 1133662 | R9: 1025327 | S9: 0 | T9: 0 | U9: 0 | V9: 12821 | W9: 0 | X9: 0 | Y9: 0 | Z9: 0 | AA9: 0 | AB9: 0 | AC9: 0 | AD9: 0 | AE9: 0 | AF9: 1038148 | AG9: 2171810 | AH9: 0 | AI9: 1444 | AJ9: 1444 | AK9: 445266 | AL9: 22470 | AM9: 6385 | AN9: 6385 | AO9: 0 | AP9: 12875 | AQ9: 488440 | AR9: 0 | AS9: 488440 | AT9: 0 | AU9: 0 | AV9: 0 | AW9: 0 | AX9: 0 | AY9: 0 | AZ9: 0 | BA9: 0 | BB9: 0 | BC9: 0 | BD9: 488440 | BE9: 100000 | BF9: 0 | BG9: 0 | BH9: 0 | BI9: 0 | BJ9: 0 | BK9: 158337 | BL9: 1425033 | BM9: 1683370 | BN9: 2171810 | BO9: 4674427 | BP9: 2642057 | BQ9: 2032370 | BR9: 4980 | BS9: 319155 | BT9: 1032073 | BU9: 129929 | BV9: 0 | BW9: 556193 | BX9: 16734 | BY9: 111587 | BZ9: 461340 | CA9: 0 | CB9: 461340 | CC9: 0 | CD9: 461340 | CE9: 802199 | CF9: 246006
A10: 860530570 | B10: COMERCIALIZADORA Y DISTRIBUIDORA INTERAMERICANA LTDA | C10: 2020-12-31 | D10: G4690 - Comercio al por mayor no especializado | E10: 2020 | F10: 30903 | G10: 2854854 | H10: 46939 | I10: 0 | J10: 0 | K10: 0 | L10: 0 | M10: 32706 | N10: 0 | O10: 2965402 | P10: 0 | Q10: 2965402 | R10: 1909 | S10: 0 | T10: 0 | U10: 0 | V10: 0 | W10: 0 | X10: 0 | Y10: 0 | Z10: 0 | AA10: 0 | AB10: 0 | AC10: 0 | AD10: 0 | AE10: 0 | AF10: 1909 | AG10: 2967311 | AH10: 0 | AI10: 0 | AJ10: 0 | AK10: 1043968 | AL10: 49949 | AM10: 0 | AN10: 0 | AO10: 0 | AP10: 5139 | AQ10: 1099056 | AR10: 0 | AS10: 1099056 | AT10: 0 | AU10: 0 | AV10: 0 | AW10: 0 | AX10: 0 | AY10: 0 | AZ10: 0 | BA10: 0 | BB10: 0 | BC10: 0 | BD10: 1099056 | BE10: 400000 | BF10: 0 | BG10: 0 | BH10: 0 | BI10: 0 | BJ10: 0 | BK10: 200000 | BL10: 1268255 | BM10: 1868255 | BN10: 2967311 | BO10: 30996 | BP10: 0 | BQ10: 30996 | BR10: 921 | BS10: 0 | BT10: 13651 | BU10: 1599 | BV10: 0 | BW10: 16667 | BX10: 0 | BY10: 0 | BZ10: 16667 | CA10: 5500 | CB10: 11167 | CC10: 0 | CD10: 11167 | CE10: =+BW10+CF10 -> 17087 | CF10: 420
A11: 900223777 | B11: BRANDING ARTICULOS PUBLICITARIOS LTDA | C11: 2020-12-31 | D11: G4690 - Comercio al por mayor no especializado | E11: 2020 | F11: 557414 | G11: 1197412 | H11: 126236 | I11: 207315 | J11: 0 | K11: 0 | L11: 0 | M11: 0 | N11: 0 | O11: 2088377 | P11: 0 | Q11: 2088377 | R11: 422779 | S11: 0 | T11: 0 | U11: 0 | V11: 0 | W11: 0 | X11: 0 | Y11: 0 | Z11: 0 | AA11: 0 | AB11: 0 | AC11: 0 | AD11: 0 | AE11: 0 | AF11: 422779 | AG11: 2511156 | AH11: 0 | AI11: 0 | AJ11: 0 | AK11: 179595 | AL11: 159232 | AM11: 0 | AN11: 0 | AO11: 0 | AP11: 25611 | AQ11: 364438 | AR11: 0 | AS11: 364438 | AT11: 0 | AU11: 0 | AV11: 0 | AW11: 0 | AX11: 0 | AY11: 0 | AZ11: 281819 | BA11: 281819 | BB11: 0 | BC11: 281819 | BD11: 646257 | BE11: 140000 | BF11: 0 | BG11: 0 | BH11: 0 | BI11: 0 | BJ11: 100000 | BK11: 430000 | BL11: 1194899 | BM11: 1864899 | BN11: 2511156 | BO11: 5058460 | BP11: 4178267 | BQ11: 880193 | BR11: 22797 | BS11: 237606 | BT11: 334819 | BU11: 13820 | BV11: 0 | BW11: 316745 | BX11: 186403 | BY11: 136381 | BZ11: 366767 | CA11: 117008 | CB11: 249759 | CC11: 0 | CD11: 249759 | CE11: =+BW11+CF11 -> 348239 | CF11: 31494
A12: 900265799 | B12: AMAGRAN SAS | C12: 2020-12-31 | D12: G4690 - Comercio al por mayor no especializado | E12: 2020 | F12: 15254 | G12: 416236 | H12: 2385146 | I12: 0 | J12: 0 | K12: 0 | L12: 0 | M12: 0 | N12: 0 | O12: 2816636 | P12: 0 | Q12: 2816636 | R12: 77066 | S12: 0 | T12: 0 | U12: 0 | V12: 0 | W12: 0 | X12: 0 | Y12: 0 | Z12: 0 | AA12: 609 | AB12: 0 | AC12: 0 | AD12: 0 | AE12: 0 | AF12: 77675 | AG12: 2894311 | AH12: 37464 | AI12: 0 | AJ12: 37464 | AK12: 891291 | AL12: 137837 | AM12: 582875 | AN12: 582875 | AO12: 0 | AP12: 45239 | AQ12: 1694706 | AR12: 0 | AS12: 1694706 | AT12: 0 | AU12: 0 | AV12: 0 | AW12: 615577 | AX12: 4275 | AY12: 0 | AZ12: 0 | BA12: 0 | BB12: 0 | BC12: 619852 | BD12: 2314558 | BE12: 168000 | BF12: 0 | BG12: 0 | BH12: 0 | BI12: 0 | BJ12: 123287 | BK12: 19913 | BL12: 268553 | BM12: 579753 | BN12: 2894311 | BO12: 3076186 | BP12: 2379665 | BQ12: 696521 | BR12: 81111 | BS12: 67040 | BT12: 550601 | BU12: 0 | BV12: 0 | BW12: 159991 | BX12: 0 | BY12: 83299 | BZ12: 76692 | CA12: 28523 | CB12: 48169 | CC12: 0 | CD12: 48169 | CE12: =+BW12+CF13 -> 262941 | CF12: 0
A13: 900269636 | B13: SURTIALIADOS S.A.S. | C13: 2020-12-31 | D13: G4690 - Comercio al por mayor no especializado | E13: 2020 | F13: 317312 | G13: 1139017 | H13: 587906 | I13: 73858 | J13: 0 | K13: 0 | L13: 0 | M13: 8561 | N13: 0 | O13: 2126654 | P13: 0 | Q13: 2126654 | R13: 775796 | S13: 0 | T13: 0 | U13: 0 | V13: 0 | W13: 0 | X13: 0 | Y13: 0 | Z13: 0 | AA13: 0 | AB13: 0 | AC13: 0 | AD13: 0 | AE13: 0 | AF13: 775796 | AG13: 2902450 | AH13: 58394 | AI13: 0 | AJ13: 58394 | AK13: 343653 | AL13: 49860 | AM13: 0 | AN13: 0 | AO13: 0 | AP13: 250000 | AQ13: 701907 | AR13: 0 | AS13: 701907 | AT13: 0 | AU13: 0 | AV13: 0 | AW13: 0 | AX13: 0 | AY13: 0 | AZ13: 0 | BA13: 0 | BB13: 0 | BC13: 0 | BD13: 701907 | BE13: 200000 | BF13: 0 | BG13: 0 | BH13: 0 | BI13: 0 | BJ13: 0 | BK13: 1946806 | BL13: 53737 | BM13: 2200543 | BN13: 2902450 | BO13: 5903457 | BP13: 4547843 | BQ13: 1355614 | BR13: 6 | BS13: 0 | BT13: 1281697 | BU13: 3641 | BV13: 0 | BW13: 70282 | BX13: 0 | BY13: 16545 | BZ13: 53737 | CA13: 0 | CB13: 53737 | CC13: 0 | CD13: 53737 | CE13: =+BW13+CF14 -> 73636 | CF13: 102950
A14: 900358394 | B14: SOLUCIONES EN MATERIALES COMPUESTOS SAS | C14: 2020-12-31 | D14: G4690 - Comercio al por mayor no especializado | E14: 2020 | F14: 584837 | G14: 702564 | H14: 1293135 | I14: 170544 | J14: 0 | K14: 0 | L14: 0 | M14: 0 | N14: 0 | O14: 2751080 | P14: 0 | Q14: 2751080 | R14: 0 | S14: 0 | T14: 0 | U14: 0 | V14: 0 | W14: 0 | X14: 0 | Y14: 0 | Z14: 0 | AA14: 0 | AB14: 0 | AC14: 0 | AD14: 6084 | AE14: 0 | AF14: 6084 | AG14: 2757164 | AH14: 0 | AI14: 0 | AJ14: 0 | AK14: 379494 | AL14: 0 | AM14: 0 | AN14: 0 | AO14: 0 | AP14: 0 | AQ14: 379494 | AR14: 0 | AS14: 379494 | AT14: 0 | AU14: 0 | AV14: 0 | AW14: 0 | AX14: 0 | AY14: 0 | AZ14: 0 | BA14: 0 | BB14: 0 | BC14: 0 | BD14: 379494 | BE14: 1526715 | BF14: 0 | BG14: 0 | BH14: 0 | BI14: 0 | BJ14: 0 | BK14: 0 | BL14: 850955 | BM14: 2377670 | BN14: 2757164 | BO14: 5535660 | BP14: 4447261 | BQ14: 1088399 | BR14: 645252 | BS14: 631341 | BT14: 375300 | BU14: 579662 | BV14: -36000 | BW14: 111348 | BX14: 0 | BY14: 0 | BZ14: 111348 | CA14: 33990 | CB14: 77358 | CC14: 0 | CD14: 77358 | CE14: =+BW14+CF15 -> 357551 | CF14: 3354
A15: 900410345 | B15: P&A ASOCIADOS SAS | C15: 2020-12-31 | D15: G4690 - Comercio al por mayor no especializado | E15: 2020 | F15: 224512 | G15: 57098 | H15: 0 | I15: 98163 | J15: 0 | K15: 0 | L15: 341275 | M15: 0 | N15: 0 | O15: 721048 | P15: 0 | Q15: 721048 | R15: 1976228 | S15: 0 | T15: 0 | U15: 0 | V15: 0 | W15: 0 | X15: 0 | Y15: 0 | Z15: 0 | AA15: 0 | AB15: 0 | AC15: 0 | AD15: 0 | AE15: 0 | AF15: 1976228 | AG15: 2697276 | AH15: 50413 | AI15: 0 | AJ15: 50413 | AK15: 40320 | AL15: 99506 | AM15: 0 | AN15: 0 | AO15: 0 | AP15: 0 | AQ15: 190239 | AR15: 0 | AS15: 190239 | AT15: 0 | AU15: 0 | AV15: 0 | AW15: 0 | AX15: 0 | AY15: 0 | AZ15: 0 | BA15: 0 | BB15: 0 | BC15: 0 | BD15: 190239 | BE15: 10000 | BF15: 0 | BG15: 0 | BH15: 0 | BI15: 0 | BJ15: 0 | BK15: 5000 | BL15: 2492037 | BM15: 2507037 | BN15: 2697276 | BO15: 696755 | BP15: 0 | BQ15: 696755 | BR15: 688 | BS15: 0 | BT15: 684072 | BU15: 42036 | BV15: 0 | BW15: -28665 | BX15: 12328 | BY15: 6539 | BZ15: -22876 | CA15: 9851 | CB15: -32727 | CC15: 0 | CD15: -32727 | CE15: =+BW15+CF16 -> 9368 | CF15: 246203
A16: 900454029 | B16: CISNE NEGRO INVERSIONES SAS | C16: 2020-12-31 | D16: G4690 - Comercio al por mayor no especializado | E16: 2020 | F16: 11823 | G16: 349445 | H16: 1513487 | I16: 319020 | J16: 0 | K16: 0 | L16: 376486 | M16: 0 | N16: 0 | O16: 2570261 | P16: 0 | Q16: 2570261 | R16: 31926 | S16: 0 | T16: 0 | U16: 0 | V16: 0 | W16: 0 | X16: 0 | Y16: 0 | Z16: 0 | AA16: 0 | AB16: 0 | AC16: 0 | AD16: 0 | AE16: 0 | AF16: 31926 | AG16: 2602187 | AH16: 13860 | AI16: 0 | AJ16: 13860 | AK16: 97360 | AL16: 52169 | AM16: 23882 | AN16: 23882 | AO16: 0 | AP16: 32199 | AQ16: 219470 | AR16: 0 | AS16: 219470 | AT16: 0 | AU16: 0 | AV16: 0 | AW16: 1736447 | AX16: 0 | AY16: 0 | AZ16: 0 | BA16: 0 | BB16: 0 | BC16: 1736447 | BD16: 1955917 | BE16: 130000 | BF16: 0 | BG16: 0 | BH16: 0 | BI16: 0 | BJ16: 0 | BK16: 52936 | BL16: 463334 | BM16: 646270 | BN16: 2602187 | BO16: 1232815 | BP16: 714194 | BQ16: 518621 | BR16: 35935 | BS16: 139384 | BT16: 356725 | BU16: 11736 | BV16: 0 | BW16: 46711 | BX16: 0 | BY16: 17020 | BZ16: 29691 | CA16: 18805 | CB16: 10886 | CC16: 0 | CD16: 10886 | CE16: =+BW16+CF17 -> 266122 | CF16: 38033
A17: 900566998 | B17: LABORATORIOS LOUIS PASTEUR SAS | C17: 2020-12-31 | D17: G4690 - Comercio al por mayor no especializado | E17: 2020 | F17: 552794 | G17: 1189117 | H17: 40931 | I17: 198334 | J17: 0 | K17: 0 | L17: 0 | M17: 0 | N17: 0 | O17: 1981176 | P17: 0 | Q17: 1981176 | R17: 931535 | S17: 0 | T17: 0 | U17: 0 | V17: 0 | W17: 0 | X17: 0 | Y17: 0 | Z17: 0 | AA17: 0 | AB17: 0 | AC17: 0 | AD17: 0 | AE17: 0 | AF17: 931535 | AG17: 2912711 | AH17: 0 | AI17: 0 | AJ17: 0 | AK17: 360021 | AL17: 46881 | AM17: 2605 | AN17: 2605 | AO17: 0 | AP17: 13894 | AQ17: 423401 | AR17: 0 | AS17: 423401 | AT17: 0 | AU17: 0 | AV17: 0 | AW17: 0 | AX17: 0 | AY17: 0 | AZ17: 0 | BA17: 0 | BB17: 0 | BC17: 0 | BD17: 423401 | BE17: 100000 | BF17: 0 | BG17: 0 | BH17: 0 | BI17: 0 | BJ17: 0 | BK17: 158337 | BL17: 2230973 | BM17: 2489310 | BN17: 2912711 | BO17: 7192199 | BP17: 4446968 | BQ17: 2745231 | BR17: 1874 | BS17: 415761 | BT17: 1220864 | BU17: 328262 | BV17: 0 | BW17: 782218 | BX17: 23722 | BY17: 0 | BZ17: 805940 | CA17: 0 | CB17: 805940 | CC17: 0 | CD17: 805940 | CE17: =+BW17+CF18 -> 1408312 | CF17: 219411
E18: 2019 | F18: =+SUM(F2:F9) -> 2306375 | G18: =+SUM(G2:G9) -> 9221647 | H18: 6527800 | I18: 1168771 | J18: 0 | K18: 0 | L18: 828085 | M18: 106670 | N18: 0 | O18: 20159348 | P18: 0 | Q18: 20159348 | R18: 3662332 | S18: 0 | T18: 0 | U18: 0 | V18: 12821 | W18: 0 | X18: 0 | Y18: 0 | Z18: 0 | AA18: 609 | AB18: 0 | AC18: 0 | AD18: 0 | AE18: 0 | AF18: 3675762 | AG18: 23835110 | AH18: 208222 | AI18: 1444 | AJ18: 209666 | AK18: 5575274 | AL18: 601274 | AM18: 620401 | AN18: 440277 | AO18: 0 | AP18: 347778 | AQ18: 7354393 | AR18: 0 | AS18: 7354393 | AT18: 0 | AU18: 0 | AV18: 0 | AW18: 2162828 | AX18: 4275 | AY18: 0 | AZ18: 213000 | BA18: 213000 | BB18: 0 | BC18: 2380103 | BD18: 9734496 | BE18: 2674715 | BF18: 0 | BG18: 0 | BH18: 0 | BI18: 0 | BJ18: 123287 | BK18: 2259710 | BL18: 9042902 | BM18: 14100614 | BN18: 23835110 | BO18: 37762401 | BP18: 28065404 | BQ18: 9696997 | BR18: 1348867 | BS18: =+SUM(BS2:BS9) -> 1648888 | BT18: 5995258 | BU18: 634393 | BV18: -151544 | BW18: 2615781 | BX18: 210595 | BY18: 397233 | BZ18: 2429143 | CA18: 513396 | CB18: 1915747 | CC18: 0 | CD18: 1915747 | CE18: =+SUM(CE2:CE9) -> 3241875 | CF18: 626094
E19: 2020 | F19: =+SUM(F10:F17) -> 2294849 | G19: =+SUM(G10:G17) -> 7905743 | H19: 5993780 | I19: 1067234 | J19: 0 | K19: 0 | L19: 717761 | M19: 41267 | N19: 0 | O19: 18020634 | P19: 0 | Q19: 18020634 | R19: 4217239 | S19: 0 | T19: 0 | U19: 0 | V19: 0 | W19: 0 | X19: 0 | Y19: 0 | Z19: 0 | AA19: 609 | AB19: 0 | AC19: 0 | AD19: 6084 | AE19: 0 | AF19: 4223932 | AG19: 22244566 | AH19: 160131 | AI19: 0 | AJ19: 160131 | AK19: 3335702 | AL19: 595434 | AM19: 609362 | AN19: 609362 | AO19: 0 | AP19: 372082 | AQ19: 5072711 | AR19: 0 | AS19: 5072711 | AT19: 0 | AU19: 0 | AV19: 0 | AW19: 2352024 | AX19: 4275 | AY19: 0 | AZ19: 281819 | BA19: 281819 | BB19: 0 | BC19: 2638118 | BD19: 7710829 | BE19: 2674715 | BF19: 0 | BG19: 0 | BH19: 0 | BI19: 0 | BJ19: 223287 | BK19: 2812992 | BL19: 8822743 | BM19: 14533737 | BN19: 22244566 | BO19: 28726528 | BP19: 20714198 | BQ19: 8012330 | BR19: 788584 | BS19: =+SUM(BS10:BS17) -> 1491132 | BT19: 4817729 | BU19: 980756 | BV19: -36000 | BW19: 1475297 | BX19: 222453 | BY19: 259784 | BZ19: 1437966 | CA19: 213677 | CB19: 1224289 | CC19: 0 | CD19: 1224289 | CE19: =+SUM(CE10:CE17) -> 2743256 | CF19: 641865
E21: VENTAS 19 | F21: EBITDA 19 | G21: VENTAS 20 | H21: EBITDA 20 | I21: VAR 20 - 19
D22: GL RETAIL
D23: =+B10 -> COMERCIALIZADORA Y DISTRIBUIDORA INTERAMERICANA LTDA
D24: =+B11 -> BRANDING ARTICULOS PUBLICITARIOS LTDA
D25: AMAGRAN SAS
D26: SURTIALIADOS S.A.S.
D27: SOLUCIONES EN MATERIALES COMPUESTOS SAS
D28: P&A ASOCIADOS SAS
D29: CISNE NEGRO INVERSIONES SAS
D30: LABORATORIOS LOUIS PASTEUR SAS

Sheet Valoración Sin Estrategia (hidden)
A1: MODELOS DE VALORACIÓN
A3: EMPRESA PROTOTIPO S.A.S
A4: VALORACIÓN
A5: Pesos Colombianos
A6: a 31 de Diciembre
A7: COSTO DE CAPITAL
A8: CALCULO DEL COSTO DE LOS RECURSOS PROPIOS | I8: TASAS HISTORICAS
A9: CONCEPTO | F9: ='Analisis Financiero'!L7 -> 2020 | I9: Años | J9: Rentabilidad acciones USA S&P | K9: Rentabilidad Bonos del Tesoro USA | L9: Inflación USA | M9: Inflación Colombia | N9: RIESGO PAÍS
A10: Tasa libre de riesgo nominal en dólares KL USA | F10: =+AVERAGE(K10:K22) -> 0.04909256677 | G10: Kl | I10: 2008 | J10: -0.3655234411 | K10: 0.2010127993 | L10: 0.0384 | M10: 0.0569 | N10: 0.0203
A11: Inflación en USA | F11: =+AVERAGE(L10:L22) -> 0.01759230769 | I11: 2009 | J11: 0.2593523388 | K11: -0.1111669531 | L11: -0.0036 | M11: 0.0767 | N11: 0.039
A12: Tasa libre de riesgo real en dólares | F12: =+(1+F10)/(1+F11)-1 -> 0.03095567728 | I12: 2010 | J12: 0.1482109228 | K12: 0.0846293388 | L12: 0.0164 | M12: 0.02 | N12: 0.03
I13: 2011 | J13: 0.02098374734 | K13: 0.16035335 | L13: 0.0316 | M13: 0.0317 | N13: 0.03
A14: Inflación COLOMBIA | F14: =+AVERAGE(M10:M22) -> 0.03749230769 | I14: 2012 | J14: 0.1589058524 | K14: 0.02971571978 | L14: 0.0207 | M14: 0.0373 | N14: 0.03
A15: Tasa libre de riesgo nominal en $COL | F15: =(1+F14)*(1+F12)-1 -> 0.06960858475 | I15: 2013 | J15: 0.3214508586 | K15: -0.09104568794 | L15: 0.0146 | M15: 0.0244 | N15: 0.0102
I16: 2014 | J16: 0.1352442165 | K16: 0.1074618045 | L16: 0.0162 | M16: =+'Analisis Financiero'!F20 -> 0.0194 | N16: 0.0192
A17: Riesgo país Colombia | F17: =+AVERAGE(N10:N22) -> 0.02522307692 | G17: RP | I17: 2015 | J17: 0.0138 | K17: 0.01284299671 | L17: 0.0012 | M17: =+'Analisis Financiero'!G20 -> 0.0366 | N17: 0.0339
I18: 2016 | J18: 0.1177 | K18: 0.0069 | L18: 0.0126 | M18: =+'Analisis Financiero'!H20 -> 0.0575 | N18: 0.0326
I19: 2017 | J19: 0.2161 | K19: 0.028 | L19: 0.0213 | M19: =+'Analisis Financiero'!I20 -> 0.0409 | N19: 0.0251
A20: Rentabilidad Mercado en dólares Km USA | F20: =+AVERAGE(J10:J22) -> 0.1135480381 | G20: Km | I20: 2018 | J20: -0.0423 | K20: -0.0002 | L20: 0.0244 | M20: =+'Analisis Financiero'!J20 -> 0.0318 | N20: 0.0181
A21: Inflación en USA | F21: =+F11 -> 0.01759230769 | I21: 2019 | J21: 0.3121 | K21: 0.0964 | L21: 0.0229 | M21: =+'Analisis Financiero'!K20 -> 0.038 | N21: 0.0255
A22: Rentabilidad del Mercado real en dólares Km USA | F22: =+(1+F20)/(1+F21)-1 -> 0.09429683153 | I22: 2020 | J22: 0.1801 | K22: 0.1133 | L22: 0.012 | M22: =+'Analisis Financiero'!L20 -> 0.0162 | N22: 0.014
I23: Fuente: www.damodaran.com
A24: Inflación COLOMBIA | F24: =+F14 -> 0.03749230769
A25: Rentabilidad del Mercado en $COL | F25: =+(1+F24)*(1+F22)-1 -> 0.135324545
A27: Prima de riesgo del mercado (Km - KL) | F27: =+F25-F15 -> 0.0657159603
A30: Beta Desapalancada BU Sectorial | F30: 0.95 | G30: Fuente: Damodaran
F32: ='Analisis Financiero'!M7 -> 2021 | G32: ='Analisis Financiero'!N7 -> 2022 | H32: ='Analisis Financiero'!O7 -> 2023 | I32: ='Analisis Financiero'!P7 -> 2024 | J32: ='Analisis Financiero'!Q7 -> 2025
A33: Deuda D | F33: =+'Analisis Financiero'!L52+'Analisis Financiero'!L59 -> 162050.87 | G33: =+'Analisis Financiero'!M52+'Analisis Financiero'!M59 -> 175014.9396 | H33: =+'Analisis Financiero'!N52+'Analisis Financiero'!N59 -> 179740.343 | I33: =+'Analisis Financiero'!O52+'Analisis Financiero'!O59 -> 184593.3322 | J33: =+'Analisis Financiero'!P52+'Analisis Financiero'!P59 -> 190131.1322 | K33: Al inicio del año y se suman deudas contraidas durante el año (Se toma el año anterior)
A34: Patrimonio K | F34: =+'Analisis Financiero'!L71 -> 1060745005 | G34: =+'Analisis Financiero'!M71 -> 1145604606 | H34: =+'Analisis Financiero'!N71 -> 1176535930 | I34: =+'Analisis Financiero'!O71 -> 1208302400 | J34: =+'Analisis Financiero'!P71 -> 1244551472 | K34: Al inicio del año y se suman los aportes realizados durante el año (Se toma el Año Anterior)
A35: Beta Apalancada BL = BU * ( 1 + (1-t) * D/P) | F35: =$F$30*(1+(1-('Analisis Financiero'!L92/'Analisis Financiero'!L91))*(F33/F34)) -> 0.9501451323 | G35: =$F$30*(1+(1-('Analisis Financiero'!M92/'Analisis Financiero'!M91))*(G33/G34)) -> 0.9500726069 | H35: =$F$30*(1+(1-('Analisis Financiero'!N92/'Analisis Financiero'!N91))*(H33/H34)) -> 0.9500726069 | I35: =$F$30*(1+(1-('Analisis Financiero'!O92/'Analisis Financiero'!O91))*(I33/I34)) -> 0.9500726069 | J35: =$F$30*(1+(1-('Analisis Financiero'!P92/'Analisis Financiero'!P91))*(J33/J34)) -> 0.9500726069 | K35: Impuesto real del año proyectado
A37: Costo del Patrimonio Ke = Kl + (Km - KL)*B + RP | F37: =($F$15+($F$25-$F$15)*F35+$F$17) -> 0.1572713615 | G37: =($F$15+($F$25-$F$15)*G35+$F$17) -> 0.1572665954 | H37: =($F$15+($F$25-$F$15)*H35+$F$17) -> 0.1572665954 | I37: =($F$15+($F$25-$F$15)*I35+$F$17) -> 0.1572665954 | J37: 0.1572665954
A40: Estructura Deuda D/(D+ K) | F40: =+F33/(F33+F34) -> 0.0001527474712 | G40: =+G33/(G33+G34) -> 0.0001527474712 | H40: 0.0001527474712 | I40: 0.0001527474712 | J40: 0.0001527474712
A41: Estructura Patrimonio K/(D+ K) | F41: =+F34/(F33+F34) -> 0.9998472525 | G41: =+G34/(G33+G34) -> 0.9998472525 | H41: 0.9998472525 | I41: 0.9998472525 | J41: 0.9998472525
A42: Total Estructura de Capital D+K | F42: =+F40+F41 -> 1 | G42: =+G40+G41 -> 1 | H42: 1 | I42: 1 | J42: 1
A44: Costo Despues de Impuestos (Escudo Fiscal) Kd*(1- tx) | F44: =+('Analisis Financiero'!L19*(1-('Analisis Financiero'!L92/'Analisis Financiero'!L91))) -> 0.10216909 | G44: =+('Analisis Financiero'!M19*(1-('Analisis Financiero'!M92/'Analisis Financiero'!M91))) -> 0.06912520804 | H44: =+('Analisis Financiero'!N19*(1-('Analisis Financiero'!N92/'Analisis Financiero'!N91))) -> 0.07734889815 | I44: =+('Analisis Financiero'!O19*(1-('Analisis Financiero'!O92/'Analisis Financiero'!O91))) -> 0.08163304798 | J44: =+('Analisis Financiero'!P19*(1-('Analisis Financiero'!P92/'Analisis Financiero'!P91))) -> 0.08274150201 | K44: Se toma la tasa de costo de deuda y se realiza el escudo fiscal con los impuestos reales del año proyectado
A46: Aporte Costo de la Deuda Estructura deuda * Costo | F46: =+F40*F44 -> 1.560607013e-05 | G46: =+G40*G44 -> 1.055870072e-05 | H46: 1.181484859e-05 | I46: 1.246924164e-05 | J46: 1.263855519e-05
A47: Aporte Costo Patrimonio Estructura Patromonio * Costo | F47: =+F41*F37 -> 0.1572473387 | G47: =+G41*G37 -> 0.1572425733 | H47: 0.1572425733 | I47: 0.1572425733 | J47: 0.1572425733
A49: COSTO DE CAPITAL - WACC | F49: =+F46+F47 -> 0.1572629447 | G49: =+G46+G47 -> 0.157253132 | H49: 0.1572543882 | I49: 0.1572550426 | J49: 0.1572552119
A51: FLUJO DE CAJA PROYECTADO
F54: =F32 -> 2021 | G54: =G32 -> 2022 | H54: =H32 -> 2023 | I54: =I32 -> 2024 | J54: =J32 -> 2025
B55: UTILIDAD DEL EJERCICIO | F55: =+'Analisis Financiero'!M93 -> 75912521.4 | G55: =+'Analisis Financiero'!N93 -> 77962159.48 | H55: =+'Analisis Financiero'!O93 -> 80067137.78 | I55: =+'Analisis Financiero'!P93 -> 82469151.91 | J55: =+'Analisis Financiero'!Q93 -> 84778288.17
B56: (+) Impuestos CAUSADOS | F56: =+'Analisis Financiero'!M92 -> 75827212.14 | G56: =+'Analisis Financiero'!N92 -> 77874546.87 | H56: =+'Analisis Financiero'!O92 -> 79977159.63 | I56: =+'Analisis Financiero'!P92 -> 82376474.42 | J56: =+'Analisis Financiero'!Q92 -> 84683015.71
B57: (+) Gastos financiero | F57: =+'Analisis Financiero'!M89 -> 2646602.07 | G57: =+'Analisis Financiero'!N89 -> 2718060.326 | H57: =+'Analisis Financiero'!O89 -> 2791447.955 | I57: =+'Analisis Financiero'!P89 -> 2875191.394 | J57: =+'Analisis Financiero'!Q89 -> 2955696.753
B58: EBIT | F58: =+F55+F56+F57 -> 154386335.6 | G58: =+G55+G56+G57 -> 158554766.7 | H58: 162835745.4 | I58: 167720817.7 | J58: 172417000.6
B60: (-) Impuestos AJUSTADOS Impuestos operacionales | F60: =+F58*('Analisis Financiero'!M92/'Analisis Financiero'!M91) -> 77149769.2 | G60: =+G58*('Analisis Financiero'!N92/'Analisis Financiero'!N91) -> 79232812.97 | H60: =+H58*('Analisis Financiero'!O92/'Analisis Financiero'!O91) -> 81372098.92 | I60: =+I58*('Analisis Financiero'!P92/'Analisis Financiero'!P91) -> 83813261.89 | J60: =+J58*('Analisis Financiero'!Q92/'Analisis Financiero'!Q91) -> 86160033.22
B61: UODI RODI NOPAT NOPLAT EBIT (1 - tx) | F61: =+F58-F60 -> 77236566.4 | G61: =+G58-G60 -> 79321953.7 | H61: 81463646.45 | I61: 83907555.84 | J61: 86256967.4
B63: (+) Depreciación | F63: =+'Analisis Financiero'!M98 -> 5780682.272 | G63: =+'Analisis Financiero'!N98 -> 5839352.698 | H63: =+'Analisis Financiero'!O98 -> 5906404.613 | I63: =+'Analisis Financiero'!P98 -> 5935752.94 | J63: =+'Analisis Financiero'!Q98 -> 6198321.503
B64: (+) Amortizacion | F64: =+'Analisis Financiero'!M99 -> 0 | G64: =+'Analisis Financiero'!N99 -> 0 | H64: =+'Analisis Financiero'!O99 -> 0 | I64: =+'Analisis Financiero'!P99 -> 0 | J64: =+'Analisis Financiero'!Q99 -> 0
B65: (+) Provisiones
B66: 1 Flujo operativo o flujo bruto | F66: =+F61+F63+F64+F65 -> 83017248.67 | G66: =+G61+G63+G64+G65 -> 85161306.39 | H66: 87370051.06 | I66: 89843308.78 | J66: 92455288.91
B68: (-) Variación del capital de trabajo | F68: =+F74-E74 -> 126125978.6 | G68: =+G74-F74 -> 45972919.21 | H68: 47214188.03 | I68: 53876634.57 | J68: 51793404.7
B69: (-) Inversión en activos | F69: =+'Analisis Financiero'!M44-'Analisis Financiero'!J44 -> 3057172.08 | G69: =+'Analisis Financiero'!N44-'Analisis Financiero'!M44 -> 395333.0842 | H69: =+'Analisis Financiero'!O44-'Analisis Financiero'!N44 -> 406007.0774 | I69: =+'Analisis Financiero'!P44-'Analisis Financiero'!O44 -> 463299.1872 | J69: =+'Analisis Financiero'!Q44-'Analisis Financiero'!P44 -> 445384.952
B70: 2 Financiación de inversiones | F70: =+F68+F69 -> 129183150.7 | G70: =+G68+G69 -> 46368252.3 | H70: 47620195.11 | I70: 54339933.75 | J70: 52238789.65
B72: (1 - 2) FCLO | F72: =+F66-F70 -> -46165902.05 | G72: =+G66-G70 -> 38793054.09 | H72: 39749855.95 | I72: 35503375.03 | J72: 40216499.26
A73: Anexo KTNO
A74: Calculo KTNO | E74: =('Analisis Financiero'!L37+'Analisis Financiero'!L38)-'Analisis Financiero'!L53 -> 1576574733 | F74: =('Analisis Financiero'!M37+'Analisis Financiero'!M38)-'Analisis Financiero'!M53 -> 1702700712 | G74: =('Analisis Financiero'!N37+'Analisis Financiero'!N38)-'Analisis Financiero'!N53 -> 1748673631 | H74: =('Analisis Financiero'!O37+'Analisis Financiero'!O38)-'Analisis Financiero'!O53 -> 1795887819 | I74: =('Analisis Financiero'!P37+'Analisis Financiero'!P38)-'Analisis Financiero'!P53 -> 1849764453 | J74: =('Analisis Financiero'!Q37+'Analisis Financiero'!Q38)-'Analisis Financiero'!Q53 -> 1901557858
A75: MÉTODO FLUJO DE CAJA DESCONTADO FCLD
J79: =J54 -> 2025
E80: FCLOn | F80: Ultimo FCLO conocido | J80: =+J72 -> 40216499.26
E81: WACC n | F81: Ultimo costo de capital conocido | J81: =+J49 -> 0.1572552119
E82: g | F82: Gradiente a perpetuidad | H82: =AVERAGE('Analisis Financiero'!M22:Q22) -> 0.0384 | I82: 0.015 | J82: =+(1+H82)*(1+I82)-1 -> 0.053976
E84: M1 | F84: MODELO ANUALIDAD PERPETUA
F85: FCLO (último valor conocido) | J85: =+J80 -> 40216499.26 | K85: Representa una serie de pagos Futuros Constantes y perpetuos
F86: WACC (último valor conocido) | J86: =+J81 -> 0.1572552119
F87: VALOR TERMINAL | J87: =+J85/J86 -> 255740326.7
E89: M2 | F89: MODELO CRECIMIENTO CONSTANTE
F90: FCLO (último valor conocido) | J90: =+J85 -> 40216499.26 | K90: Representa pagos perpetuos con un grado de crecimiento constante
F91: WACC (último valor conocido) | J91: =+J86 -> 0.1572552119
F92: Tasa de crecimiento - perpetuidad g | J92: =+J82 -> 0.053976
F93: VALOR TERMINAL FCLO*(1+g) / (WAAC - g) | J93: =+J85*(1+J92)/(J91-J92) -> 410413908.6
A96: VALOR PRESENTE FLUJOS DE CAJA PROYECTADOS | F96: =F54 -> 2021 | G96: =G54 -> 2022 | H96: =H54 -> 2023 | I96: =I54 -> 2024 | J96: =J54 -> 2025 | K96: MÉTODO FLUJO DE CAJA LIBRE DESCONTADO
A97: Costo de Capital | F97: =+F49 -> 0.1572629447 | G97: =+G49 -> 0.157253132 | H97: 0.1572543882 | I97: 0.1572550426 | J97: 0.1572552119
A98: Tasa Acumulada | F98: =+F97 -> 0.1572629447 | G98: =(1+F98)*(1+G97)-1 -> 0.3392461673 | H98: =(1+G98)*(1+H97)-1 -> 0.549848504 | I98: 0.7935699964 | J98: 1.075618226
A100: FCL | F100: =+F72 -> -46165902.05 | G100: =+G72 -> 38793054.09 | H100: 39749855.95 | I100: 35503375.03 | J100: 40216499.26
A101: Valor Terminal | J101: =+J93 -> 410413908.6
A103: Valor presente Flujos de caja Proyectados | F103: =+F100/(1+F98) -> -39892318.56 | G103: =+G100/(1+G98) -> 28966335.72 | H103: 25647575.13 | I103: 19794808.73 | J103: 19375672.63
A104: Valor Terminal | J104: =+J101/(1+J98) -> 197730923.5
A106: (+) VALOR PRESENTE DE LOS FLUJOS | F106: =+SUM(F103:J103) -> 53892073.66
A107: (+) VALOR PRESENTE DEL VALOR TERMINAL | F107: =+J104 -> 197730923.5
A108: (=)VALOR DE LAS OPERACIONES O DE MERCADO | F108: =+F106+F107 -> 251622997.1
A110: Valor de mercado de la empresa | F110: =+F108 -> 251622997.1
A111: (Menos) Deuda operacional (Pasivo Corriente - Oblig.Finan CP) | F111: =+'Analisis Financiero'!J57-'Analisis Financiero'!J52 -> 796780478.5
A112: (Más) Activo corriente (Disp. Inver, Clientes, Invet.) | F112: =+'Analisis Financiero'!J36+'Analisis Financiero'!J37+'Analisis Financiero'!J38+'Analisis Financiero'!J35 -> 2241598537
A113: (Menos) Deuda financiera CP + LP | F113: =+'Analisis Financiero'!J52+'Analisis Financiero'!J59 -> 150000
A114: VALOR DE MERCADO DEL PATRIMONIO | F114: =+F110-F111+F112-F113 -> 1696291056
A116: Patrimonio contable | F116: =+'Analisis Financiero'!L71 -> 1060745005
A118: Numero de Acciones | F118: 180000 | G118: Valor Hipotético
A119: Valor en Libros por acción | F119: =+F116/F118 -> 5893.027808
A120: Valor de Mercado de la Acción | F120: =+F114/F118 -> 9423.839199
A121: P/BV | F121: =+F120/F119 -> 1.599150641
A125: MÉTODOS CONTABLES O DE BALANCE
A128: VALOR PATRIMONIAL O VALOR EN LIBROS | F128: =F96 -> 2021 | G128: =G96 -> 2022 | H128: =H96 -> 2023 | I128: =I96 -> 2024 | J128: =J96 -> 2025 | K128: MÉTODOS CONTABLES O DEL BALANCE
A129: Activos Totales | F129: =+'Analisis Financiero'!M49 -> 2125339138 | G129: =+'Analisis Financiero'!N49 -> 2182723294 | H129: =+'Analisis Financiero'!O49 -> 2241656823 | I129: =+'Analisis Financiero'!P49 -> 2308906528 | J129: =+'Analisis Financiero'!Q49 -> 2373555911
A130: Pasivos Totales | F130: =+'Analisis Financiero'!M64 -> 979734531.8 | G130: =+'Analisis Financiero'!N64 -> 1006187364 | H130: =+'Analisis Financiero'!O64 -> 1033354423 | I130: =+'Analisis Financiero'!P64 -> 1064355056 | J130: =+'Analisis Financiero'!Q64 -> 1094156997
A131: Patrimonio A - P = Pat | F131: =+F129-F130 -> 1145604606 | G131: =+G129-G130 -> 1176535930 | H131: 1208302400 | I131: 1244551472 | J131: 1279398914
A132: Valor en Libros Acción | F132: =+F131/$F$118 -> 6364.470032 | G132: =+G131/$F$118 -> 6536.310723 | H132: 6712.791113 | I132: 6914.174846 | J132: 7107.771742
A133: P/BV | F133: =+F132/$F$119 -> 1.08 | G133: =+G132/$F$119 -> 1.10916 | H133: 1.13910732 | I133: 1.17328054 | J133: 1.206132395
A138: VALOR SUSTANCIAL NETO | F138: =F128 -> 2021 | G138: 2022 | H138: 2023 | I138: 2024 | J138: 2025
A139: Activos totales | F139: =+F129 -> 2125339138 | G139: =+G129 -> 2182723294 | H139: 2241656823 | I139: 2308906528 | J139: 2373555911
A140: Pasivo Exigible Deudas Financiacion con terceros FIN CP + FIN LP + PROVE | F140: =+'Analisis Financiero'!M52+'Analisis Financiero'!M59+'Analisis Financiero'!M53 -> 294630374 | G140: =+'Analisis Financiero'!N52+'Analisis Financiero'!N59+'Analisis Financiero'!N53 -> 302585394.1 | H140: =+'Analisis Financiero'!O52+'Analisis Financiero'!O59+'Analisis Financiero'!O53 -> 310755199.8 | I140: =+'Analisis Financiero'!P52+'Analisis Financiero'!P59+'Analisis Financiero'!P53 -> 320077855.8 | J140: =+'Analisis Financiero'!Q52+'Analisis Financiero'!Q59+'Analisis Financiero'!Q53 -> 329040035.7
A141: Patrimonio Act - financiacion con terceros = Pat | F141: =+F139-F140 -> 1830708764 | G141: =+G139-G140 -> 1880137900 | H141: 1930901624 | I141: 1988828672 | J141: 2044515875
A142: Valor de la Acción | F142: =+F141/$F$118 -> 10170.60424 | G142: =+G141/$F$118 -> 10445.21056 | H142: 10727.23124 | I142: 11049.04818 | J142: 11358.42153
A143: P/BV | F143: =+F142/$F$119 -> 1.725870736 | G143: =+G142/$F$119 -> 1.772469246 | H143: 1.820325916 | I143: 1.874935693 | J143: 1.927433893
A150: MÉTODO VALOR PRESENTE EBITDA´S PROYECTADOS
A153: VALOR PRESENTE FLUJOS DE CAJA PROYECTADOS | F153: =F138 -> 2021 | G153: 2022 | H153: 2023 | I153: 2024 | J153: 2025 | K153: MÉTODO DE DESCUENTO DE EBITDA, PERCEPCIÓN DE CAJA OPERATIVA
A154: EBIT | F154: =+F58 -> 154386335.6 | G154: =+G58 -> 158554766.7 | H154: 162835745.4 | I154: 167720817.7 | J154: 172417000.6
A155: (+) Depreciación | F155: =+F63 -> 5780682.272 | G155: =+G63 -> 5839352.698 | H155: 5906404.613 | I155: 5935752.94 | J155: 6198321.503
A156: (+) Amortizacion | F156: =+F64 -> 0 | G156: =+G64 -> 0 | H156: 0 | I156: 0 | J156: 0
A157: EBITDA | F157: =SUM(F154:F156) -> 160167017.9 | G157: =SUM(G154:G156) -> 164394119.4 | H157: 168742150 | I157: 173656570.7 | J157: 178615322.1
A159: VALOR PRESENTE FLUJOS DE CAJA PROYECTADOS | F159: =F153 -> 2021 | G159: =G153 -> 2022 | H159: =H153 -> 2023 | I159: =I153 -> 2024 | J159: =J153 -> 2025
A160: Costo de Capital | F160: =+F49 -> 0.1572629447 | G160: =+G49 -> 0.157253132 | H160: 0.1572543882 | I160: 0.1572550426 | J160: 0.1572552119
A161: Tasa Acumulada | F161: =+F98 -> 0.1572629447 | G161: =+G98 -> 0.3392461673 | H161: 0.549848504 | I161: 0.7935699964 | J161: 1.075618226
A163: EBITDA PROYECTADO | F163: =+F157 -> 160167017.9 | G163: =+G157 -> 164394119.4 | H163: 168742150 | I163: 173656570.7 | J163: 178615322.1
A165: Valor presente Flujos de caja Proyectados | F165: =+F163/(1+F161) -> 138401578.1 | G165: =+G163/(1+G161) -> 122751233.8 | H165: 108876544.7 | I165: 96821741.56 | J165: 86054034.35
A167: (+) VALOR PRESENTO DE LOS FLUJOS | F167: =+SUM(F165:J165) -> 552905132.6
A169: Valor de mercado de la empresa | F169: =+F167 -> 552905132.6
A170: (Menos) Deuda operacional (Pasivo Corriente - Oblig.Finan CP) | F170: =+F111 -> 796780478.5
A171: (Más) Activo corriente (Disp. Inver, Clientes, Invet.) | F171: =+F112 -> 2241598537
A172: (Menos) Deuda financiera CP + LP | F172: 150000
A173: VALOR DE MERCADO DEL PATRIMONIO | F173: =+F169-F170+F171-F172 -> 1997573191
A175: Patrimonio contable | F175: =+F116 -> 1060745005
A177: Numero de Acciones | F177: =+F118 -> 180000 | G177: Valor Hipotético
A178: Valor en Libros por acción | F178: =+F175/F177 -> 5893.027808
A179: Valor de Mercado de la Acción | F179: =+F175 -> 1060745005
A180: P/BV | F180: =+F173/F179 -> 1.883179446
A185: RESUMEN RESULTADOS DE VALORACIÓN
A187: Método | F187: Valor Empresa Ultimo Conocido | G187: Ultimo Patrimonio Real | H187: Valor Creado Proyectado 5 Años | I187: P/BV | J187: P/BV Sector (Damodaran) | K187: Diferencia | O187: Niveles | P187: Valor | Q187: Método
A188: Patrimonial | F188: =+'Analisis Financiero'!Q71 -> 1279398914 | G188: =+$F$175 -> 1060745005 | H188: =+F188-G188 -> 218653908.1 | I188: =+F188/G188 -> 1.206132395 | J188: 1.97 | K188: =+I188-J188 -> -0.7638676053 | O188: Nivel Alto | P188: =+AVERAGE(F190:F191) -> 1846932123 | Q188: Dinámicos
A189: Sustancial Neto | F189: =+'Valoración Sin Estrategia'!J141 -> 2044515875 | G189: =+$F$175 -> 1060745005 | H189: =+F189-G189 -> 983770869.7 | I189: =+F189/G189 -> 1.927433893 | J189: 1.97 | K189: =+I189-J189 -> -0.04256610712 | O189: Nivel Medio | P189: =+L190 -> 1754444759 | Q189: Promedio
A190: EBITDA | F190: =+'Valoración Sin Estrategia'!F173 -> 1997573191 | G190: 1060745005 | H190: 936828185.8 | I190: 1.883179446 | J190: 1.97 | K190: -0.08682055436 | L190: =+AVERAGE(F188:F191) -> 1754444759 | N190: =L190/G188 -> 1.653974094 | O190: Nivel Bajo | P190: =+AVERAGE(F188:F189) -> 1661957394 | Q190: Contable
A191: FCLD | F191: =+F114 -> 1696291056 | G191: 1060745005 | H191: 635546050.4 | I191: 1.599150641 | J191: 1.97 | K191: -0.3708493586 | N191: Valor Medio

Sheet Indicadores
C1: MATRIZ RAZONES FINANCIERAS
B3: R/I | C3: 2014 | D3: 2015 | E3: 2016 | F3: 2017 | G3: 2018 | H3: 2019 | I3: 2020 | J3: 2021 | K3: 2022 | L3: 2023 | M3: 2024 | N3: 2025 | P3: 2016 S | Q3: 2017 S | R3: 2018 S | S3: 2019 S | T3: 2020 S | U3: Promedio Sector
A5: 0. Análisis vertical | B5: Importancia Activo corriente | C5: =+'Estados financieros + Estrategi'!F49/'Estados financieros + Estrategi'!F58 -> 0.9950987758 | D5: =+'Estados financieros + Estrategi'!G49/'Estados financieros + Estrategi'!G58 -> 0.9949709346 | E5: =+'Estados financieros + Estrategi'!H49/'Estados financieros + Estrategi'!H58 -> 0.9950494032 | F5: =+'Estados financieros + Estrategi'!I49/'Estados financieros + Estrategi'!I58 -> 0.993941263 | G5: =+'Estados financieros + Estrategi'!J49/'Estados financieros + Estrategi'!J58 -> 0.994858477 | H5: =+'Estados financieros + Estrategi'!K49/'Estados financieros + Estrategi'!K58 -> 0.9941250222 | I5: =+'Estados financieros + Estrategi'!L49/'Estados financieros + Estrategi'!L58 -> 0.9931107625 | J5: =+'Estados financieros + Estrategi'!M49/'Estados financieros + Estrategi'!M58 -> 0.9921209201 | K5: =+'Estados financieros + Estrategi'!N49/'Estados financieros + Estrategi'!N58 -> 0.9910309856 | L5: =+'Estados financieros + Estrategi'!O49/'Estados financieros + Estrategi'!O58 -> 0.9895247936 | M5: =+'Estados financieros + Estrategi'!P49/'Estados financieros + Estrategi'!P58 -> 0.9887401798 | N5: =+'Estados financieros + Estrategi'!Q49/'Estados financieros + Estrategi'!Q58 -> 0.9879249751 | P5: =Info_Sector!B6/Info_Sector!B11 -> 0.7801534692 | Q5: =Info_Sector!C6/Info_Sector!C11 -> 0.7879427631 | R5: =Info_Sector!D6/Info_Sector!D11 -> 0.7636393081 | S5: =Info_Sector!E6/Info_Sector!E11 -> 0.7662545472 | T5: =Info_Sector!F6/Info_Sector!F11 -> 0.7573668152 | V5: Activo corriente / Total de activos
A6: 0. Análisis vertical | B6: Importancia Activo no corriente | C6: =+'Estados financieros + Estrategi'!F56/'Estados financieros + Estrategi'!F58 -> 0.004901224215 | D6: =+'Estados financieros + Estrategi'!G56/'Estados financieros + Estrategi'!G58 -> 0.0050290654 | E6: =+'Estados financieros + Estrategi'!H56/'Estados financieros + Estrategi'!H58 -> 0.004950596847 | F6: =+'Estados financieros + Estrategi'!I56/'Estados financieros + Estrategi'!I58 -> 0.006058737048 | G6: =+'Estados financieros + Estrategi'!J56/'Estados financieros + Estrategi'!J58 -> 0.005141523035 | H6: =+'Estados financieros + Estrategi'!K56/'Estados financieros + Estrategi'!K58 -> 0.005874977798 | I6: =+'Estados financieros + Estrategi'!L56/'Estados financieros + Estrategi'!L58 -> 0.006889237497 | J6: =+'Estados financieros + Estrategi'!M56/'Estados financieros + Estrategi'!M58 -> 0.007879079903 | K6: =+'Estados financieros + Estrategi'!N56/'Estados financieros + Estrategi'!N58 -> 0.008969014363 | L6: =+'Estados financieros + Estrategi'!O56/'Estados financieros + Estrategi'!O58 -> 0.01047520643 | M6: =+'Estados financieros + Estrategi'!P56/'Estados financieros + Estrategi'!P58 -> 0.01125982022 | N6: =+'Estados financieros + Estrategi'!Q56/'Estados financieros + Estrategi'!Q58 -> 0.01207502487 | P6: =Info_Sector!B10/Info_Sector!B11 -> 0.2198465308 | Q6: =Info_Sector!C10/Info_Sector!C11 -> 0.2120572369 | R6: =Info_Sector!D10/Info_Sector!D11 -> 0.2363606919 | S6: =Info_Sector!E10/Info_Sector!E11 -> 0.2337454528 | T6: =Info_Sector!F10/Info_Sector!F11 -> 0.2426331848 | V6: Activo no corriente / Total de activos
A8: tabla 17. | C8: =+C3 -> 2014 | D8: =+D3 -> 2015 | E8: 2016 | F8: 2017 | G8: 2018 | H8: 2019 | I8: 2020 | J8: =+J3 -> 2021 | K8: 2022 | L8: 2023 | M8: 2024 | N8: 2025
A9: 1. Liquidez | B9: Capital de Trabajo | C9: =+'Estados financieros + Estrategi'!F49-'Estados financieros + Estrategi'!F66 -> 1807324765 | D9: =+'Estados financieros + Estrategi'!G49-'Estados financieros + Estrategi'!G66 -> 2043525262 | E9: =+'Estados financieros + Estrategi'!H49-'Estados financieros + Estrategi'!H66 -> 2329456931 | F9: =+'Estados financieros + Estrategi'!I49-'Estados financieros + Estrategi'!I66 -> 1703953089 | G9: =+'Estados financieros + Estrategi'!J49-'Estados financieros + Estrategi'!J66 -> 1444668059 | H9: =+'Estados financieros + Estrategi'!K49-'Estados financieros + Estrategi'!K66 -> 1359487033 | I9: =+'Estados financieros + Estrategi'!L49-'Estados financieros + Estrategi'!L66 -> 1382023164 | J9: =+'Estados financieros + Estrategi'!M49-'Estados financieros + Estrategi'!M66 -> 1269845903 | K9: =+'Estados financieros + Estrategi'!N49-'Estados financieros + Estrategi'!N66 -> 1085227368 | L9: =+'Estados financieros + Estrategi'!O49-'Estados financieros + Estrategi'!O66 -> 889428155.3 | M9: =+'Estados financieros + Estrategi'!P49-'Estados financieros + Estrategi'!P66 -> 817353284.4 | N9: =+'Estados financieros + Estrategi'!Q49-'Estados financieros + Estrategi'!Q66 -> 755565140.7 | P9: =Info_Sector!B13-Info_Sector!B15 -> 1065915739 | Q9: =Info_Sector!C13-Info_Sector!C15 -> 1033081961 | R9: =Info_Sector!D13-Info_Sector!D15 -> 1112286512 | S9: =Info_Sector!E13-Info_Sector!E15 -> 1304341967 | T9: =Info_Sector!F13-Info_Sector!F15 -> 1225943761 | V9: Activo Corriente - Pasivo Corriente
A10: 1. Liquidez | B10: Razon Corriente | C10: =+'Estados financieros + Estrategi'!F49/'Estados financieros + Estrategi'!F66 -> 2.546380333 | D10: =+'Estados financieros + Estrategi'!G49/'Estados financieros + Estrategi'!G66 -> 2.310767049 | E10: =+'Estados financieros + Estrategi'!H49/'Estados financieros + Estrategi'!H66 -> 7.47705756 | F10: =+'Estados financieros + Estrategi'!I49/'Estados financieros + Estrategi'!I66 -> 5.107716519 | G10: =+'Estados financieros + Estrategi'!J49/'Estados financieros + Estrategi'!J66 -> 2.812790573 | H10: =+'Estados financieros + Estrategi'!K49/'Estados financieros + Estrategi'!K66 -> 1.849855474 | I10: =+'Estados financieros + Estrategi'!L49/'Estados financieros + Estrategi'!L66 -> 3.414747886 | J10: =+'Estados financieros + Estrategi'!M49/'Estados financieros + Estrategi'!M66 -> 3.018327798 | K10: =+'Estados financieros + Estrategi'!N49/'Estados financieros + Estrategi'!N66 -> 2.562331002 | L10: =+'Estados financieros + Estrategi'!O49/'Estados financieros + Estrategi'!O66 -> 2.208827901 | M10: =+'Estados financieros + Estrategi'!P49/'Estados financieros + Estrategi'!P66 -> 2.061705825 | N10: =+'Estados financieros + Estrategi'!Q49/'Estados financieros + Estrategi'!Q66 -> 1.932478097 | P10: =Info_Sector!B6/Info_Sector!B13 -> 1.524655436 | Q10: =Info_Sector!C6/Info_Sector!C13 -> 1.61043618 | R10: =Info_Sector!D6/Info_Sector!D13 -> 1.613600604 | S10: =Info_Sector!E6/Info_Sector!E13 -> 1.589260681 | T10: =Info_Sector!F6/Info_Sector!F13 -> 1.706291399 | V10: Activo Corriente / Pasivo Corriente
A11: 1. Liquidez | B11: Prueba Acida | C11: =+('Estados financieros + Estrategi'!F49-'Estados financieros + Estrategi'!F47)/'Estados financieros + Estrategi'!F66 -> 2.017335933 | D11: =+('Estados financieros + Estrategi'!G49-'Estados financieros + Estrategi'!G47)/'Estados financieros + Estrategi'!G66 -> 1.771089972 | E11: =+('Estados financieros + Estrategi'!H49-'Estados financieros + Estrategi'!H47)/'Estados financieros + Estrategi'!H66 -> 3.122241816 | F11: =+('Estados financieros + Estrategi'!I49-'Estados financieros + Estrategi'!I47)/'Estados financieros + Estrategi'!I66 -> 2.843269028 | G11: =+('Estados financieros + Estrategi'!J49-'Estados financieros + Estrategi'!J47)/'Estados financieros + Estrategi'!J66 -> 1.458033053 | H11: =+('Estados financieros + Estrategi'!K49-'Estados financieros + Estrategi'!K47)/'Estados financieros + Estrategi'!K66 -> 1.086148341 | I11: =+('Estados financieros + Estrategi'!L49-'Estados financieros + Estrategi'!L47)/'Estados financieros + Estrategi'!L66 -> 1.650568074 | J11: =+('Estados financieros + Estrategi'!M49-'Estados financieros + Estrategi'!M47)/'Estados financieros + Estrategi'!M66 -> 1.41350511 | K11: =+('Estados financieros + Estrategi'!N49-'Estados financieros + Estrategi'!N47)/'Estados financieros + Estrategi'!N66 -> 1.225038171 | L11: =+('Estados financieros + Estrategi'!O49-'Estados financieros + Estrategi'!O47)/'Estados financieros + Estrategi'!O66 -> 1.148336646 | M11: =+('Estados financieros + Estrategi'!P49-'Estados financieros + Estrategi'!P47)/'Estados financieros + Estrategi'!P66 -> 1.078556215 | N11: =+('Estados financieros + Estrategi'!Q49-'Estados financieros + Estrategi'!Q47)/'Estados financieros + Estrategi'!Q66 -> 1.026404064 | P11: =(Info_Sector!B6-Info_Sector!B7)/Info_Sector!B13 -> 0.9331409295 | Q11: =(Info_Sector!C6-Info_Sector!C7)/Info_Sector!C13 -> 0.9814537244 | R11: =(Info_Sector!D6-Info_Sector!D7)/Info_Sector!D13 -> 1.015042015 | S11: =(Info_Sector!E6-Info_Sector!E7)/Info_Sector!E13 -> 1.020776198 | T11: =(Info_Sector!F6-Info_Sector!F7)/Info_Sector!F13 -> 1.081428281 | V11: (Activo Corriente - Inventarios) / Pasivo Corriente
C13: =+C$3 -> 2014 | D13: 2015 | E13: 2016 | F13: 2017 | G13: 2018 | H13: 2019 | I13: 2020 | J13: 2021 | K13: 2022 | L13: 2023 | M13: 2024 | N13: 2025 | P13: 2016 S | Q13: 2017 S | R13: 2018 S | S13: 2019 S | T13: 2020 S | U13: Promedio Sector
A14: 2. Capital de trabajo | B14: Cuentas por cobrar comerciales | C14: =+'Estados financieros + Estrategi'!F46 -> 1065020951 | D14: =+'Estados financieros + Estrategi'!G46 -> 1830114438 | E14: =+'Estados financieros + Estrategi'!H46 -> 891491929 | F14: =+'Estados financieros + Estrategi'!I46 -> 763400000 | G14: =+'Estados financieros + Estrategi'!J46 -> 991219221 | H14: =+'Estados financieros + Estrategi'!K46 -> 1413051717 | I14: =+'Estados financieros + Estrategi'!L46 -> 839532488 | J14: =+'Estados financieros + Estrategi'!M46 -> 772369889 | K14: =+'Estados financieros + Estrategi'!N46 -> 726027695.6 | L14: =+'Estados financieros + Estrategi'!O46 -> 711507141.7 | M14: =+'Estados financieros + Estrategi'!P46 -> 690161927.5 | N14: =+'Estados financieros + Estrategi'!Q46 -> 683260308.2
A15: 2. Capital de trabajo | B15: Inventario | C15: =+'Estados financieros + Estrategi'!F47 -> 618318163 | D15: =+'Estados financieros + Estrategi'!G47 -> 841372799.1 | E15: =+'Estados financieros + Estrategi'!H47 -> 1566198173 | F15: =+'Estados financieros + Estrategi'!I47 -> 939332663.1 | G15: =+'Estados financieros + Estrategi'!J47 -> 1079647558 | H15: =+'Estados financieros + Estrategi'!K47 -> 1221678245 | I15: =+'Estados financieros + Estrategi'!L47 -> 1009686096 | J15: =+'Estados financieros + Estrategi'!M47 -> 1009686096 | K15: =+'Estados financieros + Estrategi'!N47 -> 928911208.2 | L15: =+'Estados financieros + Estrategi'!O47 -> 780285414.9 | M15: =+'Estados financieros + Estrategi'!P47 -> 756876852.5 | N15: =+'Estados financieros + Estrategi'!Q47 -> 734170546.9
A16: 2. Capital de trabajo | B16: KTO ( Capital de trabajo operativo) | C16: =+C14+C15 -> 1683339114 | D16: =+'Estados financieros + Estrategi'!G46+'Estados financieros + Estrategi'!G47 -> 2671487237 | E16: =+'Estados financieros + Estrategi'!H46+'Estados financieros + Estrategi'!H47 -> 2457690102 | F16: =+'Estados financieros + Estrategi'!I46+'Estados financieros + Estrategi'!I47 -> 1702732663 | G16: =+'Estados financieros + Estrategi'!J46+'Estados financieros + Estrategi'!J47 -> 2070866779 | H16: =+'Estados financieros + Estrategi'!K46+'Estados financieros + Estrategi'!K47 -> 2634729962 | I16: =+'Estados financieros + Estrategi'!L46+'Estados financieros + Estrategi'!L47 -> 1849218584 | J16: =+'Estados financieros + Estrategi'!M46+'Estados financieros + Estrategi'!M47 -> 1782055985 | K16: =+'Estados financieros + Estrategi'!N46+'Estados financieros + Estrategi'!N47 -> 1654938904 | L16: =+'Estados financieros + Estrategi'!O46+'Estados financieros + Estrategi'!O47 -> 1491792557 | M16: =+'Estados financieros + Estrategi'!P46+'Estados financieros + Estrategi'!P47 -> 1447038780 | N16: =+'Estados financieros + Estrategi'!Q46+'Estados financieros + Estrategi'!Q47 -> 1417430855 | P16: =Info_Sector!B8+Info_Sector!B7 -> 1849204870 | Q16: =Info_Sector!C8+Info_Sector!C7 -> 2045511490 | R16: =Info_Sector!D8+Info_Sector!D7 -> 2189554568 | S16: =Info_Sector!E8+Info_Sector!E7 -> 2521950276 | T16: =Info_Sector!F8+Info_Sector!F7 -> 2450404241 | V16: Cxc clientes + Inventario
A17: 2. Capital de trabajo | B17: Ingresos Operacionales | C17: =+'Estados financieros + Estrategi'!F89 -> 5323304022 | D17: =+'Estados financieros + Estrategi'!G89 -> 4748882979 | E17: =+'Estados financieros + Estrategi'!H89 -> 3122271394 | F17: =+'Estados financieros + Estrategi'!I89 -> 2689197433 | G17: =+'Estados financieros + Estrategi'!J89 -> 2172288959 | H17: =+'Estados financieros + Estrategi'!K89 -> 3105641403 | I17: =+'Estados financieros + Estrategi'!L89 -> 2369300666 | J17: =+'Estados financieros + Estrategi'!M89 -> 2635610061 | K17: =+'Estados financieros + Estrategi'!N89 -> 2815042394 | L17: =+'Estados financieros + Estrategi'!O89 -> 3006690480 | M17: =+'Estados financieros + Estrategi'!P89 -> 3158829018 | N17: =+'Estados financieros + Estrategi'!Q89 -> 3344694518
A18: 2. Capital de trabajo | B18: PKTO (Productividad KTO) | C18: =C17/Indicadores!C16 -> 3.162347965 | D18: =D17/Indicadores!D16 -> 1.777617693 | E18: =E17/Indicadores!E16 -> 1.270408906 | F18: =F17/Indicadores!F16 -> 1.579342131 | G18: =G17/Indicadores!G16 -> 1.048975714 | H18: =H17/Indicadores!H16 -> 1.178732336 | I18: =I17/Indicadores!I16 -> 1.281244244 | J18: =J17/Indicadores!J16 -> 1.478971527 | K18: =K17/Indicadores!K16 -> 1.700994754 | L18: =L17/Indicadores!L16 -> 2.015488324 | M18: =M17/Indicadores!M16 -> 2.182960859 | N18: =N17/Indicadores!N16 -> 2.359687956 | P18: =Info_Sector!B22/Indicadores!P16 -> 2.834092002 | Q18: =Info_Sector!C22/Indicadores!Q16 -> 2.502047417 | R18: =Info_Sector!D22/Indicadores!R16 -> 2.521110855 | S18: =Info_Sector!E22/Indicadores!S16 -> 2.565025193 | T18: =Info_Sector!F22/Indicadores!T16 -> 2.307221707 | U18: =+AVERAGE(P18:T18) -> 2.545899435 | V18: Ingresos operacionales / KTO
A20: 2. Capital de trabajo | B20: Figura 16 Estructura del KTNO | C20: =+C$3 -> 2014 | D20: =+D3 -> 2015 | E20: 2016 | F20: 2017 | G20: 2018 | H20: 2019 | I20: 2020 | J20: 2021 | K20: 2022 | L20: 2023 | M20: 2024 | N20: 2025
A21: 2. Capital de trabajo | B21: Cuentas por cobrar comerciales | C21: =+'Estados financieros + Estrategi'!F46 -> 1065020951 | D21: =+'Estados financieros + Estrategi'!G46 -> 1830114438 | E21: =+'Estados financieros + Estrategi'!H46 -> 891491929 | F21: =+'Estados financieros + Estrategi'!I46 -> 763400000 | G21: =+'Estados financieros + Estrategi'!J46 -> 991219221 | H21: =+'Estados financieros + Estrategi'!K46 -> 1413051717 | I21: =+'Estados financieros + Estrategi'!L46 -> 839532488 | J21: =+'Estados financieros + Estrategi'!M46 -> 772369889 | K21: =+'Estados financieros + Estrategi'!N46 -> 726027695.6 | L21: =+'Estados financieros + Estrategi'!O46 -> 711507141.7 | M21: =+'Estados financieros + Estrategi'!P46 -> 690161927.5 | N21: =+'Estados financieros + Estrategi'!Q46 -> 683260308.2
A22: 2. Capital de trabajo | B22: Inventarios | C22: =+'Estados financieros + Estrategi'!F47 -> 618318163 | D22: =+'Estados financieros + Estrategi'!G47 -> 841372799.1 | E22: =+'Estados financieros + Estrategi'!H47 -> 1566198173 | F22: =+'Estados financieros + Estrategi'!I47 -> 939332663.1 | G22: =+'Estados financieros + Estrategi'!J47 -> 1079647558 | H22: =+'Estados financieros + Estrategi'!K47 -> 1221678245 | I22: =+'Estados financieros + Estrategi'!L47 -> 1009686096 | J22: =+'Estados financieros + Estrategi'!M47 -> 1009686096 | K22: =+'Estados financieros + Estrategi'!N47 -> 928911208.2 | L22: =+'Estados financieros + Estrategi'!O47 -> 780285414.9 | M22: =+'Estados financieros + Estrategi'!P47 -> 756876852.5 | N22: =+'Estados financieros + Estrategi'!Q47 -> 734170546.9
A23: 2. Capital de trabajo | B23: Cuentas por pagar comerciales | C23: =+'Estados financieros + Estrategi'!F62++'Estados financieros + Estrategi'!F63 -> 714809437 | D23: =+'Estados financieros + Estrategi'!G62++'Estados financieros + Estrategi'!G63 -> 1149348635 | E23: =+'Estados financieros + Estrategi'!H62++'Estados financieros + Estrategi'!H63 -> 267392986 | F23: =+'Estados financieros + Estrategi'!I62++'Estados financieros + Estrategi'!I63 -> 250312395.4 | G23: =+'Estados financieros + Estrategi'!J62++'Estados financieros + Estrategi'!J63 -> 653305478.5 | H23: =+'Estados financieros + Estrategi'!K62++'Estados financieros + Estrategi'!K63 -> 1564733502 | I23: =+'Estados financieros + Estrategi'!L62++'Estados financieros + Estrategi'!L63 -> 458814017.7 | J23: =+'Estados financieros + Estrategi'!M62++'Estados financieros + Estrategi'!M63 -> 510384713.3 | K23: =+'Estados financieros + Estrategi'!N62++'Estados financieros + Estrategi'!N63 -> 545131704.5 | L23: =+'Estados financieros + Estrategi'!O62++'Estados financieros + Estrategi'!O63 -> 582244271 | M23: =+'Estados financieros + Estrategi'!P62++'Estados financieros + Estrategi'!P63 -> 611705831.1 | N23: =+'Estados financieros + Estrategi'!Q62++'Estados financieros + Estrategi'!Q63 -> 647698602.2
A24: 2. Capital de trabajo | B24: KTNO ( Capital de trabajo Neto Operativo) | C24: =+C21+C22-C23 -> 968529677 | D24: =+D21+D22-D23 -> 1522138602 | E24: 2190297116 | F24: 1452420268 | G24: 1417561301 | H24: 1069996460 | I24: 1390404566 | J24: 1271671272 | K24: 1109807199 | L24: 909548285.6 | M24: 835332948.8 | N24: 769732252.9 | P24: =P16-Info_Sector!B14 -> 996800200 | Q24: =Q16-Info_Sector!C14 -> 1157917691 | R24: =R16-Info_Sector!D14 -> 1090729568 | S24: =S16-Info_Sector!E14 -> 1327253142 | T24: =T16-Info_Sector!F14 -> 1321290169 | V24: KTO - CXP Proveedores
C26: =+C$3 -> 2014 | D26: =+D$3 -> 2015 | E26: 2016 | F26: 2017 | G26: 2018 | H26: 2019 | I26: 2020 | J26: 2021 | K26: 2022 | L26: 2023 | M26: 2024 | N26: 2025
B27: EBITDA | C27: =+C101 -> 0.2027160393 | D27: =+D101 -> 0.1765997415 | E27: 0.1219322101 | F27: 0.1244258313 | G27: 0.1469969333 | H27: -0.02339633211 | I27: 0.1105630371 | J27: =+J101 -> 0.138425751 | K27: 0.1749482763 | L27: 0.2109182105 | M27: 0.2214766301 | N27: 0.2429027567
B28: PKTO (Productividad KTO) | C28: =+C18 -> 3.162347965 | D28: =+D18 -> 1.777617693 | E28: 1.270408906 | F28: 1.579342131 | G28: 1.048975714 | H28: 1.178732336 | I28: 1.281244244 | J28: 1.478971527 | K28: 1.700994754 | L28: 2.015488324 | M28: 2.182960859 | N28: 2.359687956
A29: 2. Capital de trabajo | B29: PKTNO (Productividad KTNO) | C29: =+'Estados financieros + Estrategi'!F$89/Indicadores!C24 -> 5.496273525 | D29: =+'Estados financieros + Estrategi'!G$89/Indicadores!D24 -> 3.119875531 | E29: =+'Estados financieros + Estrategi'!H$89/Indicadores!E24 -> 1.425501303 | F29: =+'Estados financieros + Estrategi'!I$89/Indicadores!F24 -> 1.85152844 | G29: =+'Estados financieros + Estrategi'!J$89/Indicadores!G24 -> 1.532412713 | H29: =+'Estados financieros + Estrategi'!K$89/Indicadores!H24 -> 2.902478204 | I29: =+'Estados financieros + Estrategi'!L$89/Indicadores!I24 -> 1.704036885 | J29: =+'Estados financieros + Estrategi'!M$89/Indicadores!J24 -> 2.072556108 | K29: =+'Estados financieros + Estrategi'!N$89/Indicadores!K24 -> 2.536514807 | L29: =+'Estados financieros + Estrategi'!O$89/Indicadores!L24 -> 3.305696385 | M29: =+'Estados financieros + Estrategi'!P$89/Indicadores!M24 -> 3.781520917 | N29: =+'Estados financieros + Estrategi'!Q$89/Indicadores!N24 -> 4.345270067 | P29: =Info_Sector!B22/Indicadores!P24 -> 5.25764013 | Q29: =Info_Sector!C22/Indicadores!Q24 -> 4.419974564 | R29: =Info_Sector!D22/Indicadores!R24 -> 5.06093348 | S29: =Info_Sector!E22/Indicadores!S24 -> 4.873875064 | T29: =Info_Sector!F22/Indicadores!T24 -> 4.278867722 | V29: Ingresos operacionales / KTNO
A30: 2. Capital de trabajo | B30: PDC (Palanca de Crecimiento) KTO | C30: =+C28*C27 -> 0.6410586544 | D30: =+D28*D27 -> 0.3139268251 | E30: 0.1549037657 | F30: 0.1965109576 | G30: 0.1541962131 | H30: -0.0275780132 | I30: 0.1416582548 | J30: =+J28*J27 -> 0.2047277443 | K30: 0.2975861003 | L30: 0.4251031905 | M30: 0.4834748147 | N30: 0.5731747096 | P30: =P101*P18 -> 0.2166098535 | Q30: =Q101*Q18 -> 0.1570948042 | R30: =R101*R18 -> 0.1355260985 | S30: =S101*S18 -> 0.1746360645 | T30: =T101*T18 -> 0.2040245873 | V30: EBITDA% * PKTO
A31: 2. Capital de trabajo | B31: PDC (Palanca de Crecimiento) KTNO | C31: =+C27*C29 -> 1.1141828 | D31: =+D27*D29 -> 0.5509692124 | E31: 0.1738145245 | F31: 0.2303779654 | G31: 0.2252599693 | H31: -0.06790734398 | I31: 0.1884034933 | J31: =+J27*J29 -> 0.2868951357 | K31: 0.4437588933 | L31: 0.6972315659 | M31: 0.8375185093 | N31: 1.055478078 | P31: =P101*P29 -> 0.4018418094 | Q31: =Q101*Q29 -> 0.27751474 | R31: =R101*R29 -> 0.2720580763 | S31: =S101*S29 -> 0.3318307993 | T31: =T101*T29 -> 0.3783746566 | V31: EBITDA% * PKTNO
B33: Tabla 3. Nivel de endeudamiento | C33: =+C$3 -> 2014 | D33: =+D$3 -> 2015 | E33: 2016 | F33: 2017 | G33: 2018 | H33: 2019 | I33: 2020 | J33: 2021 | K33: 2022 | L33: 2023 | M33: 2024 | N33: 2025
B34: Endeudamiento a corto plazo | C34: =+'Cifras Historicas'!F39/'Cifras Historicas'!F46 -> 0.9585848078 | D34: =+'Cifras Historicas'!G39/'Cifras Historicas'!G46 -> 0.9809393792 | E34: =+'Cifras Historicas'!H39/'Cifras Historicas'!H46 -> 0.7006617398 | F34: =+'Cifras Historicas'!I39/'Cifras Historicas'!I46 -> 0.9222719678 | G34: =+'Cifras Historicas'!J39/'Cifras Historicas'!J46 -> 0.9829558266 | H34: =+'Cifras Historicas'!K39/'Cifras Historicas'!K46 -> 0.9679479365 | I34: =+'Cifras Historicas'!L39/'Cifras Historicas'!L46 -> 0.630897589 | J34: =+'Estados financieros + Estrategi'!M66/'Estados financieros + Estrategi'!M73 -> 0.9761504173 | K34: =+'Estados financieros + Estrategi'!N66/'Estados financieros + Estrategi'!N73 -> 0.9769094765 | L34: =+'Estados financieros + Estrategi'!O66/'Estados financieros + Estrategi'!O73 -> 0.9767214851 | M34: =+'Estados financieros + Estrategi'!P66/'Estados financieros + Estrategi'!P73 -> 0.97662821 | N34: =+'Estados financieros + Estrategi'!Q66/'Estados financieros + Estrategi'!Q73 -> 0.9764910276
B35: Endeudamiento a largo plazo | C35: =1-C34 -> 0.04141519223 | D35: =1-D34 -> 0.01906062077 | E35: 0.2993382602 | F35: 0.07772803217 | G35: 0.01704417343 | H35: 0.03205206354 | I35: 0.369102411 | J35: =1-J34 -> 0.02384958269 | K35: =1-K34 -> 0.02309052349 | L35: 0.02327851485 | M35: 0.02337178999 | N35: 0.02350897238
B36: Total Nivel de endeudamiento | C36: =+'Cifras Historicas'!F46/'Cifras Historicas'!F31 -> 0.4076734032 | D36: =+'Cifras Historicas'!G46/'Cifras Historicas'!G31 -> 0.4389469734 | E36: =+'Cifras Historicas'!H46/'Cifras Historicas'!H31 -> 0.1899352254 | F36: =+'Cifras Historicas'!I46/'Cifras Historicas'!I31 -> 0.2109963421 | G36: =+'Cifras Historicas'!J46/'Cifras Historicas'!J31 -> 0.3598238165 | H36: =+'Cifras Historicas'!K46/'Cifras Historicas'!K31 -> 0.5552022376 | I36: =+'Cifras Historicas'!L46/'Cifras Historicas'!L31 -> 0.460977975 | J36: =+'Estados financieros + Estrategi'!M73/'Estados financieros + Estrategi'!M58 -> 0.336729728 | K36: =+'Estados financieros + Estrategi'!N73/'Estados financieros + Estrategi'!N58 -> 0.3959111014 | L36: =+'Estados financieros + Estrategi'!O73/'Estados financieros + Estrategi'!O58 -> 0.4586633723 | M36: =+'Estados financieros + Estrategi'!P73/'Estados financieros + Estrategi'!P58 -> 0.4910505709 | N36: =+'Estados financieros + Estrategi'!Q73/'Estados financieros + Estrategi'!Q58 -> 0.5235294624
A38: 6. Endeudamiento | B38: Nivel de Endeudamiento | C38: =+'Estados financieros + Estrategi'!F73/'Estados financieros + Estrategi'!F58 -> 0.4076734032 | D38: =+'Estados financieros + Estrategi'!G73/'Estados financieros + Estrategi'!G58 -> 0.4389469734 | E38: =+'Estados financieros + Estrategi'!H73/'Estados financieros + Estrategi'!H58 -> 0.1899352254 | F38: =+'Estados financieros + Estrategi'!I73/'Estados financieros + Estrategi'!I58 -> 0.2109963421 | G38: =+'Estados financieros + Estrategi'!J73/'Estados financieros + Estrategi'!J58 -> 0.3598238165 | H38: =+'Estados financieros + Estrategi'!K73/'Estados financieros + Estrategi'!K58 -> 0.5552022376 | I38: =+'Estados financieros + Estrategi'!L73/'Estados financieros + Estrategi'!L58 -> 0.460977975 | J38: =+'Estados financieros + Estrategi'!M73/'Estados financieros + Estrategi'!M58 -> 0.336729728 | K38: =+'Estados financieros + Estrategi'!N73/'Estados financieros + Estrategi'!N58 -> 0.3959111014 | L38: =+'Estados financieros + Estrategi'!O73/'Estados financieros + Estrategi'!O58 -> 0.4586633723 | M38: =+'Estados financieros + Estrategi'!P73/'Estados financieros + Estrategi'!P58 -> 0.4910505709 | N38: =+'Estados financieros + Estrategi'!Q73/'Estados financieros + Estrategi'!Q58 -> 0.5235294624 | P38: =Info_Sector!B16/Info_Sector!B11 -> 0.6378176032 | Q38: =Info_Sector!C16/Info_Sector!C11 -> 0.6364786109 | R38: =Info_Sector!D16/Info_Sector!D11 -> 0.6323692094 | S38: =Info_Sector!E16/Info_Sector!E11 -> 0.6386126186 | T38: =Info_Sector!F16/Info_Sector!F11 -> 0.5956801401 | V38: Total Pasivo / Total Activo
A39: 6. Endeudamiento | B39: Cobertura de Intereses a UAII | C39: =('Estados financieros + Estrategi'!F100+BD_0!B166)/BD_0!B166 -> 1240.504167 | D39: =('Estados financieros + Estrategi'!G100+BD_0!C166)/BD_0!C166 -> 1018.63126 | E39: =('Estados financieros + Estrategi'!H100+BD_0!D166)/BD_0!D166 -> 3160.484694 | F39: =('Estados financieros + Estrategi'!I100+BD_0!E166)/BD_0!E166 -> 112.8847462 | G39: =('Estados financieros + Estrategi'!J100+BD_0!F166)/BD_0!F166 -> 27.37185965 | H39: =('Estados financieros + Estrategi'!K100+BD_0!G166)/BD_0!G166 -> -7124.326349 | I39: =('Estados financieros + Estrategi'!L100+BD_0!H166)/BD_0!H166 -> -442.4628507 | P39: =Info_Sector!B81/Indicadores!P100 -> 0.3147128423 | Q39: =Info_Sector!C81/Indicadores!Q100 -> 0.2933352236 | R39: =Info_Sector!D81/Indicadores!R100 -> 0.4555752121 | S39: =Info_Sector!E81/Indicadores!S100 -> 0.3502423217 | T39: =Info_Sector!F81/Indicadores!T100 -> 0.3228558182 | V39: UAII
A40: 6. Endeudamiento | B40: Cobertura de Intereses a Utilidad Operativa | C40: =('Estados financieros + Estrategi'!F94+BD_0!B166)/BD_0!B166 -> 1281.811262 | D40: =('Estados financieros + Estrategi'!G94+BD_0!C166)/BD_0!C166 -> 998.7537488 | E40: =('Estados financieros + Estrategi'!H94+BD_0!D166)/BD_0!D166 -> 4736.441088 | F40: =('Estados financieros + Estrategi'!I94+BD_0!E166)/BD_0!E166 -> 113.2945639 | G40: =('Estados financieros + Estrategi'!J94+BD_0!F166)/BD_0!F166 -> 31.92069986 | H40: =('Estados financieros + Estrategi'!K94+BD_0!G166)/BD_0!G166 -> -4731.37595 | I40: =('Estados financieros + Estrategi'!L94+BD_0!H166)/BD_0!H166 -> 440.4636053 | P40: =(Info_Sector!B81/Info_Sector!B62) -> 0.4884769324 | Q40: =(Info_Sector!C81/Info_Sector!C62) -> 0.4365072676 | R40: =(Info_Sector!D81/Info_Sector!D62) -> 0.7237572539 | S40: =(Info_Sector!E81/Info_Sector!E62) -> 0.5380409564 | T40: =(Info_Sector!F81/Info_Sector!F62) -> 0.4875886444 | V40: Utilidad Operativa/ Gasto por intereses
A41: 6. Endeudamiento | B41: Cobertura de Intereses a EBITDA | C41: =C100/BD_0!B166 -> 1297.66387 | D41: =D100/BD_0!C166 -> 1008.496423 | E41: =E100/BD_0!D166 -> 4880.9017 | F41: =F100/BD_0!E166 -> 114.2930727 | G41: =G100/BD_0!F166 -> 31.49094236 | H41: =H100/BD_0!G166 -> -4371.615286 | I41: =I100/BD_0!H166 -> 453.570873 | P41: =P39 -> 0.3147128423 | Q41: =Q39 -> 0.2933352236 | R41: =R39 -> 0.4555752121 | S41: 0.3502423217 | T41: 0.3228558182
A42: 6. Endeudamiento | B42: Cobertura de Intereses a FCL | D42: =D73/BD_0!C166 -> -4.606618233 | E42: =E73/BD_0!D166 -> -5332.538305 | F42: =F73/BD_0!E166 -> 350.6673849 | G42: =G73/BD_0!F166 -> 21.35902084 | H42: =H73/BD_0!G166 -> 13431.71252 | I42: =I73/BD_0!H166 -> -918.339522 | P42: =P73/Info_Sector!B81 -> 0 | Q42: =Q73/Info_Sector!C81 -> 0 | R42: =R73/Info_Sector!D81 -> 0 | S42: =S73/Info_Sector!E81 -> 0 | T42: =T73/Info_Sector!F81 -> 0
A43: 6. Endeudamiento | B43: Cobertura de P, P y E | C43: =+'Estados financieros + Estrategi'!F80/'Estados financieros + Estrategi'!F53 -> 120.8527851 | D43: =+'Estados financieros + Estrategi'!G80/'Estados financieros + Estrategi'!G53 -> 153.8667371 | E43: =+'Estados financieros + Estrategi'!H80/'Estados financieros + Estrategi'!H53 -> 163.6297197 | F43: =+'Estados financieros + Estrategi'!I80/'Estados financieros + Estrategi'!I53 -> 130.2257635 | G43: =+'Estados financieros + Estrategi'!J80/'Estados financieros + Estrategi'!J53 -> 124.5110017 | H43: =+'Estados financieros + Estrategi'!K80/'Estados financieros + Estrategi'!K53 -> 75.71054353 | I43: =+'Estados financieros + Estrategi'!L80/'Estados financieros + Estrategi'!L53 -> 78.24117332 | J43: =+'Estados financieros + Estrategi'!M80/'Estados financieros + Estrategi'!M53 -> 84.1811836 | K43: =+'Estados financieros + Estrategi'!N80/'Estados financieros + Estrategi'!N53 -> 67.35287447 | L43: =+'Estados financieros + Estrategi'!O80/'Estados financieros + Estrategi'!O53 -> 51.67789594 | M43: =+'Estados financieros + Estrategi'!P80/'Estados financieros + Estrategi'!P53 -> 45.20049334 | N43: =+'Estados financieros + Estrategi'!Q80/'Estados financieros + Estrategi'!Q53 -> 39.45917651 | P43: =Info_Sector!B18/Info_Sector!B9 -> 13.22249274 | Q43: =Info_Sector!C18/Info_Sector!C9 -> 15.46071977 | R43: =Info_Sector!D18/Info_Sector!D9 -> 14.92243465 | S43: =Info_Sector!E18/Info_Sector!E9 -> 25.40126091 | T43: =Info_Sector!F18/Info_Sector!F9 -> 2.814304506
A44: 6. Endeudamiento | B44: Concentracion de Endeudamiento a Corto Plazo | C44: =+'Estados financieros + Estrategi'!F66/'Estados financieros + Estrategi'!F73 -> 0.9585848078 | D44: =+'Estados financieros + Estrategi'!G66/'Estados financieros + Estrategi'!G73 -> 0.9809393792 | E44: =+'Estados financieros + Estrategi'!H66/'Estados financieros + Estrategi'!H73 -> 0.7006617398 | F44: =+'Estados financieros + Estrategi'!I66/'Estados financieros + Estrategi'!I73 -> 0.9222719678 | G44: =+'Estados financieros + Estrategi'!J66/'Estados financieros + Estrategi'!J73 -> 0.9829558266 | H44: =+'Estados financieros + Estrategi'!K66/'Estados financieros + Estrategi'!K73 -> 0.9679479365 | I44: =+'Estados financieros + Estrategi'!L66/'Estados financieros + Estrategi'!L73 -> 0.630897589 | J44: =+'Estados financieros + Estrategi'!M66/'Estados financieros + Estrategi'!M73 -> 0.9761504173 | K44: =+'Estados financieros + Estrategi'!N66/'Estados financieros + Estrategi'!N73 -> 0.9769094765 | L44: =+'Estados financieros + Estrategi'!O66/'Estados financieros + Estrategi'!O73 -> 0.9767214851 | M44: =+'Estados financieros + Estrategi'!P66/'Estados financieros + Estrategi'!P73 -> 0.97662821 | N44: =+'Estados financieros + Estrategi'!Q66/'Estados financieros + Estrategi'!Q73 -> 0.9764910276 | P44: =Info_Sector!B13/Info_Sector!B16 -> 0.8022538989 | Q44: =Info_Sector!C13/Info_Sector!C16 -> 0.7687185101 | R44: =Info_Sector!D13/Info_Sector!D16 -> 0.7483788618 | S44: =Info_Sector!E13/Info_Sector!E16 -> 0.7549886628 | T44: =Info_Sector!F13/Info_Sector!F16 -> 0.7451435553 | V44: Pasivo Corriente / Pasivo Total
A45: 6. Endeudamiento | B45: Concentracion de Endeudamiento a Largo Plazo | C45: =1-C44 -> 0.04141519223 | D45: =1-D44 -> 0.01906062077 | E45: 0.2993382602 | F45: 0.07772803217 | G45: 0.01704417343 | H45: 0.03205206354 | I45: 0.369102411 | J45: 0.02384958269 | K45: 0.02309052349 | L45: 0.02327851485 | M45: 0.02337178999 | N45: 0.02350897238 | P45: =Info_Sector!B15/Info_Sector!B16 -> 0.1977461011 | Q45: =Info_Sector!C15/Info_Sector!C16 -> 0.2312814899 | R45: =Info_Sector!D15/Info_Sector!D16 -> 0.2516211382 | S45: =Info_Sector!E15/Info_Sector!E16 -> 0.2450113372 | T45: =Info_Sector!F15/Info_Sector!F16 -> 0.2548564447 | V45: Pasivo No Corriente / Pasivo Total
C47: =+C3 -> 2014 | D47: =+D3 -> 2015 | E47: 2016 | F47: 2017 | G47: 2018 | H47: 2019 | I47: 2020 | J47: =+J3 -> 2021 | K47: 2022 | L47: 2023 | M47: 2024 | N47: 2025 | P47: 2016 S | Q47: 2017 S | R47: 2018 S | S47: 2019 S | T47: 2020 S | U47: Promedio Sector
A48: 0. Actividad | B48: Rotación del Patrimonio | C48: =+'Estados financieros + Estrategi'!F89/'Estados financieros + Estrategi'!F80 -> 3.004990303 | D48: =+'Estados financieros + Estrategi'!G89/'Estados financieros + Estrategi'!G80 -> 2.337692002 | E48: =+'Estados financieros + Estrategi'!H89/'Estados financieros + Estrategi'!H80 -> 1.426224503 | F48: =+'Estados financieros + Estrategi'!I89/'Estados financieros + Estrategi'!I80 -> 1.598896812 | G48: =+'Estados financieros + Estrategi'!J89/'Estados financieros + Estrategi'!J80 -> 1.505988141 | H48: =+'Estados financieros + Estrategi'!K89/'Estados financieros + Estrategi'!K80 -> 2.345643066 | I48: =+'Estados financieros + Estrategi'!L89/'Estados financieros + Estrategi'!L80 -> 2.233619441 | J48: =+'Estados financieros + Estrategi'!M89/'Estados financieros + Estrategi'!M80 -> 2.076010319 | K48: =+'Estados financieros + Estrategi'!N89/'Estados financieros + Estrategi'!N80 -> 2.59470746 | L48: =+'Estados financieros + Estrategi'!O89/'Estados financieros + Estrategi'!O80 -> 3.381736091 | M48: =+'Estados financieros + Estrategi'!P89/'Estados financieros + Estrategi'!P80 -> 3.866351734 | N48: =+'Estados financieros + Estrategi'!Q89/'Estados financieros + Estrategi'!Q80 -> 4.428906563 | P48: =Info_Sector!B22/Info_Sector!B18 -> 5.234162098 | Q48: =Info_Sector!C22/Info_Sector!C18 -> 4.661697665 | R48: =Info_Sector!D22/Info_Sector!D18 -> 4.240670315 | S48: =Info_Sector!E22/Info_Sector!E18 -> 4.469429233 | T48: =Info_Sector!F22/Info_Sector!F18 -> 3.331156523 | U48: =+AVERAGE(P48:T48) -> 4.387423167 | V48: Ventas / Patrimonio
A49: 0. Actividad | B49: Rotación del Activo total | C49: =+'Estados financieros + Estrategi'!F89/'Estados financieros + Estrategi'!F58 -> 1.77993568 | D49: =+'Estados financieros + Estrategi'!G89/'Estados financieros + Estrategi'!G58 -> 1.311569173 | E49: =+'Estados financieros + Estrategi'!H89/'Estados financieros + Estrategi'!H58 -> 1.155334231 | F49: =+'Estados financieros + Estrategi'!I89/'Estados financieros + Estrategi'!I58 -> 1.261535433 | G49: =+'Estados financieros + Estrategi'!J89/'Estados financieros + Estrategi'!J58 -> 0.9640977407 | H49: =+'Estados financieros + Estrategi'!K89/'Estados financieros + Estrategi'!K58 -> 1.043336787 | I49: =+'Estados financieros + Estrategi'!L89/'Estados financieros + Estrategi'!L58 -> 1.203970074 | J49: =+'Estados financieros + Estrategi'!M89/'Estados financieros + Estrategi'!M58 -> 1.376955929 | K49: =+'Estados financieros + Estrategi'!N89/'Estados financieros + Estrategi'!N58 -> 1.567433971 | L49: =+'Estados financieros + Estrategi'!O89/'Estados financieros + Estrategi'!O58 -> 1.830657611 | M49: =+'Estados financieros + Estrategi'!P89/'Estados financieros + Estrategi'!P58 -> 1.967777508 | N49: =+'Estados financieros + Estrategi'!Q89/'Estados financieros + Estrategi'!Q58 -> 2.110243491 | P49: =Info_Sector!B22/Info_Sector!B11 -> 1.895721374 | Q49: =Info_Sector!C22/Info_Sector!C11 -> 1.694626811 | R49: =Info_Sector!D22/Info_Sector!D11 -> 1.559000981 | S49: =Info_Sector!E22/Info_Sector!E11 -> 1.615195327 | T49: =Info_Sector!F22/Info_Sector!F11 -> 1.346852739 | U49: =+AVERAGE(P49:T49) -> 1.622279446 | V49: Ventas / Activo Total
A50: 0. Actividad | B50: Rotación de cartera | C50: =+'Estados financieros + Estrategi'!F46/'Estados financieros + Estrategi'!F89*365 -> 73.02469397 | D50: =+'Estados financieros + Estrategi'!G46/'Estados financieros + Estrategi'!G89*365 -> 140.6629249 | E50: =+'Estados financieros + Estrategi'!H46/'Estados financieros + Estrategi'!H89*365 -> 104.217255 | F50: =+'Estados financieros + Estrategi'!I46/'Estados financieros + Estrategi'!I89*365 -> 103.6149286 | G50: =+'Estados financieros + Estrategi'!J46/'Estados financieros + Estrategi'!J89*365 -> 166.5501333 | H50: =+'Estados financieros + Estrategi'!K46/'Estados financieros + Estrategi'!K89*365 -> 166.0732228 | I50: =+'Estados financieros + Estrategi'!L46/'Estados financieros + Estrategi'!L89*365 -> 129.3332512 | J50: =+'Estados financieros + Estrategi'!M46/'Estados financieros + Estrategi'!M89*365 -> 106.9638539 | K50: =+'Estados financieros + Estrategi'!N46/'Estados financieros + Estrategi'!N89*365 -> 94.1371645 | L50: =+'Estados financieros + Estrategi'!O46/'Estados financieros + Estrategi'!O89*365 -> 86.37407424 | M50: =+'Estados financieros + Estrategi'!P46/'Estados financieros + Estrategi'!P89*365 -> 79.74762232 | N50: =+'Estados financieros + Estrategi'!Q46/'Estados financieros + Estrategi'!Q89*365 -> 74.562867 | P50: =(Info_Sector!B8/Info_Sector!B22)*365 -> 70.51272742 | Q50: =(Info_Sector!C8/Info_Sector!C22)*365 -> 79.59656426 | R50: =(Info_Sector!D8/Info_Sector!D22)*365 -> 78.45731945 | S50: =(Info_Sector!E8/Info_Sector!E22)*365 -> 80.35977353 | T50: =(Info_Sector!F8/Info_Sector!F22)*365 -> 83.03478425 | U50: 78.39223378 | V50: (Cuentas Por Cobrar Clientes / Ventas ) * 365
A51: 0. Actividad | B51: Rotación de Inventarios | C51: =+'Estados financieros + Estrategi'!F47/'Estados financieros + Estrategi'!F90*365 -> 79.44874258 | D51: =+'Estados financieros + Estrategi'!G47/'Estados financieros + Estrategi'!G90*365 -> 109.6656363 | E51: =+'Estados financieros + Estrategi'!H47/'Estados financieros + Estrategi'!H90*365 -> 306.2864623 | F51: =+'Estados financieros + Estrategi'!I47/'Estados financieros + Estrategi'!I90*365 -> 228.9871857 | G51: =+'Estados financieros + Estrategi'!J47/'Estados financieros + Estrategi'!J90*365 -> 330.6608167 | H51: =+'Estados financieros + Estrategi'!K47/'Estados financieros + Estrategi'!K90*365 -> 192.7049528 | I51: =+'Estados financieros + Estrategi'!L47/'Estados financieros + Estrategi'!L90*365 -> 268.6316433 | J51: =+'Estados financieros + Estrategi'!M47/'Estados financieros + Estrategi'!M90*365 -> 239.8731131 | K51: =+'Estados financieros + Estrategi'!N47/'Estados financieros + Estrategi'!N90*365 -> 215.747922 | L51: =+'Estados financieros + Estrategi'!O47/'Estados financieros + Estrategi'!O90*365 -> 177.3756448 | M51: =+'Estados financieros + Estrategi'!P47/'Estados financieros + Estrategi'!P90*365 -> 166.0169371 | N51: =+'Estados financieros + Estrategi'!Q47/'Estados financieros + Estrategi'!Q90*365 -> 156.3353479 | P51: =(Info_Sector!B7/Info_Sector!B28)*365 -> 73.40147674 | Q51: =(Info_Sector!C7/Info_Sector!C28)*365 -> 83.01147109 | R51: =(Info_Sector!D7/Info_Sector!D28)*365 -> 83.83862296 | S51: =(Info_Sector!E7/Info_Sector!E28)*365 -> 77.65800654 | T51: =(Info_Sector!F7/Info_Sector!F28)*365 -> 97.73753746 | U51: 83.12942296 | V51: (Inventarios / Costo de Ventas) * 365
A52: 0. Actividad | B52: Ciclo Operacional | C52: =C50+C51 -> 152.4734366 | D52: =D50+D51 -> 250.3285612 | E52: 410.5037174 | F52: 332.6021143 | G52: 497.21095 | H52: 358.7781756 | I52: 397.9648945 | J52: =J50+J51 -> 346.836967 | K52: 309.8850865 | L52: 263.749719 | M52: 245.7645594 | N52: 230.8982149 | P52: =P50+P51 -> 143.9142042 | Q52: =Q50+Q51 -> 162.6080354 | R52: 162.2959424 | S52: 158.0177801 | T52: 180.7723217 | U52: 161.5216567 | V52: Periodo de Cobro + Rotacion de Inventarios
A53: 0. Actividad | B53: Periodo de Pago a Proveedores | C53: =('Estados financieros + Estrategi'!F62/'Estados financieros + Estrategi'!F90)*365 -> 20.72448849 | D53: =('Estados financieros + Estrategi'!G62/'Estados financieros + Estrategi'!G90)*365 -> 142.2335715 | E53: =('Estados financieros + Estrategi'!H62/'Estados financieros + Estrategi'!H90)*365 -> 47.44998753 | F53: =('Estados financieros + Estrategi'!I62/'Estados financieros + Estrategi'!I90)*365 -> 44.02908112 | G53: =('Estados financieros + Estrategi'!J62/'Estados financieros + Estrategi'!J90)*365 -> 164.6789476 | H53: =('Estados financieros + Estrategi'!K62/'Estados financieros + Estrategi'!K90)*365 -> 227.8977611 | I53: =('Estados financieros + Estrategi'!L62/'Estados financieros + Estrategi'!L90)*365 -> 72.5381542 | J53: =('Estados financieros + Estrategi'!M62/'Estados financieros + Estrategi'!M90)*365 -> 72.05296939 | K53: =('Estados financieros + Estrategi'!N62/'Estados financieros + Estrategi'!N90)*365 -> 75.23724578 | L53: =('Estados financieros + Estrategi'!O62/'Estados financieros + Estrategi'!O90)*365 -> 78.65109102 | M53: =('Estados financieros + Estrategi'!P62/'Estados financieros + Estrategi'!P90)*365 -> 79.73129603 | N53: =('Estados financieros + Estrategi'!Q62/'Estados financieros + Estrategi'!Q90)*365 -> 81.95816309 | P53: =(Info_Sector!B14/Info_Sector!B28)*365 -> 74.77431002 | Q53: =(Info_Sector!C14/Info_Sector!C28)*365 -> 79.27555652 | R53: =(Info_Sector!D14/Info_Sector!D28)*365 -> 91.84858004 | S53: =(Info_Sector!E14/Info_Sector!E28)*365 -> 84.51706631 | T53: =(Info_Sector!F14/Info_Sector!F28)*365 -> 94.78820517 | U53: 85.04074361 | V53: (Cuentas por pagar Proveedores / Costo de Ventas) * 365
A54: 0. Actividad | B54: CCE (Ciclo de conversión del efectivo) | C54: =+C52-C53 -> 131.7489481 | D54: =+D52-D53 -> 108.0949897 | E54: 363.0537298 | F54: 288.5730331 | G54: 332.5320024 | H54: 130.8804146 | I54: 325.4267403 | J54: =+J52-J53 -> 274.7839976 | K54: 234.6478408 | L54: 185.098628 | M54: 166.0332634 | N54: 148.9400519 | P54: 69.13989414 | Q54: 83.33247883 | R54: 70.44736237 | S54: 73.50071376 | T54: 85.98411654 | U54: 76.48091313
B56: Flujo de caja Libre
A58: 4. Estructura de caja | B58: FCL | D58: =+D$3 -> 2015 | E58: =+E3 -> 2016 | F58: =+F3 -> 2017 | G58: =+G3 -> 2018 | H58: =+H3 -> 2019 | I58: =+I3 -> 2020 | J58: =+J3 -> 2021 | K58: 2022 | L58: 2023 | M58: 2024 | N58: 2025
A59: 4. Estructura de caja | B59: * Utilidad Neta del Ejercicio | D59: =+'Estados financieros + Estrategi'!G102 -> 547490908.7 | E59: =+'Estados financieros + Estrategi'!H102 -> 157745646.7 | F59: =+'Estados financieros + Estrategi'!I102 -> 215263983.4 | G59: =+'Estados financieros + Estrategi'!J102 -> 170252046.6 | H59: =+'Estados financieros + Estrategi'!K102 -> -118430049.2 | I59: =+'Estados financieros + Estrategi'!L102 -> -256119251 | J59: =+'Estados financieros + Estrategi'!M102 -> 94118077.54 | K59: =+'Estados financieros + Estrategi'!N102 -> 206110308.6 | L59: =+'Estados financieros + Estrategi'!O102 -> 287400412.1 | M59: =+'Estados financieros + Estrategi'!P102 -> 322788443.8 | N59: =+'Estados financieros + Estrategi'!Q102 -> 386266667
A60: 4. Estructura de caja | B60: (+) Costos que no son salidas de Efectivo | D60: =+SUM(D61:D65) -> 5369989.291 | E60: =+SUM(E61:E65) -> 100279485.3 | F60: 75155570 | G60: 5782289 | H60: 5996203 | I60: 49785681 | J60: =+SUM(J61:J65) -> 86952423.27 | K60: 33648018.52 | L60: 29189244.72 | M60: 28486987.85 | N60: =+SUM(N61:N65) -> 27805798.68
A61: 4. Estructura de caja | B61: Depreciación del periodo | D61: =+'Estados financieros + Estrategi'!G107 -> 5369989.291 | E61: =+'Estados financieros + Estrategi'!H107 -> 5700966.32 | F61: =+'Estados financieros + Estrategi'!I107 -> 4097773 | G61: =+'Estados financieros + Estrategi'!J107 -> 5782289 | H61: =+'Estados financieros + Estrategi'!K107 -> 5996203 | I61: =+'Estados financieros + Estrategi'!L107 -> 8147566 | J61: 5780682.272 | K61: 5780682.272 | L61: 5780682.272 | M61: 5780682.272 | N61: 5780682.272
A62: 4. Estructura de caja | B62: Amortizaciones del periodo | D62: 0 | E62: 0 | F62: 0 | G62: 0 | H62: 0 | I62: 0 | J62: 0 | K62: 0 | L62: 0 | M62: 0 | N62: 0
A63: 4. Estructura de caja | B63: Deterioro de activos | D63: 0 | E63: 0 | F63: 0 | G63: 0 | H63: 0 | I63: 0 | J63: 0 | K63: 0 | L63: 0 | M63: 0 | N63: 0
A64: 4. Estructura de caja | B64: Provisiones protección de activos | D64: =+BD_0!C139 -> 0 | E64: =+BD_0!D139 -> 94578519 | F64: =+BD_0!E139 -> 71057797 | G64: =+BD_0!F139 -> 0 | H64: =+BD_0!G139 -> 0 | I64: =+BD_0!H139 -> 41638115 | J64: =+'Estrategias Operativas'!E36 -> 81171741 | K64: =+'Estrategias Operativas'!F36 -> 27867336.25 | L64: =+'Estrategias Operativas'!G36 -> 23408562.45 | M64: =+'Estrategias Operativas'!H36 -> 22706305.57 | N64: =+'Estrategias Operativas'!I36 -> 22025116.41
A65: 4. Estructura de caja | B65: Pérdida en venta de activos | D65: 0 | E65: 0 | F65: 0 | G65: 0 | H65: 0 | I65: 0 | J65: 0 | K65: 0 | L65: 0 | M65: 0 | N65: 0
A66: 4. Estructura de caja | B66: (-) Utilidad en venta de activos | D66: =BD_0!C155 -> 86207 | E66: =BD_0!D155 -> 0 | F66: =BD_0!E155 -> 200000 | G66: =BD_0!F155 -> 0 | H66: =BD_0!G155 -> 0 | I66: =BD_0!H155 -> 0 | J66: 0 | K66: 0 | L66: 0 | M66: 0 | N66: 0
A67: 4. Estructura de caja | B67: (+) Gastos financieros | D67: =+BD_0!C144 -> 831585.83 | E67: =+BD_0!D144 -> 77999.35 | F67: =+BD_0!E144 -> 2927610.73 | G67: =+BD_0!F144 -> 10140052.7 | H67: =+BD_0!G144 -> 16621 | I67: =+BD_0!H144 -> 577543.87 | J67: =+'Estados financieros + Estrategi'!M98 -> 2726000.132 | K67: =+'Estados financieros + Estrategi'!N98 -> 2911586.221 | L67: =+'Estados financieros + Estrategi'!O98 -> 3109807.011 | M67: =+'Estados financieros + Estrategi'!P98 -> 3267163.246 | N67: =+'Estados financieros + Estrategi'!Q98 -> 3459403.131
A68: 4. Estructura de caja | B68: (=) FCB (Flujo de Caja Bruto ) | D68: =+D59+D60-D66+D67 -> 553606276.9 | E68: 258103131.4 | F68: 293147164.1 | G68: 186174388.3 | H68: -112417225.2 | I68: -205756026.1 | J68: =+J59+J60-J66+J67 -> 183796500.9 | K68: 242669913.3 | L68: 319699463.8 | M68: 354542594.9 | N68: 417531868.8
A69: 4. Estructura de caja | B69: (-) Aumento del KTNO | D69: =IF((D24-C24)>0,(D24-C24),0) -> 553608924.8 | E69: 668158514.3 | F69: 0 | G69: 0 | H69: 0 | I69: 320408106.3 | J69: =IF((J24-I24)>0,(J24-I24),0) -> 0 | K69: =IF((K24-J24)>0,(K24-J24),0) -> 0 | L69: =IF((L24-K24)>0,(L24-K24),0) -> 0 | M69: =IF((M24-L24)>0,(M24-L24),0) -> 0 | N69: =IF((N24-M24)>0,(N24-M24),0) -> 0
A70: 4. Estructura de caja | B70: (+) Disminución del KTNO | D70: =IF((D24-C24)<0,-(D24-C24),0) -> 0 | E70: 0 | F70: 737876848.5 | G70: 34858966.67 | H70: 347564841 | I70: 0 | J70: =IF((J24-I24)<0,-(J24-I24),0) -> 118733294.7 | K70: =IF((K24-J24)<0,-(K24-J24),0) -> 161864072.3 | L70: =IF((L24-K24)<0,-(L24-K24),0) -> 200258913.7 | M70: =IF((M24-L24)<0,-(M24-L24),0) -> 74215336.81 | N70: =IF((N24-M24)<0,-(N24-M24),0) -> 65600695.95
A71: 4. Estructura de caja | B71: (-) Inversión PPyE | D71: =IF(((BD_0!C37+D61)-(BD_0!B37+(BD_0!C155-BD_0!C146)))<0,0,((BD_0!C37+D61)-(BD_0!B37+(BD_0!C155-BD_0!C146)))) -> 3828151.291 | E71: =IF(((BD_0!D37+E61)-(BD_0!C37+(BD_0!D155-BD_0!D146)))<0,0,((BD_0!D37+E61)-(BD_0!C37+(BD_0!D155-BD_0!D146)))) -> 5877272.32 | F71: =IF(((BD_0!E37+F61)-(BD_0!D37+(BD_0!E155-BD_0!E146)))<0,0,((BD_0!E37+F61)-(BD_0!D37+(BD_0!E155-BD_0!E146)))) -> 4406414 | G71: =IF(((BD_0!F37+G61)-(BD_0!E37+(BD_0!F155-BD_0!F146)))<0,0,((BD_0!F37+G61)-(BD_0!E37+(BD_0!F155-BD_0!F146)))) -> 4451758 | H71: =IF(((BD_0!G37+H61)-(BD_0!F37+(BD_0!G155-BD_0!G146)))<0,0,((BD_0!G37+H61)-(BD_0!F37+(BD_0!G155-BD_0!G146)))) -> 11899122 | I71: =IF(((BD_0!H37+I61)-(BD_0!G37+(BD_0!H155-BD_0!H146)))<0,0,((BD_0!H37+I61)-(BD_0!G37+(BD_0!H155-BD_0!H146)))) -> 4217229 | J71: 0 | K71: 0 | L71: 0 | M71: 0 | N71: 0
A72: 4. Estructura de caja | B72: (+) Venta de PPy E | D72: =IF(((BD_0!C37+D61)-(BD_0!B37+(BD_0!C155-BD_0!C146)))>0,0,-((BD_0!C37+D61)-(BD_0!B37+(BD_0!C155-BD_0!C146)))) -> 0 | E72: =IF(((BD_0!D37+E61)-(BD_0!C37+(BD_0!D155-BD_0!D146)))>0,0,-((BD_0!D37+E61)-(BD_0!C37+(BD_0!D155-BD_0!D146)))) -> 0 | F72: =IF(((BD_0!E37+F61)-(BD_0!D37+(BD_0!E155-BD_0!E146)))>0,0,-((BD_0!E37+F61)-(BD_0!D37+(BD_0!E155-BD_0!E146)))) -> 0 | G72: =IF(((BD_0!F37+G61)-(BD_0!E37+(BD_0!F155-BD_0!F146)))>0,0,-((BD_0!F37+G61)-(BD_0!E37+(BD_0!F155-BD_0!F146)))) -> 0 | H72: =IF(((BD_0!G37+H61)-(BD_0!F37+(BD_0!G155-BD_0!G146)))>0,0,-((BD_0!G37+H61)-(BD_0!F37+(BD_0!G155-BD_0!G146)))) -> 0 | I72: =IF(((BD_0!H37+I61)-(BD_0!G37+(BD_0!H155-BD_0!H146)))>0,0,-((BD_0!H37+I61)-(BD_0!G37+(BD_0!H155-BD_0!H146)))) -> 0 | J72: 0 | K72: 0 | L72: 0 | M72: 0 | N72: 0
A73: 4. Estructura de caja | B73: (=) FCL (Flujo de Caja Libre ) | D73: =+D68-D69+D70-D71+D72 -> -3830799.23 | E73: -415932655.3 | F73: 1026617599 | G73: 216581597 | H73: 223248493.8 | I73: -530381361.5 | J73: =+J68-J69+J70-J71+J72 -> 302529795.7 | K73: 404533985.6 | L73: 519958377.5 | M73: 428757931.7 | N73: 483132564.7
A75: 4. Estructura de caja | B75: FCB (Flujo de Caja Bruto ) | D75: =+D68/D$68 -> 1 | E75: 1 | F75: 1 | G75: 1 | H75: 1 | I75: 1 | J75: =+J68/J$68 -> 1 | K75: 1 | L75: 1 | M75: 1 | N75: 1
A76: 4. Estructura de caja | B76: Aumento del KTNO | D76: =(D69-D70)/$D$68 -> 1.000004783 | E76: 1.206920048 | F76: -1.332854917 | G76: -0.06296707268 | H76: -0.6278195453 | I76: 0.5787653062 | J76: =(J69-J70)/$D$68 -> -0.2144724504 | K76: -0.2923812086 | L76: -0.3617352657 | M76: -0.1340579757 | N76: -0.1184970234
A77: 4. Estructura de caja | B77: Inversión en P,P y E | D77: =(D71-D72)/$D$68 -> 0.006914934767 | E77: 0.01061633974 | F77: 0.007959472615 | G77: 0.008041379201 | H77: 0.02149383505 | I77: 0.007617740579 | J77: =(J71-J72)/$D$68 -> 0 | K77: 0 | L77: 0 | M77: 0 | N77: 0
A78: 4. Estructura de caja | B78: Pago intereses | D78: =(BD_0!C166)/$D$68 -> 0.00150212531 | E78: =(BD_0!D166)/$D$68 -> 0.0001408925499 | F78: =(BD_0!E166)/$D$68 -> 0.00528825422 | G78: =(BD_0!F166)/$D$68 -> 0.01831636151 | H78: =(BD_0!G166)/$D$68 -> 3.002314225e-05 | I78: =(BD_0!H166)/$D$68 -> 0.001043239382 | J78: =(BD_0!I166)/$D$68 -> 0 | K78: =(BD_0!J166)/$D$68 -> 0 | L78: =(BD_0!K166)/$D$68 -> -1.636911588e-07 | M78: =(BD_0!L166)/$D$68 -> 6.599266235e-06 | N78: =(BD_0!M166)/$D$68 -> 4.450081821e-07
A79: 4. Estructura de caja | B79: Pago deudas
A80: 4. Estructura de caja | B80: Pago dividendos
C82: =+C$3 -> 2014 | D82: 2015 | E82: 2016 | F82: 2017 | G82: 2018 | H82: 2019 | I82: 2020 | J82: =+J$3&" p" -> 2021 p | K82: =+K$3&" p" -> 2022 p | L82: 2023 p | M82: 2024 p | N82: 2025 p
B83: Total de Activos | C83: =+'Estados financieros + Estrategi'!F58 -> 2990728307 | D83: =+'Estados financieros + Estrategi'!G58 -> 3620764407 | E83: =+'Estados financieros + Estrategi'!H58 -> 2702483239 | F83: =+'Estados financieros + Estrategi'!I58 -> 2131686010 | G83: =+'Estados financieros + Estrategi'!J58 -> 2253183331 | H83: =+'Estados financieros + Estrategi'!K58 -> 2976643249 | I83: =+'Estados financieros + Estrategi'!L58 -> 1967906609 | J83: =+'Estados financieros + Estrategi'!M58 -> 1914084544 | K83: =+'Estados financieros + Estrategi'!N58 -> 1795955967 | L83: =+'Estados financieros + Estrategi'!O58 -> 1642410062 | M83: =+'Estados financieros + Estrategi'!P58 -> 1605277531 | N83: =+'Estados financieros + Estrategi'!Q58 -> 1584980374
B84: Utilidad neta | C84: =+'Estados financieros + Estrategi'!F102 -> 673868312.3 | D84: =+'Estados financieros + Estrategi'!G102 -> 547490908.7 | E84: =+'Estados financieros + Estrategi'!H102 -> 157745646.7 | F84: =+'Estados financieros + Estrategi'!I102 -> 215263983.4 | G84: =+'Estados financieros + Estrategi'!J102 -> 170252046.6 | H84: =+'Estados financieros + Estrategi'!K102 -> -118430049.2 | I84: =+'Estados financieros + Estrategi'!L102 -> -256119251 | J84: =+'Estados financieros + Estrategi'!M102 -> 94118077.54 | K84: =+'Estados financieros + Estrategi'!N102 -> 206110308.6 | L84: =+'Estados financieros + Estrategi'!O102 -> 287400412.1 | M84: =+'Estados financieros + Estrategi'!P102 -> 322788443.8 | N84: =+'Estados financieros + Estrategi'!Q102 -> 386266667
A85: 5. Rentabilidad del activo | B85: ROA ( Return On Assets) | C85: =+C84/C83 -> 0.225319134 | D85: =+D84/D83 -> 0.151208653 | E85: 0.05837062906 | F85: 0.1009829695 | G85: 0.07556067198 | H85: -0.03978644377 | I85: -0.130148072 | J85: =+J84/J83 -> 0.04917132728 | K85: 0.1147635646 | L85: 0.1749870016 | M85: 0.2010795253 | N85: 0.2437043848 | P85: =Info_Sector!B62/Info_Sector!B11 -> 0.09334889394 | Q85: =Info_Sector!C62/Info_Sector!C11 -> 0.07150116132 | R85: =Info_Sector!D62/Info_Sector!D11 -> 0.05275268129 | S85: =Info_Sector!E62/Info_Sector!E11 -> 0.07158477054 | T85: =Info_Sector!F62/Info_Sector!F11 -> 0.07886209813 | V85: Utilidad operacional / Total activos
A86: 5. Rentabilidad del activo | B86: ROA ( Return On Assets) A de I | C86: =+('Estados financieros + Estrategi'!F100)/'Estados financieros + Estrategi'!F58 -> 0.3446499335 | D86: =+('Estados financieros + Estrategi'!G100)/'Estados financieros + Estrategi'!G58 -> 0.2337207876 | E86: =+('Estados financieros + Estrategi'!H100)/'Estados financieros + Estrategi'!H58 -> 0.09118896397 | F86: =+('Estados financieros + Estrategi'!I100)/'Estados financieros + Estrategi'!I58 -> 0.1536600521 | G86: =+('Estados financieros + Estrategi'!J100)/'Estados financieros + Estrategi'!J58 -> 0.1186818857 | H86: =+('Estados financieros + Estrategi'!K100)/'Estados financieros + Estrategi'!K58 -> -0.03978644377 | I86: =+('Estados financieros + Estrategi'!L100)/'Estados financieros + Estrategi'!L58 -> -0.130148072 | J86: =+('Estados financieros + Estrategi'!M100)/'Estados financieros + Estrategi'!M58 -> 0.0796356549 | K86: =+('Estados financieros + Estrategi'!N100)/'Estados financieros + Estrategi'!N58 -> 0.1963589765 | L86: =+('Estados financieros + Estrategi'!O100)/'Estados financieros + Estrategi'!O58 -> 0.2953838805 | M86: =+('Estados financieros + Estrategi'!P100)/'Estados financieros + Estrategi'!P58 -> 0.3384533161 | N86: =+('Estados financieros + Estrategi'!Q100)/'Estados financieros + Estrategi'!Q58 -> 0.4082262024 | P86: =Info_Sector!B80/Info_Sector!B11 -> 0.07162363101 | Q86: =Info_Sector!C80/Info_Sector!C11 -> 0.04880987147 | R86: =Info_Sector!D80/Info_Sector!D11 -> 0.02446124883 | S86: =Info_Sector!E80/Info_Sector!E11 -> 0.0499444209 | T86: =Info_Sector!F80/Info_Sector!F11 -> 0.06086675035 | V86: Utilidad Antes de Impuestos / Total activos
A87: 5. Rentabilidad del activo | B87: ROA (Rentabilidad Neta del activo) | C87: =+('Estados financieros + Estrategi'!F102)/'Estados financieros + Estrategi'!F58 -> 0.225319134 | D87: =+('Estados financieros + Estrategi'!G102)/'Estados financieros + Estrategi'!G58 -> 0.151208653 | E87: =+('Estados financieros + Estrategi'!H102)/'Estados financieros + Estrategi'!H58 -> 0.05837062906 | F87: =+('Estados financieros + Estrategi'!I102)/'Estados financieros + Estrategi'!I58 -> 0.1009829695 | G87: =+('Estados financieros + Estrategi'!J102)/'Estados financieros + Estrategi'!J58 -> 0.07556067198 | H87: =+('Estados financieros + Estrategi'!K102)/'Estados financieros + Estrategi'!K58 -> -0.03978644377 | I87: =+('Estados financieros + Estrategi'!L102)/'Estados financieros + Estrategi'!L58 -> -0.130148072 | J87: =+('Estados financieros + Estrategi'!M102)/'Estados financieros + Estrategi'!M58 -> 0.04917132728 | K87: =+('Estados financieros + Estrategi'!N102)/'Estados financieros + Estrategi'!N58 -> 0.1147635646 | L87: =+('Estados financieros + Estrategi'!O102)/'Estados financieros + Estrategi'!O58 -> 0.1749870016 | M87: =+('Estados financieros + Estrategi'!P102)/'Estados financieros + Estrategi'!P58 -> 0.2010795253 | N87: =+('Estados financieros + Estrategi'!Q102)/'Estados financieros + Estrategi'!Q58 -> 0.2437043848 | P87: =Info_Sector!B83/Info_Sector!B11 -> 0.04404068263 | Q87: =Info_Sector!C83/Info_Sector!C11 -> 0.02189828611 | R87: =Info_Sector!D83/Info_Sector!D11 -> 0.007831495267 | S87: =Info_Sector!E83/Info_Sector!E11 -> 0.02842923389 | T87: =Info_Sector!F83/Info_Sector!F11 -> 0.04078265902 | V87: Utilidad NEta / Total activos
C89: =+C$3 -> 2014 | D89: 2015 | E89: 2016 | F89: 2017 | G89: 2018 | H89: 2019 | I89: 2020 | J89: =+J$3&" p" -> 2021 p | K89: =+K$3&" p" -> 2022 p | L89: 2023 p | M89: 2024 p | N89: 2025 p
A90: 5. Rentabilidad | B90: Utilidad Bruta | C90: =+'Estados financieros + Estrategi'!F91/'Estados financieros + Estrategi'!F89 -> 0.4663745055 | D90: =+'Estados financieros + Estrategi'!G91/'Estados financieros + Estrategi'!G89 -> 0.4103160582 | E90: =+'Estados financieros + Estrategi'!H91/'Estados financieros + Estrategi'!H89 -> 0.402220351 | F90: =+'Estados financieros + Estrategi'!I91/'Estados financieros + Estrategi'!I89 -> 0.4432266736 | G90: =+'Estados financieros + Estrategi'!J91/'Estados financieros + Estrategi'!J89 -> 0.4513763282 | H90: =+'Estados financieros + Estrategi'!K91/'Estados financieros + Estrategi'!K89 -> 0.254915515 | I90: =+'Estados financieros + Estrategi'!L91/'Estados financieros + Estrategi'!L89 -> 0.420968894 | J90: =+'Estados financieros + Estrategi'!M91/'Estados financieros + Estrategi'!M89 -> 0.4170698584 | K90: =+'Estados financieros + Estrategi'!N91/'Estados financieros + Estrategi'!N89 -> 0.4417412916 | L90: =+'Estados financieros + Estrategi'!O91/'Estados financieros + Estrategi'!O89 -> 0.4659724728 | M90: =+'Estados financieros + Estrategi'!P91/'Estados financieros + Estrategi'!P89 -> 0.473207514 | N90: =+'Estados financieros + Estrategi'!Q91/'Estados financieros + Estrategi'!Q89 -> 0.4875208756 | P90: =Info_Sector!B29/Info_Sector!B27 -> 0.2060607047 | Q90: =Info_Sector!C29/Info_Sector!C27 -> 0.2015083755 | R90: =Info_Sector!D29/Info_Sector!D27 -> 0.2089549191 | S90: =Info_Sector!E29/Info_Sector!E27 -> 0.2024129058 | T90: =Info_Sector!F29/Info_Sector!F27 -> 0.2309593081 | V90: Utilidad Bruta / Ventas
A91: 5. Rentabilidad | B91: Utilidad Operacional | C91: =+'Estados financieros + Estrategi'!F94/'Estados financieros + Estrategi'!F89 -> 0.2000833899 | D91: =+'Estados financieros + Estrategi'!G94/'Estados financieros + Estrategi'!G89 -> 0.1747185712 | E91: =+'Estados financieros + Estrategi'!H94/'Estados financieros + Estrategi'!H89 -> 0.1182983869 | F91: =+'Estados financieros + Estrategi'!I94/'Estados financieros + Estrategi'!I89 -> 0.1222501428 | G91: =+'Estados financieros + Estrategi'!J94/'Estados financieros + Estrategi'!J89 -> 0.1443350917 | H91: =+'Estados financieros + Estrategi'!K94/'Estados financieros + Estrategi'!K89 -> -0.02532707755 | I91: =+'Estados financieros + Estrategi'!L94/'Estados financieros + Estrategi'!L89 -> 0.1071242308 | J91: =+'Estados financieros + Estrategi'!M94/'Estados financieros + Estrategi'!M89 -> 0.1362324515 | K91: =+'Estados financieros + Estrategi'!N94/'Estados financieros + Estrategi'!N89 -> 0.172873958 | L91: =+'Estados financieros + Estrategi'!O94/'Estados financieros + Estrategi'!O89 -> 0.2089537705 | M91: =+'Estados financieros + Estrategi'!P94/'Estados financieros + Estrategi'!P89 -> 0.2195975528 | N91: =+'Estados financieros + Estrategi'!Q94/'Estados financieros + Estrategi'!Q89 -> 0.2410496065 | P91: =Info_Sector!B62/Info_Sector!B27 -> 0.04924188502 | Q91: =Info_Sector!C62/Info_Sector!C27 -> 0.04219286563 | R91: =Info_Sector!D62/Info_Sector!D27 -> 0.03383749077 | S91: =Info_Sector!E62/Info_Sector!E27 -> 0.04431957507 | T91: =Info_Sector!F62/Info_Sector!F27 -> 0.05855287358 | V91: Utilidad Operacional / Ventas
A92: 5. Rentabilidad | B92: Utilidad Neta | C92: =+'Estados financieros + Estrategi'!F102/'Estados financieros + Estrategi'!F89 -> 0.1265883574 | D92: =+'Estados financieros + Estrategi'!G102/'Estados financieros + Estrategi'!G89 -> 0.1152883554 | E92: =+'Estados financieros + Estrategi'!H102/'Estados financieros + Estrategi'!H89 -> 0.05052272105 | F92: =+'Estados financieros + Estrategi'!I102/'Estados financieros + Estrategi'!I89 -> 0.08004766802 | G92: =+'Estados financieros + Estrategi'!J102/'Estados financieros + Estrategi'!J89 -> 0.07837449336 | H92: =+'Estados financieros + Estrategi'!K102/'Estados financieros + Estrategi'!K89 -> -0.03813384544 | I92: =+'Estados financieros + Estrategi'!L102/'Estados financieros + Estrategi'!L89 -> -0.1080990921 | J92: =+'Estados financieros + Estrategi'!M102/'Estados financieros + Estrategi'!M89 -> 0.03571016781 | K92: =+'Estados financieros + Estrategi'!N102/'Estados financieros + Estrategi'!N89 -> 0.07321747943 | L92: =+'Estados financieros + Estrategi'!O102/'Estados financieros + Estrategi'!O89 -> 0.09558696314 | M92: =+'Estados financieros + Estrategi'!P102/'Estados financieros + Estrategi'!P89 -> 0.1021861082 | N92: =+'Estados financieros + Estrategi'!Q102/'Estados financieros + Estrategi'!Q89 -> 0.1154863815 | P92: =Info_Sector!B83/Info_Sector!B27 -> 0.02323162213 | Q92: =Info_Sector!C83/Info_Sector!C27 -> 0.01292218792 | R92: =Info_Sector!D83/Info_Sector!D27 -> 0.005023406248 | S92: =Info_Sector!E83/Info_Sector!E27 -> 0.01760111202 | T92: =Info_Sector!F83/Info_Sector!F27 -> 0.03027996888 | V92: Utilidad Neta / Ventas
A93: 5. Rentabilidad | B93: ROE - Return On Equity | C93: =+'Estados financieros + Estrategi'!F102/'Estados financieros + Estrategi'!F80 -> 0.3803967865 | D93: =+'Estados financieros + Estrategi'!G102/'Estados financieros + Estrategi'!G80 -> 0.2695086664 | E93: =+'Estados financieros + Estrategi'!H102/'Estados financieros + Estrategi'!H80 -> 0.07205674274 | F93: =+'Estados financieros + Estrategi'!I102/'Estados financieros + Estrategi'!I80 -> 0.1279879612 | G93: =+'Estados financieros + Estrategi'!J102/'Estados financieros + Estrategi'!J80 -> 0.1180310576 | H93: =+'Estados financieros + Estrategi'!K102/'Estados financieros + Estrategi'!K80 -> -0.08944839011 | I93: =+'Estados financieros + Estrategi'!L102/'Estados financieros + Estrategi'!L80 -> -0.2414522338 | J93: =+'Estados financieros + Estrategi'!M102/'Estados financieros + Estrategi'!M80 -> 0.07413467685 | K93: =+'Estados financieros + Estrategi'!N102/'Estados financieros + Estrategi'!N80 -> 0.18997794 | L93: =+'Estados financieros + Estrategi'!O102/'Estados financieros + Estrategi'!O80 -> 0.3232498831 | M93: =+'Estados financieros + Estrategi'!P102/'Estados financieros + Estrategi'!P80 -> 0.3950874365 | N93: =+'Estados financieros + Estrategi'!Q102/'Estados financieros + Estrategi'!Q80 -> 0.5114783929 | P93: =Info_Sector!B83/Info_Sector!B18 -> 0.121598076 | Q93: =Info_Sector!C83/Info_Sector!C18 -> 0.06023933326 | R93: =Info_Sector!D83/Info_Sector!D18 -> 0.02130260976 | S93: =Info_Sector!E83/Info_Sector!E18 -> 0.07866692461 | T93: =Info_Sector!F83/Info_Sector!F18 -> 0.1008673159 | V93: Utilidad Neta / Patrimonio
B94: =+B101 -> EBITDA % | C94: =+C101 -> 0.2027160393 | D94: =+D101 -> 0.1765997415 | E94: 0.1219322101 | F94: 0.1244258313 | G94: 0.1469969333 | H94: -0.02339633211 | I94: 0.1105630371 | J94: 0.138425751 | K94: 0.1749482763 | L94: 0.2109182105 | M94: 0.2214766301 | N94: 0.2429027567
C96: =+C3 -> 2014 | D96: 2015 | E96: 2016 | F96: 2017 | G96: 2018 | H96: 2019 | I96: 2020 | J96: =+J3 -> 2021 | K96: 2022 | L96: 2023 | M96: 2024 | N96: 2025 | P96: 2016 S | Q96: 2017 S | R96: 2018 S | S96: 2019 S | T96: 2020 S | U96: Promedio Sector
A97: Figura 17. EBITDA | B97: Utilidad Operacional | C97: =+('Estados financieros + Estrategi'!F94) -> 1065104714 | D97: =+('Estados financieros + Estrategi'!G94) -> 829718048.9 | E97: =+('Estados financieros + Estrategi'!H94) -> 369359669.4 | F97: =+('Estados financieros + Estrategi'!I94) -> 328754770.1 | G97: =+('Estados financieros + Estrategi'!J94) -> 313537526.1 | H97: =+('Estados financieros + Estrategi'!K94) -> -78656820.67 | I97: =+('Estados financieros + Estrategi'!L94) -> 253809511.3 | J97: =+('Estados financieros + Estrategi'!M94) -> 359055619.8 | K97: =+('Estados financieros + Estrategi'!N94) -> 486647520.6 | L97: =+('Estados financieros + Estrategi'!O94) -> 628259312.4 | M97: =+('Estados financieros + Estrategi'!P94) -> 693671122 | N97: =+('Estados financieros + Estrategi'!Q94) -> 806237297.3
B98: (+) Depreciaciones | C98: =+'Estados financieros + Estrategi'!F107 -> 5369989.291 | D98: =+'Estados financieros + Estrategi'!G107 -> 5369989.291 | E98: =+'Estados financieros + Estrategi'!H107 -> 5700966.32 | F98: =+'Estados financieros + Estrategi'!I107 -> 4097773 | G98: =+'Estados financieros + Estrategi'!J107 -> 5782289 | H98: =+'Estados financieros + Estrategi'!K107 -> 5996203 | I98: =+'Estados financieros + Estrategi'!L107 -> 8147566 | J98: =+'Estados financieros + Estrategi'!M107 -> 5780682.272 | K98: =+'Estados financieros + Estrategi'!N107 -> 5839352.698 | L98: =+'Estados financieros + Estrategi'!O107 -> 5906404.613 | M98: =+'Estados financieros + Estrategi'!P107 -> 5935752.94 | N98: =+'Estados financieros + Estrategi'!Q107 -> 6198321.503
B99: (+) Amortizaciones y provisiones | C99: =+BD_0!B124 -> 8644404 | D99: =+BD_0!C124 -> 3563468.38 | E99: =+BD_0!D124 -> 5644816 | F99: =+BD_0!E124 -> 1753083 | G99: =+BD_0!F124 -> 0 | H99: =+BD_0!G124 -> 0 | I99: =+BD_0!H124 -> 0 | J99: =+BD_0!I124 -> 0 | K99: =+BD_0!J124 -> -58.7771652 | L99: =+BD_0!K124 -> 58.40791605 | M99: =+BD_0!L124 -> -68.94348726 | N99: =+BD_0!M124 -> -100 | P99: 2016 S | Q99: 2017 S | R99: 2018 S | S99: 2019 S | T99: 2020 S | U99: Promedio Sector
A100: 5. Rentabilidad | B100: EBITDA $ | C100: =+('Estados financieros + Estrategi'!F94+'Estados financieros + Estrategi'!F107+BD_0!B124) -> 1079119107 | D100: =+('Estados financieros + Estrategi'!G94+'Estados financieros + Estrategi'!G107+BD_0!C124) -> 838651506.6 | E100: =+('Estados financieros + Estrategi'!H94+'Estados financieros + Estrategi'!H107+BD_0!D124) -> 380705451.7 | F100: =+('Estados financieros + Estrategi'!I94+'Estados financieros + Estrategi'!I107+BD_0!E124) -> 334605626.1 | G100: =+('Estados financieros + Estrategi'!J94+'Estados financieros + Estrategi'!J107+BD_0!F124) -> 319319815.1 | H100: =+('Estados financieros + Estrategi'!K94+'Estados financieros + Estrategi'!K107+BD_0!G124) -> -72660617.67 | I100: =+('Estados financieros + Estrategi'!L94+'Estados financieros + Estrategi'!L107+BD_0!H124) -> 261957077.3 | J100: =+('Estados financieros + Estrategi'!M94+'Estados financieros + Estrategi'!M107+BD_0!I124) -> 364836302 | K100: =+('Estados financieros + Estrategi'!N94+'Estados financieros + Estrategi'!N107+BD_0!J124) -> 492486814.6 | L100: =+('Estados financieros + Estrategi'!O94+'Estados financieros + Estrategi'!O107+BD_0!K124) -> 634165775.4 | M100: =+('Estados financieros + Estrategi'!P94+'Estados financieros + Estrategi'!P107+BD_0!L124) -> 699606806 | N100: =+('Estados financieros + Estrategi'!Q94+'Estados financieros + Estrategi'!Q107+BD_0!M124) -> 812435518.8 | P100: =Info_Sector!B80+Info_Sector!B81+Info_Sector!B82 -> 400555996 | Q100: =Info_Sector!C80+Info_Sector!C81+Info_Sector!C82 -> 321339227 | R100: =Info_Sector!D80+Info_Sector!D81+Info_Sector!D82 -> 296741788 | S100: =Info_Sector!E80+Info_Sector!E81+Info_Sector!E82 -> 440423471 | T100: =Info_Sector!F80+Info_Sector!F81+Info_Sector!F82 -> 499942714 | W100: =+(D100-C100)/C100*100 -> -22.28369409 | X100: -54.60504766 | Y100: -12.10905318 | Z100: -4.568306621 | AA100: -122.7548101 | AB100: -460.5214017 | AC100: =+(I100-C100)/C100*100 -> -75.7249153
A101: 5. Rentabilidad | B101: EBITDA % | C101: =('Estados financieros + Estrategi'!F94+'Estados financieros + Estrategi'!F107+BD_0!B124)/'Estados financieros + Estrategi'!F89 -> 0.2027160393 | D101: =('Estados financieros + Estrategi'!G94+'Estados financieros + Estrategi'!G107+BD_0!C124)/'Estados financieros + Estrategi'!G89 -> 0.1765997415 | E101: =('Estados financieros + Estrategi'!H94+'Estados financieros + Estrategi'!H107+BD_0!D124)/'Estados financieros + Estrategi'!H89 -> 0.1219322101 | F101: =('Estados financieros + Estrategi'!I94+'Estados financieros + Estrategi'!I107+BD_0!E124)/'Estados financieros + Estrategi'!I89 -> 0.1244258313 | G101: =('Estados financieros + Estrategi'!J94+'Estados financieros + Estrategi'!J107+BD_0!F124)/'Estados financieros + Estrategi'!J89 -> 0.1469969333 | H101: =('Estados financieros + Estrategi'!K94+'Estados financieros + Estrategi'!K107+BD_0!G124)/'Estados financieros + Estrategi'!K89 -> -0.02339633211 | I101: =('Estados financieros + Estrategi'!L94+'Estados financieros + Estrategi'!L107+BD_0!H124)/'Estados financieros + Estrategi'!L89 -> 0.1105630371 | J101: =('Estados financieros + Estrategi'!M94+'Estados financieros + Estrategi'!M107+BD_0!I124)/'Estados financieros + Estrategi'!M89 -> 0.138425751 | K101: =('Estados financieros + Estrategi'!N94+'Estados financieros + Estrategi'!N107+BD_0!J124)/'Estados financieros + Estrategi'!N89 -> 0.1749482763 | L101: =('Estados financieros + Estrategi'!O94+'Estados financieros + Estrategi'!O107+BD_0!K124)/'Estados financieros + Estrategi'!O89 -> 0.2109182105 | M101: =('Estados financieros + Estrategi'!P94+'Estados financieros + Estrategi'!P107+BD_0!L124)/'Estados financieros + Estrategi'!P89 -> 0.2214766301 | N101: =('Estados financieros + Estrategi'!Q94+'Estados financieros + Estrategi'!Q107+BD_0!M124)/'Estados financieros + Estrategi'!Q89 -> 0.2429027567 | P101: =(Info_Sector!B80+Info_Sector!B81+Info_Sector!B82)/Info_Sector!B22 -> 0.07643007119 | Q101: =(Info_Sector!C80+Info_Sector!C81+Info_Sector!C82)/Info_Sector!C22 -> 0.06278650161 | R101: =(Info_Sector!D80+Info_Sector!D81+Info_Sector!D82)/Info_Sector!D22 -> 0.05375650112 | S101: =(Info_Sector!E80+Info_Sector!E81+Info_Sector!E82)/Info_Sector!E22 -> 0.06808356696 | T101: =(Info_Sector!F80+Info_Sector!F81+Info_Sector!F82)/Info_Sector!F22 -> 0.08842868749 | U101: =+AVERAGE(P101:T101) -> 0.06989706567
A103: 5. Rentabilidad | B103: ROE - Return On Equity (Rentabilidad A de I e) | C103: =('Estados financieros + Estrategi'!F100)/'Estados financieros + Estrategi'!F80 -> 0.5818579401 | D103: =('Estados financieros + Estrategi'!G100)/'Estados financieros + Estrategi'!G80 -> 0.4165752192 | E103: =('Estados financieros + Estrategi'!H100)/'Estados financieros + Estrategi'!H80 -> 0.1125699658 | F103: =('Estados financieros + Estrategi'!I100)/'Estados financieros + Estrategi'!I80 -> 0.1947520149 | G103: =('Estados financieros + Estrategi'!J100)/'Estados financieros + Estrategi'!J80 -> 0.1853894112 | H103: =('Estados financieros + Estrategi'!K100)/'Estados financieros + Estrategi'!K80 -> -0.08944839011 | I103: =('Estados financieros + Estrategi'!L100)/'Estados financieros + Estrategi'!L80 -> -0.2414522338 | J103: =('Estados financieros + Estrategi'!M100)/'Estados financieros + Estrategi'!M80 -> 0.1200651654 | K103: =('Estados financieros + Estrategi'!N100)/'Estados financieros + Estrategi'!N80 -> 0.3250498014 | L103: =('Estados financieros + Estrategi'!O100)/'Estados financieros + Estrategi'!O80 -> 0.5456565571 | M103: =('Estados financieros + Estrategi'!P100)/'Estados financieros + Estrategi'!P80 -> 0.6650038232 | N103: =('Estados financieros + Estrategi'!Q100)/'Estados financieros + Estrategi'!Q80 -> 0.856771133 | P103: =Info_Sector!B80/Info_Sector!B18 -> 0.1977556934 | Q103: =Info_Sector!C80/Info_Sector!C18 -> 0.1342695999 | R103: =Info_Sector!D80/Info_Sector!D18 -> 0.06653754108 | S103: =Info_Sector!E80/Info_Sector!E18 -> 0.1382018949 | T103: =Info_Sector!F80/Info_Sector!F18 -> 0.1505410849 | V103: Utilidad Antes de Impuestos / Patrimonio
A105: 7. Valor económico agregado | B105: UAII | C105: =+'Estados financieros + Estrategi'!F94 -> 1065104714 | D105: =+'Estados financieros + Estrategi'!G94 -> 829718048.9 | E105: =+'Estados financieros + Estrategi'!H94 -> 369359669.4 | F105: =+'Estados financieros + Estrategi'!I94 -> 328754770.1 | G105: =+'Estados financieros + Estrategi'!J94 -> 313537526.1 | H105: =+'Estados financieros + Estrategi'!K94 -> -78656820.67 | I105: =+'Estados financieros + Estrategi'!L94 -> 253809511.3 | J105: =+'Estados financieros + Estrategi'!M94 -> 359055619.8 | K105: =+'Estados financieros + Estrategi'!N94 -> 486647520.6 | L105: =+'Estados financieros + Estrategi'!O94 -> 628259312.4 | M105: =+'Estados financieros + Estrategi'!P94 -> 693671122 | N105: =+'Estados financieros + Estrategi'!Q94 -> 806237297.3
A106: 7. Valor económico agregado | B106: Tasa de Impuestos | C106: =+BD_0!B167 -> 0.34 | D106: =+BD_0!C167 -> 0.34 | E106: =+BD_0!D167 -> 0.34 | F106: =+BD_0!E167 -> 0.33 | G106: =+BD_0!F167 -> 0.33 | H106: =+BD_0!G167 -> 0.33 | I106: =+BD_0!H167 -> 0.32 | J106: 0.31 | K106: 0.38 | L106: 0.38 | M106: 0.38 | N106: 0.38
A107: 7. Valor económico agregado | B107: UODI (Utilidad Operativa Antes de Impuestos) | C107: =+C105*(1-C106) -> 702969111.2 | D107: =+D105*(1-D106) -> 547613912.3 | E107: 243777381.8 | F107: 220265696 | G107: 210070142.5 | H107: -52700069.85 | I107: 172590467.7 | J107: 247748377.6 | K107: 301721462.8 | L107: 389520773.7 | M107: 430076095.7 | N107: 499867124.3
A109: 7. Valor económico agregado | B109: Costo de Intereses | C109: =IFERROR(BD_0!B166/BD_0!B60,0%) -> 0.01551857973 | D109: =IFERROR(BD_0!C166/BD_0!C60,0%) -> 0.02270191022 | E109: =IFERROR(BD_0!D166/BD_0!D60,0%) -> 0.02215139994 | F109: =IFERROR(BD_0!E166/BD_0!E60,0%) -> 0.2249124357 | G109: =IFERROR(BD_0!F166/BD_0!F60,0%) -> 0 | H109: =IFERROR(BD_0!G166/BD_0!G60,0%) -> 0 | I109: =IFERROR(BD_0!H166/BD_0!H60,0%) -> 0.06628588405 | J109: =IFERROR(BD_0!I166/BD_0!I60,0%) -> 0 | K109: =IFERROR(BD_0!J166/BD_0!J60,0%) -> 0 | L109: =IFERROR(BD_0!K166/BD_0!K60,0%) -> 1.002578923 | M109: =IFERROR(BD_0!L166/BD_0!L60,0%) -> 13.5477458 | N109: =IFERROR(BD_0!M166/BD_0!M60,0%) -> -2.463593228
A110: 7. Valor económico agregado | B110: OBLIGACIONES FINANCIERAS LP+CP | C110: =+'Estados financieros + Estrategi'!F61+'Estados financieros + Estrategi'!F68 -> 1152875.09 | D110: =+'Estados financieros + Estrategi'!G61+'Estados financieros + Estrategi'!G68 -> 812448.55 | E110: =+'Estados financieros + Estrategi'!H61+'Estados financieros + Estrategi'!H68 -> 1900417.05 | F110: =+'Estados financieros + Estrategi'!I61+'Estados financieros + Estrategi'!I68 -> 137200 | G110: =+'Estados financieros + Estrategi'!J61+'Estados financieros + Estrategi'!J68 -> 150000 | H110: =+'Estados financieros + Estrategi'!K61+'Estados financieros + Estrategi'!K68 -> 156000 | I110: =+'Estados financieros + Estrategi'!L61+'Estados financieros + Estrategi'!L68 -> 162050.87 | J110: =+'Estados financieros + Estrategi'!M61+'Estados financieros + Estrategi'!M68 -> 180265.3878 | K110: =+'Estados financieros + Estrategi'!N61+'Estados financieros + Estrategi'!N68 -> 192537.8554 | L110: =+'Estados financieros + Estrategi'!O61+'Estados financieros + Estrategi'!O68 -> 205645.8326 | M110: =+'Estados financieros + Estrategi'!P61+'Estados financieros + Estrategi'!P68 -> 216051.5117 | N110: =+'Estados financieros + Estrategi'!Q61+'Estados financieros + Estrategi'!Q68 -> 228763.9827
A111: 7. Valor económico agregado | B111: Costo del Patrimonio | C111: 0 | D111: 0 | E111: 0 | F111: 0 | G111: 0 | H111: 0 | I111: 0 | J111: 0 | K111: 0 | L111: 0 | M111: 0 | N111: 0
A112: 7. Valor económico agregado | B112: Patrimonio | C112: =+'Estados financieros + Estrategi'!F80 -> 1771487920 | D112: =+'Estados financieros + Estrategi'!G80 -> 2031440829 | E112: =+'Estados financieros + Estrategi'!H80 -> 2189186476 | F112: =+'Estados financieros + Estrategi'!I80 -> 1681908059 | G112: =+'Estados financieros + Estrategi'!J80 -> 1442434306 | H112: =+'Estados financieros + Estrategi'!K80 -> 1324004256 | I112: =+'Estados financieros + Estrategi'!L80 -> 1060745005 | J112: =+'Estados financieros + Estrategi'!M80 -> 1269555376 | K112: =+'Estados financieros + Estrategi'!N80 -> 1084917062 | L112: =+'Estados financieros + Estrategi'!O80 -> 889096724 | M112: =+'Estados financieros + Estrategi'!P80 -> 817005082.7 | N112: =+'Estados financieros + Estrategi'!Q80 -> 755196450.8
A113: 7. Valor económico agregado | B113: Costo de Capital - CPPC - WACC | C113: =(C109*((C110/(C110+C112))))+(C111*((C112/(C110+C112)))) -> 1.00928423e-05 | D113: 9.075706381e-06 | E113: 1.921279264e-05 | F113: 1.834551479e-05 | G113: 0 | H113: 0 | I113: 1.012500116e-05 | J113: =(J109*((J110/(J110+J112))))+(J111*((J112/(J110+J112)))) -> 0 | K113: 0 | L113: 0.0002318403554 | M113: 0.003581663319 | N113: -0.0007460452571
C115: =+C3 -> 2014 | D115: =+D3 -> 2015 | E115: 2016 | F115: 2017 | G115: 2018 | H115: 2019 | I115: 2020
A116: 7. Valor económico agregado | B116: Rentabilidad Mercado en dólares Kl USA | C116: =+'Valoración Sin Estrategia'!$K$16 -> 0.1074618045 | D116: =+'Valoración Sin Estrategia'!$K$17 -> 0.01284299671 | E116: =+'Valoración Sin Estrategia'!$K$18 -> 0.0069 | F116: =+'Valoración Sin Estrategia'!$K$19 -> 0.028 | G116: =+'Valoración Sin Estrategia'!$K$20 -> -0.0002 | H116: =+'Valoración Sin Estrategia'!$K$21 -> 0.0964 | I116: =+'Valoración Sin Estrategia'!$K$22 -> 0.1133
A117: 7. Valor económico agregado | B117: Inflación en USA | C117: =+'Valoración Sin Estrategia'!$L$16 -> 0.0162 | D117: =+'Valoración Sin Estrategia'!$L$17 -> 0.0012 | E117: =+'Valoración Sin Estrategia'!$L$18 -> 0.0126 | F117: =+'Valoración Sin Estrategia'!$L$19 -> 0.0213 | G117: =+'Valoración Sin Estrategia'!$L$20 -> 0.0244 | H117: =+'Valoración Sin Estrategia'!$L$21 -> 0.0229 | I117: =+'Valoración Sin Estrategia'!$L$22 -> 0.012
A118: 7. Valor económico agregado | B118: Tasa libre de riesgo real en dólares | C118: =+((1+C116)/(1+C117))-1 -> 0.08980693222 | D118: =+((1+D116)/(1+D117))-1 -> 0.01162904186 | E118: -0.005629073672 | F118: 0.006560266327 | G118: -0.02401405701 | H118: 0.07185453123 | I118: 0.1000988142
A119: 7. Valor económico agregado | B119: Inflación en Colombia | C119: 0.0366 | D119: 0.0677 | E119: 0.0575 | F119: 0.0409 | G119: 0.0318 | H119: 0.038 | I119: 0.0161
A120: 7. Valor económico agregado | B120: Tasa libre de riesgo nominal en $COL | C120: =((1+C118)*(1+C119))-1 -> 0.1296938659 | D120: =((1+D118)*(1+D119))-1 -> 0.08011632799 | E120: 0.05154725459 | F120: 0.04772858122 | G120: 0.007022295978 | H120: 0.1125850034 | I120: 0.1178104051
A121: 7. Valor económico agregado | B121: Riesgo pais Colombia | C121: =+'Valoración Sin Estrategia'!$N$16 -> 0.0192 | D121: =+'Valoración Sin Estrategia'!$N$17 -> 0.0339 | E121: =+'Valoración Sin Estrategia'!$N$18 -> 0.0326 | F121: =+'Valoración Sin Estrategia'!$N$19 -> 0.0251 | G121: =+'Valoración Sin Estrategia'!$N$20 -> 0.0181 | H121: =+'Valoración Sin Estrategia'!$N$21 -> 0.0255 | I121: =+'Valoración Sin Estrategia'!$N$22 -> 0.014
A122: 7. Valor económico agregado | B122: Rentabilidad Mercado en dólares Km USA | C122: =+'Valoración Sin Estrategia'!$J$16 -> 0.1352442165 | D122: =+'Valoración Sin Estrategia'!$J$17 -> 0.0138 | E122: =+'Valoración Sin Estrategia'!$J$18 -> 0.1177 | F122: =+'Valoración Sin Estrategia'!$J$19 -> 0.2161 | G122: =+'Valoración Sin Estrategia'!$J$20 -> -0.0423 | H122: =+'Valoración Sin Estrategia'!$J$21 -> 0.3121 | I122: =+'Valoración Sin Estrategia'!$J$22 -> 0.1801
A123: 7. Valor económico agregado | B123: Inflación en USA | C123: =+C117 -> 0.0162 | D123: =+D117 -> 0.0012 | E123: 0.0126 | F123: 0.0213 | G123: 0.0244 | H123: 0.0229 | I123: 0.012
A124: 7. Valor económico agregado | B124: Rentabilidad del Mercado real en dólares Km USA | C124: =+(1+C122)/(1+C123)-1 -> 0.1171464441 | D124: =+(1+D122)/(1+D123)-1 -> 0.01258489812 | E124: 0.1037922181 | F124: 0.1907372956 | G124: -0.06511128465 | H124: 0.2827255841 | I124: 0.1661067194
A125: 7. Valor económico agregado | B125: Inflación COLOMBIA | C125: =+C119 -> 0.0366 | D125: =+D119 -> 0.0677 | E125: 0.0575 | F125: 0.0409 | G125: 0.0318 | H125: 0.038 | I125: 0.0161
A126: 7. Valor económico agregado | B126: Rentabilidad del Mercado en $COL | C126: =+(1+C124)*(1+C125)-1 -> 0.158034004 | D126: =+(1+D124)/(1+D125)-1 -> -0.05162040075 | E126: 0.04377514709 | F126: 0.1439497508 | G126: -0.093924486 | H126: 0.2357664587 | I126: 0.1476298783
A127: 7. Valor económico agregado | B127: Deuda | C127: =+'Cifras Historicas'!F34 -> 1152875.09 | D127: =+'Cifras Historicas'!G34 -> 812448.55 | E127: =+'Cifras Historicas'!H34 -> 1900417.05 | F127: =+'Cifras Historicas'!I34 -> 137200 | G127: =+'Cifras Historicas'!J34 -> 150000 | H127: =+'Cifras Historicas'!K34 -> 156000 | I127: =+'Cifras Historicas'!L34 -> 162050.87
A128: 7. Valor económico agregado | B128: Patrimonio | C128: =+C132 -> 1771487920 | D128: =+D132 -> 1771487920 | E128: 2031440829 | F128: 2189186476 | G128: 1681908059 | H128: 1442434306 | I128: 1324004256
A129: 7. Valor económico agregado | B129: Beta Apalancada BL = BU * ( 1 + (1-t) * D/P) | C129: =C130*(1+(1-('Analisis Financiero'!F92/'Analisis Financiero'!F91))*(C127/C128)) -> 0.9290309561 | D129: =D130*(1+(1-('Analisis Financiero'!G92/'Analisis Financiero'!G91))*(D127/D128)) -> 0.9286692768 | E129: =E130*(1+(1-('Analisis Financiero'!H92/'Analisis Financiero'!H91))*(E127/E128)) -> 1.140519038 | F129: =F130*(1+(1-('Analisis Financiero'!I92/'Analisis Financiero'!I91))*(F127/F128)) -> 1.107219636 | G129: =G130*(1+(1-('Analisis Financiero'!J92/'Analisis Financiero'!J91))*(G127/G128)) -> 1.177119771 | H129: =H130*(1+(1-('Analisis Financiero'!K92/'Analisis Financiero'!K91))*(H127/H128)) -> 1.005470665 | I129: =I130*(1+(1-('Analisis Financiero'!L92/'Analisis Financiero'!L91))*(I127/I128)) -> 1.119530836
A130: 7. Valor económico agregado | B130: B: Riesgo de mercado de un activo. | C130: 0.928635854 | D130: 0.92839381 | E130: 1.13983648 | F130: 1.107174035 | G130: 1.177052937 | H130: 1.005361934 | I130: 1.119393829
A131: 7. Valor económico agregado | B131: *Ke ( Costo de los fondos propios) | C131: =+(C120+(C126-C120)*C129+C121) -> 0.1752227315 | D131: =+(D120+(D126-D120)*D129+D121) -> -0.00832352461 | E131: =+(E120+(E126-E120)*E129+E121) -> 0.07528301802 | F131: =+(F120+(F126-F120)*F129+F121) -> 0.1793665496 | G131: =+(G120+(G126-G120)*G129+G121) -> -0.09370415689 | H131: =+(H120+(H126-H120)*H129+H121) -> 0.2619403431 | I131: =+(I120+(I126-I120)*I129+I121) -> 0.1651942249
A132: 7. Valor económico agregado | B132: *E ( Fondos Propios) | C132: =+'Cifras Historicas'!F53 -> 1771487920 | D132: =+'Cifras Historicas'!F53 -> 1771487920 | E132: =+'Cifras Historicas'!G53 -> 2031440829 | F132: =+'Cifras Historicas'!H53 -> 2189186476 | G132: =+'Cifras Historicas'!I53 -> 1681908059 | H132: =+'Cifras Historicas'!J53 -> 1442434306 | I132: =+'Cifras Historicas'!K53 -> 1324004256
A133: 7. Valor económico agregado | B133: *D ( Endeudamiento) | C133: =+'Cifras Historicas'!F34 -> 1152875.09 | D133: =+'Cifras Historicas'!G34 -> 812448.55 | E133: =+'Cifras Historicas'!H34 -> 1900417.05 | F133: =+'Cifras Historicas'!I34 -> 137200 | G133: =+'Cifras Historicas'!J34 -> 150000 | H133: =+'Cifras Historicas'!K34 -> 156000 | I133: =+'Cifras Historicas'!L34 -> 162050.87
A134: 7. Valor económico agregado | B134: *Kd (Coste Financiero) | C134: =+'Cifras Historicas'!F74/Indicadores!C133 -> 0.7213147697 | D134: =+'Cifras Historicas'!G74/Indicadores!D133 -> 1.023555067 | E134: =+'Cifras Historicas'!H74/Indicadores!E133 -> 0.04104328047 | F134: =+'Cifras Historicas'!I74/Indicadores!F133 -> 21.33827063 | G134: =+'Cifras Historicas'!J74/Indicadores!G133 -> 67.60035133 | H134: =+'Cifras Historicas'!K74/Indicadores!H133 -> 0.1065448718 | I134: =+'Cifras Historicas'!L74/Indicadores!I133 -> 3.563966488
A135: 7. Valor económico agregado | B135: *T (Tasa Impositiva) | C135: =25%+9% -> 0.34 | D135: =25%+9% -> 0.34 | E135: =+Info_Sector!B87 -> 0.34 | F135: =+Info_Sector!C87 -> 0.33 | G135: =+Info_Sector!D87 -> 0.33 | H135: =+Info_Sector!E87 -> 0.33 | I135: =+Info_Sector!F87 -> 0.32
A136: 7. Valor económico agregado | B136: WACC o CPPC | C136: =(C131*(C132/(C132+C133)))+(C134*(1-C135)*(C133/(C132+C133))) -> 0.1754183925 | D136: =(D131*(D132/(D132+D133)))+(D134*(1-D135)*(D133/(D132+D133))) -> -0.008010028606 | E136: 0.07523797415 | F136: 0.1802512475 | G136: -0.08965679901 | H136: 0.2619197367 | I136: 0.165470595
A137: 7. Valor económico agregado | B137: =+B107 -> UODI (Utilidad Operativa Antes de Impuestos) | C137: =+C107 -> 702969111.2 | D137: =+D107 -> 547613912.3 | E137: =+E107 -> 243777381.8 | F137: =+F107 -> 220265696 | G137: =+G107 -> 210070142.5 | H137: =+H107 -> -52700069.85 | I137: =+I107 -> 172590467.7
A138: 7. Valor económico agregado | B138: CI ( Capital Invertido) | C138: =+'Estados financieros + Estrategi'!F58-'Estados financieros + Estrategi'!F62-'Estados financieros + Estrategi'!F63-'Estados financieros + Estrategi'!F64-'Estados financieros + Estrategi'!F69-'Estados financieros + Estrategi'!F70 -> 1772640795 | D138: =+'Estados financieros + Estrategi'!G58-'Estados financieros + Estrategi'!G62-'Estados financieros + Estrategi'!G63-'Estados financieros + Estrategi'!G64-'Estados financieros + Estrategi'!G69-'Estados financieros + Estrategi'!G70 -> 2032253278 | E138: =+'Estados financieros + Estrategi'!H58-'Estados financieros + Estrategi'!H62-'Estados financieros + Estrategi'!H63-'Estados financieros + Estrategi'!H64-'Estados financieros + Estrategi'!H69-'Estados financieros + Estrategi'!H70 -> 2191086893 | F138: =+'Estados financieros + Estrategi'!I58-'Estados financieros + Estrategi'!I62-'Estados financieros + Estrategi'!I63-'Estados financieros + Estrategi'!I64-'Estados financieros + Estrategi'!I69-'Estados financieros + Estrategi'!I70 -> 1682045259 | G138: =+'Estados financieros + Estrategi'!J58-'Estados financieros + Estrategi'!J62-'Estados financieros + Estrategi'!J63-'Estados financieros + Estrategi'!J64-'Estados financieros + Estrategi'!J69-'Estados financieros + Estrategi'!J70 -> 1442584306 | H138: =+'Estados financieros + Estrategi'!K58-'Estados financieros + Estrategi'!K62-'Estados financieros + Estrategi'!K63-'Estados financieros + Estrategi'!K64-'Estados financieros + Estrategi'!K69-'Estados financieros + Estrategi'!K70 -> 1324160256 | I138: =+'Estados financieros + Estrategi'!L58-'Estados financieros + Estrategi'!L62-'Estados financieros + Estrategi'!L63-'Estados financieros + Estrategi'!L64-'Estados financieros + Estrategi'!L69-'Estados financieros + Estrategi'!L70 -> 1060907056
A139: 7. Valor económico agregado | B139: EVA ( Valor Económico Agregado) | C139: =C137-(C136*C138) -> 392015312.5 | D139: =D137-(D136*D138) -> 563892319.2 | E139: =E137-(E136*E138) -> 78924442.79 | F139: =F137-(F136*F138) -> -82925060.32 | G139: =G137-(G136*G138) -> 339407633.7 | H139: =H137-(H136*H138) -> -399523775.6 | I139: =I137-(I136*I138) -> -2958454.119
C141: =+C3 -> 2014 | D141: =+D3 -> 2015 | E141: =+E3 -> 2016 | F141: =+F3 -> 2017 | G141: =+G3 -> 2018 | H141: =+H3 -> 2019 | I141: =+I3 -> 2020 | J141: =+J3 -> 2021 | K141: =+K3 -> 2022 | L141: =+L3 -> 2023 | M141: =+M3 -> 2024 | N141: =+N3 -> 2025
A142: X. Dupont | B142: =+B92 -> Utilidad Neta | C142: =+C92 -> 0.1265883574 | D142: =+D92 -> 0.1152883554 | E142: =+E92 -> 0.05052272105 | F142: =+F92 -> 0.08004766802 | G142: =+G92 -> 0.07837449336 | H142: =+H92 -> -0.03813384544 | I142: =+I92 -> -0.1080990921 | J142: =+J92 -> 0.03571016781 | K142: =+K92 -> 0.07321747943 | L142: =+L92 -> 0.09558696314 | M142: =+M92 -> 0.1021861082 | N142: =+N92 -> 0.1154863815
A143: X. Dupont | B143: =+B87 -> ROA (Rentabilidad Neta del activo) | C143: =+C87 -> 0.225319134 | D143: =+D87 -> 0.151208653 | E143: =+E87 -> 0.05837062906 | F143: =+F87 -> 0.1009829695 | G143: =+G87 -> 0.07556067198 | H143: =+H87 -> -0.03978644377 | I143: =+I87 -> -0.130148072 | J143: =+J87 -> 0.04917132728 | K143: =+K87 -> 0.1147635646 | L143: =+L87 -> 0.1749870016 | M143: =+M87 -> 0.2010795253 | N143: =+N87 -> 0.2437043848 | V143: Total Activos / Capital
A144: X. Dupont | B144: Multiplicador de capital | C144: =+'Estados financieros + Estrategi'!F58/'Estados financieros + Estrategi'!F80 -> 1.688257805 | D144: =+'Estados financieros + Estrategi'!G58/'Estados financieros + Estrategi'!G80 -> 1.782362723 | E144: =+'Estados financieros + Estrategi'!H58/'Estados financieros + Estrategi'!H80 -> 1.234469182 | F144: =+'Estados financieros + Estrategi'!I58/'Estados financieros + Estrategi'!I80 -> 1.267421247 | G144: =+'Estados financieros + Estrategi'!J58/'Estados financieros + Estrategi'!J80 -> 1.562069983 | H144: =+'Estados financieros + Estrategi'!K58/'Estados financieros + Estrategi'!K80 -> 2.248212749 | I144: =+'Estados financieros + Estrategi'!L58/'Estados financieros + Estrategi'!L80 -> 1.855211761 | J144: =+'Estados financieros + Estrategi'!M58/'Estados financieros + Estrategi'!M80 -> 1.50768102 | K144: =+'Estados financieros + Estrategi'!N58/'Estados financieros + Estrategi'!N80 -> 1.655385494 | L144: =+'Estados financieros + Estrategi'!O58/'Estados financieros + Estrategi'!O80 -> 1.847279399 | M144: =+'Estados financieros + Estrategi'!P58/'Estados financieros + Estrategi'!P80 -> 1.964831755 | N144: =+'Estados financieros + Estrategi'!Q58/'Estados financieros + Estrategi'!Q80 -> 2.098765655
A145: X. Dupont | B145: Índice Dupont | C145: =+C142*C143*C144 -> 0.04815380438 | D145: =+D142*D143*D144 -> 0.03107121092 | E145: 0.003640502713 | F145: 0.01024513783 | G145: 0.00925062434 | H145: 0.003411011083 | I145: 0.02610076727 | J145: =+J142*J143*J144 -> 0.002647361751 | K145: 0.01390970592 | L145: 0.03089847466 | M145: 0.04037244753 | N145: 0.05906878879
A147: X. Altman | B147: Activo Circulante | C147: =+'Estados financieros + Estrategi'!F49 -> 2976070077 | D147: =+'Estados financieros + Estrategi'!G49 -> 3602555346 | E147: =+'Estados financieros + Estrategi'!H49 -> 2689104334 | F147: =+'Estados financieros + Estrategi'!I49 -> 2118770685 | G147: =+'Estados financieros + Estrategi'!J49 -> 2241598537 | H147: =+'Estados financieros + Estrategi'!K49 -> 2959155536 | I147: =+'Estados financieros + Estrategi'!L49 -> 1954349233 | J147: =+'Estados financieros + Estrategi'!M49 -> 1899003319 | K147: =+'Estados financieros + Estrategi'!N49 -> 1779848012 | L147: =+'Estados financieros + Estrategi'!O49 -> 1625205477 | M147: =+'Estados financieros + Estrategi'!P49 -> 1587202394 | N147: =+'Estados financieros + Estrategi'!Q49 -> 1565841696 | V147: Z= 6,56X1+3,26X2+6,72X3+ 1,05X4 | W147: Factores
A148: X. Altman | B148: Total Activos | C148: =+'Estados financieros + Estrategi'!F58 -> 2990728307 | D148: =+'Estados financieros + Estrategi'!G58 -> 3620764407 | E148: =+'Estados financieros + Estrategi'!H58 -> 2702483239 | F148: =+'Estados financieros + Estrategi'!I58 -> 2131686010 | G148: =+'Estados financieros + Estrategi'!J58 -> 2253183331 | H148: =+'Estados financieros + Estrategi'!K58 -> 2976643249 | I148: =+'Estados financieros + Estrategi'!L58 -> 1967906609 | J148: =+'Estados financieros + Estrategi'!M58 -> 1914084544 | K148: =+'Estados financieros + Estrategi'!N58 -> 1795955967 | L148: =+'Estados financieros + Estrategi'!O58 -> 1642410062 | M148: =+'Estados financieros + Estrategi'!P58 -> 1605277531 | N148: =+'Estados financieros + Estrategi'!Q58 -> 1584980374 | V148: X1= Activos Circulantes / Total activos | W148: 6.56
A149: X. Altman | B149: Total Pasivos | C149: =+'Estados financieros + Estrategi'!F73 -> 1219240387 | D149: =+'Estados financieros + Estrategi'!G73 -> 1589323578 | E149: =+'Estados financieros + Estrategi'!H73 -> 513296763.1 | F149: =+'Estados financieros + Estrategi'!I73 -> 449777950.4 | G149: =+'Estados financieros + Estrategi'!J73 -> 810749025.5 | H149: =+'Estados financieros + Estrategi'!K73 -> 1652638992 | I149: =+'Estados financieros + Estrategi'!L73 -> 907161603.5 | J149: =+'Estados financieros + Estrategi'!M73 -> 644529167.8 | K149: =+'Estados financieros + Estrategi'!N73 -> 711038905.1 | L149: =+'Estados financieros + Estrategi'!O73 -> 753313337.5 | M149: =+'Estados financieros + Estrategi'!P73 -> 788272447.9 | N149: =+'Estados financieros + Estrategi'!Q73 -> 829783923 | V149: X2= Beneficios no distribuidos / Total activos | W149: 3.26
A150: X. Altman | B150: Patrimonio | C150: =+'Estados financieros + Estrategi'!F80 -> 1771487920 | D150: =+'Estados financieros + Estrategi'!G80 -> 2031440829 | E150: =+'Estados financieros + Estrategi'!H80 -> 2189186476 | F150: =+'Estados financieros + Estrategi'!I80 -> 1681908059 | G150: =+'Estados financieros + Estrategi'!J80 -> 1442434306 | H150: =+'Estados financieros + Estrategi'!K80 -> 1324004256 | I150: =+'Estados financieros + Estrategi'!L80 -> 1060745005 | J150: =+'Estados financieros + Estrategi'!M80 -> 1269555376 | K150: =+'Estados financieros + Estrategi'!N80 -> 1084917062 | L150: =+'Estados financieros + Estrategi'!O80 -> 889096724 | M150: =+'Estados financieros + Estrategi'!P80 -> 817005082.7 | N150: =+'Estados financieros + Estrategi'!Q80 -> 755196450.8 | V150: X3= EBITDA/ Total activos | W150: 6.72
A151: X. Altman | B151: Beneficios No Distribuidos | C151: =+'Estados financieros + Estrategi'!F78 -> 78840194 | D151: =+'Estados financieros + Estrategi'!G78 -> 90000000 | E151: =+'Estados financieros + Estrategi'!H78 -> 90000000 | F151: =+'Estados financieros + Estrategi'!I78 -> 90000000 | G151: =+'Estados financieros + Estrategi'!J78 -> 90000000 | H151: =+'Estados financieros + Estrategi'!K78 -> 90000000 | I151: =+'Estados financieros + Estrategi'!L78 -> 90000000 | J151: =+'Estados financieros + Estrategi'!M78 -> 90000000 | K151: =+'Estados financieros + Estrategi'!N78 -> 90000000 | L151: =+'Estados financieros + Estrategi'!O78 -> 90000000 | M151: =+'Estados financieros + Estrategi'!P78 -> 90000000 | N151: =+'Estados financieros + Estrategi'!Q78 -> 90000000 | V151: X4= Patrimonio / pasivo total | W151: 1.05
A152: X. Altman | B152: EBITDA | C152: =+C100 -> 1079119107 | D152: =+D100 -> 838651506.6 | E152: =+E100 -> 380705451.7 | F152: =+F100 -> 334605626.1 | G152: =+G100 -> 319319815.1 | H152: =+H100 -> -72660617.67 | I152: =+I100 -> 261957077.3 | J152: =+J100 -> 364836302 | K152: =+K100 -> 492486814.6 | L152: =+L100 -> 634165775.4 | M152: =+M100 -> 699606806 | N152: =+N100 -> 812435518.8 | V152: X5= Ventas / Total activos | W152: 0
A153: X. Altman | B153: Ventas | C153: =+'Estados financieros + Estrategi'!F89 -> 5323304022 | D153: =+'Estados financieros + Estrategi'!G89 -> 4748882979 | E153: =+'Estados financieros + Estrategi'!H89 -> 3122271394 | F153: =+'Estados financieros + Estrategi'!I89 -> 2689197433 | G153: =+'Estados financieros + Estrategi'!J89 -> 2172288959 | H153: =+'Estados financieros + Estrategi'!K89 -> 3105641403 | I153: =+'Estados financieros + Estrategi'!L89 -> 2369300666 | J153: =+'Estados financieros + Estrategi'!M89 -> 2635610061 | K153: =+'Estados financieros + Estrategi'!N89 -> 2815042394 | L153: =+'Estados financieros + Estrategi'!O89 -> 3006690480 | M153: =+'Estados financieros + Estrategi'!P89 -> 3158829018 | N153: =+'Estados financieros + Estrategi'!Q89 -> 3344694518
A154: X. Altman | B154: X1 | C154: =+$W148*(C147/C148) -> 6.527847969 | D154: =+$W$148*(D147/D148) -> 6.527009331 | E154: 6.527524085 | F154: 6.520254685 | G154: 6.526271609 | H154: 6.521460146 | I154: 6.514806602 | J154: 6.508313236 | K154: 6.501163266 | L154: 6.491282646 | M154: 6.486135579 | N154: 6.480787837 | V154: 0 | W154: Peligro de quiebra
A155: X. Altman | B155: X2 | C155: =+$W149*(C151/C148) -> 0.0859386096 | D155: =+$W$149*(D151/D148) -> 0.08103261274 | E155: 0.1085668158 | F155: 0.1376375314 | G155: 0.1302157689 | H155: 0.09856740478 | I155: 0.149092441 | J155: 0.1532847653 | K155: 0.1633670343 | L155: 0.1786399188 | M155: 0.182772134 | N155: 0.1851127022 | V155: 0.1 | W155: Zona Gris
A156: X. Altman | B156: X3 | C156: =+$W150*(C152/C148) -> 2.424720555 | D156: 1.556505061 | E156: 0.9466629057 | F156: 1.054822238 | G156: 0.9523544436 | H156: -0.1640369066 | I156: 0.8945300309 | J156: 1.280873386 | K156: 1.842757537 | L156: 2.594719864 | M156: 2.928688434 | N156: 3.444564221 | V156: 2.6 | W156: Situación normal
A157: X. Altman | B157: X4 | C157: =+$W151*(C150/C149) -> 1.525591127 | D157: 1.342088484 | E157: 4.478200458 | F157: 3.926389589 | G157: 1.868094778 | H157: 0.8412027524 | I157: 1.227766091 | J157: 2.068227803 | K157: 1.602110527 | L157: 1.239260629 | M157: 1.088272639 | N157: 0.9556177836
A158: X. Altman | B158: X5 | C158: =+$W152*(C153/C148) -> 0 | D158: 0 | E158: 0 | F158: 0 | G158: 0 | H158: 0 | I158: 0 | J158: 0 | K158: 0 | L158: 0 | M158: 0 | N158: 0
A159: X. Altman | B159: Indicador | C159: =+SUM(C154:C158) -> 10.56409826 | D159: =+SUM(D154:D158) -> 9.506635488 | E159: 12.06095426 | F159: 11.63910404 | G159: 9.4769366 | H159: 7.297193396 | I159: 8.786195165 | J159: 10.01069919 | K159: 10.10939836 | L159: 10.50390306 | M159: 10.68586879 | N159: 11.06608254
A160: X. Altman | B160: Zona | C160: =+LOOKUP(C159,$V$154:$V$156,$W$154:$W$156) -> Situación normal | D160: Situación normal | E160: Situación normal | F160: Situación normal | G160: Situación normal | H160: Situación normal | I160: Situación normal | J160: Situación normal | K160: Situación normal | L160: Situación normal | M160: Situación normal | N160: Situación normal

Sheet Figuras y tablas
A4: EBITDA - Ventas
A6: Años | B6: 2014 | C6: 2015 | D6: 2016 | E6: 2017 | F6: 2018 | G6: 2019 | H6: 2020
A7: Ventas | B7: =+'Cifras Historicas'!F65/1000000 -> 5323.304022 | C7: =+'Cifras Historicas'!G65/1000000 -> 4748.882979 | D7: =+'Cifras Historicas'!H65/1000000 -> 3122.271394 | E7: =+'Cifras Historicas'!I65/1000000 -> 2689.197433 | F7: =+'Cifras Historicas'!J65/1000000 -> 2172.288959 | G7: =+'Cifras Historicas'!K65/1000000 -> 3105.641403 | H7: =+'Cifras Historicas'!L65/1000000 -> 2369.300666
A8: EBITDA | B8: =+Indicadores!C100/1000000 -> 1079.119107 | C8: =+Indicadores!D100/1000000 -> 838.6515066 | D8: =+Indicadores!E100/1000000 -> 380.7054517 | E8: =+Indicadores!F100/1000000 -> 334.6056261 | F8: =+Indicadores!G100/1000000 -> 319.3198151 | G8: =+Indicadores!H100/1000000 -> -72.66061767 | H8: =+Indicadores!I100/1000000 -> 261.9570773 | Q8: =5323/5323 -> 1
A9: EBITDA % | B9: =+B8/B7 -> 0.2027160393 | C9: =+C8/C7 -> 0.1765997415 | D9: 0.1219322101 | E9: 0.1244258313 | F9: 0.1469969333 | G9: -0.02339633211 | H9: 0.1105630371
Q10: =1079/5323 -> 0.2027052414
Q13: =2369/5323 -> 0.445049784 | R13: =1-Q13 -> 0.554950216
Q15: =262/1079 -> 0.2428174235 | R15: =1-Q15 -> 0.7571825765
A20: Empresa | B20: Ingresos 2019 | C20: EBITDA 2019 $ | D20: EBITDA 2019 % | E20: Ingresos 2020 | F20: EBITDA 2020 $ | G20: EBITDA 2020 % | H20: Var Ingresos | I20: Var EBITDA
A21: =UPPER("GL Retail") -> GL RETAIL | B21: =+G7*1000 -> 3105641.403 | C21: =+G8*1000 -> -72660.61767 | D21: =+C21/B21 -> -0.02339633211 | E21: =+H7*1000 -> 2369300.666 | F21: =+H8*1000 -> 261957.0773 | G21: =+F21/E21 -> 0.1105630371 | H21: =(E21-B21)/B21 -> -0.2370977977 | I21: =(F21-C21)/C21 -> -4.605214017
A22: =+'Detalle empresas Sector'!B2 -> COMERCIALIZADORA Y DISTRIBUIDORA INTERAMERICANA LTDA | B22: =+'Detalle empresas Sector'!BO2 -> 138519 | C22: =+'Detalle empresas Sector'!CE2 -> 70179 | D22: =+C22/B22 -> 0.5066380785 | E22: =+'Detalle empresas Sector'!BO10 -> 30996 | F22: =+'Detalle empresas Sector'!CE10 -> 17087 | G22: =+F22/E22 -> 0.5512646793 | H22: =(E22-B22)/B22 -> -0.7762328634 | I22: -0.7565226065
A23: =+'Detalle empresas Sector'!B3 -> BRANDING ARTICULOS PUBLICITARIOS LTDA | B23: =+'Detalle empresas Sector'!BO3 -> 5471299 | C23: =+'Detalle empresas Sector'!CE3 -> 268626 | D23: 0.04909729847 | E23: =+'Detalle empresas Sector'!BO11 -> 5058460 | F23: =+'Detalle empresas Sector'!CE11 -> 348239 | G23: 0.06884288894 | H23: -0.07545539003 | I23: =(F23-C23)/C23 -> 0.2963711629
A24: =+'Detalle empresas Sector'!B4 -> AMAGRAN SAS | B24: =+'Detalle empresas Sector'!BO4 -> 4007694 | C24: =+'Detalle empresas Sector'!CE4 -> 366656 | D24: 0.09148802279 | E24: =+'Detalle empresas Sector'!BO12 -> 3076186 | F24: =+'Detalle empresas Sector'!CE12 -> 262941 | G24: 0.08547630085 | H24: -0.232429921 | I24: -0.2828673198
A25: =+'Detalle empresas Sector'!B5 -> SURTIALIADOS S.A.S. | B25: =+'Detalle empresas Sector'!BO5 -> 11563773 | C25: =+'Detalle empresas Sector'!CE5 -> 371632 | D25: 0.03213760768 | E25: =+'Detalle empresas Sector'!BO13 -> 5903457 | F25: =+'Detalle empresas Sector'!CE13 -> 73636 | G25: 0.01247336942 | H25: -0.4894869521 | I25: -0.8018577518
A26: =+'Detalle empresas Sector'!B6 -> SOLUCIONES EN MATERIALES COMPUESTOS SAS | B26: =+'Detalle empresas Sector'!BO6 -> 8385285 | C26: =+'Detalle empresas Sector'!CE6 -> 608780 | D26: 0.0726009909 | E26: =+'Detalle empresas Sector'!BO14 -> 5535660 | F26: =+'Detalle empresas Sector'!CE14 -> 357551 | G26: 0.06459049147 | H26: -0.339836392 | I26: -0.412676172
A27: =+'Detalle empresas Sector'!B7 -> P&A ASOCIADOS SAS | B27: =+'Detalle empresas Sector'!BO7 -> 813490 | C27: =+'Detalle empresas Sector'!CE7 -> 621390 | D27: 0.763856962 | E27: =+'Detalle empresas Sector'!BO15 -> 696755 | F27: =+'Detalle empresas Sector'!CE15 -> 9368 | G27: 0.01344518518 | H27: -0.1434989981 | I27: -0.9849241217
A28: =+'Detalle empresas Sector'!B8 -> CISNE NEGRO INVERSIONES SAS | B28: =+'Detalle empresas Sector'!BO8 -> 2707914 | C28: =+'Detalle empresas Sector'!CE8 -> 132413 | D28: 0.04889852484 | E28: =+'Detalle empresas Sector'!BO16 -> 1232815 | F28: =+'Detalle empresas Sector'!CE16 -> 266122 | G28: 0.2158653164 | H28: -0.5447362804 | I28: 1.009787559
A29: =+'Detalle empresas Sector'!B9 -> LABORATORIOS LOUIS PASTEUR SAS | B29: =+'Detalle empresas Sector'!BO9 -> 4674427 | C29: =+'Detalle empresas Sector'!CE9 -> 802199 | D29: 0.1716144032 | E29: =+'Detalle empresas Sector'!BO17 -> 7192199 | F29: =+'Detalle empresas Sector'!CE17 -> 1408312 | G29: 0.1958110447 | H29: 0.5386268734 | I29: 0.7555643924
A31: Gastos Administrativos - ventas
A33: Años | B33: =+B6 -> 2014 | C33: =+C6 -> 2015 | D33: =+D6 -> 2016 | E33: =+E6 -> 2017 | F33: =+F6 -> 2018 | G33: =+G6 -> 2019 | H33: =+H6 -> 2020
A34: Gastos Admin. | B34: =+BD_0!B125/1000000 -> 432.53129 | C34: =+BD_0!C125/1000000 -> 600.2739467 | D34: =+BD_0!D125/1000000 -> 298.7532626 | E34: =+BD_0!E125/1000000 -> 323.7007404 | F34: =+BD_0!F125/1000000 -> 362.7437669 | G34: =+BD_0!G125/1000000 -> 288.5409835 | H34: =+BD_0!H125/1000000 -> 230.6184641
A35: =+A7 -> Ventas | B35: =+B7 -> 5323.304022 | C35: =+C7 -> 4748.882979 | D35: =+D7 -> 3122.271394 | E35: =+E7 -> 2689.197433 | F35: =+F7 -> 2172.288959 | G35: =+G7 -> 3105.641403 | H35: =+H7 -> 2369.300666
A46: Gastos de ventas - ventas
A48: Años | B48: =+B$6 -> 2014 | C48: =+C$6 -> 2015 | D48: 2016 | E48: 2017 | F48: 2018 | G48: 2019 | H48: 2020
A49: Gastos de ventas | B49: =+BD_0!B140/1000000 -> 985.017277 | C49: =+BD_0!C140/1000000 -> 518.550949 | D49: =+BD_0!D140/1000000 -> 587.728164 | E49: =+BD_0!E140/1000000 -> 539.4685225 | F49: =+BD_0!F140/1000000 -> 304.238521 | G49: =+BD_0!G140/1000000 -> 581.7920148 | H49: =+BD_0!H140/1000000 -> 512.9739055
A50: =+A7 -> Ventas | B50: =+B7 -> 5323.304022 | C50: =+C7 -> 4748.882979 | D50: =+D7 -> 3122.271394 | E50: =+E7 -> 2689.197433 | F50: =+F7 -> 2172.288959 | G50: =+G7 -> 3105.641403 | H50: =+H7 -> 2369.300666
A64: Comprtamiento de La Diferencia en Cambio
A66: Años | B66: =+B$6 -> 2014 | C66: =+C$6 -> 2015 | D66: 2016 | E66: 2017 | F66: 2018 | G66: 2019 | H66: 2020
A67: Gasto | B67: 123.532 | C67: 123.532 | D67: 246.031 | E67: 10.712 | F67: 39.564 | G67: 43.015 | H67: 103.277
A68: Ingreso | B68: 137.076 | C68: 137.076 | D68: 159.755 | E68: 17.927 | F68: 23.216 | G68: 21.188 | H68: 76.669
A80: Años | B80: =+B$6 -> 2014 | C80: =+C$6 -> 2015 | D80: 2016 | E80: 2017 | F80: 2018 | G80: 2019 | H80: 2020
A81: TES | B81: 0.0494 | C81: 0.0651 | D81: 0.0662 | E81: 0.0466 | F81: 0.0486 | G81: 0.045 | H81: 0.0209
A82: ROA | B82: =+Indicadores!C86 -> 0.3446499335 | C82: =+Indicadores!D86 -> 0.2337207876 | D82: =+Indicadores!E86 -> 0.09118896397 | E82: =+Indicadores!F86 -> 0.1536600521 | F82: =+Indicadores!G86 -> 0.1186818857 | G82: =+Indicadores!H86 -> -0.03978644377 | H82: =+Indicadores!I86 -> -0.130148072
B84: https://totoro.banrep.gov.co/analytics/saw.dll?Go
A96: Tabla de estructura de gastos
B97: =+B6 -> 2014 | C97: =+C6 -> 2015 | D97: =+D6 -> 2016 | E97: =+E6 -> 2017 | F97: =+F6 -> 2018 | G97: =+G6 -> 2019 | H97: =+H6 -> 2020 | J97: 2021 | K97: 2022 | L97: 2023 | M97: 2024 | N97: 2025 | P97: 2021 | R97: 2022 | T97: 2023 | V97: 2024 | X97: 2025
A98: Gastos de Administración | B98: =+SUM(B99:B112) -> 8.12524117 | C98: =+SUM(C99:C112) -> 12.64031877 | D98: 9.568459141 | E98: 12.03707606 | F98: 16.69868851 | G98: 9.290866075 | H98: 9.733609054 | J98: =+'Estados financieros + Estrategi'!M92/'Estados financieros + Estrategi'!M89*100 -> 11.30826129 | K98: =+'Estados financieros + Estrategi'!N92/'Estados financieros + Estrategi'!N89*100 -> 10.85373266 | L98: =+'Estados financieros + Estrategi'!O92/'Estados financieros + Estrategi'!O89*100 -> 10.42581372 | M98: =+'Estados financieros + Estrategi'!P92/'Estados financieros + Estrategi'!P89*100 -> 10.23164844 | N98: =+'Estados financieros + Estrategi'!Q92/'Estados financieros + Estrategi'!Q89*100 -> 9.943602789 | O98: Gastos de Administración | P98: =+SUM(P99:P112) -> 298041672.4 | Q98: =+J98 -> 11.30826129 | R98: =+SUM(R99:R112) -> 305537175.7 | S98: =+K98 -> 10.85373266 | T98: =+SUM(T99:T112) -> 313471948.6 | U98: =+L98 -> 10.42581372 | V98: =+SUM(V99:V112) -> 323200279.9 | W98: =+M98 -> 10.23164844 | X98: =+SUM(X99:X112) -> 332583137.3 | Y98: =+N98 -> 9.943602789
A99: Gastos de personal | B99: =+BD_0!B111/BD_0!B$107*100 -> 2.248109661 | C99: =+BD_0!C111/BD_0!C$107*100 -> 5.392830148 | D99: =+BD_0!D111/BD_0!D$107*100 -> 2.95538268 | E99: =+BD_0!E111/BD_0!E$107*100 -> 3.180581535 | F99: =+BD_0!F111/BD_0!F$107*100 -> 2.964900537 | G99: =+BD_0!G111/BD_0!G$107*100 -> 2.097592173 | H99: =+BD_0!H111/BD_0!H$107*100 -> 3.085761679 | I99: * | J99: =H99*(1+((J$98-H$98)/H$98)) -> 3.584960024 | K99: =J99*(1+((K$98-J$98)/J$98)) -> 3.440864753 | L99: =K99*(1+((L$98-K$98)/K$98)) -> 3.305205322 | M99: 3.243650785 | N99: 3.152334171 | O99: Gastos de personal | P99: =(J99%)*'Estados financieros + Estrategi'!M$89 -> 94485567.08 | Q99: =+J99 -> 3.584960024 | R99: =(K99%)*'Estados financieros + Estrategi'!N$89 -> 96861801.52 | S99: 3.440864753 | T99: =(L99%)*'Estados financieros + Estrategi'!O$89 -> 99377293.76 | U99: 3.305205322 | V99: =(M99%)*'Estados financieros + Estrategi'!P$89 -> 102461382.3 | W99: 3.243650785 | X99: =(N99%)*'Estados financieros + Estrategi'!Q$89 -> 105435948.2 | Y99: 3.152334171
A100: Honorarios | B100: =+BD_0!B112/BD_0!B$107*100 -> 0.669062895 | C100: =+BD_0!C112/BD_0!C$107*100 -> 1.008187361 | D100: =+BD_0!D112/BD_0!D$107*100 -> 1.156156062 | E100: =+BD_0!E112/BD_0!E$107*100 -> 1.437521341 | F100: =+BD_0!F112/BD_0!F$107*100 -> 1.586597117 | G100: =+BD_0!G112/BD_0!G$107*100 -> 1.122929324 | H100: =+BD_0!H112/BD_0!H$107*100 -> 1.516929215 | J100: =H100*(1+((J$98-H$98)/H$98)) -> 1.76233007 | K100: =J100*(1+((K$98-J$98)/J$98)) -> 1.691494293 | L100: 1.62480549 | M100: 1.594545902 | N100: 1.549655579 | O100: Honorarios | P100: =(J100%)*'Estados financieros + Estrategi'!M$89 -> 46448148.64 | Q100: 1.76233007 | R100: =(K100%)*'Estados financieros + Estrategi'!N$89 -> 47616281.45 | S100: 1.691494293 | T100: =(L100%)*'Estados financieros + Estrategi'!O$89 -> 48852871.98 | U100: 1.62480549 | V100: =(M100%)*'Estados financieros + Estrategi'!P$89 -> 50368978.68 | W100: 1.594545902 | X100: =(N100%)*'Estados financieros + Estrategi'!Q$89 -> 51831245.2 | Y100: 1.549655579 | AB100: =+P97 -> 2021 | AC100: =+R97 -> 2022 | AD100: =+T97 -> 2023 | AE100: =+V97 -> 2024 | AF100: =+X97 -> 2025
A101: Impuestos | B101: =+BD_0!B113/BD_0!B$107*100 -> 1.574081428 | C101: =+BD_0!C113/BD_0!C$107*100 -> 0.6307939011 | D101: =+BD_0!D113/BD_0!D$107*100 -> 0.1246528411 | E101: =+BD_0!E113/BD_0!E$107*100 -> 0.05068426674 | F101: =+BD_0!F113/BD_0!F$107*100 -> 0 | G101: =+BD_0!G113/BD_0!G$107*100 -> 0 | H101: =+BD_0!H113/BD_0!H$107*100 -> 0 | J101: 0 | K101: =J101*(1+((K$98-J$98)/J$98)) -> 0 | L101: 0 | M101: 0 | N101: 0 | O101: Impuestos | P101: =(J101%)*'Estados financieros + Estrategi'!M$89 -> 0 | Q101: 0 | R101: =(K101%)*'Estados financieros + Estrategi'!N$89 -> 0 | S101: 0 | T101: =(L101%)*'Estados financieros + Estrategi'!O$89 -> 0 | U101: 0 | V101: =(M101%)*'Estados financieros + Estrategi'!P$89 -> 0 | W101: 0 | X101: =(N101%)*'Estados financieros + Estrategi'!Q$89 -> 0 | Y101: 0 | AA101: =+A98 -> Gastos de Administración | AB101: =+Q98 -> 11.30826129 | AC101: =+S98 -> 10.85373266 | AD101: =+U98 -> 10.42581372 | AE101: =+W98 -> 10.23164844 | AF101: =+Y98 -> 9.943602789
A102: Arrendamientos | B102: =+BD_0!B114/BD_0!B$107*100 -> 0.8198104001 | C102: =+BD_0!C114/BD_0!C$107*100 -> 0.9513139869 | D102: =+BD_0!D114/BD_0!D$107*100 -> 1.530623606 | E102: =+BD_0!E114/BD_0!E$107*100 -> 1.886269315 | F102: =+BD_0!F114/BD_0!F$107*100 -> 2.413473667 | G102: =+BD_0!G114/BD_0!G$107*100 -> 1.337639946 | H102: =+BD_0!H114/BD_0!H$107*100 -> 1.480603433 | I102: * | J102: 1.720127694 | K102: =J102*(1+((K$98-J$98)/J$98)) -> 1.650988215 | L102: 1.585896403 | M102: 1.55636144 | N102: 1.512546101 | O102: Arrendamientos | P102: =(J102%)*'Estados financieros + Estrategi'!M$89 -> 45335858.55 | Q102: 1.720127694 | R102: =(K102%)*'Estados financieros + Estrategi'!N$89 -> 46476018.18 | S102: 1.650988215 | T102: =(L102%)*'Estados financieros + Estrategi'!O$89 -> 47682996.17 | U102: 1.585896403 | V102: =(M102%)*'Estados financieros + Estrategi'!P$89 -> 49162796.79 | W102: 1.55636144 | X102: =(N102%)*'Estados financieros + Estrategi'!Q$89 -> 50590046.53 | Y102: 1.512546101 | AA102: =+A114 -> Gastos de ventas | AB102: =+Q114 -> 16.77547939 | AC102: =+S114 -> 16.0330007 | AD102: =+U114 -> 15.27605651 | AE102: =+W114 -> 15.12934768 | AF102: =+Y114 -> 14.70352413
A103: Contribuciones y afiliaciones | B103: =+BD_0!B115/BD_0!B$107*100 -> 0 | C103: =+BD_0!C115/BD_0!C$107*100 -> 0 | D103: =+BD_0!D115/BD_0!D$107*100 -> 0.005188530386 | E103: =+BD_0!E115/BD_0!E$107*100 -> 1.163346842 | F103: =+BD_0!F115/BD_0!F$107*100 -> 1.627277985 | G103: =+BD_0!G115/BD_0!G$107*100 -> 0.6747673869 | H103: =+BD_0!H115/BD_0!H$107*100 -> 1.342045797 | I103: * | J103: 1.559154929 | K103: =J103*(1+((K$98-J$98)/J$98)) -> 1.496485653 | L103: 1.437485254 | M103: 1.410714228 | N103: 1.37099921 | O103: Contribuciones y afiliaciones | P103: =(J103%)*'Estados financieros + Estrategi'!M$89 -> 41093244.18 | Q103: 1.559154929 | R103: =(K103%)*'Estados financieros + Estrategi'!N$89 -> 42126705.54 | S103: 1.496485653 | T103: =(L103%)*'Estados financieros + Estrategi'!O$89 -> 43220732.28 | U103: 1.437485254 | V103: =(M103%)*'Estados financieros + Estrategi'!P$89 -> 44562050.38 | W103: 1.410714228 | X103: =(N103%)*'Estados financieros + Estrategi'!Q$89 -> 45855735.43 | Y103: 1.37099921 | AA103: =+A129 -> Gastos no operacionales | AB103: =+Q129 -> 7.736358519 | AC103: =+S129 -> 4.656550083 | AD103: =+U129 -> 4.656550083 | AE103: =+W129 -> 4.656550083 | AF103: =+Y129 -> 4.656550083
A104: Seguros | B104: =+BD_0!B116/BD_0!B$107*100 -> 0.08947563356 | C104: =+BD_0!C116/BD_0!C$107*100 -> 0.1755693715 | D104: =+BD_0!D116/BD_0!D$107*100 -> 0.2654453426 | E104: =+BD_0!E116/BD_0!E$107*100 -> 0.33659693 | F104: =+BD_0!F116/BD_0!F$107*100 -> 0.1555962427 | G104: =+BD_0!G116/BD_0!G$107*100 -> 0.3925274176 | H104: =+BD_0!H116/BD_0!H$107*100 -> 0.1805866626 | J104: 0.2098010261 | K104: =J104*(1+((K$98-J$98)/J$98)) -> 0.2013682024 | L104: 0.1934290657 | M104: 0.1898267368 | N104: 0.1844826551 | O104: Seguros | P104: =(J104%)*'Estados financieros + Estrategi'!M$89 -> 5529536.951 | Q104: 0.2098010261 | R104: =(K104%)*'Estados financieros + Estrategi'!N$89 -> 5668600.266 | S104: 0.2013682024 | T104: =(L104%)*'Estados financieros + Estrategi'!O$89 -> 5815813.303 | U104: 0.1934290657 | V104: =(M104%)*'Estados financieros + Estrategi'!P$89 -> 5996302.047 | W104: 0.1898267368 | X104: =(N104%)*'Estados financieros + Estrategi'!Q$89 -> 6170381.251 | Y104: 0.1844826551
A105: Servicios | B105: =+BD_0!B117/BD_0!B$107*100 -> 0.7993259604 | C105: =+BD_0!C117/BD_0!C$107*100 -> 0.6622395022 | D105: =+BD_0!D117/BD_0!D$107*100 -> 0.6486396938 | E105: =+BD_0!E117/BD_0!E$107*100 -> 0.5065632903 | F105: =+BD_0!F117/BD_0!F$107*100 -> 0.4914155161 | G105: =+BD_0!G117/BD_0!G$107*100 -> 0.5739493994 | H105: =+BD_0!H117/BD_0!H$107*100 -> 0.5920721334 | J105: 0.6878544589 | K105: =J105*(1+((K$98-J$98)/J$98)) -> 0.6602065705 | L105: 0.6341772859 | M105: 0.6223666766 | N105: 0.6048455495 | O105: Servicios | P105: =(J105%)*'Estados financieros + Estrategi'!M$89 -> 18129161.32 | Q105: 0.6878544589 | R105: =(K105%)*'Estados financieros + Estrategi'!N$89 -> 18585094.85 | S105: 0.6602065705 | T105: =(L105%)*'Estados financieros + Estrategi'!O$89 -> 19067748.08 | U105: 0.6341772859 | V105: =(M105%)*'Estados financieros + Estrategi'!P$89 -> 19659499.18 | W105: 0.6223666766 | X105: =(N105%)*'Estados financieros + Estrategi'!Q$89 -> 20230235.93 | Y105: 0.6048455495
A106: Gastos legales | B106: =+BD_0!B118/BD_0!B$107*100 -> 0.05650588408 | C106: =+BD_0!C118/BD_0!C$107*100 -> 0.06789680888 | D106: =+BD_0!D118/BD_0!D$107*100 -> 0.08432364352 | E106: =+BD_0!E118/BD_0!E$107*100 -> 0.09916386083 | F106: =+BD_0!F118/BD_0!F$107*100 -> 0.3758431385 | G106: =+BD_0!G118/BD_0!G$107*100 -> 0.1261121131 | H106: =+BD_0!H118/BD_0!H$107*100 -> 0.1985360097 | J106: 0.2306541244 | K106: =J106*(1+((K$98-J$98)/J$98)) -> 0.2213831233 | L106: 0.2126548788 | M106: 0.2086944978 | N106: 0.202819243 | O106: Gastos legales | P106: =(J106%)*'Estados financieros + Estrategi'!M$89 -> 6079143.309 | Q106: 0.2306541244 | R106: =(K106%)*'Estados financieros + Estrategi'!N$89 -> 6232028.772 | S106: 0.2213831233 | T106: =(L106%)*'Estados financieros + Estrategi'!O$89 -> 6393873.997 | U106: 0.2126548788 | V106: =(M106%)*'Estados financieros + Estrategi'!P$89 -> 6592302.356 | W106: 0.2086944978 | X106: =(N106%)*'Estados financieros + Estrategi'!Q$89 -> 6783684.1 | Y106: 0.202819243
A107: Mantenimiento y reparaciones | B107: =+BD_0!B119/BD_0!B$107*100 -> 0.1372077373 | C107: =+BD_0!C119/BD_0!C$107*100 -> 0.08296949024 | D107: =+BD_0!D119/BD_0!D$107*100 -> 0.1994569086 | E107: =+BD_0!E119/BD_0!E$107*100 -> 0.2040622207 | F107: =+BD_0!F119/BD_0!F$107*100 -> 0.2481280852 | G107: =+BD_0!G119/BD_0!G$107*100 -> 0.207055457 | H107: =+BD_0!H119/BD_0!H$107*100 -> 0.09121117598 | J107: 0.1059668418 | K107: =J107*(1+((K$98-J$98)/J$98)) -> 0.1017075696 | L107: 0.09769764994 | M107: 0.09587817642 | N107: 0.09317897388 | O107: Mantenimiento y reparaciones | P107: =(J107%)*'Estados financieros + Estrategi'!M$89 -> 2792872.744 | Q107: 0.1059668418 | R107: =(K107%)*'Estados financieros + Estrategi'!N$89 -> 2863111.201 | S107: 0.1017075696 | T107: =(L107%)*'Estados financieros + Estrategi'!O$89 -> 2937465.94 | U107: 0.09769764994 | V107: =(M107%)*'Estados financieros + Estrategi'!P$89 -> 3028627.659 | W107: 0.09587817642 | X107: =(N107%)*'Estados financieros + Estrategi'!Q$89 -> 3116552.031 | Y107: 0.09317897388
A108: Adecuaciones e instalaciones | B108: =+BD_0!B120/BD_0!B$107*100 -> 0.006781502588 | C108: =+BD_0!C120/BD_0!C$107*100 -> 0.04623504116 | D108: =+BD_0!D120/BD_0!D$107*100 -> 0.04019509651 | E108: =+BD_0!E120/BD_0!E$107*100 -> 0.03963245639 | F108: =+BD_0!F120/BD_0!F$107*100 -> 0.03627307485 | G108: =+BD_0!G120/BD_0!G$107*100 -> 0.01142208497 | H108: =+BD_0!H120/BD_0!H$107*100 -> 0.00405604917 | J108: 0.004712215539 | K108: =J108*(1+((K$98-J$98)/J$98)) -> 0.004522810923 | L108: 0.004344494715 | M108: 0.004263584958 | N108: 0.00414355473 | O108: Adecuaciones e instalaciones | P108: =(J108%)*'Estados financieros + Estrategi'!M$89 -> 124195.6268 | Q108: 0.004712215539 | R108: =(K108%)*'Estados financieros + Estrategi'!N$89 -> 127319.0449 | S108: 0.004522810923 | T108: =(L108%)*'Estados financieros + Estrategi'!O$89 -> 130625.509 | U108: 0.004344494715 | V108: =(M108%)*'Estados financieros + Estrategi'!P$89 -> 134679.3589 | W108: 0.004263584958 | X108: =(N108%)*'Estados financieros + Estrategi'!Q$89 -> 138589.2479 | Y108: 0.00414355473
A109: Gastos de viaje | B109: =+BD_0!B121/BD_0!B$107*100 -> 1.174397587 | C109: =+BD_0!C121/BD_0!C$107*100 -> 1.297399396 | D109: =+BD_0!D121/BD_0!D$107*100 -> 1.710614622 | E109: =+BD_0!E121/BD_0!E$107*100 -> 2.624882172 | F109: =+BD_0!F121/BD_0!F$107*100 -> 6.178655476 | G109: =+BD_0!G121/BD_0!G$107*100 -> 2.23692542 | H109: =+BD_0!H121/BD_0!H$107*100 -> 0.5587986506 | J109: 0.6491981665 | K109: =J109*(1+((K$98-J$98)/J$98)) -> 0.6231040441 | L109: 0.5985375626 | M109: 0.5873906901 | N109: 0.5708542216 | O109: Gastos de viaje | P109: =(J109%)*'Estados financieros + Estrategi'!M$89 -> 17110332.19 | Q109: 0.6491981665 | R109: =(K109%)*'Estados financieros + Estrategi'!N$89 -> 17540643 | S109: 0.6231040441 | T109: =(L109%)*'Estados financieros + Estrategi'!O$89 -> 17996171.91 | U109: 0.5985375626 | V109: =(M109%)*'Estados financieros + Estrategi'!P$89 -> 18554667.57 | W109: 0.5873906901 | X109: =(N109%)*'Estados financieros + Estrategi'!Q$89 -> 19093329.86 | Y109: 0.5708542216
A110: Depreciaciones | B110: =+BD_0!B122/BD_0!B$107*100 -> 0.09173342307 | C110: =+BD_0!C122/BD_0!C$107*100 -> 0.07381590609 | D110: =+BD_0!D122/BD_0!D$107*100 -> 0.1464861129 | E110: =+BD_0!E122/BD_0!E$107*100 -> 0.1523790314 | F110: =+BD_0!F122/BD_0!F$107*100 -> 0.2661841546 | G110: =+BD_0!G122/BD_0!G$107*100 -> 0.1930745447 | H110: =+BD_0!H122/BD_0!H$107*100 -> 0.3438806276 | J110: 0.3995118326 | K110: =J110*(1+((K$98-J$98)/J$98)) -> 0.3834536993 | L110: 0.3683356652 | M110: 0.3614759609 | N110: 0.3512995384 | O110: Depreciaciones | P110: =(J110%)*'Estados financieros + Estrategi'!M$89 -> 10529574.05 | Q110: 0.3995118326 | R110: =(K110%)*'Estados financieros + Estrategi'!N$89 -> 10794384.2 | S110: 0.3834536993 | T110: =(L110%)*'Estados financieros + Estrategi'!O$89 -> 11074713.38 | U110: 0.3683356652 | V110: =(M110%)*'Estados financieros + Estrategi'!P$89 -> 11418407.55 | W110: 0.3614759609 | X110: =(N110%)*'Estados financieros + Estrategi'!Q$89 -> 11749896.4 | Y110: 0.3512995384
A111: Diversos | B111: =+BD_0!B123/BD_0!B$107*100 -> 0.2963611121 | C111: =+BD_0!C123/BD_0!C$107*100 -> 2.176029825 | D111: =+BD_0!D123/BD_0!D$107*100 -> 0.5205020304 | E111: =+BD_0!E123/BD_0!E$107*100 -> 0.2902029767 | F111: =+BD_0!F123/BD_0!F$107*100 -> 0.3543435195 | G111: =+BD_0!G123/BD_0!G$107*100 -> 0.3168708078 | H111: =+BD_0!H123/BD_0!H$107*100 -> 0.3391276217 | J111: 0.3939899103 | K111: =J111*(1+((K$98-J$98)/J$98)) -> 0.3781537273 | L111: 0.3632446497 | M111: 0.3564797581 | N111: 0.3464439907 | O111: Diversos | P111: =(J111%)*'Estados financieros + Estrategi'!M$89 -> 10384037.71 | Q111: 0.3939899103 | R111: =(K111%)*'Estados financieros + Estrategi'!N$89 -> 10645187.74 | S111: 0.3781537273 | T111: =(L111%)*'Estados financieros + Estrategi'!O$89 -> 10921642.3 | U111: 0.3632446497 | V111: =(M111%)*'Estados financieros + Estrategi'!P$89 -> 11260586.04 | W111: 0.3564797581 | X111: =(N111%)*'Estados financieros + Estrategi'!Q$89 -> 11587493.17 | Y111: 0.3464439907
A112: Provisiones | B112: =+BD_0!B124/BD_0!B$107*100 -> 0.1623879449 | C112: =+BD_0!C124/BD_0!C$107*100 -> 0.07503803306 | D112: =+BD_0!D124/BD_0!D$107*100 -> 0.1807919712 | E112: =+BD_0!E124/BD_0!E$107*100 -> 0.06518982126 | F112: =+BD_0!F124/BD_0!F$107*100 -> 0 | G112: =+BD_0!G124/BD_0!G$107*100 -> 0 | H112: =+BD_0!H124/BD_0!H$107*100 -> 0 | J112: 0 | K112: =J112*(1+((K$98-J$98)/J$98)) -> 0 | L112: 0 | M112: 0 | N112: 0 | O112: Provisiones | P112: =(J112%)*'Estados financieros + Estrategi'!M$89 -> 0 | Q112: 0 | R112: =(K112%)*'Estados financieros + Estrategi'!N$89 -> 0 | S112: 0 | T112: =(L112%)*'Estados financieros + Estrategi'!O$89 -> 0 | U112: 0 | V112: =(M112%)*'Estados financieros + Estrategi'!P$89 -> 0 | W112: 0 | X112: =(N112%)*'Estados financieros + Estrategi'!Q$89 -> 0 | Y112: 0
A114: Gastos de ventas | B114: =+SUM(B115:B127) -> 18.5038704 | C114: =+SUM(C115:C127) -> 10.91942992 | D114: 18.82373727 | E114: 20.06057703 | F114: 14.00543513 | G114: 18.73339318 | H114: 21.65085727 | J114: =+'Estados financieros + Estrategi'!M93/'Estados financieros + Estrategi'!M89*100 -> 16.77547939 | K114: =+'Estados financieros + Estrategi'!N93/'Estados financieros + Estrategi'!N89*100 -> 16.0330007 | L114: =+'Estados financieros + Estrategi'!O93/'Estados financieros + Estrategi'!O89*100 -> 15.27605651 | M114: =+'Estados financieros + Estrategi'!P93/'Estados financieros + Estrategi'!P89*100 -> 15.12934768 | N114: =+'Estados financieros + Estrategi'!Q93/'Estados financieros + Estrategi'!Q89*100 -> 14.70352413 | O114: Gastos de ventas | P114: =+SUM(P115:P128) -> 442136222.7 | Q114: 16.77547939 | R114: =+SUM(R115:R128) -> 451335766.6 | S114: =+K114 -> 16.0330007 | T114: =+SUM(T115:T128) -> 459303736.8 | U114: =+L114 -> 15.27605651 | V114: =+SUM(V115:V128) -> 477910224.9 | W114: =+M114 -> 15.12934768 | X114: =+SUM(X115:X128) -> 491787965.4 | Y114: =+N114 -> 14.70352413
